Workbook

Sheet PRAP
A1: Dipartimento Amministrazione Penitenziaria - PRAP Veneto, Friuli VG e Trentino AA - C.F. 80020580280
A2: Contratti di forniture, beni e servizi Anno 2023 Dati aggiornati al 31 dicembre 2023
A3: CIG | B3: Codice Fiscale | C3: Denominazione | D3: Oggetto | E3: Procedura di scelta del contraente | F3: Elenco operatori invitati a presentare offerte | G3: Aggiudicatario | H3: Importo di aggiudicazione | I3: Data Inizio | J3: Data Ultimazione | K3: Somme liquidate (al netto dell'IVA)
A4: Z183A6C69D | B4: 13246131000 | C4: SAVENT S.r.l. | D4: FORNITURA BANDIERA ITALIANA/EUROPEA | E4: 26-AFFIDAMENTO DIRETTO IN ADESIONE AD ACCORDO QUADRO/CONVENZIONE | F4: SAVENT S.r.l. | G4: SAVENT S.r.l. | H4: € 421.80 | I4: 2023-01-02 | J4: 2023-12-31 | K4: € 421.80
A5: Z253360FFB | B5: 12878470157 | C5: FASTWEB S.p.a. | D5: CANALE FONICO SU INTERFACCIA RTG | E5: 26-AFFIDAMENTO DIRETTO IN ADESIONE AD ACCORDO QUADRO/CONVENZIONE | F5: FASTWEB S.p.a. | G5: FASTWEB S.p.a. | H5: € 349.90 | I5: 2023-01-02 | J5: 2023-12-31 | K5: € 349.90
A6: ZCA3A0FC14 | B6: 03369290261 | C6: MG sas MANIGHETTI ingrosso carta e cancelleria | D6: CANCELLERIA | E6: 26-AFFIDAMENTO DIRETTO IN ADESIONE AD ACCORDO QUADRO/CONVENZIONE | F6: MG sas MANIGHETTI ingrosso carta e cancelleria | G6: MG sas MANIGHETTI ingrosso carta e cancelleria | H6: € 3,368.22 | I6: 2023-01-02 | J6: 2023-12-31 | K6: € 3,368.22
A7: Z7F3574369 | B7: 1812630224 | C7: DOLOMITI ENERGIA SPA | D7: FORNITURA GAS | E7: 26-AFFIDAMENTO DIRETTO IN ADESIONE AD ACCORDO QUADRO/CONVENZIONE | F7: DOLOMITI ENERGIA SPA | G7: DOLOMITI ENERGIA SPA | H7: € 22,684.28 | I7: 2023-01-02 | J7: 2023-12-31 | K7: € 22,684.28
A8: Z23347C812 | B8: 00435970587 | C8: KUWAIT S.p.a. | D8: FORNITURA GASOLIO/BENZIANA | E8: 26-AFFIDAMENTO DIRETTO IN ADESIONE AD ACCORDO QUADRO/CONVENZIONE | F8: KUWAIT S.p.a. | G8: KUWAIT S.p.a. | H8: € 7,129.28 | I8: 2023-01-02 | J8: 2023-12-31 | K8: € 7,129.28
A9: Z5F357439C | B9: 06655971007 | C9: ENEL ENERGIA S.p.a. | D9: FORNITURA ENERGIA ELETTRICA | E9: 26-AFFIDAMENTO DIRETTO IN ADESIONE AD ACCORDO QUADRO/CONVENZIONE | F9: ENEL ENERGIA S.p.a. | G9: ENEL ENERGIA S.p.a. | H9: € 28,773.62 | I9: 2023-01-02 | J9: 2023-12-31 | K9: € 28,773.62
A10: ZDF3A31FF0 | B10: 02355260981 | C10: EDILFERRARESE s.p.a. | D10: MANUTENZIONE | E10: 26-AFFIDAMENTO DIRETTO IN ADESIONE AD ACCORDO QUADRO/CONVENZIONE | F10: EDILFERRARESE s.p.a. | G10: EDILFERRARESE s.p.a. | H10: € 150.80 | I10: 2023-01-02 | J10: 2023-12-31 | K10: € 150.80
A11: ZC23A92C20 | B11: 05038680285 | C11: ZAMBELLI PNEUMATICI srl | D11: MANUTENZIONE PNEUMATICI | E11: 26-AFFIDAMENTO DIRETTO IN ADESIONE AD ACCORDO QUADRO/CONVENZIONE | F11: ZAMBELLI PNEUMATICI srl | G11: ZAMBELLI PNEUMATICI srl | H11: € 97.60 | I11: 2023-01-02 | J11: 2023-12-31 | K11: € 97.60
A12: ZB53966C2B | B12: 04053060283 | C12: OFFICINE SALVO' DI SALVO' LUCA & C. s.n.c. | D12: OFFICINA MECCANICA | E12: 26-AFFIDAMENTO DIRETTO IN ADESIONE AD ACCORDO QUADRO/CONVENZIONE | F12: OFFICINE SALVO' DI SALVO' LUCA & C. s.n.c. | G12: OFFICINE SALVO' DI SALVO' LUCA & C. s.n.c. | H12: € 1,520.36 | I12: 2023-01-02 | J12: 2023-12-31 | K12: € 1,520.36
A13: Z19350A22E | B13: 02500980301 | C13: MD SYSTEMS SRL | D13: CANONE ANNUALE NANUTENZIONE ANTIFURTO | E13: 26-AFFIDAMENTO DIRETTO IN ADESIONE AD ACCORDO QUADRO/CONVENZIONE | F13: MD SYSTEMS SRL | G13: MD SYSTEMS SRL | H13: € 583.16 | I13: 2023-01-02 | J13: 2023-12-31 | K13: € 583.16
A14: Z353AA8772 | B14: 04665170280 | C14: VENETO SPURGHI ERL | D14: AUTOSPURGO | E14: 26-AFFIDAMENTO DIRETTO IN ADESIONE AD ACCORDO QUADRO/CONVENZIONE | F14: VENETO SPURGHI SRL | G14: VENETO SPURGHI ERL | H14: € 488.00 | I14: 2023-01-02 | J14: 2023-12-31 | K14: € 488.00
A15: Z8A3A30711 | B15: 03768650289 | C15: FERRAMENTA BERNARDI FRANCESCO | D15: FERRAMENTA | E15: 26-AFFIDAMENTO DIRETTO IN ADESIONE AD ACCORDO QUADRO/CONVENZIONE | F15: FERRAMENTA BERNARDI FRANCESCO | G15: FERRAMENTA BERNARDI FRANCESCO | H15: € 66.00 | I15: 2023-01-02 | J15: 2023-12-31 | K15: € 66.00
A16: Z143B1D521 | B16: 04233500281 | C16: DOMOTICA PROJECT | D16: FORNITURA MATERIALE ELETTRICO | E16: 26-AFFIDAMENTO DIRETTO IN ADESIONE AD ACCORDO QUADRO/CONVENZIONE | F16: DOMOTICA PROJECT | G16: DOMOTICA PROJECT | H16: € 1,124.23 | I16: 2023-01-02 | J16: 2023-12-31 | K16: € 1,124.23
A17: ZE73B082DF | B17: 03688020282 | C17: BRAGRATO | D17: FORNITURA 2 VALIGETTE ATTREZZI, AVVITATORE | E17: 26-AFFIDAMENTO DIRETTO IN ADESIONE AD ACCORDO QUADRO/CONVENZIONE | F17: BRAGRATO | G17: BRAGRATO | H17: € 967.54 | I17: 2023-01-02 | J17: 2023-12-31 | K17: € 967.54
A18: ZC439CA783 | B18: 01114601006 | C18: POSTE ITALIANE | D18: SERVIZI POSTALI | E18: 26-AFFIDAMENTO DIRETTO IN ADESIONE AD ACCORDO QUADRO/CONVENZIONE | F18: POSTE ITALIANE | G18: POSTE ITALIANE | H18: € 437.88 | I18: 2023-01-02 | J18: 2023-12-31 | K18: € 437.88
A19: Z4A3B1371F | B19: 02597770284 | C19: PUNTO SCUOLA E UFFICIO DI PIOVAN ALBERTO | D19: SMART CARD ARUBA | E19: 26-AFFIDAMENTO DIRETTO IN ADESIONE AD ACCORDO QUADRO/CONVENZIONE | F19: PUNTO SCUOLA E UFFICIO DI PIOVAN ALBERTO | G19: PUNTO SCUOLA E UFFICIO DI PIOVAN ALBERTO | H19: € 60.00 | I19: 2023-01-02 | J19: 2023-12-31 | K19: € 60.00
A20: Z3639FC594 | B20: 01801560168 | C20: G.E.G. SRL | D20: DISINSTALLAZIONE SATELLITE | E20: 26-AFFIDAMENTO DIRETTO IN ADESIONE AD ACCORDO QUADRO/CONVENZIONE | F20: G.E.G. SRL | G20: G.E.G. SRL | H20: € 976.00 | I20: 2023-01-02 | J20: 2023-12-31 | K20: € 976.00
A21: Z733A8E1E3 | B21: 05084500288 | C21: EUGANEA INNOVAZIONI SRL | D21: CARRELLO MONITOR | E21: 26-AFFIDAMENTO DIRETTO IN ADESIONE AD ACCORDO QUADRO/CONVENZIONE | F21: EUGANEA INNOVAZIONI SRL | G21: EUGANEA INNOVAZIONI SRL | H21: € 592.92 | I21: 2023-01-02 | J21: 2023-12-31 | K21: € 592.92
A22: Z913A952E2 | B22: 02137480964 | C22: DECATHLON ITALIA SRL | D22: 2 CTYBIKE | E22: 26-AFFIDAMENTO DIRETTO IN ADESIONE AD ACCORDO QUADRO/CONVENZIONE | F22: DECATHLON ITALIA SRL | G22: DECATHLON ITALIA SRL | H22: € 549.98 | I22: 2023-01-02 | J22: 2023-12-31 | K22: € 549.98
A23: Z543A79BDC | B23: 09381751008 | C23: TECHVISION SRL | D23: FORNITURA TELEFONI | E23: 26-AFFIDAMENTO DIRETTO IN ADESIONE AD ACCORDO QUADRO/CONVENZIONE | F23: TECHVISION SRL | G23: TECHVISION SRL | H23: € 780.80 | I23: 2023-01-02 | J23: 2023-12-31 | K23: € 780.80
A24: Z083A79BF7 | B24: 01040690156 | C24: PLASTI FOR MOBILI | D24: FORNITURA MOBILI | E24: 26-AFFIDAMENTO DIRETTO IN ADESIONE AD ACCORDO QUADRO/CONVENZIONE | F24: PLASTI FOR MOBILI | G24: PLASTI FOR MOBILI | H24: € 1,789.74 | I24: 2023-01-02 | J24: 2023-12-31 | K24: € 1,789.74
B25: 01032090076 | C25: BREUIL CERVINIA | D25: RADIOCOMUNICAZIONI | E25: 26-AFFIDAMENTO DIRETTO IN ADESIONE AD ACCORDO QUADRO/CONVENZIONE | F25: BREUIL CERVINIA | G25: BREUIL CERVINIA | H25: € 825.21 | I25: 2023-01-02 | J25: 2023-12-31 | K25: € 825.21
A26: ZED3A79BEB | B26: 00308150515 | C26: COSTRUZIONI ELETTRICHE INDUSTRIALI | D26: METAL DETECTOR | E26: 26-AFFIDAMENTO DIRETTO IN ADESIONE AD ACCORDO QUADRO/CONVENZIONE | F26: COSTRUZIONI ELETTRICHE INDUSTRIALI | G26: COSTRUZIONI ELETTRICHE INDUSTRIALI | H26: € 13,249.20 | I26: 2023-01-02 | J26: 2023-12-31 | K26: € 13,249.20
A27: Z8E3B0525F | B27: 04943160269 | C27: DI. VA. IGIENE AMBIENTALE | D27: SANIFICAZIONE | E27: 26-AFFIDAMENTO DIRETTO IN ADESIONE AD ACCORDO QUADRO/CONVENZIONE | F27: DI. VA. IGIENE AMBIENTALE | G27: DI. VA. IGIENE AMBIENTALE | H27: € 305.00 | I27: 2023-01-02 | J27: 2023-12-31 | K27: € 305.00
A28: Z5C3A79C0E | B28: 01085740288 | C28: SEI SISTEMI DI SICUREZZA | D28: MANUTENZIONE IMPIANTO DI SICUREZZA | E28: 26-AFFIDAMENTO DIRETTO IN ADESIONE AD ACCORDO QUADRO/CONVENZIONE | F28: SEI SISTEMI DI SICUREZZA | G28: SEI SISTEMI DI SICUREZZA | H28: € 1,234.65 | I28: 2023-01-02 | J28: 2023-12-31 | K28: € 1,234.65
A29: Z043A26E46 | B29: 00818090292 | C29: NUOVA REGAL ANTINCEDIO SRL | D29: ESTINTORI | E29: 26-AFFIDAMENTO DIRETTO IN ADESIONE AD ACCORDO QUADRO/CONVENZIONE | F29: NUOVA REGAL ANTINCEDIO SRL | G29: NUOVA REGAL ANTINCEDIO SRL | H29: € 353.80 | I29: 2023-01-02 | J29: 2023-12-31 | K29: € 353.80
A30: Z233AC8587 | B30: 05403151003 | C30: TRENITALIA | D30: BIGLIETTI TRENO | E30: 26-AFFIDAMENTO DIRETTO IN ADESIONE AD ACCORDO QUADRO/CONVENZIONE | F30: TRENITALIA | G30: TRENITALIA | H30: € 5,754.90 | I30: 2023-01-02 | J30: 2023-12-31 | K30: € 5,754.90
A31: ZE0351FEF0 | B31: 01033070283 | C31: LONGHINI SRL | D31: ATTREZZATURA | E31: 26-AFFIDAMENTO DIRETTO IN ADESIONE AD ACCORDO QUADRO/CONVENZIONE | F31: LONGHINI SRL | G31: LONGHINI SRL | H31: € 253.60 | I31: 2023-01-02 | J31: 2023-12-31 | K31: € 253.60
A32: Z88377E091 | B32: 02973040963 | C32: KYOCERA | D32: TONER | E32: 26-AFFIDAMENTO DIRETTO IN ADESIONE AD ACCORDO QUADRO/CONVENZIONE | F32: KYOCERA | G32: KYOCERA | H32: € 1,361.52 | I32: 2023-01-02 | J32: 2023-12-31 | K32: € 1,361.52
A33: Z033CDEA3F | B33: 04368160281 | C33: AEMME IMPIANTI | D33: CANONE SEMESTRALE MANUTENZIONE ORDINARIA | E33: 26-AFFIDAMENTO DIRETTO IN ADESIONE AD ACCORDO QUADRO/CONVENZIONE | F33: AEMME IMPIANTI | G33: AEMME IMPIANTI | H33: € 6,912.64 | I33: 2023-01-02 | J33: 2023-12-31 | K33: € 6,912.64
A34: Z5F3BAD4DB | B34: 04092030289 | C34: SARTORI TRADE SRL | D34: MATERIALE PER INSTALLAZIONE ANTENNA RADIO | E34: 26-AFFIDAMENTO DIRETTO IN ADESIONE AD ACCORDO QUADRO/CONVENZIONE | F34: SARTORI TRADE SRL | G34: SARTORI TRADE SRL | H34: € 542.53 | I34: 2023-01-02 | J34: 2023-12-31 | K34: € 542.53
A35: Z333A123C7 | B35: 13062841005 | C35: CALAMATTA SRL | D35: PERNOTTO | E35: 26-AFFIDAMENTO DIRETTO IN ADESIONE AD ACCORDO QUADRO/CONVENZIONE | F35: CALAMATTA SRL | G35: CALAMATTA SRL | H35: € 90.49 | I35: 2023-01-02 | J35: 2023-12-31 | K35: € 90.49
A36: Z313B74659 | B36: 03597610264 | C36: CASTEL ARREDO sas | D36: POLTRONA UFFICIO PROVVEDITORE | E36: 26-AFFIDAMENTO DIRETTO IN ADESIONE AD ACCORDO QUADRO/CONVENZIONE | F36: CASTEL ARREDO sas | G36: CASTEL ARREDO sas | H36: € 3,547.76 | I36: 2023-01-02 | J36: 2023-12-31 | K36: € 3,547.76
A37: Z353AD8727 | B37: 04751100282 | C37: DISTRIBUZIONE UFFICIO | D37: CARTUCCE STAMPANTI | E37: 26-AFFIDAMENTO DIRETTO IN ADESIONE AD ACCORDO QUADRO/CONVENZIONE | F37: BORGORICCO | G37: BORGORICCO | H37: € 795.87 | I37: 2023-01-02 | J37: 2023-12-31 | K37: € 970.76
A38: Z963C929E3 | B38: 03340710270 | C38: AD partners srl | D38: TELECAMERE | E38: 26-AFFIDAMENTO DIRETTO IN ADESIONE AD ACCORDO QUADRO/CONVENZIONE | F38: AD partners srl | G38: AD partners srl | H38: € 1,872.92 | I38: 2023-01-02 | J38: 2023-12-31 | K38: € 1,872.92
A39: Z223DADDB9 | B39: 667690044 | C39: LA CASALINDA | D39: MATERIALE PER PULIZIA | E39: 26-AFFIDAMENTO DIRETTO IN ADESIONE AD ACCORDO QUADRO/CONVENZIONE | F39: LA CASALINDA | G39: LA CASALINDA | H39: € 3,768.70 | I39: 2023-01-02 | J39: 2023-12-31 | K39: € 3,768.70
A40: ZC23C1C4B2 | B40: 03902220486 | C40: WILLIS Italia spa | D40: ASSICURAZIONE | E40: 26-AFFIDAMENTO DIRETTO IN ADESIONE AD ACCORDO QUADRO/CONVENZIONE | F40: WILLIS Italia spa | G40: WILLIS Italia spa | H40: € 855.75 | I40: 2023-01-02 | J40: 2023-12-31 | K40: € 855.75
A41: Z773DAF793 | B41: 04751100282 | C41: DISTRIBUZIONE UFFICIO | D41: CANCELLERIA | E41: 26-AFFIDAMENTO DIRETTO IN ADESIONE AD ACCORDO QUADRO/CONVENZIONE | F41: DISTRIBUZIONE UFFICIO | G41: DISTRIBUZIONE UFFICIO | H41: € 1,660.56 | I41: 2023-01-02 | J41: 2023-12-31 | K41: € 1,660.56
A42: Z0C3DAF72B | B42: 01962160493 | C42: ECOPRINT | D42: CANCELLERIA | E42: 26-AFFIDAMENTO DIRETTO IN ADESIONE AD ACCORDO QUADRO/CONVENZIONE | F42: ECOPRINT | G42: ECOPRINT | H42: € 3,391.71 | I42: 2023-01-02 | J42: 2023-12-31 | K42: € 3,391.71
A43: Z003D4D42A | B43: 00106640287 | C43: FABIO SOLDA' | D43: VISITE MEDICHE | E43: 26-AFFIDAMENTO DIRETTO IN ADESIONE AD ACCORDO QUADRO/CONVENZIONE | F43: FABIO SOLDA' | G43: FABIO SOLDA' | H43: € 1,502.00 | I43: 2023-01-02 | J43: 2023-12-31 | K43: € 1,502.00
A44: ZA73C9EEA4 | B44: 05602710963 | C44: LEROY MERLIN ITALIA srl | D44: FERRAMENTA | E44: 26-AFFIDAMENTO DIRETTO IN ADESIONE AD ACCORDO QUADRO/CONVENZIONE | F44: LEROY MERLIN ITALIA srl | G44: LEROY MERLIN ITALIA srl | H44: € 196.15 | I44: 2023-01-02 | J44: 2023-12-31 | K44: € 196.15
A45: Z393BE7DBF | B45: 01959850593 | C45: CARROZZERIA CIPRESSINA srl | D45: SOSTITUZIONE VETRO ANTERIORE AUTOMEZZO | E45: 26-AFFIDAMENTO DIRETTO IN ADESIONE AD ACCORDO QUADRO/CONVENZIONE | F45: CARROZZERIA CIPRESSINA srl | G45: CARROZZERIA CIPRESSINA srl | H45: € 735.22 | I45: 2023-01-02 | J45: 2023-12-31 | K45: € 735.22
A46: ZEB3B1D636 | B46: 01032090076 | C46: BPG RADIOCOMUNICAZIONI SRL | D46: RADIOCOMUNICAZIONI | E46: 26-AFFIDAMENTO DIRETTO IN ADESIONE AD ACCORDO QUADRO/CONVENZIONE | F46: BPG RADIOCOMUNICAZIONI SRL | G46: BPG RADIOCOMUNICAZIONI SRL | H46: € 825.20 | I46: 2023-01-02 | J46: 2023-12-31 | K46: € 825.20
A47: Z1F3B0948A | B47: 01641790702 | C47: BIANCHI INGROSSO | D47: PRODOTTO PER LA PULIZIA E IL BAGNO | E47: 26-AFFIDAMENTO DIRETTO IN ADESIONE AD ACCORDO QUADRO/CONVENZIONE | F47: BIANCHI INGROSSO | G47: BIANCHI INGROSSO | H47: € 593.41 | I47: 2023-01-02 | J47: 2023-12-31 | K47: € 593.41
A48: Z7638A041E | B48: 01144610936 | C48: TELEBIT SPA | D48: TRASFERIMENTO E INSTALLAZIONE APPARATI RADIO | E48: 26-AFFIDAMENTO DIRETTO IN ADESIONE AD ACCORDO QUADRO/CONVENZIONE | F48: TELBIT SPA | G48: TELEBIT SPA | H48: € 20,191.00 | I48: 2023-01-02 | J48: 2023-12-31 | K48: € 20,191.00
A49: ZCBCECDE | B49: 07589810964 | C49: DALUMA SRL | D49: PERNOTTO | E49: 26-AFFIDAMENTO DIRETTO IN ADESIONE AD ACCORDO QUADRO/CONVENZIONE | F49: DALUMA SRL | G49: DALUMA SRL | H49: € 90.00 | I49: 2023-01-02 | J49: 2023-12-31 | K49: € 90.00

Sheet CC Belluno
A1: Dipartimento Amministrazione Penitenziaria - ISTITUTO CASA CIRCONDARIALE BELLUNO - C.F. 80005150257
A2: Contratti di forniture, beni e servizi Anno 2023 Dati aggiornati al 31 dicembre 2023
A3: CIG | B3: Codice Fiscale | C3: Denominazione | D3: Oggetto | E3: Procedura di scelta del contraente | F3: Elenco operatori invitati a presentare offerte | G3: Aggiudicatario | H3: Importo di aggiudicazione | I3: Data Inizio | J3: Data Ultimazione | K3: Somme liquidate (al netto dell'IVA)
A4: Z7A3B468OB | B4: 800051580257 | C4: CASA CIRCONDARIALE DI BELLUNO | D4: 2023 adesione a convenzione apparecchiatura multifinzione 2 | E4: 2023 adesione a convenzione apparecchiatura multifinzione 2 | F4: KYOCERA DOCUMENT SOLUTIONS ITALIA S.p.A. | G4: KYOCERA DOCUMENT SOLUTIONS ITALIA S.p.A. | H4: 3717.6 | I4: 2023-05-24 | K4: 4535.47
A5: Z6B3A94C90 | B5: 800051580258 | C5: CASA CIRCONDARIALE DI BELLUNO | D5: 2023 AFFETTATRICE E MIXER | E5: AFFIDAMENTO DIRETTO | F5: ELETTROSERVIZI S.R.L. | G5: ELETTROSERVIZI S.R.L. | H5: 827 | I5: 2023-04-17 | J5: 2023-07-13 | K5: 1008.24
A6: ZAB3A01C05 | B6: 800051580259 | C6: CASA CIRCONDARIALE DI BELLUNO | D6: BOTTIGLIE DI ACQUA | E6: AFFIDAMENTO DIRETTO | F6: FAGANELLO FERRUCCIO & C. - S.N.C. | G6: FAGANELLO FERRUCCIO & C. - S.N.C. | H6: 359.4 | I6: 2023-02-17 | J6: 2023-02-17 | K6: 438.47
A7: ZBA39FFACE | B7: 800051580260 | C7: CASA CIRCONDARIALE DI BELLUNO | D7: BOTTIGLIE DI ACQUA | E7: AFFIDAMENTO DIRETTO | F7: DITTA VENTURA SRL | G7: DITTA VENTURA SRL | H7: 24.19 | I7: 2023-02-16 | J7: 2023-03-08 | K7: 29.51
A8: Z6F3BDFC2C | B8: 800051580260 | C8: CASA CIRCONDARIALE DI BELLUNO | D8: CENTRALINO TELEFONICO | E8: 04-PROCEDURA NEGOZIATA SENZA PREVIA PUBBLICAZIONE | F8: FAIE s.a.s di Deola Sandra, ADVENET, TELEGAMMA SAS, TRE CI, YALP SRL | G8: FAIE s.a.s di Deola Sandra | H8: 15900 | I8: 2023-07-13 | K8: 19398
A9: ZB73D69199 | B9: 800051580263 | C9: CASA CIRCONDARIALE DI BELLUNO | D9: CORSO HCCP | E9: AFFIDAMENTO DIRETTO | F9: METALOGOS S.C. | G9: METALOGOS S.C. | H9: 2760 | I9: 2023-08-01 | J9: 2023-12-01 | K9: 2760
A10: Z683C20995 | B10: 800051580264 | C10: CASA CIRCONDARIALE DI BELLUNO | D10: DISOTTURAZIONE FOGNE | E10: 04-PROCEDURA NEGOZIATA SENZA PREVIA PUBBLICAZIONE | F10: ECOLOGIA LENA S.N.C. DI LENA DARIO, ACQUA JET, GEO SERVIZI, TREVISO ECOSERVIZI, ZATTA | G10: ECOLOGIA LENA S.N.C. DI LENA DARIO | H10: 5000 | I10: 2023-09-21
A11: Z803DCE341 | B11: 800051580265 | C11: CASA CIRCONDARIALE DI BELLUNO | D11: FORNITURA BANCHI E SEDIE | E11: AFFIDAMENTO DIRETTO | F11: AMBIENTI S.R.L. | G11: AMBIENTI S.R.L. | H11: 474.36 | I11: 2023-12-19 | K11: 578.72
A12: Z163D677DA | B12: 800051580266 | C12: CASA CIRCONDARIALE DI BELLUNO | D12: FORNITURA CASSE AUDIO | E12: FORNITURA CASSE AUDIO | F12: ELETTROSERVIZI S.R.L. | G12: ELETTROSERVIZI S.R.L. | H12: 240 | I12: 2023-11-29 | J12: 2023-12-07 | K12: 292.8
A13: Z443BD7024 | B13: 800051580267 | C13: CASA CIRCONDARIALE DI BELLUNO | D13: FORNITURA E INSTALLAZIONE CONDIZIONATORI | E13: AFFIDAMENTO DIRETTO | F13: ARGENTA SRL | G13: ARGENTA SRL | H13: 4380 | I13: 2023-07-11 | J13: 2023-09-05 | K13: 5343.6
A14: 9614902422 | B14: 800051580267 | C14: CASA CIRCONDARIALE DI BELLUNO | D14: LAVORI DI RISTRUTTURAZIONE ALLOGGI DEMANIALI EX LAVANDERIA | E14: 04-PROCEDURA NEGOZIATA SENZA PREVIA PUBBLICAZIONE | F14: ALPINA COSTRUZIONI, BORTOLUZZI CELESTE, C.E.G. DI GIURIATI GIANNI, DEON, EDILIT COSTRUZIONI, FAS, IMPRESA DI SILVIO PIEROBON, MAZALE COSTRUZIONI, MEROTTO BAU, OTTAVIANI, PRESOTTO ENNIO | G14: PRESOTTO ENNIO | H14: 170048.25 | I14: 2023-09-13 | K14: 187053.07
A15: Z833BD8701 | B15: 800051580268 | C15: CASA CIRCONDARIALE DI BELLUNO | D15: FORNITURA E INSTALLAZIONE TELECAMERE E MICROFONO | E15: AFFIDAMENTO DIRETTO | F15: BOGO IVO DI BOGO ALESSANDRO | G15: BOGO IVO DI BOGO ALESSANDRO | H15: 1910 | I15: 2023-07-11 | J15: 2023-09-05 | K15: 2330.2
A16: Z8F3D7316B | B16: 800051580269 | C16: CASA CIRCONDARIALE DI BELLUNO | D16: FORNITURA E INSTALLAZIONE VENEZIANE | E16: AFFIDAMENTO DIRETTO | F16: TAPPEZZERIA DE TOFFOL DI DE TOFFOL ENNIO | G16: TAPPEZZERIA DE TOFFOL DI DE TOFFOL ENNIO | H16: 280 | I16: 2023-11-27 | J16: 2023-12-20 | K16: 341.6
A17: Z1E3C6E576 | B17: 800051580270 | C17: CASA CIRCONDARIALE DI BELLUNO | D17: FORNITURA GUSCI TELEFONICI | E17: AFFIDAMENTO DIRETTO | F17: TECHVISION SISTEMI MULTIMEDIALI | G17: TECHVISION SISTEMI MULTIMEDIALI | H17: 1780 | I17: 2023-09-21 | J17: 2023-10-27 | K17: 2171.6
A18: ZB139FBB97 | B18: 800051580271 | C18: CASA CIRCONDARIALE DI BELLUNO | D18: FORNITURA MATERIALE ELETTRICO | E18: AFFIDAMENTO DIRETTO | F18: ELETTROMECCANICA CUPRUM SR | G18: ELETTROMECCANICA CUPRUM SR | H18: 1894.5 | I18: 2023-02-22 | J18: 2023-04-20 | K18: 2311.29
A19: Z693D5A4DF | B19: 800051580273 | C19: CASA CIRCONDARIALE DI BELLUNO | D19: FORNITURA N. 7 SCACCHIERE PER DETENUTI | E19: AFFIDAMENTO DIRETTO | F19: ELETTROSERVIZI S.R.L. | G19: ELETTROSERVIZI S.R.L. | H19: 163.63 | I19: 2023-11-28 | J19: 2023-12-07 | K19: 199.63
A20: ZBD3D79419 | B20: 800051580274 | C20: CASA CIRCONDARIALE DI BELLUNO | D20: FORNITURA POLTRONE PER UFFICIO | E20: AFFIDAMENTO DIRETTO | F20: ULTRAPROMEDIA S.R.L. | G20: ULTRAPROMEDIA S.R.L. | H20: 615 | I20: 30//11/23 | J20: 2023-12-22 | K20: 750.3
A21: Z533CD2E87 | B21: 800051580275 | C21: CASA CIRCONDARIALE DI BELLUNO | D21: FORNITURA TESSERE TELEFONICHE | E21: AFFIDAMENTO DIRETTO | F21: TECHNOVISION SISTEMI MULTIMEDIALI | G21: TECHNOVISION SISTEMI MULTIMEDIALI | H21: 600 | I21: 2023-10-12 | J21: 2023-10-27 | K21: 732
A22: ZE039F624A | B22: 800051580277 | C22: CASA CIRCONDARIALE DI BELLUNO | D22: FORNITURA TONER PER UFFICI | E22: AFFIDAMENTO DIRETTO | F22: ROENET, | G22: ROENET | H22: 1680.5 | I22: 2023-02-17 | J22: 2023-05-09 | K22: 2050.21
A23: Z9A3B3EC4E | B23: 800051580278 | C23: CASA CIRCONDARIALE DI BELLUNO | D23: FORNITURA TOTEM | E23: 04-PROCEDURA NEGOZIATA SENZA PREVIA PUBBLICAZIONE | F23: TECHVISION SISTEMI MULTIMEDIALI SRL | G23: TECHVISION SISTEMI MULTIMEDIALI SRL | H23: 8200 | I23: 2023-05-22 | J23: 2023-12-14 | K23: 10000.04
A24: Z213AE17C6 | B24: 800051580279 | C24: CASA CIRCONDARIALE DI BELLUNO | D24: INTEGRAZIONE IMPIANTO ANTISCAVALCAMENTO | E24: AFFIDAMENTO DIRETTO | F24: MD SYSTEMS S.R.L. | G24: MD SYSTEMS S.R.L. | H24: 8744 | I24: 2023-05-10 | J24: 2023-09-15 | K24: 10667.68
A25: ZCE3D91229 | B25: 800051580280 | C25: CASA CIRCONDARIALE DI BELLUNO | D25: LAVATRICI E ASCIUGATRICE | E25: AFFIDAMENTO DIRETTO | F25: CARTOIDEE DI CULTRARO VASTA GIUSEPPE | G25: CARTOIDEE DI CULTRARO VASTA GIUSEPPE | H25: 2531.29 | I25: 2023-12-14 | J25: 2024-02-14 | K25: 3050
A26: Z143CED442 | B26: 800051580281 | C26: CASA CIRCONDARIALE DI BELLUNO | D26: LAVORI DI INTEGRAZIONE CANCELLI BOX AGENTI E CANCELLI | E26: AFFIDAMENTO DIRETTO | F26: OFFICINE MARSILII SRL | G26: OFFICINE MARSILII SRL | H26: 6134 | I26: 2023-10-20 | J26: 2023-12-22 | K26: 7483.48
A27: Z8F3A2D27D | B27: 800051580282 | C27: CASA CIRCONDARIALE DI BELLUNO | D27: LIBRI GIURIDICI | E27: AFFIDAMENTO DIRETTO | F27: LIBRERIA CAMPEDEL | G27: LIBRERIA CAMPEDEL | H27: 60.3 | I27: 2023-03-03 | J27: 2023-05-09 | K27: 60.3
A28: Z8E3A38991 | B28: 800051580283 | C28: CASA CIRCONDARIALE DI BELLUNO | D28: MANUTENZIONE ANNUALE ESTINTORI E IMPINATI ANTINCENDIO | E28: 04-PROCEDURA NEGOZIATA SENZA PREVIA PUBBLICAZIONE | F28: DALCA ANTINFORTUNISTICA SRL, ANTICENDIO PALLADIO, ANTINCENDI VIEL, AREMA, BASSANO ANTICENDIO | G28: DALCA ANTINFORTUNISTICA SRL | H28: 2470.9 | I28: 2023-03-21 | J28: 2023-12-07 | K28: 3014.5
A29: Z7C3ABEAE2 | B29: 800051580284 | C29: CASA CIRCONDARIALE DI BELLUNO | D29: MANUTENZIONE AREE VERDI | E29: 04-PROCEDURA NEGOZIATA SENZA PREVIA PUBBLICAZIONE | F29: GLF SERVICE DI FENTI MATTEO, SVILUPPO E LAVORO, MONDO VERDE, SOCIETA' NUOVA | G29: FENTI MATTEO | H29: 3500 | I29: 2023-04-12 | J29: 2023-09-27 | K29: 4270
A30: ZEE3A876D5 | B30: 800051580285 | C30: CASA CIRCONDARIALE DI BELLUNO | D30: MANUTENZIONE AUTO | E30: AFFIDAMENTO DIRETTO | F30: ANDREA MINTO SPA | G30: ANDREA MINTO SPA | H30: 356 | I30: 2023-03-30 | J30: 2023-07-04 | K30: 434.32
A31: ZBC3BD88A4 | B31: 800051580286 | C31: CASA CIRCONDARIALE DI BELLUNO | D31: MANUTENZIONE AUTO E LAVAGGI | E31: 04-PROCEDURA NEGOZIATA SENZA PREVIA PUBBLICAZIONE | F31: Tecnodiesel snc, AUTOFFICINA RENAULT, AUTOFFICINA FERRARO, DE BONA, AUTOFFICINA GASSER | G31: Tecnodiesel snc | H31: 255.08 | I31: 2023-08-02 | J31: 2024-07-31 | K31: 311.1
A32: ZB73C223C7 | B32: 800051580287 | C32: CASA CIRCONDARIALE DI BELLUNO | D32: MANUTENZIONE CALDAIA | E32: AFFIDAMENTO DIRETTO | F32: IDROTERMICA DE MIN | G32: IDROTERMICA DE MIN | H32: 105 | I32: 2023-08-28 | J32: 2023-09-05 | K32: 128.1
A33: ZB43D77056 | B33: 800051580288 | C33: CASA CIRCONDARIALE DI BELLUNO | D33: MANUTENZIONE CALDAIA BIS | E33: AFFIDAMENTO DIRETTO | F33: IDROTERMICA DE MIN | G33: IDROTERMICA DE MIN | H33: 3175 | I33: 2023-12-14 | J33: 2023-12-22 | K33: 3873.5
A34: 1E63C5641E | B34: 800051580289 | C34: CASA CIRCONDARIALE DI BELLUNO | D34: MATERIALE FACILE CONSUMO AUTO | E34: AFFIDAMENTO DIRETTO | F34: CRAVEDI S.p.A. | G34: CRAVEDI S.p.A. | H34: 360 | I34: 2023-09-04 | J34: 2023-10-06 | K34: 439.2
A35: Z323C4DD52 | B35: 800051580290 | C35: CASA CIRCONDARIALE DI BELLUNO | D35: MATERIALE IDRAULICO | E35: AFFIDAMENTO DIRETTO | F35: ZANUTTA S.P.A. | G35: ZANUTTA S.P.A. | H35: 757.73 | I35: 2023-10-18 | J35: 2023-12-07 | K35: 924.43
A36: ZA63ABAF9C | B36: 800051580291 | C36: CASA CIRCONDARIALE DI BELLUNO | D36: MATERIALE IGIENICO PER DETENUTI | E36: 03-PROCEDURA NEGOZIATA PREVIA PUBBLICAZIONE | F36: PAVONE F.LLI SRL, ARDIGO', ANGROSCART, PRO CURA, RIFLOR | G36: PAVONE F.LLI SRL | H36: 5391.21 | I36: 2023-05-10 | J36: 2023-09-05 | K36: 6455.7
A37: ZBA3CF5261 | B37: 800051580289 | C37: CASA CIRCONDARIALE DI BELLUNO | D37: MATERIALE IGIENICO SANITARIO BIS | E37: 04-PROCEDURA NEGOZIATA SENZA PREVIA PUBBLICAZIONE | F37: F.LLI PAVONE, ADRIACLEAN, ADRIATICA, BERNER, CHIMICA ATERNO, PRO CURA | G37: F.LLI PAVONE | H37: 5734.48 | I37: 2023-11-06 | J37: 2023-12-01 | K37: 7481.78
A38: Z1A3A12BBF | B38: 800051580289 | C38: CASA CIRCONDARIALE DI BELLUNO | D38: MATERIALE MOF | E38: AFFIDAMENTO DIRETTO | F38: ZANUTTA SPA | G38: ZANUTTA SPA | H38: 69.12 | I38: 2023-02-23 | J38: 2023-04-20 | K38: 84.33
A39: Z94399FFE4A | B39: 800051580289 | C39: CASA CIRCONDARIALE DI BELLUNO | D39: MATERIALE MOF 2 | E39: AFFIDAMENTO DIRETTO | F39: ZANUTTA SPA | G39: ZANUTTA SPA | H39: 1387.91 | I39: 2023-02-16 | J39: 2023-04-20 | K39: 1693.25
A40: Z703ADEC5B | B40: 800051580289 | C40: CASA CIRCONDARIALE DI BELLUNO | D40: MATERIALE MOF 3 | E40: AFFIDAMENTO DIRETTO | F40: ZANUTTA SPA | G40: ZANUTTA SPA | H40: 1799.7 | I40: 2023-04-28 | J40: 2023-07-13 | K40: 2195.63
A41: Z1B3B6551B | B41: 800051580289 | C41: CASA CIRCONDARIALE DI BELLUNO | D41: MATERASSI E GUANCIALI DETENUTI | E41: 03-PROCEDURA NEGOZIATA PREVIA PUBBLICAZIONE | F41: LA REGGINFLEX, HARMONY L'IGIENICO, LORDFLEX, MTA GROUP, PLASTIFOR MOBIL | G41: LA REGGINFLEX | H41: 5297.5 | I41: 2023-08-02 | J41: 2023-11-15 | K41: 5462.95
A42: Z503B688A6 | B42: 800051580289 | C42: CASA CIRCONDARIALE DI BELLUNO | D42: PERDITA IDRICA | E42: AFFIDAMENTO DIRETTO | F42: FAGHERAZZI MATTEO | G42: FAGHERAZZI MATTEO | H42: 2460.33 | I42: 2023-06-05 | J42: 2023-08-28 | K42: 2460.33
A43: Z3E39FBDEE | B43: 800051580289 | C43: CASA CIRCONDARIALE DI BELLUNO | D43: REALIZZAZIONE POZZETTO IDRICO | E43: AFFIDAMENTO DIRETTO | F43: LUISETTO COSTRUZIONI | G43: LUISETTO COSTRUZIONI | H43: 4500 | I43: 2023-02-04 | J43: 2023-09-27 | K43: 5490
A44: ZF139D680C | B44: 800051580289 | C44: CASA CIRCONDARIALE DI BELLUNO | D44: RIAPARAZIONE INFILTRAZIONE CASERMA | E44: AFFIDAMENTO DIRETTO | F44: ISOLARBEN SNC DI FAGHERAZZI M. & C. | G44: ISOLARBEN SNC DI FAGHERAZZI M. & C. | H44: 900 | I44: 2023-02-13 | J44: 2023-07-13 | K44: 1098
A45: Z223B3DF92 | B45: 800051580289 | C45: CASA CIRCONDARIALE DI BELLUNO | D45: RIAPARZIONE FOTOCOPIATRICE | E45: AFFIDAMENTO DIRETTO | F45: TEAM UFFICIO SRL | G45: TEAM UFFICIO SRL | H45: 270 | I45: 2023-05-19 | J45: 2023-06-14 | K45: 329.4
A46: Z373C80E6B | B46: 800051580289 | C46: CASA CIRCONDARIALE DI BELLUNO | D46: RIMOZIONE CARROATTREZZI | E46: AFFIDAMENTO DIRETTO | F46: FV SERVICE SRL | G46: FV SERVICE SRL | H46: 151.72 | I46: 2023-09-19 | J46: 2023-11-22 | K46: 165.1
A47: Z643C91B6E | B47: 800051580289 | C47: CASA CIRCONDARIALE DI BELLUNO | D47: RIPARAZIONE ALFA ROMEO 159 | E47: AFFIDAMENTO DIRETTO | F47: LENZINI SRL | G47: LENZINI SRL | H47: 557.14 | I47: 2023-09-25 | J47: 2023-10-06 | K47: 679.71
A48: Z733B21012 | B48: 800051580289 | C48: CASA CIRCONDARIALE DI BELLUNO | D48: RIPARAZIONE BOLLITORE FUOCHI | E48: AFFIDAMENTO DIRETTO | F48: CASAGRANDE CUCINE SRL | G48: CASAGRANDE CUCINE SRL | H48: 233.79 | I48: 2023-05-15 | J48: 2023-06-14 | K48: 285.22
A49: Z6639FFCAD | B49: 800051580289 | C49: CASA CIRCONDARIALE DI BELLUNO | D49: RIPARAZIONE CALDAIA | E49: AFFIDAMENTO DIRETTO | F49: IDROTERMICA DE MIN | G49: IDROTERMICA DE MIN | H49: 580 | I49: 2023-02-16 | J49: 2023-04-20 | K49: 707.6
A50: Z8D3B38D9E | B50: 800051580289 | C50: CASA CIRCONDARIALE DI BELLUNO | D50: RIPARAZIONE CANCELLO CARRAIA | E50: AFFIDAMENTO DIRETTO | F50: BOGO IVO DI BOGO ALESSANDRO SRL | G50: BOGO IVO DI BOGO ALESSANDRO SRL | H50: 896.7 | I50: 2023-05-23 | J50: 2023-07-13 | K50: 735
A51: Z903CE2BB4 | B51: 800051580289 | C51: CASA CIRCONDARIALE DI BELLUNO | D51: RIPARAZIONE DANNI CAUSATI DA AGENTI ATMOSFERICI | E51: AFFIDAMENTO DIRETTO | F51: BOGO IVO DI BOGO ALESSANDRO | G51: BOGO IVO DI BOGO ALESSANDRO | H51: 921.76 | I51: 2023-10-17 | J51: 2023-12-22 | K51: 1124.55
A52: Z863BC7C25 | B52: 800051580289 | C52: CASA CIRCONDARIALE DI BELLUNO | D52: RIPARAZIONE FOTOCOPIATRICE 1 | E52: AFFIDAMENTO DIRETTO | F52: TEAM UFFICIO SRL | G52: TEAM UFFICIO SRL | H52: 105 | I52: 2023-07-05 | J52: 2023-09-27 | K52: 128.1
A53: Z363C432D1 | B53: 800051580289 | C53: CASA CIRCONDARIALE DI BELLUNO | D53: RIPARAZIONE OROLOGIO MARCATEMPO | E53: AFFIDAMENTO DIRETTO | F53: FONTANASISTEMI SNC DI TORMEN FABIO E C. | G53: FONTANASISTEMI SNC DI TORMEN FABIO E C. | H53: 168 | I53: 2023-08-28 | J53: 2023-09-27 | K53: 204.96
A54: ZA13D5743C | B54: 800051580289 | C54: CASA CIRCONDARIALE DI BELLUNO | D54: RIPARAZIONE VALVOLA GAS BOLLITORE | E54: AFFIDAMENTO DIRETTO | F54: CSG CUCINE SRL | G54: CSG CUCINE SRL | H54: 404.8 | I54: 2023-11-21 | J54: 2023-12-14 | K54: 493.86
A55: Z8F3C1697E | B55: 800051580289 | C55: CASA CIRCONDARIALE DI BELLUNO | D55: RIPARAZIONE VIDEOSORVEGLIANZA | E55: AFFIDAMENTO DIRETTO | F55: TRE CI s.r.l. | G55: TRE CI s.r.l. | H55: 217.5 | I55: 2023-08-22 | J55: 2023-10-16 | K55: 265.35
A56: Z3A3C1B792 | B56: 800051580289 | C56: CASA CIRCONDARIALE DI BELLUNO | D56: RIPARAZIONI URGENTI | E56: AFFIDAMENTO DIRETTO | F56: FAIE s.a.s di Deola Sandra | G56: FAIE s.a.s di Deola Sandra | H56: 2313 | I56: 2023-08-03 | J56: 2023-12-22 | K56: 2821.86
A57: ZD33CB18CC | B57: 800051580289 | C57: CASA CIRCONDARIALE DI BELLUNO | D57: RIPRAZIONE FUOCHI E BOLLITORE BIS | E57: AFFIDAMENTO DIRETTO | F57: CASAGRANDE CUCINE SRL | G57: CASAGRANDE CUCINE SRL | H57: 71.57 | I57: 2023-10-03 | J57: 2023-11-15 | K57: 87.31
A58: Z123B5A90F | B58: 800051580289 | C58: CASA CIRCONDARIALE DI BELLUNO | D58: RIPRISTINO FINZIONALITA' ANTISCAVALCAMENTO VIDEOSORVEGLIANZA | E58: AFFIDAMENTO DIRETTO | F58: MD SYSTEMS S.R.L. | G58: MD SYSTEMS S.R.L. | H58: 2649 | I58: 2023-07-07 | J58: 2023-12-07 | K58: 3231.78
A59: ZA73C3EE3F | B59: 800051580289 | C59: CASA CIRCONDARIALE DI BELLUNO | D59: SACCHI PER RIFIUTI | E59: AFFIDAMENTO DIRETTO | F59: F.LLI PAVONE | G59: F.LLI PAVONE | H59: 781 | I59: 2023-09-05 | J59: 2023-10-06 | K59: 952.82
A60: Z323BDFC66 | B60: 800051580289 | C60: CASA CIRCONDARIALE DI BELLUNO | D60: SCRIVANIE | E60: AFFIDAMENTO DIRETTO | F60: TOOL BOX | G60: TOOL BOX | H60: 1032 | I60: 2023-07-21 | J60: 2023-09-05 | K60: 1259.04
A61: Z483D17912 | B61: 800051580289 | C61: CASA CIRCONDARIALE DI BELLUNO | D61: SEDIE PER UFFICIO | E61: AFFIDAMENTO DIRETTO | F61: DIESSE | G61: DIESSE | H61: 819.67 | I61: 2023-11-09 | J61: 2023-11-22 | K61: 1000
A62: Z113C09225 | B62: 800051580289 | C62: CASA CIRCONDARIALE DI BELLUNO | D62: TAGLIANDO DI CONTROLLO E AFFIDABILITA' 091 | E62: AFFIDAMENTO DIRETTO | F62: GASSER | G62: GASSER | H62: 245.55 | I62: 2023-08-02 | J62: 2023-09-05 | K62: 299.57
A63: ZA33D9CBA5 | B63: 800051580289 | C63: CASA CIRCONDARIALE DI BELLUNO | D63: TELEFONI ANTIVANDALO | E63: AFFIDAMENTO DIRETTO | F63: TECHVISION SISTEMI MULTIMEDIALI SRL | G63: TECHVISION SISTEMI MULTIMEDIALI SRL | H63: 1350 | I63: 2023-12-05 | J63: 2024-01-15 | K63: 1647
A64: Z613AE65D0 | B64: 800051580289 | C64: CASA CIRCONDARIALE DI BELLUNO | D64: TELEFONI PER DETENUTI | E64: AFFIDAMENTO DIRETTO | F64: TECHVISION SISTEMI MULTIMEDIALI SRL | G64: TECHVISION SISTEMI MULTIMEDIALI SRL | H64: 2000 | I64: 2023-04-24 | J64: 2023-06-08 | K64: 2440
A65: Z5F3B143A5 | B65: 800051580289 | C65: CASA CIRCONDARIALE DI BELLUNO | D65: TELEVISORI PER DETENUTI | E65: AFFIDAMENTO DIRETTO | F65: ELCOM DISTRIBUZIONE S.R.L. | G65: ELCOM DISTRIBUZIONE S.R.L. | H65: 3000 | I65: 2023-05-16 | J65: 2023-06-14 | K65: 3660
A66: ZA53BCC536 | B66: 800051580289 | C66: CASA CIRCONDARIALE DI BELLUNO | D66: VOLI AEREI | E66: AFFIDAMENTO DIRETTO | F66: U.T.P.U.L.L. EXPRESS SRL | G66: U.T.P.U.L.L. EXPRESS SRL | H66: 1822.85 | I66: 2023-07-20 | J66: 2023-09-05 | K66: 1845.05
A67: Z733D83B6C | B67: 800051580289 | C67: CASA CIRCONDARIALE DI BELLUNO | D67: VOLI AEREI TRIS | E67: AFFIDAMENTO DIRETTO | F67: U.T.P.U.L.L. EXPRESS SRL | G67: U.T.P.U.L.L. EXPRESS SRL | H67: 1694.89 | I67: 2023-11-30 | J67: 2023-12-20 | K67: 1717.09
A68: Z173D3C1F3 | B68: 800051580289 | C68: CASA CIRCONDARIALE DI BELLUNO | D68: VOLI AEREO MILANO | E68: AFFIDAMENTO DIRETTO | F68: U.T.P.U.L.L. EXPRESS SRL | G68: U.T.P.U.L.L. EXPRESS SRL | H68: 351.68 | I68: 2023-11-13 | J68: 2023-12-20 | K68: 354.75
A69: 9645684E3B | B69: 800051580290 | C69: CASA CIRCONDARIALE DI BELLUNO | D69: CONVENZIONE GAS NATURALE14 | E69: convenzion mepa | F69: DOLOMITI ENERGIA | G69: DOLOMITI ENERGIA | H69: IMPORTO VARIBILE | I69: 2023-02-09 | J69: 2024-02-08

Sheet CC Bolzano
A1: Dipartimento Amministrazione Penitenziaria - ISTITUTO CASA CIRCONDARIALE BOLZANO - C.F. 80013140217
A2: Contratti di forniture, beni e servizi Anno 2023 Dati aggiornati al 31 dicembre 2023
A3: CIG | B3: Codice Fiscale | C3: Denominazione | D3: Oggetto | E3: Procedura di scelta del contraente | F3: Elenco operatori invitati a presentare offerte | G3: Aggiudicatario | H3: Importo di aggiudicazione | I3: Data Inizio | J3: Data Ultimazione | K3: Somme liquidate (al netto dell'IVA)
A4: Z023810A02 | B4: 80013140217 | C4: CASA CIRCONDARIALE BOLZANO | D4: BUONI PASTO | E4: CONVENZIONE CONSIP | G4: YES TICKET srl | H4: 4447.5 | I4: 2022-10-13 | J4: 2023-12-31 | K4: 2852.33
A5: Z763B99976 | B5: 80013140217 | C5: CASA CIRCONDARIALE BOLZANO | D5: MATERIALE PULIZIA AUTOMEZZI | E5: AFFIDAMENTO DIRETTO | G5: WEPA SPA | H5: 113.73 | I5: 2023-06-30 | J5: 2023-07-01 | K5: 113.73
A6: ZA03CDE485 | B6: 80013140217 | C6: CASA CIRCONDARIALE BOLZANO | D6: ACQUISTO BATTERIA AUTO | E6: AFFIDAMENTO DIRETTO | G6: WEPA SPA | H6: 139.30 | I6: 2023-10-16 | J6: 2023-10-18 | K6: 139.30
A7: ZE63A5935D | B7: 80013140217 | C7: CASA CIRCONDARIALE BOLZANO | D7: MANUTENZIONE AUTOMEZZI | E7: AFFIDAMENTO DIRETTO COTTIMO FIDUCIARIO | F7: GARAGE MILLENNIUM | G7: AUTOMOCK | I7: 2023-01-01 | J7: 2023-12-31 | K7: 2611.68
F8: AUTOMOCK
F9: AUTOTECHNO
F10: AUTOSERVICE ALPINA
F11: GASSER
A12: Z8F3B9E2DF | B12: 80013140217 | C12: CASA CIRCONDARIALE BOLZANO | D12: SOSTITUZIONE PNEUMATICO | E12: AFFIDAMENTO DIRETTO | G12: MINTO ANDREA | H12: 412.70 | I12: 2023-06-21 | J12: 2023-06-27 | K12: 412.70
A13: Z7C39A72F7 | B13: 80013140217 | C13: CASA CIRCONDARIALE BOLZANO | D13: RIPARAZIONE PORTA AUTOMATIZZATA | E13: AFFIDAMENTO DIRETTO | G13: SPERANDIO S.A.S. | H13: 89.00 | I13: 2023-01-19 | J13: 2023-01-19 | K13: 89.00
A14: ZB339D11B9 | B14: 80013140217 | C14: CASA CIRCONDARIALE BOLZANO | D14: ACQUISTO BATTISCOPA | E14: AFFIDAMENTO DIRETTO | G14: WEPA SPA | H14: 122.91 | I14: 2023-02-03 | J14: 2023-02-06 | K14: 122.91
A15: Z20351F945 | B15: 80013140217 | C15: CASA CIRCONDARIALE BOLZANO | D15: SERRATURE BLINDI | E15: AFFIDAMENTO DIRETTO | G15: OFFICINE MARSILII | H15: 618.00 | I15: 2023-01-02 | J15: 2023-01-14 | K15: 618.00
A16: ZD339E2BE6 | B16: 80013140217 | C16: CASA CIRCONDARIALE BOLZANO | D16: SUPPORTO MONITOR | E16: AFFIDAMENTO DIRETTO | G16: WEPA SPA | H16: 72.79 | I16: 2023-02-09 | J16: 2023-02-09 | K16: 72.79
A17: Z62396E9D9 | B17: 80013140217 | C17: CASA CIRCONDARIALE BOLZANO | D17: MATERIALE PITTURA | E17: AFFIDAMENTO DIRETTO | G17: TOPHAUS SPA | H17: 344.17 | I17: 2023-01-09 | J17: 2023-01-10 | K17: 344.17
A18: ZA0399B5A2 | B18: 80013140217 | C18: CASA CIRCONDARIALE BOLZANO | D18: ADATTATORI SUPPORTI TV | E18: AFFIDAMENTO DIRETTO | G18: SELECTRA SPA | H18: 114.40 | I18: 2023-01-16 | J18: 2023-02-10 | K18: 114.40
A19: Z4439E2B98 | B19: 80013140217 | C19: CASA CIRCONDARIALE BOLZANO | D19: MATERIALE ELETTRICO | E19: AFFIDAMENTO DIRETTO | G19: NOVALUX SAS | H19: 749.68 | I19: 2023-02-09 | J19: 2023-02-09 | K19: 749.68
A20: ZC13A74977 | B20: 80013140217 | C20: CASA CIRCONDARIALE BOLZANO | D20: FERRAMENTA VARIA | E20: AFFIDAMENTO DIRETTO | G20: WEPA SPA | H20: 290.37 | I20: 2023-03-17 | J20: 2023-03-21 | K20: 290.37
A21: ZE13A1C36E | B21: 80013140217 | C21: CASA CIRCONDARIALE BOLZANO | D21: STAFFE TV | E21: AFFIDAMENTO DIRETTO | G21: WEPA SPA | H21: 95.45 | I21: 2023-02-21 | J21: 2023-03-02 | K21: 95.45
A22: ZD73A1C2B2 | B22: 80013140217 | C22: CASA CIRCONDARIALE BOLZANO | D22: RIPARAZIONE PORTA AUTOMATIZZATA | E22: AFFIDAMENTO DIRETTO | G22: SPERANDIO S.A.S. | H22: 89.00 | I22: 2023-02-09 | J22: 2023-02-09 | K22: 89.00
A23: Z7539DD3D0 | B23: 80013140217 | C23: CASA CIRCONDARIALE BOLZANO | D23: MATERIALE TINTEGGIATURA | E23: AFFIDAMENTO DIRETTO | G23: NORDWAL SPA | H23: 718.20 | I23: 2023-02-08 | J23: 2023-02-08 | K23: 718.20
A24: Z0E39E3A74 | B24: 80013140217 | C24: CASA CIRCONDARIALE BOLZANO | D24: STUCCO E SILICONE | E24: AFFIDAMENTO DIRETTO | G24: TOPHAUS SPA | H24: 247.67 | I24: 2023-02-09 | J24: 2023-02-10 | K24: 247.67
A25: Z2939BB4BD | B25: 80013140217 | C25: CASA CIRCONDARIALE BOLZANO | D25: MATERIALE TINTEGGIATURA | E25: AFFIDAMENTO DIRETTO | G25: TOPHAUS SPA | H25: 549.08 | I25: 2023-01-30 | J25: 2023-02-10 | K25: 549.08
A26: Z0E39CBA1C | B26: 80013140217 | C26: CASA CIRCONDARIALE BOLZANO | D26: SPATOLE E COLORI | E26: AFFIDAMENTO DIRETTO | G26: TOPHAUS SPA | H26: 55.82 | I26: 2023-02-03 | J26: 2023-02-06 | K26: 55.82
A27: Z273A5EA21 | B27: 80013140217 | C27: CASA CIRCONDARIALE BOLZANO | D27: RIPRISTINO CENTRALINO | E27: AFFIDAMENTO DIRETTO | G27: BRENNERCOM SPA | H27: 135.00 | I27: 2023-03-14 | J27: 2023-03-14 | K27: 135.00
A28: Z693A45A3D | B28: 80013140217 | C28: CASA CIRCONDARIALE BOLZANO | D28: MATERIALE PITTURA | E28: AFFIDAMENTO DIRETTO | G28: NORDWAL SPA | H28: 429.83 | I28: 2023-03-08 | J28: 2023-03-08 | K28: 429.83
A29: Z613ABE39B | B29: 80013140217 | C29: CASA CIRCONDARIALE BOLZANO | D29: RICERCA PERDITA ACQUA | E29: AFFIDAMENTO DIRETTO | G29: B.T.M. SAS | H29: 200.00 | I29: 2023-03-17 | J29: 2023-03-17 | K29: 200.00
A30: ZD03ABE321 | B30: 80013140217 | C30: CASA CIRCONDARIALE BOLZANO | D30: RIPRISTINO CORRENTE ELETTRICA | E30: AFFIDAMENTO DIRETTO | G30: ELETTROIMPIANTI SCOLA | H30: 300.00 | I30: 2023-03-17 | J30: 2023-03-17 | K30: 300.00
A31: ZD13A8BHA1 | B31: 80013140217 | C31: CASA CIRCONDARIALE BOLZANO | D31: RIPRISTINO CENTRALINO | E31: AFFIDAMENTO DIRETTO | G31: BRENNERCOM SPA | H31: 177.50 | I31: 2023-03-30 | J31: 2023-03-30 | K31: 177.50
A32: Z123AEDCBA | B32: 80013140217 | C32: CASA CIRCONDARIALE BOLZANO | D32: RIPARAZIONE PORTA AUTOMATIZZATA | E32: AFFIDAMENTO DIRETTO | G32: SPERANDIO S.A.S. | H32: 171.00 | I32: 2023-04-05 | J32: 2023-04-05 | K32: 171.00
A33: Z903ABE28C | B33: 80013140217 | C33: CASA CIRCONDARIALE BOLZANO | D33: STAFFE TV | E33: AFFIDAMENTO DIRETTO | G33: WEPA SPA | H33: 79.92 | I33: 2023-04-05 | J33: 2023-05-11 | K33: 79.92
A34: Z1B3A749D3 | B34: 80013140217 | C34: CASA CIRCONDARIALE BOLZANO | D34: UTENSILI A BATTERIA | E34: AFFIDAMENTO DIRETTO | G34: TOPHAUS SPA | H34: 899.90 | I34: 2023-03-17 | J34: 2023-03-21 | K34: 899.90
A35: ZEC3B01181 | B35: 80013140217 | C35: CASA CIRCONDARIALE BOLZANO | D35: RIPARAZIONE CANCELLO | E35: AFFIDAMENTO DIRETTO | G35: ELETTROIMPIANTI SCOLA | H35: 470.00 | I35: 2023-05-03 | J35: 2023-05-03 | K35: 470.00
A36: Z1D3B746D7 | B36: 80013140217 | C36: CASA CIRCONDARIALE BOLZANO | D36: RIPARAZIONE PORTA AUTOMATIZZATA | E36: AFFIDAMENTO DIRETTO | G36: SPERANDIO S.A.S. | H36: 102.50 | I36: 2023-06-06 | J36: 2023-06-06 | K36: 102.50
A37: Z313BA656E | B37: 80013140217 | C37: CASA CIRCONDARIALE BOLZANO | D37: CARTONGESSO | E37: AFFIDAMENTO DIRETTO | G37: WEPA SPA | H37: 119.88 | I37: 2023-06-15 | J37: 2023-06-24 | K37: 119.88
A38: Z653B995DC | B38: 80013140217 | C38: CASA CIRCONDARIALE BOLZANO | D38: FARI PER ESTERNO | E38: AFFIDAMENTO DIRETTO | G38: SELECTRA SPA | H38: 168.22 | I38: 2023-06-21 | J38: 2023-06-26 | K38: 168.22
A39: Z143B5DC95 | B39: 80013140217 | C39: CASA CIRCONDARIALE BOLZANO | D39: MATERIALE IDRAULICO | E39: AFFIDAMENTO DIRETTO | G39: TERMOCENTER SNC | H39: 426.64 | I39: 2023-06-09 | J39: 2023-06-26 | K39: 426.64
A40: ZE23B89555 | B40: 80013140217 | C40: CASA CIRCONDARIALE BOLZANO | D40: COLORI | E40: AFFIDAMENTO DIRETTO | G40: TOPHAUS SPA | H40: 397.84 | I40: 2023-06-13 | J40: 2023-06-13 | K40: 397.84
A41: Z2F3AAF88B | B41: 80013140217 | C41: CASA CIRCONDARIALE BOLZANO | D41: VERIFICA DPR 462/01 | E41: AFFIDAMENTO DIRETTO | G41: IES INGEGNERIA E SICUREZZA DEGASPERI | H41: 509.00 | I41: 2023-04-06 | J41: 2023-06-30 | K41: 509.00
A42: Z913B7B390 | B42: 80013140217 | C42: CASA CIRCONDARIALE BOLZANO | D42: TRASFORMAZIONE PRESA LAVATRICE | E42: AFFIDAMENTO DIRETTO | G42: MR SERVICE SRL | H42: 150.00 | I42: 2023-06-15 | J42: 2023-07-12 | K42: 150.00
A43: ZC63BC1F95 | B43: 80013140217 | C43: CASA CIRCONDARIALE BOLZANO | D43: CARTONGESSO | E43: AFFIDAMENTO DIRETTO | G43: WEPA SPA | H43: 332.62 | I43: 2023-06-30 | J43: 2023-07-08 | K43: 332.62
A44: ZEE3BD2462 | B44: 80013140217 | C44: CASA CIRCONDARIALE BOLZANO | D44: DIFFERENZIALE MONOFASE | E44: AFFIDAMENTO DIRETTO | G44: SELECTRA SPA | H44: 164.64 | I44: 2023-07-06 | J44: 2023-07-10 | K44: 164.64
A45: Z173BE863B | B45: 80013140217 | C45: CASA CIRCONDARIALE BOLZANO | D45: PUNTE TRAPANO SILICONE | E45: AFFIDAMENTO DIRETTO | G45: TOPHAUS SPA | H45: 108.90 | I45: 2023-07-17 | J45: 2023-07-18 | K45: 108.90
A46: Z903C1AF60 | B46: 80013140217 | C46: CASA CIRCONDARIALE BOLZANO | D46: TESSERE RFID | E46: MEPA | G46: TECHVISION SRL | H46: 200.00 | I46: 2023-08-02 | J46: 2023-08-07 | K46: 200.00
A47: Z2443B6E28F | B47: 80013140217 | C47: CASA CIRCONDARIALE BOLZANO | D47: ALLACCIAMENTO FORNO GAS | E47: AFFIDAMENTO DIRETTO | G47: IDROTEK SNC | H47: 1645.00 | I47: 2023-06-13 | J47: 2023-07-12 | K47: 1645.00
A48: ZA83C3925A | B48: 80013140217 | C48: CASA CIRCONDARIALE BOLZANO | D48: MATERIALE IDRAULICO | E48: AFFIDAMENTO DIRETTO | G48: WEPA SPA | H48: 154.30 | I48: 2023-08-17 | J48: 2023-08-26 | K48: 154.30
A49: Z993C606B6 | B49: 80013140217 | C49: CASA CIRCONDARIALE BOLZANO | D49: MATERIALE IDRAULICO | E49: AFFIDAMENTO DIRETTO | G49: WEPA SPA | H49: 85.24 | I49: 2023-09-07 | J49: 2023-09-08 | K49: 85.24
A50: ZF83A0BA0A | B50: 80013140217 | C50: CASA CIRCONDARIALE BOLZANO | D50: AGGIORNAMENTO DVR | E50: AFFIDAMENTO DIRETTO | G50: M.C. SYSTEM SRL | H50: 500.00 | I50: 2023-07-06 | J50: 2023-08-22 | K50: 500.00
A51: Z1E3C0810F | B51: 80013140217 | C51: CASA CIRCONDARIALE BOLZANO | D51: MATERIALE PITTURA | E51: AFFIDAMENTO DIRETTO | G51: NORDWAL SPA | H51: 568.19 | I51: 2023-08-01 | J51: 2023-08-01 | K51: 568.19
A52: Z813C73612 | B52: 80013140217 | C52: CASA CIRCONDARIALE BOLZANO | D52: MATERIALE IDRAULICO | E52: AFFIDAMENTO DIRETTO | G52: WEPA SPA | H52: 272.79 | I52: 2023-09-13 | J52: 2023-10-06 | K52: 272.79
A53: Z963C5C436 | B53: 80013140217 | C53: CASA CIRCONDARIALE BOLZANO | D53: RIPRISTINO PROGRAMMA RILEVAZIONE PRESENZE | E53: AFFIDAMENTO DIRETTO | G53: SEMPREBONLUX SRL | H53: 120.00 | I53: 2023-09-07 | J53: 2023-09-14 | K53: 120.00
A54: Z163C84B23 | B54: 80013140217 | C54: CASA CIRCONDARIALE BOLZANO | D54: INTERVENTO SU CENTRALINO | E54: AFFIDAMENTO DIRETTO | G54: BRENNERCOM SPA | H54: 220.00 | I54: 2023-09-20 | J54: 2023-10-04 | K54: 220.00
A55: Z7A3C98659 | B55: 80013140217 | C55: CASA CIRCONDARIALE BOLZANO | D55: RIPRISTINO PROGRAMMA RILEVAZIONE PRESENZE | E55: AFFIDAMENTO DIRETTO | G55: SEMPREBONLUX SRL | H55: 267.80 | I55: 2023-09-27 | J55: 2023-10-14 | K55: 267.80
A56: ZC73CCB839 | B56: 80013140217 | C56: CASA CIRCONDARIALE BOLZANO | D56: RIPARAZIONE PORTA AUTOMATIZZATA | E56: AFFIDAMENTO DIRETTO | G56: SPERANDIO S.A.S. | H56: 335.00 | I56: 2023-10-10 | J56: 2023-10-10 | K56: 335.00
A57: ZD838076C5 | B57: 80013140217 | C57: CASA CIRCONDARIALE BOLZANO | D57: CONDUZIONE CENTRALI TERMICHE | E57: AFFIDAMENTO DIRETTO | G57: MIECI SPA | H57: 453.75 | I57: 2023-01-01 | J57: 2023-09-30 | K57: 453.75
A58: Z873CD0FE2 | B58: 80013140217 | C58: CASA CIRCONDARIALE BOLZANO | D58: VETRINI ALLARME | E58: AFFIDAMENTO DIRETTO | G58: SELECTRA SPA | H58: 81.72 | I58: 2023-10-12 | J58: 2023-10-18 | K58: 81.72
A59: Z0D3CEBEC3 | B59: 80013140217 | C59: CASA CIRCONDARIALE BOLZANO | D59: RIPRISTINO CENTRALINO | E59: AFFIDAMENTO DIRETTO | G59: BRENNERCOM SPA | H59: 215.00 | I59: 2023-10-19 | J59: 2023-10-23 | K59: 215.00
A60: ZC23CF858F | B60: 80013140217 | C60: CASA CIRCONDARIALE BOLZANO | D60: SPAZZACAMINO | E60: AFFIDAMENTO DIRETTO | G60: STUPPNER KG | H60: 711.00 | I60: 2023-01-01 | J60: 2023-12-31 | K60: 711.00
A61: Z953CE6009 | B61: 80013140217 | C61: CASA CIRCONDARIALE BOLZANO | D61: MATERIALE IDRAULICO | E61: AFFIDAMENTO DIRETTO | G61: STRAUDI SPA | H61: 1143.13 | I61: 2023-10-24 | J61: 2023-10-30 | K61: 1143.13
A62: Z2E3D13837 | B62: 80013140217 | C62: CASA CIRCONDARIALE BOLZANO | D62: 2 CORDLESS | E62: AFFIDAMENTO DIRETTO | G62: NUOVA ELETTRONICA SRLS | H62: 65.41 | I62: 2023-11-02 | J62: 2023-11-09 | K62: 65.41
A63: Z6C3D48085 | B63: 80013140217 | C63: CASA CIRCONDARIALE BOLZANO | D63: RIPRISTINO CENTRALINO | E63: AFFIDAMENTO DIRETTO | G63: BRENNERCOM SPA | H63: 135.00 | I63: 2023-11-15 | J63: 2023-11-16 | K63: 135.00
A64: Z043D7AACA | B64: 80013140217 | C64: CASA CIRCONDARIALE BOLZANO | D64: SCARICHI WC | E64: AFFIDAMENTO DIRETTO | G64: TERMOCENTER SNC | H64: 526.22 | I64: 2023-11-20 | J64: 2023-11-28 | K64: 526.22
A65: Z693D7AA8F | B65: 80013140217 | C65: CASA CIRCONDARIALE BOLZANO | D65: CAVI ELETTRICI | E65: AFFIDAMENTO DIRETTO | G65: NUOVA ELETTRONICA SRLS | H65: 114.54 | I65: 2023-11-20 | J65: 2023-11-28 | K65: 114.54
A66: Z093D4804F | B66: 80013140217 | C66: CASA CIRCONDARIALE BOLZANO | D66: MATERIALE PITTURA | E66: AFFIDAMENTO DIRETTO | G66: COLORIFICIO B.Z. BERGAMINI SRL | H66: 753.66 | I66: 2023-11-15 | J66: 2023-11-20 | K66: 753.66
A67: Z433D58705 | B67: 80013140217 | C67: CASA CIRCONDARIALE BOLZANO | D67: MATERIALE PITTURA | E67: MEPA | G67: COLORE AMICO SRL | H67: 892.60 | I67: 2023-11-20 | J67: 2023-12-07 | K67: 892.60
A68: Z9E3D7A53C | B68: 80013140217 | C68: CASA CIRCONDARIALE BOLZANO | D68: TESSERE RFID | E68: MEPA | G68: TECHVISION SRL | H68: 200.00 | I68: 2023-11-28 | J68: 2023-12-07 | K68: 200.00
A69: ZE83D890E2 | B69: 80013140217 | C69: CASA CIRCONDARIALE BOLZANO | D69: MISCELATORI | E69: AFFIDAMENTO DIRETTO | G69: STRAUDI SPA | H69: 90.02 | I69: 2023-11-30 | J69: 2023-12-01 | K69: 90.02
A70: Z4A3644872 | B70: 80013140217 | C70: CASA CIRCONDARIALE BOLZANO | D70: AGGIORNAMENTO SOFRWARE TEL. DETENUTI | E70: MEPA | G70: TECHVISION SRL | H70: 160.00 | I70: 2022-05-05 | J70: 2023-12-11 | K70: 160.00
A71: Z8439A722E | B71: 80013140217 | C71: CASA CIRCONDARIALE BOLZANO | D71: CORNICI | E71: AFFIDAMENTO DIRETTO | G71: WEPA SPA | H71: 199.51 | I71: 2023-01-16 | J71: 2023-01-16 | K71: 199.51
A72: ZBF3C3AA33 | B72: 80013140217 | C72: CASA CIRCONDARIALE BOLZANO | D72: STRUMENTI MUSICALI | E72: AFFIDAMENTO DIRETTO | G72: MUSIK WALTER SRL | H72: 2495.49 | I72: 2023-08-28 | J72: 2023-09-25 | K72: 2495.49
A73: Z893C815D0 | B73: 80013140217 | C73: CASA CIRCONDARIALE BOLZANO | D73: MATERIALE DIDATTICO | E73: MEPA | G73: DATA STUDIO SRL | H73: 611.03 | I73: 2023-09-19 | J73: 2023-10-06 | K73: 611.03
A74: Z163C952E2 | B74: 80013140217 | C74: CASA CIRCONDARIALE BOLZANO | D74: CARTINE GEOGRAFICHE | E74: AFFIDAMENTO DIRETTO | G74: ATHESIA BUCH SRL | H74: 78.20 | I74: 2023-09-27 | J74: 2023-09-28 | K74: 78.20
A75: Z093D00529 | B75: 80013140217 | C75: CASA CIRCONDARIALE BOLZANO | D75: STAFFA LAVAGNA | E75: AFFIDAMENTO DIRETTO | G75: NUOVA ELETTRONICA SRLS | H75: 90.16 | I75: 2023-10-24 | J75: 2023-10-25 | K75: 90.16
A76: ZE13C7FE78 | B76: 80013140217 | C76: CASA CIRCONDARIALE BOLZANO | D76: DIZIONARI PER SCUOLA | E76: MEPA | G76: CARTOLIBRERIA MAINERI SNC | H76: 608.96 | I76: 2023-09-19 | J76: 2023-10-13 | K76: 608.96
A77: ZA83D586CA | B77: 80013140217 | C77: CASA CIRCONDARIALE BOLZANO | D77: MATERIALE DIDATTICO | E77: MEPA | G77: CASA EDITRICE SCOLASTICA LOMBARDI SRL | H77: 1004.03 | I77: 2023-11-20 | J77: 2023-12-13 | K77: 1004.03
A78: ZBD3C7FD97 | B78: 80013140217 | C78: CASA CIRCONDARIALE BOLZANO | D78: SEDIE E BANCHI SCUOLE | E78: MEPA | G78: VARACALLI | H78: 1932.50 | I78: 2023-09-19 | J78: 2023-10-18 | K78: 1932.50
A79: Z673DC9FBA | B79: 80013140217 | C79: CASA CIRCONDARIALE BOLZANO | D79: MATERIALE DIDATTICO | E79: MEPA | G79: SISTERS SRL | H79: 271.74 | I79: 2023-12-20 | J79: 2023-12-22 | K79: 271.74
A80: ZF13D59E63 | B80: 80013140217 | C80: CASA CIRCONDARIALE BOLZANO | D80: MATERIALE DIDATTICO | E80: MEPA | G80: VALSECCHI CANCELLERIA SRL | H80: 416.00 | I80: 2023-11-20 | J80: 2023-12-21
A81: 936420526D | B81: 80013140217 | C81: CASA CIRCONDARIALE BOLZANO | D81: GAS METANO | E81: CONVENZIONE CONSIP | G81: DOLOMITI ENERGIA | H81: 51096.26 | I81: 2023-01-01 | J81: 2023-12-31 | K81: 51096.26
A82: 9447472C84 | B82: 80013140217 | C82: CASA CIRCONDARIALE BOLZANO | D82: ENERGIA ELETTRICA | E82: CONVENZIONE CONSIP | G82: AGSM | H82: 36137.64 | I82: 2023-01-01 | J82: 2023-12-31 | K82: 36137.64
A83: Z6B3A5938C | B83: 80013140217 | C83: CASA CIRCONDARIALE BOLZANO | D83: CANCELLERA | E83: MEPA | G83: LINEA DATA SRL | H83: 411.11 | I83: 2023-03-13 | J83: 2023-03-31 | K83: 411.11
A84: Z813A7CA4E | B84: 80013140217 | C84: CASA CIRCONDARIALE BOLZANO | D84: TONER | E84: MEPA | G84: LINEA DATA SRL | H84: 310.12 | I84: 2023-03-22 | J84: 2023-04-06 | K84: 310.12
A85: ZA03B34934 | B85: 80013140217 | C85: CASA CIRCONDARIALE BOLZANO | D85: LAMPADE PER INTERNO | E85: AFFIDAMENTO DIRETTO | G85: SELECTRA SPA | H85: 207.58 | I85: 2023-06-07 | J85: 2023-06-12 | K85: 207.58
A86: Z9A3B9A61B | B86: 80013140217 | C86: CASA CIRCONDARIALE BOLZANO | D86: CARTA A4 | E86: MEPA | G86: VANNI SRL | H86: 411.26 | I86: 2023-06-19 | J86: 2023-07-31 | K86: 411.26
A87: ZC03BE85B3 | B87: 80013140217 | C87: CASA CIRCONDARIALE BOLZANO | D87: TONER E DRUM | E87: MEPA | G87: LINEA DATA SRL | H87: 479.53 | I87: 2023-05-12 | J87: 2023-08-08 | K87: 479.53
A88: Z9C3B92052 | B88: 80013140217 | C88: CASA CIRCONDARIALE BOLZANO | D88: CANCELLERA | E88: MEPA | G88: INGROSCART SRL | H88: 666.69 | I88: 2023-05-12 | J88: 2023-08-16 | K88: 666.69
A89: Z1D3C3A7B7 | B89: 80013140217 | C89: CASA CIRCONDARIALE BOLZANO | D89: WEBCAM | E89: AFFIDAMENTO DIRETTO | G89: MA.KO. SAS | H89: 43.41 | I89: 2023-08-29 | J89: 2023-09-12 | K89: 43.41
A90: ZA83C576B4 | B90: 80013140217 | C90: CASA CIRCONDARIALE BOLZANO | D90: RIPARAZIONE FOTOCOPIATRICE | E90: AFFIDAMENTO DIRETTO | G90: AMONN OFFICE | H90: 71.50 | I90: 2023-09-05 | J90: 2023-09-14 | K90: 71.50
A91: ZA43C74854 | B91: 80013140217 | C91: CASA CIRCONDARIALE BOLZANO | D91: BANDIERE | E91: MEPA | G91: MILITARY SHOP | H91: 90.00 | I91: 2023-09-14 | J91: 2023-09-26 | K91: 90.00
A92: ZD33D2C899 | B92: 80013140217 | C92: CASA CIRCONDARIALE BOLZANO | D92: RIPARAZIONE FOTOCOPIATRICE | E92: AFFIDAMENTO DIRETTO | G92: AMONN OFFICE | H92: 71.50 | I92: 2023-11-17 | J92: 2023-11-21 | K92: 71.50
A93: Z2F3CE8F0F | B93: 80013140217 | C93: CASA CIRCONDARIALE BOLZANO | D93: CANCELLERA | E93: MEPA | G93: LINEA DATA SRL | H93: 622.58 | I93: 2023-10-18 | J93: 2023-11-24 | K93: 622.58
A94: ZDA3DA860D | B94: 80013140217 | C94: CASA CIRCONDARIALE BOLZANO | D94: CANCELLERA | E94: MEPA | G94: DUBINI SRL | H94: 347.90 | I94: 2023-12-07 | J94: 2023-12-22 | K94: 347.90
A95: Z403A8EE9D | B95: 80013140217 | C95: CASA CIRCONDARIALE BOLZANO | D95: SMALTIMENTO RIFIUTI SPECIALI | E95: COTTIMO FIDUCIARIO | F95: SANTINI BOLZANO | G95: SANTINI BOLZANO | H95: 125.50 | I95: 2023-01-01 | J95: 2023-12-31 | K95: 125.50
F96: SUDTIROLFER BRONZOLO
F97: LAMAFER BOLZANO
A98: Z4E3D6009F | B98: 80013140217 | C98: CASA CIRCONDARIALE BOLZANO | D98: TIMBRI | E98: AFFIDAMENTO DIRETTO | G98: TIX TIMBRI TARGHE SAS | H98: 32.00 | I98: 2023-11-20 | J98: 2023-12-02 | K98: 32.00
A99: ZE639FDC81 | B99: 80013140217 | C99: CASA CIRCONDARIALE BOLZANO | D99: SPESE POSTALI | E99: AFFIDAMENTO DIRETTO | G99: POSTE ITALIANE SPA | H99: 388.49 | I99: 2023-01-01 | J99: 2023-12-31 | K99: 388.49
A100: ZE53A13075 | B100: 80013140217 | C100: CASA CIRCONDARIALE BOLZANO | D100: MATERIALE IGIENE E PULIZIA | E100: MEPA | G100: PAPER-INGROS | H100: 923.40 | I100: 2023-03-17 | J100: 2023-03-22 | K100: 923.40
A101: Z023A5FE8D | B101: 80013140217 | C101: CASA CIRCONDARIALE BOLZANO | D101: MATERIALE IGIENE E PULIZIA | E101: MEPA | G101: CASA DEI DETERSIVI E PROFUMI SNC | H101: 1294.30 | I101: 2023-03-15 | J101: 2023-03-23 | K101: 1294.30
A102: ZBB39803B3 | B102: 80013140217 | C102: CASA CIRCONDARIALE BOLZANO | D102: GETTONI PER LAVATRICE | E102: MEPA | G102: MR SERVICE SRL | H102: 250.00 | I102: 2023-01-13 | J102: 2023-01-24 | K102: 250.00
A103: ZE0396EA79 | B103: 80013140217 | C103: CASA CIRCONDARIALE BOLZANO | D103: RIPARAZIONE BOLLITORE CUCINA DETENUTI | E103: AFFIDAMENTO DIRETTO | G103: GRANDIMIPIANTI NOSELLI SRL | H103: 75.00 | I103: 2023-01-09 | J103: 2023-01-10 | K103: 75.00
A104: Z9D3A6C72A | B104: 80013140217 | C104: CASA CIRCONDARIALE BOLZANO | D104: MATERIALE IGIENE E PULIZIA | E104: MEPA | G104: PRO CURA SRL | H104: 1251.00 | I104: 2023-04-03 | J104: 2023-04-21 | K104: 1251.00
A105: Z433B0E9BD | B105: 80013140217 | C105: CASA CIRCONDARIALE BOLZANO | D105: RIPARAZIONE FRIGORIFERO | E105: AFFIDAMENTO DIRETTO | G105: FANTINI SAS | H105: 120.00 | I105: 2023-05-09 | J105: 2023-05-08 | K105: 120.00
A106: Z7A3B1DA12 | B106: 80013140217 | C106: CASA CIRCONDARIALE BOLZANO | D106: MATERIALE IGIENE E PULIZIA | E106: MEPA | G106: PRO CURA SRL | H106: 630.00 | I106: 2023-05-11 | J106: 2023-05-19 | K106: 630.00
A107: Z623AAA634 | B107: 80013140217 | C107: CASA CIRCONDARIALE BOLZANO | D107: MATERIALE IGIENE E PULIZIA | E107: MEPA | G107: BIANCHI INGROSSO SRL | H107: 681.60 | I107: 2023-04-04 | J107: 2023-05-12 | K107: 681.60
A108: Z873C0D349 | B108: 80013140217 | C108: CASA CIRCONDARIALE BOLZANO | D108: RIPARAZIONE FORNO | E108: AFFIDAMENTO DIRETTO | G108: GRANDIMIPIANTI NOSELLI SRL | H108: 90.70 | I108: 2023-07-28 | J108: 2023-07-31 | K108: 90.70
A109: Z843C2BDB1 | B109: 80013140217 | C109: CASA CIRCONDARIALE BOLZANO | D109: MATERIALO MONOUSO | E109: MEPA | G109: PRO CURA SRL | H109: 1961.00 | I109: 2023-08-09 | J109: 2023-08-23 | K109: 1961.00
A110: ZF13C9870C | B110: 80013140217 | C110: CASA CIRCONDARIALE BOLZANO | D110: MATERIALE IGIENE E PULIZIA | E110: MEPA | G110: LA CASALINDA SRL | H110: 548.05 | I110: 2023-09-26 | J110: 2023-10-04 | K110: 548.05
A111: Z723C97D54 | B111: 80013140217 | C111: CASA CIRCONDARIALE BOLZANO | D111: MATERIALE IGIENE E PULIZIA | E111: MEPA | G111: PRO CURA SRL | H111: 2026.00 | I111: 2023-09-26 | J111: 2023-10-05 | K111: 2026.00
A112: Z993C9D938 | B112: 80013140217 | C112: CASA CIRCONDARIALE BOLZANO | D112: MATERIALE IGIENE E PULIZIA | E112: MEPA | G112: PAPER-INGROS | H112: 467.04 | I112: 2023-09-27 | J112: 2023-10-24 | K112: 467.04
A113: Z693C96264 | B113: 80013140217 | C113: CASA CIRCONDARIALE BOLZANO | D113: MATERIALE IGIENE E PULIZIA | E113: MEPA | G113: LABROCELL SRL | H113: 1182.94 | I113: 2023-09-26 | J113: 2023-10-16 | K113: 1182.94
A114: Z323C43F77 | B114: 80013140217 | C114: CASA CIRCONDARIALE BOLZANO | D114: RIPARAZIONE FRIGORIFERO | E114: AFFIDAMENTO DIRETTO | G114: NIEDERBACHER SRL | H114: 255.00 | I114: 2023-08-30 | J114: 2023-09-11 | K114: 255.00
A115: ZE43C79C40 | B115: 80013140217 | C115: CASA CIRCONDARIALE BOLZANO | D115: RIPARAZIONE FORNO | E115: AFFIDAMENTO DIRETTO | G115: GRANDIMIPIANTI NOSELLI SRL | H115: 82.80 | I115: 2023-09-15 | J115: 2023-09-22 | K115: 82.80
A116: Z523D41486 | B116: 80013140217 | C116: CASA CIRCONDARIALE BOLZANO | D116: MATERIALE IGIENE E PULIZIA | E116: MEPA | G116: CASA DEI DETERSIVI E PROFUMI SNC | H116: 1304.60 | I116: 2023-11-13 | J116: 2023-11-21 | K116: 1304.60
A117: Z013D41348 | B117: 80013140217 | C117: CASA CIRCONDARIALE BOLZANO | D117: MATERIALE IGIENE E PULIZIA | E117: MEPA | G117: F.LLI PAVONE SRL | H117: 1190.30 | I117: 2023-11-13 | J117: 2023-11-22 | K117: 1190.30
A118: Z6D3BE743B | B118: 80013140217 | C118: CASA CIRCONDARIALE BOLZANO | D118: MATERIALE IGIENE E PULIZIA | E118: MEPA | G118: OFFICE LINE SRL | H118: 1692.00 | I118: 2023-07-20 | J118: 2023-11-08 | K118: 1692.00
A119: ZCA3DB2289 | B119: 80013140217 | C119: CASA CIRCONDARIALE BOLZANO | D119: MATERIALE IGIENE E PULIZIA | E119: MEPA | G119: ULTRAPROMEDIA SRL | H119: 355.00 | I119: 2023-12-11 | J119: 2023-12-18 | K119: 355.00
A120: Z6939DD385 | B120: 80013140217 | C120: CASA CIRCONDARIALE BOLZANO | D120: CHIAVI E SERRATURE | E120: AFFIDAMENTO DIRETTO | G120: ZULIAN SRL | H120: 407.52 | I120: 2023-01-01 | J120: 2023-12-31 | K120: 407.52
A121: Z09351FAEA | B121: 80013140217 | C121: CASA CIRCONDARIALE BOLZANO | D121: LAVAGGIO BIANCHERIA | E121: AFFIDAMENTO DIRETTO | G121: HAAS SRL | H121: 1458.31 | I121: 2022-04-01 | J121: 2023-03-31 | K121: 1458.31
A122: ZF23A527CE | B122: 80013140217 | C122: CASA CIRCONDARIALE BOLZANO | D122: LAVAGGIO BIANCHERIA | E122: COTTIMO FIDUCIARIO | F122: LAVANDERIA HAAS | G122: HAAS SRL | H122: 5540.85 | I122: 2023-04-01 | J122: 2024-03-30 | K122: 5540.85
F123: WAL WASH
F124: LAVANDERIE DELL'ALTO ADIGE
F125: AVISIO
A126: ZAB39BDBB3 | B126: 80013140217 | C126: CASA CIRCONDARIALE BOLZANO | D126: BIGLIETTI AEREI | E126: AFFIDAMENTO DIRETTO | G126: CICLOPI VIAGGI SRL | H126: 3191.52 | I126: 2023-01-01 | J126: 2023-12-31 | K126: 3191.52
A127: Z8236288C2 | B127: 80013140217 | C127: CASA CIRCONDARIALE BOLZANO | D127: FUEL CARD | E127: CONVENZIONE CONSIP | G127: KUWAIT PETROLEUM ITALIA | H127: 8524.91 | I127: 2023-01-01 | J127: 2023-12-31 | K127: 7749.05
A128: Z983D0F1C2 | B128: 80013140217 | C128: CASA CIRCONDARIALE BOLZANO | D128: SEDIE TAVOLI SALA COLLOQUI | E128: AFFIDAMENTO DIRETTO | G128: REVERSE COOPERATIVA SOCIALE | H128: 4657.00 | I128: 2023-11-03 | J128: 2023-12-19 | K128: 4657.00
A129: Z5B3D8911E | B129: 80013140217 | C129: CASA CIRCONDARIALE BOLZANO | D129: FORNO CUCINA DETENUTI | E129: AFFIDAMENTO DIRETTO | G129: TROJER GASTRODESIGN SRL | H129: 5700.00 | I129: 2023-11-30 | J129: 2023-12-21 | K129: 5700.00
A130: ZDA3B9F425 | B130: 80013140217 | C130: CASA CIRCONDARIALE BOLZANO | D130: TOTEM COLLOQUI DET.TI | E130: MEPA | G130: TECHVISION SRL | H130: 8248.00 | I130: 2023-06-22 | J130: 2023-12-07 | K130: 8248.00
A131: ZC0384207E | B131: 80013140217 | C131: CASA CIRCONDARIALE BOLZANO | D131: RIPARAZIONE FURGONE | E131: AFFIDAMENTO DIRETTO | G131: AUTOSERVICE ALPINA SRL | H131: 3595.00 | I131: 2023-11-09 | J131: 2023-12-07 | K131: 3595.00
A132: Z633DCB147 | B132: 80013140217 | C132: CASA CIRCONDARIALE BOLZANO | D132: RIPARAZIONE FURGONE | E132: AFFIDAMENTO DIRETTO | G132: AUTOSERVICE ALPINA SRL | H132: 1690.81 | I132: 2023-12-15 | J132: 2023-12-15 | K132: 1690.81
A133: ZB93B0408C | B133: 80013140217 | C133: CASA CIRCONDARIALE BOLZANO | D133: CORSO HACCP | E133: AFFIDAMENTO DIRETTO | G133: SE GROUP SRL | H133: 450.00 | I133: 2023-05-09 | J133: 2023-09-19 | K133: 450.00
A134: ZEE3B6EC1A | B134: 80013140217 | C134: CASA CIRCONDARIALE BOLZANO | D134: CARTE DA GIOCO | E134: MEPA | G134: SISTERS SRL | H134: 218.75 | I134: 2023-06-05 | J134: 2023-06-13 | K134: 218.75
A135: Z973BFBF2F | B135: 80013140217 | C135: CASA CIRCONDARIALE BOLZANO | D135: GIOCHI DA TAVOLO | E135: MEPA | G135: SISTERS SRL | H135: 446.60 | I135: 2023-07-21 | J135: 2023-07-26 | K135: 446.60
A136: Z923D5937D | B136: 80013140217 | C136: CASA CIRCONDARIALE BOLZANO | D136: CARTE DA GIOCO | E136: MEPA | G136: SISTERS SRL | H136: 417.00 | I136: 2023-11-20 | J136: 2023-11-29 | K136: 417.00
A137: ZD23D9678F | B137: 80013140217 | C137: CASA CIRCONDARIALE BOLZANO | D137: PAVIMENTAZIONE PALESTRE | E137: MEPA | G137: ORIENTE SPORT SAS | H137: 420.00 | I137: 2023-12-04 | J137: 2023-12-20 | K137: 420.00
A138: ZFA3DB2F79 | B138: 80013140217 | C138: CASA CIRCONDARIALE BOLZANO | D138: MATERIALE SPORTIVO | E138: MEPA | G138: DESIG ITALIA SRL | H138: 2584.00 | I138: 2023-12-12 | J138: 2023-12-19 | K138: 2584.00
A139: ZC63DCA7AF | B139: 80013140217 | C139: CASA CIRCONDARIALE BOLZANO | D139: MATERIALE BIBLIOTECA | E139: MEPA | G139: LANTERA | H139: 274.00 | I139: 2023-12-15 | J139: 2023-12-22 | K139: 274.00
A140: ZEB3DD507E | B140: 80013140217 | C140: CASA CIRCONDARIALE BOLZANO | D140: MATERIALE SPORTIVO | E140: MEPA | G140: DECATHLON | H140: 276.55 | I140: 2023-12-18 | J140: 2023-12-21 | K140: 276.55
A141: Z1C3982F20 | B141: 80013140217 | C141: CASA CIRCONDARIALE BOLZANO | D141: RIPARAZIONE CONDOTTA RETE FOGNARIA | E141: AFFIDAMENTO DIRETTO | G141: KOCI DYLBER | H141: 16835.83 | I141: 2023-01-02 | J141: 2023-04-12 | K141: 16835.83
A142: ZD53A0BA69 | B142: 80013140217 | C142: CASA CIRCONDARIALE BOLZANO | D142: FORNITURA E POSA GRATE ANTI GETTO | E142: MEPA | G142: SECURSYSTEM | H142: 3500.00 | I142: 2023-02-21 | J142: 2023-03-21 | K142: 3500.00
A143: Z203A0BAA6 | B143: 80013140217 | C143: CASA CIRCONDARIALE BOLZANO | D143: INTEGRAZIONE IMPIANTO TVCC | E143: AFFIDAMENTO DIRETTO | G143: DOMOTIKA PROJECT SRL | H143: 4679.50 | I143: 2023-02-09 | J143: 2023-02-22 | K143: 4679.50

Sheet CC Gorizia
A1: Dipartimento Amministrazione Penitenziaria - ISTITUTO CASA CIRCONDARIALE GORIZIA - C.F. 80004860310
A2: Contratti di forniture, beni e servizi Anno 2023 Dati aggiornati al 31 dicembre 2023
A3: CIG | B3: Codice Fiscale | C3: Denominazione | D3: Oggetto | E3: Procedura di scelta del contraente | F3: Elenco operatori invitati a presentare offerte | G3: Aggiudicatario | H3: Importo di aggiudicazione | I3: Data Inizio | J3: Data Ultimazione | K3: Somme liquidate (al netto dell'IVA)
A4: Z8A39AD9C4 | B4: 80004860310 | C4: CC GORIZIA | D4: SMALTIMENTO MATERASSI E GUANCIALI | E4: non utilizzato in attesa fondi
A5: Z5539CC567 | B5: 80004860310 | C5: CC GORIZIA | D5: CABLAGGIO AULE SCOLASTICHE DETENUTI CCGO | E5: TRATTATIVA DIRETTA MEPA | G5: EURIS TECNOLOGY | H5: 4270 | I5: 03.02.2023 | J5: 30.04.2023 | K5: 4270
A6: Z3239DC89E | B6: 80004860310 | C6: CC GORIZIA | D6: TAGLIANDO AUTOMEZZO POL..PEN JEEP RENEGADE | E6: AFFIDAMENTO DIRETTO | G6: DIERRE CAR SERVICE | H6: 1000 | I6: 08.02.2023 | J6: 15.03.2023 | K6: 1000
A7: ZC439DE339 | B7: 80004860310 | C7: CC GORIZIA | D7: MANUTENZIONE IMPIANTO TERMICO DETENUTI | E7: AFFIDAMENTO DIRETTO | G7: CHIURLO TECH SRL | H7: 2320 | I7: 08.02.2023 | J7: 31.12.2023 | K7: 2320
A8: ZAD39DE3E3 | B8: 80004860310 | C8: CC GORIZIA | D8: MANUTENZIONE IMPIANTO TERMICO UFFICI DIREZIONE CC | E8: AFFIDAMENTO DIRETTO | G8: SILMAX SRL | H8: 1165 | I8: 08.02.2023 | J8: 08.02.2024 | K8: 1165
A9: Z7B39E23DE | B9: 80004860310 | C9: CC GORIZIA | D9: MANUTENZIONE STR IMPIANTO DI VIDEO SORVEGLIANZA UPS | E9: TRATTATIVA DIRETTA MEPA | G9: MD SYSTEM SRL | H9: 14119 | I9: 09.02.2023 | J9: 10.04.2023 | K9: 14119
A10: ZD839F34FE | B10: 80004860310 | C10: CC GORIZIA | D10: FORNITURA ACQUA SANITARIA CC GO | E10: AFFIDAMENTO DIRETTO | G10: IRISACQUA | H10: 39,000 | I10: 14.02.2023 | K10: 39,000
A11: ZD039F3AE1 | B11: 80004860310 | C11: CC GORIZIA | D11: RAPARAZIONI FOTOCOPIATRICI E STAMPANTI | E11: AFFIDAMENTO DIRETTO | G11: COPYGRAFH SNC | H11: 500 | I11: 14.02.2023 | J11: 10.03.2023 | K11: 500
A12: ZBE3A0D1A0 | B12: 80004860310 | C12: CC GORIZIA | D12: RIAPARAZIONE FIAT SCUDO PP767AF CCGO | E12: AFFIDAMENTO DIRETTO | G12: gruppo casal srl | H12: 9299 | I12: 21.02.2023 | J12: 20.05.2023 | K12: 9299
A13: Z693A15A88 | B13: 80004860310 | C13: CC GORIZIA | D13: GAS UFFICI RISCALDAMENTO CCGO | E13: CONVENZIONE CONSIP | G13: HERA SPA | H13: 39000 | I13: 23.02.2023 | J13: 23.02.2024 | K13: 39000
A14: Z803A324BA | B14: 80004860310 | C14: CC GORIZIA | D14: M.O.S. 1.7.2023-30.6.2024 | E14: AFFIDAMENTO DIRETTO | G14: DUSSMAN SERVICE SRL | H14: 25440 | I14: 02.03.2023 | J14: 30.06.2024 | K14: 25440
A15: ZF83A37131 | B15: 80004860310 | C15: CC GORIZIA | D15: MANUTENZIONE ORDINARIA ANTINCENDIO 2023 | E15: TRATTATIVA DIRETTA MEPA | G15: OPI FIRESAFE SRL | H15: 1234.64 | I15: 03.03.2023 | J15: 03.03.2024 | K15: 1234.64
A16: Z113A51A39 | B16: 80004860310 | C16: CC GORIZIA | D16: MATERIALE MINUTO VARIO PITTURAZIONE | E16: AFFIDAMENTO DIRETTO | G16: MARONI SRL | H16: 2000 | I16: 10.03.2023 | J16: 20.04.2023 | K16: 2000
A17: Z7A3A60276 | B17: 80004860310 | C17: CC GORIZIA | D17: FORNITURA TELCAMERE E CASSE UFFICIO COLLOQUI | E17: AFFIDAMENTO DIRETTO | G17: DIGIT SRL | H17: 324 | I17: 15.03.2023 | J17: 15.04.2023 | K17: 324
A18: ZD63A6FFB5 | B18: 80004860310 | C18: CC GORIZIA | D18: MACCHINETTE TAGLIACAPELLI | E18: TRATTATIVA DIERETTA MEPA | G18: PROCURA SRL | H18: 372 | I18: 20.03.2023 | J18: 27.03.2023 | K18: 372
A19: Z793A70022 | B19: 80004860310 | C19: CC GORIZIA | D19: MATERIALE IGIENE E PULIZIA | E19: TRATTIVA DIRETTA MEPA | G19: LA CASALINDA SRL | H19: 2696 | I19: 20.03.2023 | J19: 29.03.2023 | K19: 2696
A20: ZAE3A700B1 | B20: 80004860310 | C20: CC GORIZIA | D20: PELLICOLA BUSTE PER NTP | E20: AFIDAMENTO DIRETTO | G20: MANUTAN SRL | H20: 275 | I20: 20.03.2023 | J20: 10.05.2023 | K20: 275
A21: Z273A75FB0 | B21: 80004860310 | C21: CC GORIZIA | D21: RITIRO CARTUCCE TONER ESAUSTE 2023 CCGO | E21: AFFFIDAMENTO DIRETTO | G21: UDINESE SERVIZI SRL | H21: 1472 | I21: 21.03.2023 | J21: 10.05.2023 | K21: 1472
A22: ZB03A780B1 | B22: 80004860310 | C22: CC GORIZIA | D22: MANUTENZIONE IMPIANTO VIDEOSORVEGLIANZA SWTICH | E22: TRATTATIVA DIRETTA MEPA | G22: MD SYSTEM SRL | H22: 1796.5 | I22: 21.03.2023 | J22: 20.04.2023 | K22: 1796.5
A23: Z953A7D68F | B23: 80004860310 | C23: CC GORIZIA | D23: TONER UFFICI CCGO 2023 | E23: ORDINE DIRETTO MEPA | G23: MI.VA.SRLS | H23: 895.03 | I23: 22.03.2024 | J23: 20.04.2023 | K23: 895.03
A24: ZB33AA502F | B24: 80004860310 | C24: CC GORIZIA | D24: BUONI PASTO C.C. GORIZIA | E24: CONVENZIONE CONSIP | G24: E.P. SPA | H24: 9990 | I24: 03.04.2023 | J24: 21.09.2023 | K24: 9990
A25: Z8D3AB8A7A | B25: 80004860310 | C25: CC GORIZIA | D25: MANUTEN ORDINAR VIDEOSORV | E25: TRATTATIVA DIRETTA MEPA | G25: MD SYSTEM SRL | H25: 5780 | I25: 07.04.2023 | J25: 30.05.2023 | K25: 5780
A26: Z9E3ABBA33 | B26: 80004860310 | C26: CC GORIZIA | D26: DERATTIZZAZIONE AMBIENTI CC GO | E26: AFFIDAMENTO DIRETTO | G26: SEAL SRL | H26: 130 | I26: 11.04.2023 | J26: 10.06.2023 | K26: 130
A27: Z143ABE567 | B27: 80004860310 | C27: CC GORIZIA | D27: SOSTITUZIONE SERRATURA ARMADIO PISTOLE | E27: AFFIDAMENTO DIRETTO | G27: FARI MAURO | H27: 690.52 | I27: 12.04.2023 | J27: 03.05.2023 | K27: 690.52
A28: Z253AD83D2 | B28: 80004860310 | C28: CC GORIZIA | D28: SERVIZIO POTATURA ALBERI SCUOLA PITTERI | E28: AFFIDAMENTO DIRETTO | G28: PLESNICAR MAURIZIO | H28: 1200 | I28: 19.04.2023 | J28: 15.06.2023 | K28: 1200
A29: Z903B11315 | B29: 80004860310 | C29: CC GORIZIA | D29: TONER UFFICI CCGO 2023 | E29: ODA MEPA | G29: INTERSYSTEM SRL | H29: 231.75 | I29: 19.04.2023 | J29: 20.06.2023 | K29: 231.75
A30: Z1B3B114E2 | B30: 80004860310 | C30: CC GORIZIA | D30: METRIALE IGIENE E PULIZIA CC GO DETENUTI | E30: TRATTATIVA DIRETTA MEPA | G30: PROCURA SRL | H30: 2156 | I30: 09.05.2023 | J30: 15.05.2023 | K30: 2156
A31: ZE53B11A4E | B31: 80004860310 | C31: CC GORIZIA | D31: ACQUISTO PILE RICARICABILI 9V CCGO | E31: ODA MEPA | G31: ULTRAPROMEDIA SRL | H31: 373 | I31: 09.05.2023 | J31: 30.05.2023 | K31: 373
A32: Z283B2BEF8 | B32: 80004860310 | C32: CC GORIZIA | D32: SCAFFALI LOCALI CCGO | E32: TRATTATIVA DIRETTA MEPA | G32: MANUTAN SRL | H32: 4131 | I32: 16.05.2023 | J32: 16.06.2023 | K32: 4131
A33: Z5F3B45500 | B33: 80004860310 | C33: CC GORIZIA | D33: MATERIALE PER TINTEGGIATURA CCGG | E33: AFFIDAMENTO LIBERO MERCATO | G33: DITTA MARONI | H33: 500 | I33: 23.05.2023 | J33: 20.07.2023 | K33: 500
A34: ZBF3B45562 | B34: 80004860310 | C34: CC GORIZIA | D34: MATERIALE DI FERRAMNETA | E34: AFFIDAMENTO LIBERO MERCATO | G34: F-LLI CANTARIN | H34: 500 | I34: 23.05.2023 | J34: 18.06.2023 | K34: 500
A35: ZF73B455C5 | B35: 80004860310 | C35: CC GORIZIA | D35: MATERIALE EDILE | E35: ACQUISTO LIBERO MERCATO | G35: F.LLI ZOFF SRL | H35: 595.73 | I35: 23.05.2023 | J35: 31.05.2023 | K35: 595.73
A36: Z913B6ED82 | B36: 80004860310 | C36: CC GORIZIA | D36: IMPIANTO ANTINTRUSIONE E ANTISCAV | E36: RDO MEPA | F36: CARMET SRL; ELETTROMONTAGGI DI ZULIAN; GENRAL ALLRM ; MD SYSTEM ;NONINO IMPIANTI SCARL;PRESOTTO ENNIO;RTVE TELECOMUNICAZIONI;S.I.E.I. DI BRUGNERA ; SEVEN SRL; TECNOELETTRICA COPETTI; VI.PA | G36: SEVEN SRL | H36: 27058 | I36: 05.06.2023 | J36: 27.12.2023 | K36: 27058
A37: Z243BAE840 | B37: 80004860310 | C37: CC GORIZIA | D37: FORNITURA MATERIALE EDILE | E37: AFFIDAMNTO LIBERO MERCATO | G37: MARONI SRL | H37: 500 | I37: 25.06.2023 | J37: 30.06.2023 | K37: 500
A38: ZCF3BAE842 | B38: 80004860310 | C38: CC GORIZIA | D38: FORNITURA MATERIALE FERRAMENTA | E38: AFFIDAMNTO LIBERO MERCATO | G38: F.LLI CANTARIN | H38: 500 | I38: 25.06.2023 | J38: 10.07.2023 | K38: 500
A39: Z8E3BB2432 | B39: 80004860310 | C39: CC GORIZIA | D39: FORNITURA CANCELLERIA PER DETENUTI | E39: AFFIDAMNTO LIBERO MERCATO | G39: CARTPLAST ASRL | H39: 1000.92 | I39: 26.06.2023 | J39: 10.07.2023 | K39: 1000.92
A40: Z253BB2454 | B40: 80004860310 | C40: CC GORIZIA | D40: fornitura materassi e guanciali detenuti | E40: TRATTATIVA DIRETTA MEPA | G40: HARMONY L'IGIENICO | H40: 3278.1 | I40: 26.06.2023 | J40: 31.07.2023 | K40: 3278.1
A41: Z7E3BBB0FE | B41: 80004860310 | C41: CC GORIZIA | D41: manutenzione ordinaria fiat scudo 767AF | E41: AFFIDMANTO DIRETTO | G41: DIERRE CAR SERVICE SRL | H41: 274.82 | I41: 28.06.2023 | J41: 05.07.2023 | K41: 274.82
A42: Z5F3BD31CE | B42: 80004860310 | C42: CC GORIZIA | D42: DISINFESTAZIONE | E42: affidamento diretto | G42: SEAL SRL | H42: 439.2 | I42: 06.07.2023 | J42: 10.07.2023 | K42: 439.2
A43: Z333BEFA9C | B43: 80004860310 | C43: CC GORIZIA | D43: MATERIALE IGIENE E PULIZIA | E43: TRATTATIVA DIRETTA MEPA | G43: PROCURA SRL | H43: 4800 | I43: 18.07.2023 | J43: 23.07.2023 | K43: 4800
A44: Z993C58936 | B44: 80004860310 | C44: CC GORIZIA | D44: SERVIZIO cud detenuti | E44: AFFIDMANTO MERCATO LIBERO | G44: ASCOM SRL | H44: 1642.5 | I44: 05.09.2023 | J44: 20.07.2023 | K44: 1642.5
A45: Z0D3C6578F | B45: 80004860310 | C45: CC GORIZIA | D45: TONER STAMPANTI UFFICIO | E45: ORDINE DIRETTO MEPA | G45: MI.VA SRLS | H45: 895.03 | I45: 13.09.2023 | J45: 10.10.2023 | K45: 895.03
A46: Z9F3C6F59A | B46: 80004860310 | C46: CC GORIZIA | D46: detersivi per lavatrice a gettone | E46: trattativa diretta MEPa | G46: ECOLAB srl | H46: 675.32 | I46: 13.09.2023 | J46: 30.11.2023 | K46: 675.32
A47: z413c77633 | B47: 80004860310 | C47: CC GORIZIA | D47: fornitura e instaLlazione TOTEm | E47: TRATTATIVA DIRETTA MEPA | G47: TECHVISION SRL | H47: 8140 | I47: 15.09.2023 | J47: 20.10.2023 | K47: 8140
A48: ZEF3C909FD | B48: 80004860310 | C48: CC GORIZIA | D48: MANUTENZIONE PORD FIAT SCUDO Tg 767 | E48: AFFIDMANTO DIRETTO | G48: DIERRECAR SERVICE SRL | H48: 62.2 | I48: 22.09.2023 | J48: 24.09.2023 | K48: 62.2
A49: zea3cb54ec | B49: 80004860310 | C49: CC GORIZIA | D49: rip colonna scarico ambulatorio sanitario | E49: trattatvia diretta mepa | G49: videotecnica impianti srl | H49: 6585 | I49: 04.10.2023 | J49: 30.11.2023 | K49: 2126
A50: Z363CC0FB8 | B50: 80004860310 | C50: CC GORIZIA | D50: PENTOLA A INDUZIONE PER MENA DET | E50: Affidamento Diretto | G50: De Marchi di Paronitti G. | H50: 487.86 | I50: 07.10.2023 | J50: 12.10.2023 | K50: 487.86
A51: ZC63CC104B | B51: 80004860310 | C51: CC GORIZIA | D51: intervento derattizz. Cimici | E51: AFFIDAmento diretto | G51: SEAL srl | H51: 540 | I51: 07.10.2023 | J51: 15.10.2023 | K51: 540
A52: Z5A3CF4A27 | B52: 80004860310 | C52: CC GORIZIA | D52: progetto carcere in movimento | E52: AFFIDAmento diretto | G52: LA CISILE COOP | H52: 7332 | I52: 23.10.2023 | J52: 27.12.2023 | K52: 7332
A53: z423d34a28 | B53: 80004860310 | C53: CC GORIZIA | D53: SOSTITUZIONE SERRATURA CANCELLO | E53: AFFIDAMENTO LIBERO MERCATO | G53: FARI MAURO | H53: 183 | I53: 09.11.2023 | J53: 13.11.2023 | K53: 183
A54: ZF53D34F43 | B54: 80004860310 | C54: CC GORIZIA | D54: SERVIZIO SPURGO | E54: AFFIDAMENTO LIBERO MERCATO | G54: COSPER SRL | H54: 777.3 | I54: 09.11.2023 | J54: 15.11.2023 | K54: 777.3
A55: ZB93D6188F | B55: 80004860310 | C55: CC GORIZIA | D55: INTER. INSTALL TOTEM | E55: AFFIDAMENTO LIBERO MERCATO | G55: VIDEOTECNICA IMPIANTI | H55: 225 | I55: 21.11.2023 | J55: 25.11.2023 | K55: 225
A56: Z633D618E9 | B56: 80004860310 | C56: CC GORIZIA | D56: manu. E riprisitno imp video | E56: TRATTATIVA DIRETTA MEPA | G56: MD SYSTEM SRL | H56: 4951.98 | I56: 21.11.2023 | J56: 15.12.2023 | K56: 4951.98
A57: z813d7423c | B57: 80004860310 | C57: CC GORIZIA | D57: fornitura utensilii cucina detenuti | E57: AFFIDAMENTO DIRETTO | G57: De Marchi di Paronitti G. | H57: 487.46 | I57: 26.11.2023 | J57: 30.11.2023 | K57: 487.46
A58: ZD23D8125B | B58: 80004860310 | C58: CC GORIZIA | D58: N. 2 TELFONI ANTIVANDALO | E58: ORDINE DIRETTO MEPA | G58: TECHVISONE SRL | H58: 900 | I58: 29.11.2023 | J58: 27.12.2023 | K58: 900
A59: Z473D959A0 | B59: 80004860310 | C59: CC GORIZIA | D59: MANUTNE SOST RICAMBI FIAT PUNTO | E59: affidamento dirett | G59: DIERRE CAR SERVICE SRL | H59: 357.03 | I59: 04.12.2023 | J59: 15.12.2023 | K59: 357.03
A60: Z0C3DAD3DF | B60: 80004860310 | C60: CC GORIZIA | D60: MATERIALE ATTIVITA DIDATTICO | E60: NON UTILIZZATO | I60: 09.12.2023
A61: ZC23DAD3E7 | B61: 80004860310 | C61: CC GORIZIA | D61: MATERIALE IGIENE E PULIZIA | E61: TRATTATIVA DIRETTA MEPA | G61: PROCURA SRL | H61: 5486.34 | I61: 09.12.2023 | J61: 20.12.2023 | K61: 5486.34
A62: Z143DB012B | B62: 80004860310 | C62: CC GORIZIA | D62: manutenzione impianto anti 2024 | E62: TRATTATIVA DIRETTA MEPA | G62: OPI FIRESAFE SRL | I62: 11.12.2023
A63: z423dc36a6 | B63: 80004860310 | C63: CC GORIZIA | D63: smaltimento rifiuti | E63: AFFIDAMENTO DIRETTO | G63: ISONTINA AMBIENTE SRL | H63: 3586.23 | I63: 14.12.2023 | J63: 20.12.2023 | K63: 3586.23
A64: ze53dcedcf | B64: 80004860310 | C64: CC GORIZIA | D64: materiale per bliblioteca detnuti | E64: AFFIDAMENTO LIBERO MERCATO | G64: CARTPLAST SRL | H64: 977.63 | I64: 19.12.2023 | J64: 27.12.2023 | K64: 734.43
A65: Z4EDDBF21 | B65: 80004860310 | C65: CC GORIZIA | D65: corso detenuti sicurezza HACCP | E65: AFFIDAMNETO DIRETTO | G65: IAL INNOVAZIONE E APPR. FVG | H65: 1920 | I65: 19.12.2023 | J65: 27.12.2023 | K65: 1920
A66: Z443DE602C | B66: 80004860310 | C66: CC GORIZIA | D66: CANCELLERIA UFFICI cc Gorizia | E66: TRATTATIVA DIRETTA MEPA | G66: MYO SPA | I66: 21.12.2023
A67: Z423ded259 | B67: 80004860310 | C67: CC GORIZIA | D67: dispositvi di sicurezza | E67: TRATTATIVA DIRETTA MEPA | G67: MYO SPA | H67: 1507.38 | I67: 22.12.2023 | J67: 27.12.2023 | K67: 1507.38
A68: z363deec87 | B68: 80004860310 | C68: CC GORIZIA | D68: manurenzione automezzi | E68: AFFIDAMNETO DIRETTO | G68: DIERRE CAR SERVICE SRL | H68: 175.75 | I68: 22.12.2023 | J68: 27.12.2023 | K68: 175.75
A69: ZBB3DF2DCa | B69: 80004860310 | C69: CC GORIZIA | D69: sostituzione fari muro di cinta | E69: AFFIDAMENTO DIRETTO | G69: VIDEOTECNICA IMPIANTI | H69: 2700.82 | I69: 23.12.2024 | J69: 27.12.2023 | K69: 2700.82

Sheet CC Padova
A1: Dipartimento Amministrazione Penitenziaria - ISTITUTO CASA CIRCONDARIALE PADOVA - C.F. 80024520282
A2: Contratti di forniture, beni e servizi Anno 2023 Dati aggiornati al 31 dicembre 2023
A3: CIG | B3: Codice Fiscale | C3: Denominazione | D3: Oggetto | E3: Procedura di scelta del contraente | F3: Elenco operatori invitati a presentare offerte | G3: Aggiudicatario | H3: Importo di aggiudicazione | I3: Data Inizio | J3: Data Ultimazione | K3: Somme liquidate (al netto dell'IVA)
A4: ZD439D17AD | B4: 09381751008 | C4: techvision sistemi multimediali | D4: fornitura tessete telefonia detenuti | E4: 23-AFFIDAMENTO IN ECONOMIA - AFFIDAMENTO DIRETTO | F4: techvision sistemi multimediali | G4: techvision sistemi multimediali | H4: € 360.00 | I4: 2023-02-06 | J4: 2023-02-16 | K4: € 360.00
A5: Z5C39D1C97 | B5: 00415630284 | C5: rogi s.a.s. | D5: intervento lavatrice lavanderia detenuti | E5: 23-AFFIDAMENTO IN ECONOMIA - AFFIDAMENTO DIRETTO | F5: rogi s.a.s. | G5: rogi s.a.s. | H5: € 75.00 | I5: 2023-02-06 | J5: 2023-02-16 | K5: € 75.00
A6: Z9339DED8C | B6: 00604930701 | C6: f.lli pavone | D6: materiale di pulizia e igienico detenuti | E6: 04-PROCEDURA NEGOZIATA SENZA PREVIA PUBBLICAZIONE DEL BANDO | F6: f.lli pavone | G6: f.lli pavone | H6: 11,284,19 | I6: 2023-02-08 | J6: 2023-03-21 | K6: 11,284,19
A7: ZE639E1496 | B7: 02481870133 | C7: franchini srl | D7: ricambio completo per reagentario drop-test | E7: 23-AFFIDAMENTO IN ECONOMIA - AFFIDAMENTO DIRETTO | F7: franchini srl | G7: franchini srl | H7: € 180.00 | I7: 2023-02-09 | J7: 2023-02-09 | K7: € 180.00
A8: Z3E3A12AAA | B8: 04604780280 | C8: vp impianti s.r.l. | D8: fornitura e posa imp.citof.e mov porte | E8: 23-AFFIDAMENTO IN ECONOMIA - AFFIDAMENTO DIRETTO | F8: vp impianti s.r.l. | G8: vp impianti s.r.l. | H8: € 18,300.00 | I8: 2023-02-22 | J8: 2023-03-06 | K8: € 18,300.00
A9: Z013A13F7B | B9: 02500980301 | C9: MD SYSTEMS S.R.L. | D9: fornitura e posa imp. videosorveglianza 2° sez. icat | E9: 23-AFFIDAMENTO IN ECONOMIA - AFFIDAMENTO DIRETTO | F9: MD SYSTEMS S.R.L. | G9: MD SYSTEMS S.R.L. | H9: € 33,700.00 | I9: 2023-02-23 | J9: 2023-03-06 | K9: € 33,700.00
A10: ZA03A14419 | B10: 02500980301 | C10: MD SYSTEMS S.R.L. | D10: fornitura e posa impianto videosorv.1 sez. icat | E10: 23-AFFIDAMENTO IN ECONOMIA - AFFIDAMENTO DIRETTO | F10: MD SYSTEMS S.R.L. | G10: MD SYSTEMS S.R.L. | H10: € 37,800.00 | I10: 2023-02-23 | J10: 2023-03-06 | K10: € 37,800.00
A11: ZF93A14B6B | B11: 04604780280 | C11: vp impianti s.r.l. | D11: fornitura e posa imp. citofonico e mov.porte 1 p.icat | E11: 23-AFFIDAMENTO IN ECONOMIA - AFFIDAMENTO DIRETTO | F11: vp impianti s.r.l. | G11: vp impianti s.r.l. | H11: € 18,300.00 | I11: 2023-02-23 | J11: 2023-03-06 | K11: € 18,300.00
A12: ZE03A19AF6 | B12: 02252430687 | C12: officine marsilii srl | D12: fornitura e posa 1 portone a 1 anta e postaz.contr.automazioni | E12: 23-AFFIDAMENTO IN ECONOMIA - AFFIDAMENTO DIRETTO | F12: officine marsilii srl | G12: officine marsilii srl | H12: € 39,300.00 | I12: 2023-02-24 | J12: 2023-03-06 | K12: € 39,300.00
A13: Z853A19CE8 | B13: 02252430687 | C13: officine marsilii srl | D13: fornitura e posa 3 portoni a tre ante e alim.sisitema | E13: 23-AFFIDAMENTO IN ECONOMIA - AFFIDAMENTO DIRETTO | F13: officine marsilii srl | G13: officine marsilii srl | H13: € 37,300.00 | I13: 2023-02-24 | J13: 2023-03-06 | K13: € 37,300.00
A14: Z763A1A0B5 | B14: 05069070158 | C14: kone spa | D14: intervento su montacarichi | E14: 04-PROCEDURA NEGOZIATA SENZA PREVIA PUBBLICAZIONE DEL BANDO | F14: kone spa | G14: kone spa | H14: € 1,728.74 | I14: 2023-02-24 | J14: 2023-02-24 | K14: € 1,728.74
A15: Z7E3A1C52E | B15: 02001630280 | C15: bovo srl | D15: intervento reset e ripristino parametri portineria | E15: 23-AFFIDAMENTO IN ECONOMIA - AFFIDAMENTO DIRETTO | F15: bovo srl | G15: bovo srl | H15: € 259.00 | I15: 2023-02-24 | J15: 2023-02-24 | K15: € 259.00
A16: Z4D3A5CF1D | B16: 02050930284 | C16: agrigarden snc | D16: manutenzione attrez agricole | E16: 23-AFFIDAMENTO IN ECONOMIA - AFFIDAMENTO DIRETTO | F16: agrigarden snc | G16: agrigarden snc | H16: € 336.82 | I16: 2023-03-14 | J16: 2023-03-14 | K16: € 336.82
A17: ZA43A5D003 | B17: 04873640280 | C17: errepi service srl | D17: intervento forno cucina agenti | E17: 23-AFFIDAMENTO IN ECONOMIA - AFFIDAMENTO DIRETTO | F17: errepi service srl | G17: errepi service srl | H17: € 232.00 | I17: 2023-03-14 | J17: 2023-03-14 | K17: € 232.00
A18: Z133A6C930 | B18: 04604780280 | C18: vp impianti s.r.l. | D18: manutenzione impianti elettrici ed affini anno 2023 | E18: 23-AFFIDAMENTO IN ECONOMIA - AFFIDAMENTO DIRETTO | F18: vp impianti s.r.l. | G18: vp impianti s.r.l. | H18: € 31,000.00 | I18: 2023-03-17 | J18: 2023-12-31 | K18: € 31,000.00
A19: Z333A6CBEE | B19: 04368160281 | C19: aemme impianti arl | D19: manutenzione programmata impianti termici e di condiz. anno 2023 | E19: 23-AFFIDAMENTO IN ECONOMIA - AFFIDAMENTO DIRETTO | F19: aemme impianti arl | G19: aemme impianti arl | H19: € 13,700.00 | I19: 2023-03-20 | J19: 2023-12-31 | K19: € 13,700.00
A20: Z813A6CC5D | B20: 04368160281 | C20: aemme impianti arl | D20: fornitura sanitari neparti detentivi | E20: 23-AFFIDAMENTO IN ECONOMIA - AFFIDAMENTO DIRETTO | F20: aemme impianti arl | G20: aemme impianti arl | H20: € 4,800.00 | I20: 2023-03-20 | J20: 2023-03-20 | K20: € 4,800.00
A21: Z9A3A6CD38 | B21: 04368160281 | C21: aemme impianti arl | D21: fornitura box doccia reparti detentivi | E21: 23-AFFIDAMENTO IN ECONOMIA - AFFIDAMENTO DIRETTO | F21: aemme impianti arl | G21: aemme impianti arl | H21: € 3,000.00 | I21: 2023-03-20 | J21: 2023-03-20 | K21: € 3,000.00
A22: Z7F3A6D1B5 | B22: 04368160281 | C22: aemme impianti arl | D22: fornitura bidet inox rep. Ordinario | E22: 23-AFFIDAMENTO IN ECONOMIA - AFFIDAMENTO DIRETTO | F22: aemme impianti arl | G22: aemme impianti arl | H22: € 9,900.00 | I22: 2023-03-20 | J22: 2023-03-20 | K22: € 9,900.00
A23: Z523A6D34E | B23: 03249320288 | C23: elettroclima snc | D23: servizio manutenzione parco automezzi anno 2023 | E23: 23-AFFIDAMENTO IN ECONOMIA - AFFIDAMENTO DIRETTO | F23: elettroclima snc | G23: elettroclima snc | H23: € 7,000.00 | I23: 2023-03-20 | J23: 2023-12-31 | K23: € 7,000.00
A24: ZCF3A6DB81 | B24: 04067260283 | C24: ratti car-pa snc | D24: servizio di derattizzazione anno 2023 | E24: 23-AFFIDAMENTO IN ECONOMIA - AFFIDAMENTO DIRETTO | F24: ratti car-pa snc | G24: ratti car-pa snc | H24: € 2,400.00 | I24: 2023-03-20 | J24: 2023-12-31 | K24: € 2,400.00
A25: Z9C3A6F7EB | B25: MTLNDR68S21G224H | C25: Miotello Andrea | D25: pulizia fosse biologiche anno 2023 | E25: 23-AFFIDAMENTO IN ECONOMIA - AFFIDAMENTO DIRETTO | F25: Miotello Andrea | G25: Miotello Andrea | H25: € 6,820.00 | I25: 2023-03-20 | J25: 2023-12-31 | K25: € 6,820.00
A26: Z833A72C02 | B26: 05403151003 | C26: trenitalia spa | D26: convenzione trenitalia | E26: 23-AFFIDAMENTO IN ECONOMIA - AFFIDAMENTO DIRETTO | F26: trenitalia spa | G26: trenitalia spa | H26: € 2,000.00 | I26: 2023-03-20 | J26: 2023-12-31 | K26: € 2,000.00
A27: ZB53A7368B | B27: 00415630284 | C27: rogi s.a.s. | D27: fornitura e montaggio cucinino camera detentiva | E27: 23-AFFIDAMENTO IN ECONOMIA - AFFIDAMENTO DIRETTO | F27: rogi s.a.s. | G27: rogi s.a.s. | H27: € 2,743.00 | I27: 2023-03-20 | J27: 2023-03-31 | K27: € 2,743.00
A28: ZCF3A7B13F | B28: 01473250213 | C28: sporthotel | D28: pernotto mezza pensione di corato | E28: 23-AFFIDAMENTO IN ECONOMIA - AFFIDAMENTO DIRETTO | F28: sporthotel | G28: sporthotel | H28: € 960.00 | I28: 2023-03-22 | J28: 2023-03-22 | K28: € 960.00
A29: ZE23A8FAE7 | B29: 09381751008 | C29: techvision sistemi multimediali | D29: fornitura telefoni ricond. e unità ata | E29: 23-AFFIDAMENTO IN ECONOMIA - AFFIDAMENTO DIRETTO | F29: techvision sistemi multimediali | G29: techvision sistemi multimediali | H29: € 588.00 | I29: 2023-03-28 | J29: 2023-04-10 | K29: € 588.00
A30: Z523A917BE | B30: 05069070158 | C30: kone spa | D30: servizio di conduzione e manutenzione n4 impianti elevatori | E30: 23-AFFIDAMENTO IN ECONOMIA - AFFIDAMENTO DIRETTO | F30: kone spa | G30: kone spa | H30: € 3,800.00 | I30: 2023-03-28 | J30: 2023-04-10 | K30: € 3,800.00
A31: ZEB3AA3CF6 | B31: 042537900283 | C31: savio srl | D31: materiale elettrico e ferramenta | E31: 23-AFFIDAMENTO IN ECONOMIA - AFFIDAMENTO DIRETTO | F31: savio srl | G31: savio srl | H31: € 1,049.84 | I31: 2023-04-03 | J31: 2023-04-03 | K31: € 1,049.84
A32: ZC03AAAAF3 | B32: 00722600285 | C32: baap srl | D32: manurtenzioni estintori anno 2023 | E32: 23-AFFIDAMENTO IN ECONOMIA - AFFIDAMENTO DIRETTO | F32: baap srl | G32: baap srl | H32: € 944.48 | I32: 2023-04-04 | J32: 2023-12-31 | K32: € 944.48
A33: Z343AACCCA | B33: 04604780280 | C33: vp impianti s.r.l. | D33: lavori elettrici vari nov.- dic. 2022 | E33: 23-AFFIDAMENTO IN ECONOMIA - AFFIDAMENTO DIRETTO | F33: vp impianti s.r.l. | G33: vp impianti s.r.l. | H33: € 3,575.24 | I33: 2023-04-04 | J33: 2023-04-04 | K33: € 3,575.24
A34: ZF93AACCF1 | B34: 04604780280 | C34: vp impianti s.r.l. | D34: lavori elettrici vari genn. 2023 | E34: 23-AFFIDAMENTO IN ECONOMIA - AFFIDAMENTO DIRETTO | F34: vp impianti s.r.l. | G34: vp impianti s.r.l. | H34: € 5,022.94 | I34: 2023-04-04 | J34: 2023-04-04 | K34: € 5,022.94
A35: Z183AACD16 | B35: 04604780280 | C35: vp impianti s.r.l. | D35: lavori elettrici sez. det. E lavand.fabbraio 2023 | E35: 23-AFFIDAMENTO IN ECONOMIA - AFFIDAMENTO DIRETTO | F35: vp impianti s.r.l. | G35: vp impianti s.r.l. | H35: € 4,369.33 | I35: 2023-04-04 | J35: 2023-04-04 | K35: € 4,369.33
A36: Z0E3B27063 | B36: STLMRA69L31G224E | C36: stella mauro | D36: riparazione trattorino pasquali | E36: 23-AFFIDAMENTO IN ECONOMIA - AFFIDAMENTO DIRETTO | F36: stella mauro | G36: stella mauro | H36: € 545.57 | I36: 2023-05-15 | J36: 2023-05-15 | K36: € 545.57
A37: Z223B29236 | B37: 04368160281 | C37: aemme impianti arl | D37: lavori idraulici vari nov-dic2023 | E37: 23-AFFIDAMENTO IN ECONOMIA - AFFIDAMENTO DIRETTO | F37: aemme impianti arl | G37: aemme impianti arl | H37: € 3,627.72 | I37: 2023-05-15 | J37: 2023-05-15 | K37: € 3,627.72
A38: Z213B293E7 | B38: 04604780280 | C38: vp impianti s.r.l. | D38: fornitura e posa ventilatori da parete pad. Icat e circond. Aree comuni | E38: 23-AFFIDAMENTO IN ECONOMIA - AFFIDAMENTO DIRETTO | F38: vp impianti s.r.l. | G38: vp impianti s.r.l. | H38: € 8,200.00 | I38: 2023-05-15 | J38: 2023-05-31 | K38: € 8,200.00
A39: ZE73B29453 | B39: 04604780280 | C39: vp impianti s.r.l. | D39: fornitura telecomandi programmati per tv detenuti | E39: 23-AFFIDAMENTO IN ECONOMIA - AFFIDAMENTO DIRETTO | F39: vp impianti s.r.l. | G39: vp impianti s.r.l. | H39: € 302.00 | I39: 2023-05-15 | J39: 2023-05-31 | K39: € 302.00
A40: ZC93B2F330 | B40: 03542250281 | C40: ferri auto srl | D40: sostituzione lampeggiante automezzo toyota yaris | E40: 23-AFFIDAMENTO IN ECONOMIA - AFFIDAMENTO DIRETTO | F40: ferri auto srl | G40: ferri auto srl | H40: € 385.00 | I40: 2023-05-16 | J40: 2023-05-16 | K40: € 385.00
A41: Z983B39677 | B41: 09381751008 | C41: techvision sistemi multimediali | D41: gettoniera per accettazione delle monete per il totem dei versamenti | E41: 23-AFFIDAMENTO IN ECONOMIA - AFFIDAMENTO DIRETTO | F41: techvision sistemi multimediali | G41: techvision sistemi multimediali | H41: € 800.00 | I41: 2023-05-18 | J41: 2023-05-31 | K41: € 800.00
A42: ZE83B39966 | B42: GRGGNN60E05G224P | C42: tecnomotors di gianni | D42: riparazione ape 50 | E42: 23-AFFIDAMENTO IN ECONOMIA - AFFIDAMENTO DIRETTO | F42: tecnomotors di gianni | G42: tecnomotors di gianni | H42: € 540.22 | I42: 2023-05-18 | J42: 2023-05-31 | K42: € 540.22
A43: ZA83B41A3D | B43: 05045970281 | C43: errepi grandimpianti srl | D43: fornitura attrezzature cucina agenti | E43: 23-AFFIDAMENTO IN ECONOMIA - AFFIDAMENTO DIRETTO | F43: errepi grandimpianti srl | G43: errepi grandimpianti srl | H43: € 498.00 | I43: 2023-05-22 | J43: 2023-05-31 | K43: € 498.00
A44: Z6B3B5C3FD | B44: 02500980301 | C44: MD SYSTEMS S.R.L. | D44: sistema video sorveglianza cucina icat | E44: 23-AFFIDAMENTO IN ECONOMIA - AFFIDAMENTO DIRETTO | F44: MD SYSTEMS S.R.L. | G44: MD SYSTEMS S.R.L. | H44: € 29,000.00 | I44: 2023-05-30 | J44: 2023-06-30 | K44: € 29,000.00
A45: Z2C3B5C69E | B45: 02500980301 | C45: MD SYSTEMS S.R.L. | D45: ntegrazione sistema video sorveglianza art.21 e postazione video pass. icat | E45: 23-AFFIDAMENTO IN ECONOMIA - AFFIDAMENTO DIRETTO | F45: MD SYSTEMS S.R.L. | G45: MD SYSTEMS S.R.L. | H45: € 30,312.50 | I45: 2023-05-30 | J45: 2023-06-30 | K45: € 30,312.50
A46: ZC63B5C8E8 | B46: 02500980301 | C46: MD SYSTEMS S.R.L. | D46: sistema video sorveglianza corridoio uffici matricola e colloqui | E46: 23-AFFIDAMENTO IN ECONOMIA - AFFIDAMENTO DIRETTO | F46: MD SYSTEMS S.R.L. | G46: MD SYSTEMS S.R.L. | H46: € 38,062.50 | I46: 2023-05-30 | J46: 2023-06-30 | K46: € 38,062.50
A47: Z533B5CC3A | B47: 02500980301 | C47: MD SYSTEMS S.R.L. | D47: sistema video sorveglianza caserma e area esterna | E47: 23-AFFIDAMENTO IN ECONOMIA - AFFIDAMENTO DIRETTO | F47: MD SYSTEMS S.R.L. | G47: MD SYSTEMS S.R.L. | H47: € 20,862.50 | I47: 2023-05-30 | J47: 2023-06-30 | K47: € 20,862.50
A48: Z5C3B5FCBC | B48: RCHGPP70H25H224T | C48: SECURSYSTEM di RICHICHI GIUSEPPE | D48: fornitura e posa serramenti con vetro camera basso emiss. atrio icat e finestroni vecchia direz e uff.int. | E48: 23-AFFIDAMENTO IN ECONOMIA - AFFIDAMENTO DIRETTO | F48: SECURSYSTEM di RICHICHI GIUSEPPE | G48: SECURSYSTEM di RICHICHI GIUSEPPE | H48: € 30,300.00 | I48: 2023-05-30 | J48: 2023-06-30 | K48: € 30,300.00
A49: ZE83B5FE31 | B49: RCHGPP70H25H224T | C49: SECURSYSTEM di RICHICHI GIUSEPPE | D49: fornitura e posa serramenti con vetro camera basso emissivo vecchia caserma p.t | E49: 23-AFFIDAMENTO IN ECONOMIA - AFFIDAMENTO DIRETTO | F49: SECURSYSTEM di RICHICHI GIUSEPPE | G49: SECURSYSTEM di RICHICHI GIUSEPPE | H49: € 26,900.00 | I49: 2023-05-30 | J49: 2023-06-30 | K49: € 26,900.00
A50: ZCA3B5FFE9 | B50: RCHGPP70H25H224T | C50: SECURSYSTEM di RICHICHI GIUSEPPE | D50: fornitura e posa serramenti con vetro camera basso emissivo uffici int. | E50: 23-AFFIDAMENTO IN ECONOMIA - AFFIDAMENTO DIRETTO | F50: SECURSYSTEM di RICHICHI GIUSEPPE | G50: SECURSYSTEM di RICHICHI GIUSEPPE | H50: € 30,000.00 | I50: 2023-05-30 | J50: 2023-06-30 | K50: € 30,000.00
A51: Z9C3B6013D | B51: RCHGPP70H25H224T | C51: SECURSYSTEM di RICHICHI GIUSEPPE | D51: fornitura e posa serramenti con vetro camera basso emissione vecchia direzione | E51: 23-AFFIDAMENTO IN ECONOMIA - AFFIDAMENTO DIRETTO | F51: SECURSYSTEM di RICHICHI GIUSEPPE | G51: SECURSYSTEM di RICHICHI GIUSEPPE | H51: € 37,455.00 | I51: 2023-05-30 | J51: 2023-06-30 | K51: € 37,455.00
A52: Z803B6142A | B52: RCHGPP70H25H224T | C52: SECURSYSTEM di RICHICHI GIUSEPPE | D52: ornitura portone ingresso art.21 con vetro camera temprato | E52: 23-AFFIDAMENTO IN ECONOMIA - AFFIDAMENTO DIRETTO | F52: SECURSYSTEM di RICHICHI GIUSEPPE | G52: SECURSYSTEM di RICHICHI GIUSEPPE | H52: € 22,100.00 | I52: 2023-05-31 | J52: 2023-06-30 | K52: € 22,100.00
A53: ZCD3B76B7E | B53: 02050930284 | C53: agrigarden snc | D53: materiale giardinaggio | E53: 23-AFFIDAMENTO IN ECONOMIA - AFFIDAMENTO DIRETTO | F53: agrigarden snc | G53: agrigarden snc | H53: € 259.84 | I53: 2023-06-07 | J53: 2023-06-07 | K53: € 259.84
A54: ZBF3BB49EA | B54: 00604930701 | C54: f.lli pavone | D54: materiale di pulizia e igiene detenuti | E54: 23-AFFIDAMENTO IN ECONOMIA - AFFIDAMENTO DIRETTO | F54: f.lli pavone | G54: f.lli pavone | H54: € 4,895.58 | I54: 2023-06-27 | J54: 2023-07-31 | K54: € 4,895.58
A55: Z913BB92D1 | B55: 042537900283 | C55: savio srl | D55: fornitura materiale vario ferramenta | E55: 23-AFFIDAMENTO IN ECONOMIA - AFFIDAMENTO DIRETTO | F55: savio srl | G55: savio srl | H55: € 581.60 | I55: 2023-06-28 | J55: 2023-06-28 | K55: € 581.60
A56: ZB53BBB021 | B56: 04368160281 | C56: aemme impianti arl | D56: climatizzazione sala colloqui | E56: 23-AFFIDAMENTO IN ECONOMIA - AFFIDAMENTO DIRETTO | F56: aemme impianti arl | G56: aemme impianti arl | H56: € 3,384.00 | I56: 2023-06-28 | J56: 28/074/2023 | K56: € 3,384.00
A57: Z953BBB24A | B57: 02252430687 | C57: officine marsilii srl | D57: fornitura serrature di sicurezza ad uso penitenziario | E57: 23-AFFIDAMENTO IN ECONOMIA - AFFIDAMENTO DIRETTO | F57: officine marsilii srl | G57: officine marsilii srl | H57: € 1,766.00 | I57: 2023-06-28 | J57: 28/074/2023 | K57: € 1,766.00
A58: Z8B3BD7979 | B58: CCCGCR58P07F132Q | C58: GIMAA di Ciccomascolo Giancarlo | D58: fornitura cancelleria e toner | E58: 23-AFFIDAMENTO IN ECONOMIA - AFFIDAMENTO DIRETTO | F58: GIMAA di Ciccomascolo Giancarlo | G58: GIMAA di Ciccomascolo Giancarlo | H58: € 881.95 | I58: 2023-07-10 | J58: 2023-07-10 | K58: € 881.95
A59: Z7C3C6CBD0 | B59: 05069070158 | C59: kone spa | D59: lavoro straordinario ripristino ascensore rep.ord. | E59: 04-PROCEDURA NEGOZIATA SENZA PREVIA PUBBLICAZIONE DEL BANDO | F59: kone spa | G59: kone spa | H59: € 25,000.00 | I59: 2023-09-12 | K59: € 25,000.00
A60: Z343C767E9 | B60: 05174780659 | C60: design italia srl | D60: fornitura palloni di calcio detenuti | E60: 23-AFFIDAMENTO IN ECONOMIA - AFFIDAMENTO DIRETTO | F60: design italia srl | G60: design italia srl | H60: € 450.00 | I60: 2023-09-14 | J60: 2023-09-21 | K60: € 450.00
A61: Z393C7E3D1 | B61: MRSMJN75L65Z100I | C61: merjona mirashi | D61: servizio interprete traduttrice | E61: 23-AFFIDAMENTO IN ECONOMIA - AFFIDAMENTO DIRETTO | F61: merjona mirashi | G61: merjona mirashi | H61: 8/1,39 | I61: 2023-09-18 | K61: 8/1,39
A62: Z4D3C7E549 | B62: 04604780280 | C62: vp impianti s.r.l. | D62: lavori elettrici Marzo Agosto | E62: 23-AFFIDAMENTO IN ECONOMIA - AFFIDAMENTO DIRETTO | F62: vp impianti s.r.l. | G62: vp impianti s.r.l. | H62: € 4,960.00 | I62: 2023-09-18 | J62: 2023-09-18 | K62: € 4,960.00
A63: Z393C7E5C7 | B63: 04604780280 | C63: vp impianti s.r.l. | D63: lavori elettrici danneggiamento detenuti marzo-agosto | E63: 23-AFFIDAMENTO IN ECONOMIA - AFFIDAMENTO DIRETTO | F63: vp impianti s.r.l. | G63: vp impianti s.r.l. | H63: € 4,131.00 | I63: 2023-09-18 | J63: 2023-09-18 | K63: € 4,131.00
A64: Z0A3C7EFA9 | B64: 02252430687 | C64: officine marsilii srl | D64: fornitura chiavi e serrature uso penitenziario | E64: 23-AFFIDAMENTO IN ECONOMIA - AFFIDAMENTO DIRETTO | F64: officine marsilii srl | G64: officine marsilii srl | H64: € 2,200.00 | I64: 2023-09-18 | J64: 2023-10-18 | K64: € 2,200.00
A65: ZB23C89685 | B65: 05450130280 | C65: turetta snc | D65: intervento multifunzione | E65: 23-AFFIDAMENTO IN ECONOMIA - AFFIDAMENTO DIRETTO | F65: turetta snc | G65: turetta snc | H65: € 105.00 | I65: 2023-09-21 | J65: 2023-09-21 | K65: € 105.00
A66: ZD03C8E824 | B66: 042537900283 | C66: savio srl | D66: materiale vario | E66: 23-AFFIDAMENTO IN ECONOMIA - AFFIDAMENTO DIRETTO | F66: savio srl | G66: savio srl | H66: € 953.28 | I66: 2023-09-22 | J66: 2023-09-22 | K66: € 953.28
A67: Z613C8EC8A | B67: 00667690044 | C67: la casalinda srl | D67: fornitura tagliacapelli professionale e mantelle taglio | E67: 23-AFFIDAMENTO IN ECONOMIA - AFFIDAMENTO DIRETTO | F67: la casalinda srl | G67: la casalinda srl | H67: € 287.20 | I67: 2023-09-25 | J67: 2022-09-29 | K67: € 287.20
A68: Z313C92923 | B68: 09381751008 | C68: techvision sistemi multimediali | D68: fornitura telefoni e consuntivo assistenza per telefonia detenuti | E68: 23-AFFIDAMENTO IN ECONOMIA - AFFIDAMENTO DIRETTO | F68: techvision sistemi multimediali | G68: techvision sistemi multimediali | H68: € 1,490.00 | I68: 2023-09-25 | J68: 2023-10-04 | K68: € 1,490.00
A69: Z5F3C92EAC | B69: 02252430687 | C69: officine marsilii srl | D69: lavori per installazione rete antigetto | E69: 23-AFFIDAMENTO IN ECONOMIA - AFFIDAMENTO DIRETTO | F69: officine marsilii srl | G69: officine marsilii srl | H69: € 37,400.00 | I69: 2023-09-25 | J69: 2023-10-25 | K69: € 37,400.00
A70: Z653C972F6 | B70: 04604780280 | C70: vp impianti s.r.l. | D70: fornitura e posa lampade basso consumo rep. det. e uffici interni | E70: 23-AFFIDAMENTO IN ECONOMIA - AFFIDAMENTO DIRETTO | F70: vp impianti s.r.l. | G70: vp impianti s.r.l. | H70: € 33,480.00 | I70: 2023-09-26 | K70: € 33,480.00
A71: Z5F3C9C89B | B71: 00717910285 | C71: delta ricambi srl | D71: fornitura liquido adi blue per automezzi | E71: 23-AFFIDAMENTO IN ECONOMIA - AFFIDAMENTO DIRETTO | F71: delta ricambi srl | G71: delta ricambi srl | H71: € 195.00 | I71: 2023-09-27 | J71: 2023-10-10 | K71: € 195.00
A72: Z023CA7A7F | B72: 00604930701 | C72: f.lli pavone | D72: fornitura materiale di pulizia e igienico per detenuti | E72: 23-AFFIDAMENTO IN ECONOMIA - AFFIDAMENTO DIRETTO | F72: f.lli pavone | G72: f.lli pavone | H72: € 13,565.29 | I72: 2023-09-29 | J72: 2023-10-15 | K72: € 13,565.29
A73: Z403CAA89F | B73: 09381751008 | C73: techvision sistemi multimediali | D73: linea telefonica detenuti | E73: 23-AFFIDAMENTO IN ECONOMIA - AFFIDAMENTO DIRETTO | F73: techvision sistemi multimediali | G73: techvision sistemi multimediali | H73: € 6,680.00 | I73: 2023-10-02 | J73: 2023-10-02 | K73: € 6,680.00
A74: ZDD3CB98FE | B74: 00415630284 | C74: rogi s.a.s. | D74: interventi su lavatrici per detenuti | E74: 23-AFFIDAMENTO IN ECONOMIA - AFFIDAMENTO DIRETTO | F74: rogi s.a.s. | G74: rogi s.a.s. | H74: € 555.71 | I74: 2023-10-05 | J74: 2023-10-05 | K74: € 555.71
A75: Z583CC7FD5 | B75: 80037180280 | C75: irecoop veneto | D75: corsi di formazione professionale | E75: 23-AFFIDAMENTO IN ECONOMIA - AFFIDAMENTO DIRETTO | F75: irecoop veneto | G75: irecoop veneto | H75: € 29,100.00 | I75: 2023-10-10 | J75: 2023-12-31 | K75: € 29,100.00
A76: Z0B3CE3AD7 | B76: 01864040306 | C76: eurotime snc | D76: fornitura badge | E76: 23-AFFIDAMENTO IN ECONOMIA - AFFIDAMENTO DIRETTO | F76: eurotime snc | G76: eurotime snc | H76: € 185.00 | I76: 2023-10-17 | J76: 2023-10-20 | K76: € 185.00
A77: ZF53CE8E80 | B77: 09816660154 | C77: manutan italia spa | D77: armadio metallico | E77: 23-AFFIDAMENTO IN ECONOMIA - AFFIDAMENTO DIRETTO | F77: manutan italia spa | G77: manutan italia spa | H77: € 229.00 | I77: 2023-10-18 | J77: 2023-10-24 | K77: € 229.00
A78: ZE73CFF96C | B78: 01932130790 | C78: camillo sirianni sas | D78: fornitura sedie e banchi scolastici detenuti | E78: 04-PROCEDURA NEGOZIATA SENZA PREVIA PUBBLICAZIONE DEL BANDO | F78: camillo sirianni sas | G78: camillo sirianni sas | H78: € 1,744.00 | I78: 2023-10-25 | J78: 2023-11-10 | K78: € 1,744.00
A79: ZC23D03FD9 | B79: 04368160281 | C79: aemme impianti arl | D79: lavori termoidraulici per danneggiamenti detenuti aprile agosto | E79: 23-AFFIDAMENTO IN ECONOMIA - AFFIDAMENTO DIRETTO | F79: aemme impianti arl | G79: aemme impianti arl | H79: € 2,171.72 | I79: 2023-09-26 | J79: 2023-09-26 | K79: € 2,171.72
A80: Z533D04053 | B80: 04368160281 | C80: aemme impianti arl | D80: lavori termoidraulici vari aprile -agosto | E80: 23-AFFIDAMENTO IN ECONOMIA - AFFIDAMENTO DIRETTO | F80: aemme impianti arl | G80: aemme impianti arl | H80: € 1,244.36 | I80: 2023-09-26 | J80: 2023-09-26 | K80: € 1,244.36
A81: ZEF3D04131 | B81: RCHGPP70H25H224T | C81: SECURSYSTEM di RICHICHI GIUSEPPE | D81: sistemazione cerniere portone e sistemazione cassonetto | E81: 23-AFFIDAMENTO IN ECONOMIA - AFFIDAMENTO DIRETTO | F81: SECURSYSTEM di RICHICHI GIUSEPPE | G81: SECURSYSTEM di RICHICHI GIUSEPPE | H81: € 250.00 | I81: 2023-09-26 | J81: 2023-09-26 | K81: € 250.00
A82: Z733D04216 | B82: SCGMSM74C18H501B | C82: mario simone scognamiglio | D82: servizio di sorveglianza fisica di radioprotezione macchine controllo bagagli | E82: 23-AFFIDAMENTO IN ECONOMIA - AFFIDAMENTO DIRETTO | F82: mario simone scognamiglio | G82: mario simone scognamiglio | H82: € 1,120.00 | I82: 2023-09-26 | J82: 2023-09-26 | K82: € 1,120.00
A83: ZC93D0931D | B83: 05045970281 | C83: errepi grandimpianti srl | D83: fornitura forno cucina detenuti | E83: 23-AFFIDAMENTO IN ECONOMIA - AFFIDAMENTO DIRETTO | F83: errepi grandimpianti srl | G83: errepi grandimpianti srl | H83: € 12,967.21 | I83: 2023-10-27 | J83: 2023-11-27 | K83: € 12,967.21
A84: Z9F3D0A244 | B84: 09381751008 | C84: techvision sistemi multimediali | D84: fornitora schede telefoniche detenuti | E84: 23-AFFIDAMENTO IN ECONOMIA - AFFIDAMENTO DIRETTO | F84: techvision sistemi multimediali | G84: techvision sistemi multimediali | H84: € 200.00 | I84: 2023-10-27 | J84: 2023-11-03 | K84: € 200.00
A85: Z1F3D0B2C0 | B85: 05174780659 | C85: design italia srl | D85: fornitura attrezzature sportive per detenuti | E85: 23-AFFIDAMENTO IN ECONOMIA - AFFIDAMENTO DIRETTO | F85: design italia srl | G85: design italia srl | H85: € 4,466.75 | I85: 2023-10-27 | J85: 2023-11-15 | K85: € 4,466.75
A86: Z563D0CD57 | B86: 03597610264 | C86: castelarredo | D86: fornitura sedie e tavoli per detenuti | E86: 23-AFFIDAMENTO IN ECONOMIA - AFFIDAMENTO DIRETTO | F86: castelarredo | G86: castelarredo | H86: € 1,050.00 | I86: 2023-10-27 | J86: 2023-11-15 | K86: € 1,050.00
A87: Z643D170EE | B87: 92166520285 | C87: granello di senape | D87: convenzione progetto nessuno sia lasciato solo | E87: 23-AFFIDAMENTO IN ECONOMIA - AFFIDAMENTO DIRETTO | F87: granello di senape | G87: granello di senape | H87: € 5,000.00 | I87: 2023-10-31 | J87: 2023-12-31 | K87: € 5,000.00
A88: Z0B3D17174 | B88: 00349050286 | C88: ulss 6 | D88: rugby in carcere | E88: 23-AFFIDAMENTO IN ECONOMIA - AFFIDAMENTO DIRETTO | F88: ulss 6 | G88: ulss 6 | H88: € 3,600.00 | I88: 2023-10-31 | J88: 2023-12-31 | K88: € 3,600.00
A89: ZF03D17263 | B89: 00349050286 | C89: ulss 6 | D89: progetto terapia assistita con il cane | E89: 23-AFFIDAMENTO IN ECONOMIA - AFFIDAMENTO DIRETTO | F89: ulss 6 | G89: ulss 6 | H89: € 2,920.00 | I89: 2023-10-31 | J89: 2023-12-31 | K89: € 2,920.00
A90: ZBA3D1728A | B90: 00349050286 | C90: ulss 6 | D90: progetto telemedicina | E90: 23-AFFIDAMENTO IN ECONOMIA - AFFIDAMENTO DIRETTO | F90: ulss 6 | G90: ulss 6 | H90: € 4,000.00 | I90: 2023-10-31 | J90: 2023-12-31 | K90: € 4,000.00
A91: Z363D36B33 | C91: foto color studio | D91: servizio fototessere agenti pol.pen | E91: 23-AFFIDAMENTO IN ECONOMIA - AFFIDAMENTO DIRETTO | F91: foto color studio | G91: foto color studio | H91: € 100.00 | I91: 2023-11-10 | J91: 2023-11-10 | K91: € 100.00
A92: Z293D38DEF | B92: CCCGCR58P07F132Q | C92: GIMAA di Ciccomascolo Giancarlo | D92: fornitura materiale didattico per corsi scolastici detenuti | E92: 23-AFFIDAMENTO IN ECONOMIA - AFFIDAMENTO DIRETTO | F92: GIMAA di Ciccomascolo Giancarlo | G92: GIMAA di Ciccomascolo Giancarlo | H92: € 2,417.70 | I92: 2023-11-10 | J92: 2023-11-20 | K92: € 2,417.70
A93: ZD83D5029E | B93: 00757000286 | C93: al pentolone srl | D93: fornitura frigoriferi tavolo c/cella | E93: 23-AFFIDAMENTO IN ECONOMIA - AFFIDAMENTO DIRETTO | F93: al pentolone srl | G93: al pentolone srl | H93: € 339.00 | I93: 2023-11-16 | J93: 2023-11-30 | K93: € 339.00
A94: Z733D62707 | B94: 02407580246 | C94: marostica giuseppe rottami spa | D94: servizio ritiro e smaltimento materiale fuori uso | E94: 23-AFFIDAMENTO IN ECONOMIA - AFFIDAMENTO DIRETTO | F94: marostica giuseppe rottami spa | G94: marostica giuseppe rottami spa | H94: € 2,459.00 | I94: 2023-11-21 | J94: 2023-11-30 | K94: € 2,459.00
A95: Z1B3D7948E | B95: 00415630284 | C95: rogi s.a.s. | D95: fornitura lavatrice supercentrifugante elettrica 18kg per lavanderia detenuti | E95: 23-AFFIDAMENTO IN ECONOMIA - AFFIDAMENTO DIRETTO | F95: rogi s.a.s. | G95: rogi s.a.s. | H95: € 7,900.00 | I95: 2023-11-27 | J95: 2023-12-15 | K95: € 7,900.00
A96: ZD63D8107E | C96: zicchina | D96: visite mediche personale e detenuti anno 2023 | E96: 23-AFFIDAMENTO IN ECONOMIA - AFFIDAMENTO DIRETTO | F96: zicchina | G96: zicchina | H96: € 4,760.56 | I96: 2023-11-29 | J96: 2023-11-29 | K96: € 4,760.56
A97: Z253D811CF | B97: RCHGPP70H25H224T | C97: SECURSYSTEM di RICHICHI GIUSEPPE | D97: lavoro completamento area passeggi | E97: 23-AFFIDAMENTO IN ECONOMIA - AFFIDAMENTO DIRETTO | F97: SECURSYSTEM di RICHICHI GIUSEPPE | G97: SECURSYSTEM di RICHICHI GIUSEPPE | H97: € 17,200.00 | I97: 2023-11-29 | J97: 2023-11-29 | K97: € 17,200.00
A98: ZE73D8AB16 | B98: 02918310356 | C98: 360 welfare srl | D98: fornitura buoni pasto elettronici | E98: 23-AFFIDAMENTO IN ECONOMIA - AFFIDAMENTO DIRETTO | F98: 360 welfare srl | G98: 360 welfare srl | H98: € 1,279.25 | I98: 2023-12-06 | J98: 2023-12-15 | K98: € 1,279.25
A99: Z253DA9ECD | B99: 04785360282 | C99: carrozzeria mantegna | D99: riparazione carrozzeria jepp | E99: 23-AFFIDAMENTO IN ECONOMIA - AFFIDAMENTO DIRETTO | F99: carrozzeria mantegna | G99: carrozzeria mantegna | H99: € 1,703.48 | I99: 2023-12-07 | J99: 2023-12-07 | K99: € 1,703.48
A100: Z343DBEE3E | B100: 042537900283 | C100: savio srl | D100: fornitura materiale vario | E100: 23-AFFIDAMENTO IN ECONOMIA - AFFIDAMENTO DIRETTO | F100: savio srl | G100: savio srl | H100: € 625.82 | I100: 2023-12-13 | J100: 2023-12-13 | K100: € 625.82
A101: Z523DCA7CB | B101: 04604780280 | C101: vp impianti s.r.l. | D101: lavori elettrici sett. 2023 | E101: 23-AFFIDAMENTO IN ECONOMIA - AFFIDAMENTO DIRETTO | F101: vp impianti s.r.l. | G101: vp impianti s.r.l. | H101: € 762.80 | I101: 2023-12-15 | J101: 2023-12-15 | K101: € 762.80

Sheet CR Padova
A1: Dipartimento Amministrazione Penitenziaria - ISTITUTO CASA RECLUSIONE PADOVA - C.F. 80024520282
A2: Contratti di forniture, beni e servizi Anno 2023 Dati aggiornati al 31 dicembre 2023
A3: CIG | B3: Codice Fiscale | C3: Denominazione | D3: Oggetto | E3: Procedura di scelta del contraente | F3: Elenco operatori invitati a presentare offerte | G3: Aggiudicatario | H3: Importo di aggiudicazione | I3: Data Inizio | J3: Data Ultimazione | K3: Somme liquidate (al netto dell'IVA)
A4: 712143386A | B4: 80024540280 | C4: CR PADOVA | D4: ADESIONE CONVENZIONE CONSIP SERVIZIO INTEGRATO ENERGIA 3 | E4: 26-AFFIDAMENTO DIRETTO IN ADESIONE AD ACCORDO QUADRO/CONVENZIONE | F4: SIRAM SPA | G4: SIRAM SPA | H4: € 4,134,673.25 | I4: 2019-12-03 | J4: 2023-07-31 | K4: € 1,243,660.77
A5: Z0C27FBEDA | B5: 80024540280 | C5: CR PADOVA | D5: NOLEGGIO FOTOCOPIATORE MATRICOLA | E5: 23-AFFIDAMENTO IN ECONOMIA - AFFIDAMENTO DIRETTO | F5: KYOCERA DOCUMENT SOLUTIONS ITALIA S.P.A. | G5: KYOCERA DOCUMENT SOLUTIONS ITALIA S.P.A. | H5: € 2,406.20 | I5: 2019-04-10 | J5: 2024-06-01 | K5: € 120.31
A6: Z7629C1B5C | B6: 80024540280 | C6: CR PADOVA | D6: SERVIZIO DISTRIBUTORI AUTOMATICI | E6: 01-PROCEDURA APERTA | F6: GRUPPO ILLIRIA S.P.A. | G6: GRUPPO ILLIRIA S.P.A. | H6: € 15,000.00 | I6: 2019-09-13 | J6: 2023-03-20 | K6: 0
A7: ZE02A7D1C5 | B7: 80024540280 | C7: CR PADOVA | D7: NOLEGGIO FOTOCOPIATORI RILASCIO COLLOQUI E SORVEGLIANZA | E7: 23-AFFIDAMENTO IN ECONOMIA - AFFIDAMENTO DIRETTO | F7: KYOCERA DOCUMENT SOLUTIONS ITALIA S.P.A. | G7: KYOCERA DOCUMENT SOLUTIONS ITALIA S.P.A. | H7: € 4,812.40 | I7: 2019-11-05 | J7: 2024-12-31 | K7: € 240.62
A8: Z7224F470F | B8: 80024540280 | C8: CR PADOVA | D8: NOLEGGIO FOTOCOPIATORI NTP RAGIONERIA SEGRETERIA | E8: 23-AFFIDAMENTO IN ECONOMIA - AFFIDAMENTO DIRETTO | F8: KYOCERA DOCUMENT SOLUTIONS ITALIA S.P.A. | G8: KYOCERA DOCUMENT SOLUTIONS ITALIA S.P.A. | H8: € 7,939.04 | I8: 2018-10-05 | J8: 2023-10-05 | K8: € 1,220.13
A9: ZC331E8D4F | B9: 80024540280 | C9: CR PADOVA | D9: SERVIZIO SPEDIZIONI E RITIRO PACCHI POSTALI | E9: 23 - AFFIDAMENTO DIRETTO | F9: POSTE ITALIANE S.P.A | G9: POSTE ITALIANE S.P.A | H9: € 1,000.00 | I9: 2021-05-27 | J9: 2023-06-30 | K9: € 615.06
A10: 89622667DD | B10: 80024540280 | C10: CR PADOVA | D10: Lavori di ampliamento del deposito pasticceria - Progetto Cassa Ammende 2019/009 | E10: 04-PROCEDURA NEGOZIATA SENZA PREVIA PUBBLICAZIONE DEL BANDO | F10: EDILIMPIANTI | G10: EDILIMPIANTI | H10: € 367,077.25 | I10: 2021-10-29 | J10: 2022-06-30 | K10: € 217,512.84
A11: 901333140A | B11: 80024540280 | C11: CR PADOVA | D11: ADESIONE ACCORDO QUADRO FUEL CARD 2 | E11: 23 - AFFIDAMENTO DIRETTO | F11: KUWAIT PETROLEUM ITALIA S.P.A. | G11: KUWAIT PETROLEUM ITALIA S.P.A. | H11: € 180,000.00 | I11: 2021-12-07 | J11: 2024-12-31 | K11: € 58,828.61
A12: ZF034B2D1D | B12: 80024540280 | C12: CR PADOVA | D12: MANUTENZIONE ORDINARIA IMPIANTI ELETTRICI 2022/2023 | E12: 23 - AFFIDAMENTO DIRETTO | F12: IMPIANTI ELETTRICI ACCIARITO ROBERTO | G12: IMPIANTI ELETTRICI ACCIARITO ROBERTO | H12: € 39,000.00 | I12: 2022-01-03 | J12: 2022-12-31 | K12: € 420.00
A13: 9109297DAD | B13: 80024540280 | C13: CR PADOVA | D13: SERVIZIO DI MANUTENZIONE E RIPARAZIONE AUTOMEZZI | E13: 04-PROCEDURA NEGOZIATA SENZA PREVIA PUBBLICAZIONE DEL BANDO | F13: RIZZATO ANTONIO S.n.c. | G13: RIZZATO ANTONIO S.n.c. | H13: € 150,000.00 | I13: 2022-02-18 | J13: 2025-05-02 | K13: =14305.11+20775.81 -> € 35,080.92
A14: 9127567292 | B14: 80024540280 | C14: CR PADOVA | D14: ADESIONE CONVENZIONE TELEFONIA FISSA | E14: 23 - AFFIDAMENTO DIRETTO | F14: FASTWEB | G14: FASTWEB | H14: € 160,000.00 | I14: 2022-03-10 | J14: 2025-03-09 | K14: € 39,193.29
A15: ZE63622F09 | B15: 80024540280 | C15: CR PADOVA | D15: SERVIZIO DI LAVANDERIA | E15: 23 - AFFIDAMENTO DIRETTO | F15: COOPERATIVA SOCIALE EUREKA | G15: COOPERATIVA SOCIALE EUREKA | H15: € 39,999.00 | I15: 2022-04-26 | J15: 2023-05-31 | K15: € 4,661.74
A16: ZEF362336C | B16: 80024540280 | C16: CR PADOVA | D16: CONVENZIONE GAS | E16: 26-AFFIDAMENTO DIRETTO IN ADESIONE AD ACCORDO QUADRO/CONVENZIONE | F16: DOLOMITI ENERGIA SPA | G16: DOLOMITI ENERGIA SPA | H16: € 39,999.00 | I16: 2022-04-26 | J16: 2024-06-30 | K16: € 29,340.02
A17: ZD8362360C | B17: 80024540280 | C17: CR PADOVA | D17: SERVIZIO DI VERIFICA PERIODICA E MANUTENZIONE APPARATI ANTINCENDIO (nr.02 verifiche semestrali) | E17: 23 - AFFIDAMENTO DIRETTO | F17: O.P.I. | G17: O.P.I. | H17: € 6,561.00 | I17: 2022-04-26 | J17: 2023-03-31 | K17: € 6,561.00
A18: ZAA3636D34 | B18: 80024540280 | C18: CR PADOVA | D18: SERVIZIO ESPURGO POZZI NERI | E18: 23 - AFFIDAMENTO DIRETTO | F18: CARRARESPURGHI SRL | G18: CARRARESPURGHI SRL | H18: € 39,999.00 | I18: 2022-05-02 | J18: 2023-05-31 | K18: € 8,132.30
A19: Z9236D67B8 | B19: 80024540280 | C19: CR PADOVA | D19: Fornitura e manutenzione per 5 anni di un carrello elevatore Lavorazioni Penitenziarie | E19: 23 - AFFIDAMENTO DIRETTO | F19: CAMI 2 | G19: CAMI 2 | H19: € 23,930.00 | I19: 2022-06-16 | J19: 2022-09-30 | K19: € 23,930.00
A20: 9293488CE6 | B20: 80024540280 | C20: CR PADOVA | D20: Fornitura e manutenzione per 5 anni di tre carrelli elevatori Lavorazioni Penitenziarie | E20: 23 - AFFIDAMENTO DIRETTO | F20: CAMI 2 | G20: CAMI 2 | H20: € 79,790.00 | I20: 2022-06-24 | J20: 2022-09-30 | K20: € 79,790.00
A21: ZDF36EF5F4 | B21: 80024540280 | C21: CR PADOVA | D21: Cella frigo per pasticceria lavorazioni penitenziarie | E21: 23 - AFFIDAMENTO DIRETTO | F21: VAROTTO SRL | G21: VAROTTO SRL | H21: € 31,000.00 | I21: 2022-06-24 | J21: 2022-09-30 | K21: € 31,000.00
A22: 9316298451 | B22: 80024540280 | C22: CR PADOVA | D22: LAVORI DI COMPLETAMENTO VALORIZZAZIONE AREA VERDE - PROGETTO CASSA AMMENDE N. 2020/02 | E22: 23 - AFFIDAMENTO DIRETTO | F22: MEZZALIRA MAURIZIO & C. S.N.C. | G22: MEZZALIRA MAURIZIO & C. S.N.C. | H22: € 118,700.00 | I22: 2022-07-08 | J22: 2022-09-30 | K22: € 118,700.00
A23: Z9F3730992 | B23: 80024540280 | C23: CR PADOVA | D23: Rifacimento sistemi informatici per la gestione degli ingressi portineria e block-house | E23: 23 - AFFIDAMENTO DIRETTO | F23: ACCIARITO ROBERTO | G23: ACCIARITO ROBERTO | H23: € 7,643.00 | I23: 2022-07-18 | J23: 2022-09-30 | K23: 0
A24: ZEC380104F | B24: 80024540280 | C24: CR PADOVA | D24: Impianti di climatizzazione L saletta Piano Primo call center lavorazioni penitenziarie | E24: 23 - AFFIDAMENTO DIRETTO | F24: MIRANO IMPIANTI | G24: MIRANO IMPIANTI | H24: € 33,800.00 | I24: 2022-10-04 | J24: 2022-12-31 | K24: € 33,800.00
A25: Z50381A947 | B25: 80024540280 | C25: CR PADOVA | D25: POMPA DISOTTURANTE | E25: 23 - AFFIDAMENTO DIRETTO | F25: LONGHIN S.R.L. | G25: LONGHIN S.R.L. | H25: € 270.00 | I25: 2022-10-11 | J25: 2022-12-31 | K25: € 270.00
A26: Z8B3883036 | B26: 80024540280 | C26: CR PADOVA | D26: Impianti di climatizzazione call center lavorazioni penitenziarie | E26: 23 - AFFIDAMENTO DIRETTO | F26: MIRANO IMPIANTI | G26: MIRANO IMPIANTI | H26: € 34,000.00 | I26: 2022-11-09 | J26: 2022-12-31 | K26: € 34,000.00
A27: ZAB38896F6 | B27: 80024540280 | C27: CR PADOVA | D27: Fornitura per le attività del corso di giardinaggio detenuti | E27: 23 - AFFIDAMENTO DIRETTO | F27: COOP SOC GIOTTO | G27: COOP SOC GIOTTO | H27: € 385.00 | I27: 2022-11-10 | J27: 2022-12-31 | K27: € 385.00
A28: Z253891C77 | B28: 80024540280 | C28: CR PADOVA | D28: Box contenitore cellulari | E28: 23 - AFFIDAMENTO DIRETTO | F28: CIM | G28: CIM | H28: € 6,250.00 | I28: 2022-11-14 | J28: 2022-12-31 | K28: € 6,250.00
A29: ZD238DFF1C | B29: 80024540280 | C29: CR PADOVA | D29: fornitura di n. 7 telefoni per detenuti | E29: 23 - AFFIDAMENTO DIRETTO | F29: TECHVISION SISTEMI MULTIMEDIALI | G29: TECHVISION SISTEMI MULTIMEDIALI | H29: € 693.00 | I29: 2022-12-01 | J29: 2022-12-31 | K29: € 693.00
A30: ZC838F9931 | B30: 80024540280 | C30: CR PADOVA | D30: Fornitura materiale idraulico per nuovi impianti termici in 20 camere di pernottamento | E30: 23 - AFFIDAMENTO DIRETTO | F30: SIRAM SPA | G30: SIRAM SPA | H30: € 4,200.00 | I30: 2022-12-07 | J30: 2022-12-31 | K30: € 4,200.00
A31: Z7439163F6 | B31: 80024540280 | C31: CR PADOVA | D31: Attrezzature per mensa agenti | E31: 23 - AFFIDAMENTO DIRETTO | F31: ASTECREX SRL | G31: ASTECREX SRL | H31: € 8,634.00 | I31: 2022-12-14 | J31: 2022-12-31 | K31: € 8,634.00
A32: Z283928649 | B32: 80024540280 | C32: CR PADOVA | D32: FORNITURA TENDE A BANDE VERTICALI SALA FORMAZIONE PIANO TERRA | E32: 23 - AFFIDAMENTO DIRETTO | F32: NEXT OFFICE SRL | G32: NEXT OFFICE SRL | H32: € 2,350.00 | I32: 2022-12-16 | J32: 2023-03-31 | K32: € 2,350.00
A33: Z1A392866F | B33: 80024540280 | C33: CR PADOVA | D33: FORNITURA TENDE A BANDE VERTICALI SALA FORMAZIONE 1 PIANO | E33: 23 - AFFIDAMENTO DIRETTO | F33: NEXT OFFICE SRL | G33: NEXT OFFICE SRL | H33: € 1,730.00 | I33: 2022-12-16 | J33: 2023-03-31 | K33: € 1,730.00
A34: ZAA392B030 | B34: 80024540280 | C34: CR PADOVA | D34: Sacconi a pannelli per il depuratore | E34: 23 - AFFIDAMENTO DIRETTO | F34: SER.ECO DEPURAZIONE ACQUE | G34: SER.ECO DEPURAZIONE ACQUE | H34: € 500.00 | I34: 2022-12-19 | J34: 2022-12-31 | K34: € 500.00
A35: Z06392B30C | B35: 80024540280 | C35: CR PADOVA | D35: Appendiabiti per laboratorio enogastronomico | E35: 23 - AFFIDAMENTO DIRETTO | F35: KIT UFFICIO | G35: KIT UFFICIO | H35: € 294.00 | I35: 2022-12-19 | J35: 2022-12-31 | K35: € 294.00
A36: Z11392C3BD | B36: 80024540280 | C36: CR PADOVA | D36: FORNITURA CAMICI PER DETENUTI | E36: 23 - AFFIDAMENTO DIRETTO | F36: Gruppo Carlo Confezioni S.r.l. | G36: Gruppo Carlo Confezioni S.r.l. | H36: € 1,533.00 | I36: 2022-12-19 | J36: 2022-12-31 | K36: € 1,533.00
A37: Z2639412D6 | B37: 80024540280 | C37: CR PADOVA | D37: Fornitura attrezzature informatiche per attività scolastiche. | E37: 23 - AFFIDAMENTO DIRETTO | F37: TECNOS | G37: TECNOS | H37: € 4,159.00 | I37: 2002-12-21 | J37: 2022-12-31 | K37: € 4,159.00
A38: ZC73943568 | B38: 80024540280 | C38: CR PADOVA | D38: FORNITURA STOVIGLIE PLASTICA | E38: 23 - AFFIDAMENTO DIRETTO | F38: DUSSMANN | G38: DUSSMANN | H38: € 4,900.00 | I38: 2022-12-21 | J38: 2022-12-31 | K38: € 4,900.00
A39: Z48394C4A4 | B39: 80024540280 | C39: CR PADOVA | D39: Fornitura di n. 600 risme di carta a4 per attività scolastiche detenuti | E39: 23 - AFFIDAMENTO DIRETTO | F39: KIT UFFICIO | G39: KIT UFFICIO | H39: € 2,310.00 | I39: 2022-12-21 | J39: 2022-12-31 | K39: € 2,310.00
A40: Z62395152F | B40: 80024540280 | C40: CR PADOVA | D40: Attrezzature ferramenta | E40: 23 - AFFIDAMENTO DIRETTO | F40: LONGHIN S.R.L. | G40: LONGHIN S.R.L. | H40: € 2,933.84 | I40: 2022-12-21 | J40: 2022-12-31 | K40: € 2,933.84
A41: ZE638E152B | B41: 80024540280 | C41: CR PADOVA | D41: arredi per attività scolastiche | E41: 23 - AFFIDAMENTO DIRETTO | F41: CATANESE FORNITURE E MOBILI DI CATANESE PIETRO | G41: CATANESE FORNITURE E MOBILI DI CATANESE PIETRO | H41: € 3,035.00 | I41: 2022-12-21 | J41: 2022-12-31 | K41: € 3,035.00
A42: 881666501BF | B42: 80024540280 | C42: CR PADOVA | D42: AFFIDAMENTO LAVORI INTEGRATIVI VALORIZZAZIONE AREA VERDE- PROGETTO CASSA AMMENDE 2020/02 | E42: 23 - AFFIDAMENTO DIRETTO | F42: MEZZALIRA MAURIZIO & C. SNC | G42: MEZZALIRA MAURIZIO & C. SNC | H42: € 23,287.80 | I42: 2022-12-21 | J42: 2022-12-31 | K42: € 23,287.80
A43: Z21396AD30 | B43: 80024540280 | C43: CR PADOVA | D43: Verifica impianti di sollevamento | E43: AFFID.TO DIRETTO | F43: ARPAV | G43: ARPAV | H43: € 1,447.26 | I43: 2023-01-09 | J43: 2023-12-31 | K43: € 1,447.26
A44: ZC7396BE7A | B44: 80024540280 | C44: CR PADOVA | D44: Assistenza tecnica sull'impianto di depurazione biennio 2023-2024 | E44: AFFID.TO DIRETTO | F44: SER.ECO DEPURAZIONE ACQUE | G44: SER.ECO DEPURAZIONE ACQUE | H44: € 20,700.00 | I44: 2023-01-09 | J44: 2024-12-31 | K44: € 20,700.00
A45: Z81396C324 | B45: 80024540280 | C45: CR PADOVA | D45: Manutenzione su sistema di videocontrollo e sistema di allarme | E45: AFFID.TO DIRETTO | F45: NEXT S.R.L. SOCIO UNICO | G45: NEXT S.R.L. SOCIO UNICO | H45: € 2,660.00 | I45: 2023-01-09 | J45: 2023-12-31 | K45: € 2,660.00
A46: Z27396C55B | B46: 80024540280 | C46: CR PADOVA | D46: Fornitura N. 46 sacchi da Kg 25 di cemento | E46: AFFID.TO DIRETTO | F46: RAVAZZOLO SNC | G46: RAVAZZOLO SNC | H46: € 233.77 | I46: 2023-01-09 | J46: 2023-03-30 | K46: € 233.77
A47: Z3839805A6 | B47: 80024540280 | C47: CR PADOVA | D47: manutenzioni impianto pompa acque nere | E47: AFFID.TO DIRETTO | F47: AEMME IMPIANTI | G47: AEMME IMPIANTI | H47: € 1,139.00 | I47: 2023-01-13 | J47: 2023-03-30 | K47: € 1,139.00
A48: Z783984BD8 | B48: 80024540280 | C48: CR PADOVA | D48: Manutenzione centralino detenuti | E48: AFFID.TO DIRETTO | F48: TECHVISION | G48: TECHVISION | H48: € 45.00 | I48: 2023-01-17 | J48: 2023-03-30 | K48: € 45.00
A49: Z733988553 | B49: 80024540280 | C49: CR PADOVA | D49: Realizzazione Croce Sant'Andrea | E49: AFFID.TO DIRETTO | F49: P4 EDILIZIA IMPIANTI | G49: P4 EDILIZIA IMPIANTI | H49: € 4,077.50 | I49: 2023-01-17 | J49: 2023-03-30 | K49: € 4,077.50
A50: Z0139A1601 | B50: 80024540280 | C50: CR PADOVA | D50: Interventi cuina detenuti | E50: AFFID.TO DIRETTO | F50: ERREPI SERVICESRL | G50: ERREPI SERVICESRL | H50: € 177.20 | I50: 2023-01-24 | J50: 2023-02-28 | K50: € 177.20
A51: Z4539ABD5D | B51: 80024540280 | C51: CR PADOVA | D51: Manutenzione Montacarichi n.8 Matr. 853024 | E51: AFFID.TO DIRETTO | F51: KONE S.P.A. | G51: KONE S.P.A. | H51: € 1,114.00 | I51: 2023-01-26 | J51: 2023-03-30 | K51: € 1,114.00
A52: Z2839B8277 | B52: 80024540280 | C52: CR PADOVA | D52: SMALTIMENTO RIFIUTI DEPURATORE | E52: AFFID.TO DIRETTO | F52: SEPRO | G52: SEPRO | H52: € 39,900.00 | I52: 2023-02-01 | J52: 2023-12-31 | K52: € 8,369.80
A53: ZF939C6D3E | B53: 80024540280 | C53: CR PADOVA | D53: Servizio di rimozione materiale inerte anno 2023 | E53: AFFID.TO DIRETTO | F53: VETTORE VALERIO | G53: VETTORE VALERIO | H53: € 5,000.00 | I53: 2023-02-02 | J53: 2023-12-31 | K53: € 788.40
A54: ZB739C2391 | B54: 80024540280 | C54: CR PADOVA | D54: PRESTAZIONI PSICOLOGICHE ANNO 2023 | E54: AFFID.TO DIRETTO | F54: ZOBEL RITA MARIA G. | G54: ZOBEL RITA MARIA G. | H54: € 10,286.05 | I54: 2023-02-01 | J54: 2023-12-31 | K54: € 6,959.28
A55: ZB139C23E9 | B55: 80024540280 | C55: CR PADOVA | D55: PRESTAZIONI PSICOLOGICHE ANNO 2023 | E55: AFFID.TO DIRETTO | F55: LUISON NERINA | G55: LUISON NERINA | H55: € 10,286.05 | I55: 2023-02-01 | J55: 2023-12-31 | K55: € 7,067.16
A56: Z7539C2468 | B56: 80024540280 | C56: CR PADOVA | D56: PRESTAZIONI PSICOLOGICHE ANNO 2023 | E56: AFFID.TO DIRETTO | F56: BRIGO ANTONIO | G56: BRIGO ANTONIO | H56: € 10,286.05 | I56: 2023-05-01 | J56: 2023-12-31 | K56: € 5,898.52
A57: ZF339C2217 | B57: 80024540280 | C57: CR PADOVA | D57: PRESTAZIONI PSICOLOGICHE ANNO 2023 | E57: AFFID.TO DIRETTO | F57: PERRONE FRANCESCA | G57: PERRONE FRANCESCA | H57: € 10,286.05 | I57: 2023-02-01 | J57: 2023-12-31 | K57: € 10,160.16
A58: Z3B39C9050 | B58: 80024540280 | C58: CR PADOVA | D58: Fornitura e posa cancello divisorio | E58: AFFID.TO DIRETTO | F58: SECURSYSTEM | G58: SECURSYSTEM | H58: € 3,600.00 | I58: 2023-02-02 | J58: 2023-03-30 | K58: € 3,600.00
A59: Z5B39CC8FB | B59: 80024540280 | C59: CR PADOVA | D59: Fornitura di n.250 schede telefoniche detenuti | E59: AFFID.TO DIRETTO | F59: TECHVISION SISTEMI MULTIMEDIALI | G59: TECHVISION SISTEMI MULTIMEDIALI | H59: € 500.00 | I59: 2023-02-03 | J59: 2023-03-30 | K59: € 500.00
A60: Z9439D1522 | B60: 80024540280 | C60: CR PADOVA | D60: Ricambi per lavapavimenti | E60: AFFID.TO DIRETTO | F60: PULIFAR SRL | G60: PULIFAR SRL | H60: € 464.00 | I60: 2023-02-06 | J60: 2023-03-30 | K60: € 464.00
A61: Z4A39D17BD | B61: 80024540280 | C61: CR PADOVA | D61: Riparazione tubazioni a servizio della sotto centrale Pasticceria e tubazione Antincendio | E61: AFFID.TO DIRETTO | F61: SIRAM SPA | G61: SIRAM SPA | H61: € 5,542.00 | I61: 2023-02-06 | J61: 2023-03-30 | K61: € 5,542.00
A62: Z9F39D1A0F | B62: 80024540280 | C62: CR PADOVA | D62: Fornitura e installazione di nr.1 NVR (registratore digitale IP) per laboratorio enogastronomico | E62: AFFID.TO DIRETTO | F62: MEB SRL | G62: MEB SRL | H62: € 581.19 | I62: 2023-02-06 | J62: 2023-03-30 | K62: € 581.19
A63: Z7839D1C4B | B63: 80024540280 | C63: CR PADOVA | D63: Interventi su porta biblioteca e porta ingresso uffici | E63: AFFID.TO DIRETTO | F63: SECURSYSTEM | G63: SECURSYSTEM | H63: € 430.00 | I63: 2023-02-06 | J63: 2023-03-30 | K63: € 430.00
A64: Z0139DACB4 | B64: 80024540280 | C64: CR PADOVA | D64: Dispositivi antincendio per sala videocolloqui | E64: AFFID.TO DIRETTO | F64: OPI | G64: OPI | H64: € 1,140.00 | I64: 2023-02-07 | J64: 2023-03-30 | K64: € 1,140.00
A65: ZCA39DADEF | B65: 80024540280 | C65: CR PADOVA | D65: Addolcitore acqua a sale manuale per cucina detenuti | E65: AFFID.TO DIRETTO | F65: ASTECREX | G65: ASTECREX | H65: € 120.00 | I65: 2023-02-07 | J65: 2023-03-30 | K65: € 120.00
A66: Z2939DB295 | B66: 80024540280 | C66: CR PADOVA | D66: Attrezzature informatiche per sala videocolloqui | E66: AFFID.TO DIRETTO | F66: TECNOS | G66: TECNOS | H66: € 218.00 | I66: 2023-02-07 | J66: 2023-03-30 | K66: € 218.00
A67: Z1D39E7F35 | B67: 80024540280 | C67: CR PADOVA | D67: Riqualificazione sottocentrale ACS Rotonda 3 | E67: AFFID.TO DIRETTO | F67: SIRAM SPA | G67: SIRAM SPA | H67: € 39,900.00 | I67: 2023-02-10 | J67: 2023-06-30 | K67: € 39,900.00
A68: 968080984E | B68: 80024540280 | C68: CR PADOVA | D68: Riqualificazione sottocentrale ACS Rotonda 1 | E68: AFFID.TO DIRETTO | F68: SIRAM SPA | G68: SIRAM SPA | H68: € 47,953.90 | I68: 2023-02-10 | J68: 2023-06-30 | K68: € 47,953.90
A69: ZED39F35C0 | B69: 80024540280 | C69: CR PADOVA | D69: Gasolio artico per gruppo elettrogeno | E69: AFFID.TO DIRETTO | F69: AF PETROLI | G69: AF PETROLI | H69: € 950.00 | I69: 2023-02-14 | J69: 2023-06-30 | K69: € 950.00
A70: Z0339F3A55 | B70: 80024540280 | C70: CR PADOVA | D70: Toner | E70: AFFID.TO DIRETTO | F70: PROMO RIGENERA | G70: PROMO RIGENERA | H70: € 567.50 | I70: 2023-02-14 | J70: 2023-06-30 | K70: € 567.50
A71: Z2D39F5B39 | B71: 80024540280 | C71: CR PADOVA | D71: Servizio postali rinnovo in conto di credito | E71: AFFID.TO DIRETTO | F71: POSTE ITALIANE | G71: POSTE ITALIANE | H71: € 12,000.00 | I71: 2023-02-14 | J71: 2024-12-31 | K71: € 2,082.51
A72: Z3339F7655 | B72: 80024540280 | C72: CR PADOVA | D72: Materiale igienico sanitario cucina detenuti | E72: AFFID.TO DIRETTO | F72: LA CASALINDA | G72: LA CASALINDA | H72: € 10,050.00 | I72: 2023-02-15 | J72: 2023-06-30 | K72: € 10,050.00
A73: Z8139F818D | B73: 80024540280 | C73: CR PADOVA | D73: Sostituzione apparato ATA telefoni antivandalo | E73: AFFID.TO DIRETTO | F73: TECHVISION SISTEMI MULTIMEDIALI | G73: TECHVISION SISTEMI MULTIMEDIALI | H73: € 570.00 | I73: 2023-02-15 | J73: 2023-06-30 | K73: € 570.00
A74: Z5839F8C12 | B74: 80024540280 | C74: CR PADOVA | D74: Fornitura materiale per realizzazione nuovo impianto idraulico sotto centrale Caserma Agenti | E74: AFFID.TO DIRETTO | F74: SIRAM SPA | G74: SIRAM SPA | H74: € 1,182.00 | I74: 2023-02-15 | J74: 2023-06-30 | K74: € 1,182.00
A75: ZC03A0CD43 | B75: 80024540280 | C75: CR PADOVA | D75: PRESTAZIONI PSICOLOGICHE ANNO 2023 | E75: AFFID.TO DIRETTO | F75: BUZZI RAFFAELLA | G75: BUZZI RAFFAELLA | H75: € 7,444.80 | I75: 2023-03-01 | J75: 2023-12-31 | K75: € 6,617.59
A76: Z633A0CDB0 | B76: 80024540280 | C76: CR PADOVA | D76: PRESTAZIONI PSICOLOGICHE ANNO 2023 | E76: AFFID.TO DIRETTO | F76: DONZELLA GIOVANNA | G76: DONZELLA GIOVANNA | H76: € 7,444.80 | I76: 2023-03-01 | J76: 2023-12-31 | K76: € 6,617.60
A77: Z563A0CE1B | B77: 80024540280 | C77: CR PADOVA | D77: PRESTAZIONI PSICOLOGICHE ANNO 2023 | E77: AFFID.TO DIRETTO | F77: MASSIGNANI VALENTINA ADELE MARIANNA | G77: MASSIGNANI VALENTINA ADELE MARIANNA | H77: € 7,444.80 | I77: 2023-03-01 | J77: 2023-12-31 | K77: € 5,592.59
A78: ZF13A0CEB4 | B78: 80024540280 | C78: CR PADOVA | D78: PRESTAZIONI PSICOLOGICHE ANNO 2023 | E78: AFFID.TO DIRETTO | F78: FORGIONE MARGHERITA | G78: FORGIONE MARGHERITA | H78: € 7,444.80 | I78: 2023-03-01 | J78: 2023-12-31 | K78: € 6,617.59
A79: Z903A0CF08 | B79: 80024540280 | C79: CR PADOVA | D79: PRESTAZIONI PSICOLOGICHE ANNO 2023 | E79: AFFID.TO DIRETTO | F79: UBALDI CONSUELO | G79: UBALDI CONSUELO | H79: € 7,444.80 | I79: 2023-03-01 | J79: 2023-12-31 | K79: € 3,267.20
A80: ZD13A105CF | B80: 80024540280 | C80: CR PADOVA | D80: MATERIALE EDILE | E80: AFFID.TO DIRETTO | F80: RAVAZZOLO SNC | G80: RAVAZZOLO SNC | H80: € 3,743.02 | I80: 2023-02-22 | J80: 2023-06-30 | K80: € 3,743.02
A81: Z733A106F2 | B81: 80024540280 | C81: CR PADOVA | D81: TORCE MAXI RAGGIO | E81: AFFID.TO DIRETTO | F81: LONGHIN | G81: LONGHIN | H81: € 198.61 | I81: 2023-02-22 | J81: 2023-06-30 | K81: € 198.61
A82: Z093A108C5 | B82: 80024540280 | C82: CR PADOVA | D82: MANUTENZIONE E CONDUZIONE ASCENSORI E MONTACARICHI | E82: AFFID.TO DIRETTO | F82: KONE | G82: KONE | H82: € 3,390.00 | I82: 2023-02-22 | J82: 2024-02-29 | K82: € 3,390.00
A83: Z933A20997 | B83: 80024540280 | C83: CR PADOVA | D83: VIDEOCAMERA | E83: AFFID.TO DIRETTO | F83: AD PARTNERS | G83: AD PARTNERS | H83: € 572.53 | I83: 2023-02-27 | J83: 2023-06-30 | K83: € 572.53
A84: Z883A01C64 | B84: 80024540280 | C84: CR PADOVA | D84: Affidamento incarico collaudo strutturale dei lavori deposito pasticceria | E84: AFFID.TO DIRETTO | F84: STUDIO DI INGEGENRIA ZIVELONGHI | G84: STUDIO DI INGEGENRIA ZIVELONGHI | H84: € 3,475.53 | I84: 2023-02-28 | J84: 2023-12-31 | K84: € 3,475.53
A85: ZD33A27AED | B85: 80024540280 | C85: CR PADOVA | D85: Fornitura e montaggio vetro blindato | E85: AFFID.TO DIRETTO | F85: VETRERIA LO.DA. S.N.C. | G85: VETRERIA LO.DA. S.N.C. | H85: € 1,606.00 | I85: 2023-02-28 | J85: 2023-06-30 | K85: € 1,606.00
A86: ZD13A2881D | B86: 80024540280 | C86: CR PADOVA | D86: Cancelleria | E86: AFFID.TO DIRETTO | F86: KIT UFFICIO | G86: KIT UFFICIO | H86: € 86.50 | I86: 2023-02-28 | J86: 2023-06-30 | K86: € 86.50
A87: ZD83A2A76A | B87: 80024540280 | C87: CR PADOVA | D87: Fornitura materiale per realizzazione nuovo impianto idraulico in n.10 camere di pernottamento | E87: AFFID.TO DIRETTO | F87: SIRAM SPA | G87: SIRAM SPA | H87: € 2,200.00 | I87: 2023-03-01 | J87: 2023-06-30 | K87: € 2,200.00
A88: ZEE3A32FBF | B88: 80024540280 | C88: CR PADOVA | D88: Fornitura servizio emissione titoli di viaggio. | E88: AFFID.TO DIRETTO | F88: Meridiano Viaggi e Turismo S.p.A. | G88: Meridiano Viaggi e Turismo S.p.A. | H88: € 5,000.00 | I88: 2023-03-02 | J88: 2023-06-30 | K88: € 5,000.00
A89: ZA83A42A82 | B89: 80024540280 | C89: CR PADOVA | D89: BUONI PASTO | E89: AFFID.TO DIRETTO | F89: EP SPA | G89: EP SPA | H89: € 1,681.28 | I89: 2023-03-07 | J89: 2023-06-30 | K89: € 1,681.28
A90: Z413A467F8 | B90: 80024540280 | C90: CR PADOVA | D90: Fornitura materiale igienico sanitario Rdo 1 Marzo 2023 | E90: AFFID.TO DIRETTO | F90: 3MC | G90: 3MC | H90: € 9,389.00 | I90: 2023-03-08 | J90: 2023-06-30 | K90: € 9,389.00
B91: 80024540280 | C91: CR PADOVA | F91: ARTIDE | G91: ARTIDE
B92: 80024540280 | C92: CR PADOVA | F92: F.LLI PAVONE | G92: F.LLI PAVONE
B93: 80024540280 | C93: CR PADOVA | F93: LA CASALINDA | G93: LA CASALINDA
A94: Z473A46C87 | B94: 80024540280 | C94: CR PADOVA | D94: Fornitura materiale igienico sanitario Rdo 2 Marzo 2023 | E94: AFFID.TO DIRETTO | F94: 3MC | G94: 3MC | H94: € 2,230.00 | I94: 2023-03-08 | J94: 2023-06-30 | K94: € 2,230.00
B95: 80024540280 | C95: CR PADOVA | F95: ARTIDE | G95: ARTIDE
B96: 80024540280 | C96: CR PADOVA | F96: F.LLI PAVONE | G96: F.LLI PAVONE
B97: 80024540280 | C97: CR PADOVA | F97: LA CASALINDA | G97: LA CASALINDA
A98: Z963A4CE4C | B98: 80024540280 | C98: CR PADOVA | D98: Manutenzione straordinaria su impianto di depurazione | E98: AFFID.TO DIRETTO | F98: SER.ECO DEPURAZIONE ACQUE | G98: SER.ECO DEPURAZIONE ACQUE | H98: € 834.00 | I98: 2023-03-09 | J98: 2023-06-30 | K98: € 834.00
A99: Z603A59772 | B99: 80024540280 | C99: CR PADOVA | D99: Materiale di pitturazione | E99: AFFID.TO DIRETTO | F99: ITALCOLOR SRL | G99: ITALCOLOR SRL | H99: € 2,793.00 | I99: 2023-03-13 | J99: 2023-06-30 | K99: € 2,793.00
A100: ZAE3A601C5 | B100: 80024540280 | C100: CR PADOVA | D100: FORNITURA TIMBRI | E100: AFFID.TO DIRETTO | F100: MAC TIMBROTECNICA | G100: MAC TIMBROTECNICA | H100: € 2,000.00 | I100: 2023-03-15 | J100: 2023-12-31
A101: ZC43A65D00 | B101: 80024540280 | C101: CR PADOVA | D101: Materiale di ferramenta | E101: AFFID.TO DIRETTO | F101: LONGHIN | G101: LONGHIN | H101: € 1,083.12 | I101: 2023-03-16 | J101: 2023-06-30 | K101: € 1,083.12
A102: ZC73A6C7B3 | B102: 80024540280 | C102: CR PADOVA | D102: Fornitura vetri | E102: AFFID.TO DIRETTO | F102: VETRERIA LO.DA. S.N.C. | G102: VETRERIA LO.DA. S.N.C. | H102: € 300.50 | I102: 2023-03-17 | J102: 2023-06-30 | K102: € 300.50
A103: Z4C3A758FE | B103: 80024540280 | C103: CR PADOVA | D103: lavori di carrozzeria PP 794 AE | E103: AFFID.TO DIRETTO | F103: CARROZZERIA FACCO LUCIANO | G103: CARROZZERIA FACCO LUCIANO | H103: € 822.76 | I103: 2023-03-21 | J103: 2023-06-30 | K103: € 822.76
A104: Z563A790A2 | B104: 80024540280 | C104: CR PADOVA | D104: Servizio di emissione titoli di viaggio | E104: AFFID.TO DIRETTO | F104: Meridiano Viaggi e Turismo S.p.A. | G104: Meridiano Viaggi e Turismo S.p.A. | H104: € 39,900.00 | I104: 2023-03-21 | J104: 2024-03-31 | K104: € 31,827.02
A105: Z913A793CA | B105: 80024540280 | C105: CR PADOVA | D105: copripavimento palestra | E105: AFFID.TO DIRETTO | F105: NUOVA SARMO SRL | G105: NUOVA SARMO SRL | H105: € 9,990.00 | I105: 2023-03-21 | J105: 2023-06-30 | K105: € 9,990.00
A106: ZFA3A81AF6 | B106: 80024540280 | C106: CR PADOVA | D106: SERVIZI RIPARAZIONE N.2 MOTOVEICOLI | E106: AFFID.TO DIRETTO | F106: MOTOTEK SAS | G106: MOTOTEK SAS | H106: € 199.66 | I106: 2023-03-23 | J106: 2023-06-30 | K106: € 199.66
A107: Z393A8307A | B107: 80024540280 | C107: CR PADOVA | D107: Allacciamento elettrico al nuovo impianto di climatizzazione call center | E107: AFFID.TO DIRETTO | F107: MIRANO IMPIANTI SRL | G107: MIRANO IMPIANTI SRL | H107: € 4,500.00 | I107: 2023-03-23 | J107: 2023-06-30 | K107: € 4,500.00
A108: Z033A852F2 | B108: 80024540280 | C108: CR PADOVA | D108: Lavori di riparazione e sostituzione su n. 4 veicoli PP | E108: AFFID.TO DIRETTO | F108: Zambelli Pneumatici Srl | G108: Zambelli Pneumatici Srl | H108: € 490.00 | I108: 2023-03-24 | J108: 2023-06-30 | K108: € 490.00
A109: ZD53A8ADDD | B109: 80024540280 | C109: CR PADOVA | D109: Lavori di riparazione n.2 brasiere per la cucina detenuti | E109: AFFID.TO DIRETTO | F109: Errepi Service srl | G109: Errepi Service srl | H109: € 674.50 | I109: 2023-03-27 | J109: 2023-06-30 | K109: € 674.50
A110: Z973A9613F | B110: 80024540280 | C110: CR PADOVA | D110: Fornitura di prodotti chimici | E110: AFFID.TO DIRETTO | F110: INDUPHARMA SRL | G110: INDUPHARMA SRL | H110: € 834.60 | I110: 2023-03-29 | J110: 2023-06-30 | K110: € 834.60
A111: Z553A999F9 | B111: 80024540280 | C111: CR PADOVA | D111: Acquisto dell’ impianto di sollevamento n. matr. 10245863 | E111: AFFID.TO DIRETTO | F111: KONE SPA | G111: KONE SPA | H111: € 1,680.00 | I111: 2023-03-30 | J111: 2023-06-30 | K111: € 1,680.00
A112: Z023AA4AA3 | B112: 80024540280 | C112: CR PADOVA | D112: Manutenzione straordinaria impianto allarme antiscavalcamento muro di cinta | E112: AFFID.TO DIRETTO | F112: NEXT SRL | G112: NEXT SRL | H112: € 10,765.00 | I112: 2023-04-03 | J112: 2023-06-30 | K112: € 10,765.00
A113: Z6F3AA4B95 | B113: 80024540280 | C113: CR PADOVA | D113: Impianto Videosorveglianza reparto osservazione | E113: AFFID.TO DIRETTO | F113: MEB SRL | G113: MEB SRL | H113: € 9,917.63 | I113: 2023-04-03 | J113: 2023-06-30 | K113: € 9,917.63
A114: Z113ACFDFD | B114: 80024540280 | C114: CR PADOVA | D114: Sorveglianza sanitaria medico competente | E114: AFFID.TO DIRETTO | F114: Zicchina Ortensio | G114: Zicchina Ortensio | H114: € 15,000.00 | I114: 2023-04-17 | J114: 2023-06-30 | K114: € 4,404.59
A115: Z473AD0A95 | B115: 80024540280 | C115: CR PADOVA | D115: Acquisto toner | E115: AFFID.TO DIRETTO | F115: Promo Rigenera | G115: Promo Rigenera | H115: € 417.00 | I115: 2023-04-17 | J115: 2023-06-30 | K115: € 417.00
A116: Z233AD409C | B116: 80024540280 | C116: CR PADOVA | D116: Acquisto articoli elettronici | E116: AFFID.TO DIRETTO | F116: AD PARTNERS | G116: AD PARTNERS | H116: € 337.18 | I116: 2023-04-18 | J116: 2023-06-30 | K116: € 337.18
A117: ZC13AD5A87 | B117: 80024540280 | C117: CR PADOVA | D117: Acquisto materiale edile | E117: AFFID.TO DIRETTO | F117: RAVAZZOLO BRUNO SNC | G117: RAVAZZOLO BRUNO SNC | H117: € 6,875.90 | I117: 2023-04-18 | J117: 2023-06-30 | K117: € 6,875.90
A118: Z563AD8543 | B118: 80024540280 | C118: CR PADOVA | D118: Fornitura materiale per la depurazione delle acque | E118: AFFID.TO DIRETTO | F118: SER.ECO DEPURAZIONE ACQUE | G118: SER.ECO DEPURAZIONE ACQUE | H118: € 300.00 | I118: 2023-04-19 | J118: 2023-06-30 | K118: € 300.00
A119: Z2B3AE97F8 | B119: 80024540280 | C119: CR PADOVA | D119: realizzazione di un intervento per modifica recinzione con inserimento telaio per cancello a due ante | E119: AFFID.TO DIRETTO | F119: SECURSYSTEM | G119: SECURSYSTEM | H119: € 2,800.00 | I119: 2023-04-26 | J119: 2023-06-30 | K119: € 2,800.00
A120: Z313AF5DAE | B120: 80024540280 | C120: CR PADOVA | D120: Acquisto materiale di cancelleria | E120: AFFID.TO DIRETTO | F120: KIT UFFICIO | G120: KIT UFFICIO | H120: € 98.50 | I120: 2023-04-28 | J120: 2023-06-30 | K120: € 98.50
A121: ZE93AFDAC5 | B121: 80024540280 | C121: CR PADOVA | D121: Acquisto materiale edile | E121: AFFID.TO DIRETTO | F121: RAVAZZOLO BRUNO SNC | G121: RAVAZZOLO BRUNO SNC | H121: € 129.00 | I121: 2023-05-04 | J121: 2023-06-30 | K121: € 129.00
A122: Z133B02A5B | B122: 80024540280 | C122: CR PADOVA | D122: Fornitura con posa in opera di nuovo motoriduttore operatore porte n° 10245858 | E122: AFFID.TO DIRETTO | F122: KONE SPA | G122: KONE SPA | H122: € 1,473.00 | I122: 2023-05-04 | J122: 2023-06-30 | K122: € 1,473.00
A123: ZE03B17424 | B123: 80024540280 | C123: CR PADOVA | D123: Impianto irrigazione Istituto | E123: AFFID.TO DIRETTO | F123: F.LLI GAROFOLIN SRL | G123: F.LLI GAROFOLIN SRL | H123: € 2,280.00 | I123: 2023-05-10 | J123: 2023-06-30 | K123: € 2,280.00
A124: Z033B2181F | B124: 80024540280 | C124: CR PADOVA | D124: fornitura di materiale per cucina | E124: AFFID.TO DIRETTO | F124: LA CASALINDA SRL | G124: LA CASALINDA SRL | H124: € 393.50 | I124: 2023-05-12 | J124: 2023-06-30 | K124: € 393.50
A125: Z7A3B22D69 | B125: 80024540280 | C125: CR PADOVA | D125: intervento di manutenzione straordinaria su Gruppo Frigo HIDROS a servizio della pasticceria | E125: AFFID.TO DIRETTO | F125: MIRANO IMPIANTI SRL | G125: MIRANO IMPIANTI SRL | H125: € 3,200.00 | I125: 2023-05-12 | J125: 2023-06-30 | K125: € 3,200.00
A126: Z003B2D48B | B126: 80024540280 | C126: CR PADOVA | D126: Fornitura e posa in opera di n. 6 serrature per impianto n. 10245861 | E126: AFFID.TO DIRETTO | F126: KONE SPA | G126: KONE SPA | H126: € 2,884.00 | I126: 2023-05-16 | J126: 2023-06-30 | K126: € 2,884.00
A127: Z1E3B2CEE7 | B127: 80024540280 | C127: CR PADOVA | D127: Intervento per la sostituzione delle elettrovalvole a servizio della riserva idrica | E127: AFFID.TO DIRETTO | F127: F.LLI GAROFOLIN SRL | G127: F.LLI GAROFOLIN SRL | H127: € 6,903.00 | I127: 2023-05-16 | J127: 2023-06-30 | K127: € 6,903.00
A128: Z053B3169A | B128: 80024540280 | C128: CR PADOVA | D128: Fornitura di n. 10 segnalatori led ottico acustici 220v per pannello sinottico | E128: AFFID.TO DIRETTO | F128: MEB SRL | G128: MEB SRL | H128: € 135.00 | I128: 2023-05-17 | J128: 2023-06-30 | K128: € 135.00
A129: ZB93B33869 | B129: 80024540280 | C129: CR PADOVA | D129: Fornitura e sostituzione di 40 pcs 12V 9Ah | E129: AFFID.TO DIRETTO | F129: NEXT S.R.L. SOCIO UNICO | G129: NEXT S.R.L. SOCIO UNICO | H129: € 2,615.00 | I129: 2023-05-17 | J129: 2023-06-30 | K129: € 2,615.00
A130: Z4D3B588EB | B130: 80024540280 | C130: CR PADOVA | D130: Installazione dispositivo fotoelettrico a raggi infrarossi per la protezione dell'accesso in cabina passeggeri impianto n.10245861 | E130: AFFID.TO DIRETTO | F130: KONE SPA | G130: KONE SPA | H130: € 1,548.00 | I130: 2023-05-29 | J130: 2023-06-30 | K130: € 1,548.00
A131: Z9B3B5B86A | B131: 80024540280 | C131: CR PADOVA | D131: Acquisto materassi e guanciali per detenuti | E131: AFFID.TO DIRETTO | F131: IMAFLEX S.A.S. DI ANTONIO GESUATO & C. | G131: IMAFLEX S.A.S. DI ANTONIO GESUATO & C. | H131: € 7,518.00 | I131: 2023-05-29 | J131: 2023-06-30 | K131: € 7,518.00
B132: 80024540280 | C132: CR PADOVA | F132: HARMONY L'IGIENICO SRL | G132: HARMONY L'IGIENICO SRL
B133: 80024540280 | C133: CR PADOVA | F133: MTA GROUP SRL | G133: MTA GROUP SRL
B134: 80024540280 | C134: CR PADOVA | F134: LA REGGINFLEX | G134: LA REGGINFLEX
B135: 80024540280 | C135: CR PADOVA | F135: LORDFLEX'S SRL | G135: LORDFLEX'S SRL
B136: 80024540280 | C136: CR PADOVA | F136: PLASTI FOR MOBIL | G136: PLASTI FOR MOBIL
A137: ZC03B6246F | B137: 80024540280 | C137: CR PADOVA | D137: Manutenzione straordinaria dell’impianto ascensore montalettighe matr. PD3137/87 | E137: AFFID.TO DIRETTO | F137: KONE SPA | G137: KONE SPA | H137: € 24,358.00 | I137: 2023-05-31 | J137: 2023-06-30 | K137: € 24,358.00
A138: Z563B6C904 | B138: 80024540280 | C138: CR PADOVA | D138: Servizio monitoraggio HACCP cucina detenuti da Luglio 2023 a Giugno 2024 | E138: AFFID.TO DIRETTO | F138: COOPERATIVA SOLIDARIETA' | G138: COOPERATIVA SOLIDARIETA' | H138: € 660.00 | I138: 2023-06-05 | J138: 2023-06-30 | K138: € 660.00
A139: Z803B6D165 | B139: 80024540280 | C139: CR PADOVA | D139: Riparazione affettatrice e pelapatate cucina detenuti | E139: AFFID.TO DIRETTO | F139: ERREPI SERVICESRL | G139: ERREPI SERVICESRL | H139: € 1,677.50 | I139: 2023-06-05 | J139: 2023-06-30 | K139: € 1,677.50
A140: Z603B6D77A | B140: 80024540280 | C140: CR PADOVA | D140: Fornitura di n.200 schede telefoniche detenuti | E140: AFFID.TO DIRETTO | F140: TECHVISION SISTEMI MULTIMEDIALI | G140: TECHVISION SISTEMI MULTIMEDIALI | H140: € 400.00 | I140: 2023-06-05 | J140: 2023-06-30 | K140: € 400.00
A141: Z883B6E33D | B141: 80024540280 | C141: CR PADOVA | D141: Servizio da remoto su telefonia detenuti | E141: AFFID.TO DIRETTO | F141: TECHVISION SISTEMI MULTIMEDIALI | G141: TECHVISION SISTEMI MULTIMEDIALI | H141: € 75.00 | I141: 2023-06-05 | J141: 2023-06-30 | K141: € 75.00
A142: ZD43B6E809 | B142: 80024540280 | C142: CR PADOVA | D142: Implementazione linee telefoniche | E142: AFFID.TO DIRETTO | F142: CSE SERVICE | G142: CSE SERVICE | H142: € 702.00 | I142: 2023-06-05 | J142: 2023-06-30 | K142: € 702.00
A143: Z133B76C58 | B143: 80024540280 | C143: CR PADOVA | D143: Servizio lavanderia | E143: AFFID.TO DIRETTO | F143: COOPERATIVA EUREKA | G143: COOPERATIVA EUREKA | H143: € 39,990.00 | I143: 2023-06-07 | J143: 2024-06-30 | K143: € 39,990.00
A144: ZA43B80FF2 | B144: 80024540280 | C144: CR PADOVA | D144: n. 2 Corsi di Formazione "Sicurezza sul lavoro" | E144: AFFID.TO DIRETTO | F144: SCUOLA EDILE PADOVA | G144: SCUOLA EDILE PADOVA | H144: € 3,520.00 | I144: 2023-06-09 | J144: 2023-11-30 | K144: € 3,520.00
A145: Z6E3B81019 | B145: 80024540280 | C145: CR PADOVA | D145: N. 2 CORSI DI FORMAZIONE IL CANTIERE ATTREZZATURE E UTENSILI | E145: AFFID.TO DIRETTO | F145: SCUOLA EDILE PADOVA | G145: SCUOLA EDILE PADOVA | H145: € 3,520.00 | I145: 2023-06-09 | J145: 2023-11-30 | K145: € 3,520.00
A146: Z4A3B81033 | B146: 80024540280 | C146: CR PADOVA | D146: CORSO MIGLIORAMENTO ACUSTICO AULE DIDATTICHE | E146: AFFID.TO DIRETTO | F146: SCUOLA EDILE PADOVA | G146: SCUOLA EDILE PADOVA | H146: € 6,600.00 | I146: 2023-06-09 | J146: 2023-11-30 | K146: € 6,600.00
A147: Z263B8104D | B147: 80024540280 | C147: CR PADOVA | D147: CORSO DI ADDETTO AI SERVIZI DI PULIZIA E SANIFICAZIONE | E147: AFFID.TO DIRETTO | F147: COOPERATIVA VOLONTA' DI SAPERE | G147: COOPERATIVA VOLONTA' DI SAPERE | H147: € 9,760.00 | I147: 2023-06-09 | J147: 2023-11-30 | K147: € 9,760.00
A148: 98946370C3 | B148: 80024540280 | C148: CR PADOVA | D148: FORNITURA ED INSTALLAZIONE TRITURATORE | E148: AFFID.TO DIRETTO | F148: SER.ECO DEPURAZIONE ACQUE | G148: SER.ECO DEPURAZIONE ACQUE | H148: € 68,000.00 | I148: 2023-06-16 | J148: 2023-08-31 | K148: € 68,000.00
A149: ZCA3B9A551 | B149: 80024540280 | C149: CR PADOVA | D149: Ristrutturazione totale di n. 2 garitte muro di cinta | E149: AFFID.TO DIRETTO | F149: SECURSYSTEM | G149: SECURSYSTEM | H149: € 16,000.00 | I149: 2023-06-19 | J149: 2023-11-30 | K149: € 16,000.00
A150: ZBA3B9A8D9 | B150: 80024540280 | C150: CR PADOVA | D150: n.2 Climatizzatori per sala videocolloqui | E150: AFFID.TO DIRETTO | F150: RD Group Rappresentanze Srl | G150: RD Group Rappresentanze Srl | H150: € 1,652.00 | I150: 2023-06-19 | J150: 2023-11-30 | K150: € 1,652.00
A151: Z1C3B9BA12 | B151: 80024540280 | C151: CR PADOVA | D151: Fornitura Materiale elettrico vario. | E151: AFFID.TO DIRETTO | F151: MEB SRL | G151: MEB SRL | H151: € 1,114.05 | I151: 2023-06-19 | J151: 2023-11-30 | K151: € 1,114.05
A152: Z7D3BA0442 | B152: 80024540280 | C152: CR PADOVA | D152: n. 2 interventi urgenti di manutenzione delle pompe acque nere | E152: AFFID.TO DIRETTO | F152: AEMME IMPIANTI | G152: AEMME IMPIANTI | H152: € 595.00 | I152: 2023-06-20 | J152: 2023-06-30 | K152: € 595.00
A153: ZE33BA0933 | B153: 80024540280 | C153: CR PADOVA | D153: N.2 interventi di manutenzione vari | E153: AFFID.TO DIRETTO | F153: SECURSYSTEM | G153: SECURSYSTEM | H153: € 750.00 | I153: 2023-06-20 | J153: 2023-06-30 | K153: € 750.00
A154: Z663BA97FE | B154: 80024540280 | C154: CR PADOVA | D154: Fornitura dei materiali per il controsoffitto | E154: AFFID.TO DIRETTO | F154: PROTECNO SRL | G154: PROTECNO SRL | H154: € 1,335.00 | I154: 2023-06-22 | J154: 2023-06-30 | K154: € 1,335.00
A155: Z003BACBEB | B155: 80024540280 | C155: CR PADOVA | D155: FORNITURA E INSTALLAZIONE N. 2 POMPE DI SOLLEVAMENTO | E155: AFFID.TO DIRETTO | F155: SER.ECO DEPURAZIONE ACQUE | G155: SER.ECO DEPURAZIONE ACQUE | H155: € 17,000.00 | I155: 2023-06-23 | J155: 2023-08-31 | K155: € 17,000.00
A156: Z2B3BACCB9 | B156: 80024540280 | C156: CR PADOVA | D156: MIGLIORAMENTO ACUSTICO AUDITORIUM | E156: AFFID.TO DIRETTO | F156: GARALIN S.R.L. | G156: GARALIN S.R.L. | H156: € 14,050.00 | I156: 2023-06-23 | J156: 2023-09-30 | K156: € 14,050.00
A157: Z463BACD23 | B157: 80024540280 | C157: CR PADOVA | D157: MIGLIORAMENTO ACUSTICO SALE COLLOQUI | E157: AFFID.TO DIRETTO | F157: GARALIN S.R.L. | G157: GARALIN S.R.L. | H157: € 9,000.00 | I157: 2023-06-23 | J157: 2023-09-30 | K157: € 9,000.00
A158: Z2B3BAEF0A | B158: 80024540280 | C158: CR PADOVA | D158: SERVIZIO LAVAGGIO AUTOMEZZI | E158: AFFID.TO DIRETTO | F158: F.M.G. SERVICE SNC | G158: F.M.G. SERVICE SNC | H158: € 5,000.00 | I158: 2023-06-23 | J158: 2024-06-30 | K158: 0
A159: 9921983763 | B159: 80024540280 | C159: CR PADOVA | D159: CONVENZIONE ENERGIA ELETTRICA 20 LOTTO 5 | E159: AFFID.TO DIRETTO | F159: ENEL ENERGIA | G159: ENEL ENERGIA | H159: € 700,000.00 | I159: 2023-06-23 | J159: 2024-06-30 | K159: 0
A160: 9923773C89 | B160: 80024540280 | C160: CR PADOVA | D160: CONVENZIONE GAS | E160: AFFID.TO DIRETTO | F160: DOLOMITI ENERGIA | G160: DOLOMITI ENERGIA | H160: € 1,200,000.00 | I160: 2023-06-23 | J160: 2024-06-30 | K160: 0
A161: Z013BC35FB | B161: 80024540280 | C161: CR PADOVA | D161: Fornitura e posa in opera del cancello divisorio della prima sezione lato B | E161: AFFID.TO DIRETTO | F161: SECURSYSTEM | G161: SECURSYSTEM | H161: € 5,200.00 | I161: 2023-06-23 | J161: 2023-06-30 | K161: € 5,200.00
A162: Z8F3BC6514 | B162: 80024540280 | C162: CR PADOVA | D162: BUSTE PER DNA | E162: AFFID.TO DIRETTO | F162: KIT UFFICIO | G162: KIT UFFICIO | H162: € 375.00 | I162: 2023-06-23 | J162: 2023-07-31 | K162: € 375.00
A163: Z463BC68EF | B163: 80024540280 | C163: CR PADOVA | D163: Verifiche periodiche apparati antincendio 2023 2024 | E163: AFFID.TO DIRETTO | F163: O.P.I. ORGANIZZAZIONE PREVENZIONE INFORTUNI S.R.L. - | G163: O.P.I. ORGANIZZAZIONE PREVENZIONE INFORTUNI S.R.L. - | H163: € 5,700.00 | I163: 2023-06-23 | J163: 2024-03-30 | K163: € 5,700.00
A164: ZD53BC6C2E | B164: 80024540280 | C164: CR PADOVA | D164: MATERIALE DI FERRAMENTA | E164: AFFID.TO DIRETTO | F164: LONGHIN | G164: LONGHIN | H164: € 1,494.81 | I164: 2023-06-23 | J164: 2023-07-31 | K164: € 1,494.81
A165: ZB33BC6FC3 | B165: 80024540280 | C165: CR PADOVA | D165: FORNITURA VETRI | E165: AFFID.TO DIRETTO | F165: VETRERIA LO.DA. S.N.C. | G165: VETRERIA LO.DA. S.N.C. | H165: € 512.56 | I165: 2023-06-23 | J165: 2023-07-31 | K165: € 512.56
A166: ZB83BC84B8 | B166: 80024540280 | C166: CR PADOVA | D166: Videoregistratore telecamere rotonda | E166: AFFID.TO DIRETTO | F166: MEB SRL | G166: MEB SRL | H166: € 442.11 | I166: 2023-06-23 | J166: 2023-07-31 | K166: € 442.11
A167: ZAA3BCDC21 | B167: 80024540280 | C167: CR PADOVA | D167: Serrature e chiavi carcerarie | E167: AFFID.TO DIRETTO | F167: CSM snc | G167: CSM snc | H167: € 1,070.00 | I167: 2023-06-23 | J167: 2023-07-31 | K167: € 1,070.00
A168: Z923BCDE7C | B168: 80024540280 | C168: CR PADOVA | D168: Fornitura materiale idrico sanitario | E168: AFFID.TO DIRETTO | F168: LEROY MERLIN ITALIA SRL | G168: LEROY MERLIN ITALIA SRL | H168: € 954.29 | I168: 2023-06-23 | J168: 2023-07-31 | K168: € 954.29
A169: ZB83BD2489 | B169: 80024540280 | C169: CR PADOVA | D169: Interventi di manutenzione eseguiti sulle celle frigorifere della cucina detenuti | E169: AFFID.TO DIRETTO | F169: ERREPI SERVICESRL | G169: ERREPI SERVICESRL | H169: € 492.00 | I169: 2023-06-23 | J169: 2023-07-31 | K169: € 492.00
A170: Z703BD58B4 | B170: 80024540280 | C170: CR PADOVA | D170: Acquisto n. 6 telefoni per detenuti | E170: AFFID.TO DIRETTO | F170: TECHVISION SISTEMI MULTIMEDIALI | G170: TECHVISION SISTEMI MULTIMEDIALI | H170: € 594.00 | I170: 2023-06-23 | J170: 2023-07-31 | K170: € 594.00
A171: Z3E3BDE333 | B171: 80024540280 | C171: CR PADOVA | D171: Riparazione pelapatate cucina detenuti | E171: AFFID.TO DIRETTO | F171: ERREPI SERVICESRL | G171: ERREPI SERVICESRL | H171: € 320.00 | I171: 2023-06-23 | J171: 2023-07-31 | K171: € 320.00
A172: Z713BDD86F | B172: 80024540280 | C172: CR PADOVA | D172: Acquisto materiale edile | E172: AFFID.TO DIRETTO | F172: RAVAZZOLO BRUNO SNC | G172: RAVAZZOLO BRUNO SNC | H172: € 335.00 | I172: 2023-06-23 | J172: 2023-07-31 | K172: € 335.00
A173: Z023BDD7EE | B173: 80024540280 | C173: CR PADOVA | D173: Acquisto materiale per pitturazione | E173: AFFID.TO DIRETTO | F173: ITALCOLOR SRL | G173: ITALCOLOR SRL | H173: € 510.00 | I173: 2023-06-23 | J173: 2023-07-31 | K173: € 510.00
A174: ZAE3BDA72F | B174: 80024540280 | C174: CR PADOVA | D174: Fornitura di materiale per cucina detenuti | E174: AFFID.TO DIRETTO | F174: LA CASALINDA SRL | G174: LA CASALINDA SRL | H174: € 4,312.32 | I174: 2023-06-23 | J174: 2023-07-31 | K174: € 4,312.32
A175: ZCE3BD8F74 | B175: 80024540280 | C175: CR PADOVA | D175: NOLEGGIO TRE FOTOCOPIATORI | E175: AFFID.TO DIRETTO | F175: CANON ITALIA SPA | G175: CANON ITALIA SPA | H175: € 8,585.40 | I175: 2023-06-23 | J175: 2023-07-31 | K175: € 8,585.40
A176: Z6B3BD8E43 | B176: 80024540280 | C176: CR PADOVA | D176: Fornitura materiale igienico sanitario Rdo 1 Luglio 2023 | E176: AFFID.TO DIRETTO | F176: F.LLI PAVONE | G176: F.LLI PAVONE | H176: € 21,149.00 | I176: 2023-06-23 | J176: 2023-09-30 | K176: € 21,149.00
B177: 80024540280 | C177: CR PADOVA | F177: PRO CURA SRL | G177: PRO CURA SRL
B178: 80024540280 | C178: CR PADOVA | F178: LA CASALINDA | G178: LA CASALINDA
A179: Z363BD8EAF | B179: 80024540280 | C179: CR PADOVA | D179: Fornitura materiale igienico sanitario Rdo 2 Luglio 2023 | E179: AFFID.TO DIRETTO | F179: 3MC | G179: 3MC | H179: € 2,879.00 | I179: 2023-06-23 | J179: 2023-09-30 | K179: € 2,879.00
B180: 80024540280 | C180: CR PADOVA | F180: PRO CURA SRL | G180: PRO CURA SRL
B181: 80024540280 | C181: CR PADOVA | F181: F.LLI PAVONE | G181: F.LLI PAVONE
B182: 80024540280 | C182: CR PADOVA | F182: LA CASALINDA | G182: LA CASALINDA
B183: 80024540280 | C183: CR PADOVA | F183: FIRMA SRL | G183: FIRMA SRL
A184: Z733BDE3C2 | B184: 80024540280 | C184: CR PADOVA | D184: Forniture per la lavapavimenti CT 70 | E184: AFFID.TO DIRETTO | F184: PULIFAR SRL | G184: PULIFAR SRL | H184: € 202.24 | I184: 2023-06-23 | J184: 2023-09-30 | K184: € 202.24
A185: Z593BE1A85 | B185: 80024540280 | C185: CR PADOVA | D185: Fornitura e installazione di n. 3 climatizzatori in sale videocolloqui | E185: AFFID.TO DIRETTO | F185: RD Group Rappresentanze Srl | G185: RD Group Rappresentanze Srl | H185: € 2,762.00 | I185: 2023-06-23 | J185: 2023-09-30 | K185: € 2,762.00
A186: ZCB3BE1EC6 | B186: 80024540280 | C186: CR PADOVA | D186: Riparazione trattorino FERIS MOD. 5901477 | E186: AFFID.TO DIRETTO | F186: FORNARO | G186: FORNARO | H186: € 1,201.20 | I186: 2023-06-23 | J186: 2023-09-30 | K186: € 1,201.20
A187: Z243BEA23F | B187: 80024540280 | C187: CR PADOVA | D187: Apparecchiature di videosorveglianza laboratorio enogastronomico | E187: AFFID.TO DIRETTO | F187: MEB SRL | G187: MEB SRL | H187: € 586.84 | I187: 2023-06-23 | J187: 2023-09-30 | K187: € 586.84
A188: ZE73BE9FE6 | B188: 80024540280 | C188: CR PADOVA | D188: Piastra cucina detenuti | E188: AFFID.TO DIRETTO | F188: LONGHIN | G188: LONGHIN | H188: € 63.00 | I188: 2023-06-23 | J188: 2023-09-30 | K188: € 63.00
A189: Z243BEA23F | B189: 80024540280 | C189: CR PADOVA | D189: Pratica richiesta autorizzazione emissioni atmosfera legge 152 | E189: AFFID.TO DIRETTO | F189: SIRAM SPA | G189: SIRAM SPA | H189: € 6,831.00 | I189: 2023-06-23 | J189: 2023-09-30 | K189: € 6,831.00
A190: ZD03BF3693 | B190: 80024540280 | C190: CR PADOVA | D190: Fornitura di materiale elettrico vario per la MOF | E190: AFFID.TO DIRETTO | F190: MEB SRL | G190: MEB SRL | H190: € 203.51 | I190: 2023-06-23 | J190: 2023-09-30 | K190: € 203.51
A191: 9985858EB2 | B191: 80024540280 | C191: CR PADOVA | D191: SERVIZIO DI MANUTENZIONE E CONDUZIONE IMPIANTI DI RISCALDAMENTO E CONDIZIONAMENTO, IMPIANTI ELETTRICI,IDRICI E TECNOLOGICI | E191: AFFID.TO DIRETTO | F191: SIRAM SPA | G191: SIRAM SPA | H191: € 119,700.00 | I191: 2023-07-25 | J191: 2024-07-31 | K191: 0
A192: A000CFB70B | B192: 80024540280 | C192: CR PADOVA | D192: FORNITURA ED INSTALLAZIONE HARDWARE PER AMMODERNAMENTO INFORMATICO CALL CENTER | E192: AFFID.TO DIRETTO | F192: INFORMATIC ALL S.R.L. | G192: INFORMATIC ALL S.R.L. | H192: € 84,900.00 | I192: 2023-08-01 | J192: 2023-10-31 | K192: € 84,900.00
A193: Z8A3C19153 | B193: 80024540280 | C193: CR PADOVA | D193: FORNITURA CONGELATORI | E193: AFFID.TO DIRETTO | F193: AL PENTOLONE | G193: AL PENTOLONE | H193: € 1,610.00 | I193: 2023-08-02 | J193: 2023-08-31 | K193: € 1,610.00
A194: Z973C21931 | B194: 80024540280 | C194: CR PADOVA | D194: FORNITURA SALE PER ADDOLCITORI | E194: AFFID.TO DIRETTO | F194: SAE TRATTAMENTO ACQUA SRL | G194: SAE TRATTAMENTO ACQUA SRL | H194: € 1,360.00 | I194: 2023-08-07 | J194: 2023-09-30 | K194: € 1,360.00
A195: ZAF3C243F0 | B195: 80024540280 | C195: CR PADOVA | D195: FORNITURA CASELLARIO 5 PORTE | E195: AFFID.TO DIRETTO | F195: CATANESE FORNITURE E MOBILI DI CATANESE PIETRO | G195: CATANESE FORNITURE E MOBILI DI CATANESE PIETRO | H195: € 1,890.00 | I195: 2023-08-07 | J195: 2023-09-30 | K195: € 1,890.00
A196: Z4A3C2442B | B196: 80024540280 | C196: CR PADOVA | D196: FORNITURA MATERIALE PER CORSI FORMAZIONE DETENUTI | E196: AFFID.TO DIRETTO | F196: PROTECNO SRL | G196: PROTECNO SRL | H196: € 465.00 | I196: 2023-08-07 | J196: 2023-09-30 | K196: € 465.00
A197: ZD43C2FF60 | B197: 80024540280 | C197: CR PADOVA | D197: SERVIZIO TRASPORTO DETENUTI CON AUTOLETTIGA | E197: AFFID.TO DIRETTO | F197: CROCE VERDE PADOVA | G197: CROCE VERDE PADOVA | H197: € 3,000.00 | I197: 2023-08-08 | J197: 2023-12-31 | K197: € 286.40
A198: Z253C022DC | B198: 80024540280 | C198: CR PADOVA | D198: Sostituzione motore ventilconvettore a soffitto | E198: AFFID.TO DIRETTO | F198: MIRANO IMPIANTI SRL | G198: MIRANO IMPIANTI SRL | H198: € 620.00 | I198: 2023-08-16 | J198: 2023-09-30 | K198: € 620.00
A199: ZAA3C33D97 | B199: 80024540280 | C199: CR PADOVA | D199: Sostituzione valvole a sfera per sezionamento carichi cisterne di riserva idrica e vasi espansione per colpo d'ariete | E199: AFFID.TO DIRETTO | F199: F.LLI GAROFOLIN SRL | G199: F.LLI GAROFOLIN SRL | H199: € 3,140.00 | I199: 2023-08-16 | J199: 2023-09-30 | K199: € 3,140.00
A200: Z2F3C3D8B0 | B200: 80024540280 | C200: CR PADOVA | D200: BUONI PASTO (MARZO-APRILE-MAGGIO-GIUGNO) | E200: AFFID.TO DIRETTO | F200: PELLEGRINI S.P.A. | G200: PELLEGRINI S.P.A. | H200: € 2,805.84 | I200: 2023-08-23 | J200: 2023-09-30 | K200: € 2,805.84
... 117 more rows

Sheet CC Pordenone
A1: Dipartimento Amministrazione Penitenziaria - ISTITUTO CASA CIRCONDARIALE PORDENONE - C.F. 80003070937
A2: Contratti di forniture, beni e servizi Anno 2023 Dati aggiornati al 31 dicembre 2023
A3: CIG | B3: Codice Fiscale | C3: Denominazione | D3: Oggetto | E3: Procedura di scelta del contraente | F3: Elenco operatori invitati a presentare offerte | G3: Aggiudicatario | H3: Importo di aggiudicazione | I3: Data Inizio | J3: Data Ultimazione | K3: Somme liquidate (al netto dell'IVA)
A4: Z2E398AC93 | B4: 97103880585 | C4: POSTE ITALIANE SPA | D4: SERVIZI POSTALI 2023 | E4: AFFIDAMENTO DIRETTO | G4: POSTE ITALIANE SPA | H4: 800 | I4: 01-01-2023 | J4: 31-12-2023 | K4: 174.79
B5: 01683140931 | C5: HYDROGEA SPA | D5: ACQUA POTABILE E FOGNATURE | E5: AFFIDAMENTO DIRETTO | G5: HYDROGEA SPA | H5: 8000 | I5: 01-01-2023 | J5: 31-12-2023 | K5: 8000
A6: ZA53987177 | B6: 03645040282 | C6: A.F. PETROLI SPA | D6: FORNITURA GASOLIO DA RISCALDAMENTO | E6: ORDINE IN CONVENZIONE CONSIP | G6: A.F. PETROLI SPA | H6: 7338.96 | I6: 15-01-2023 | J6: 20-01-2023 | K6: 7338.96
A7: Z9D398EDCA | B7: 01408080305 | C7: TECNO sas | D7: MANUTENZ. ATTREZZ, CUCINA E LAVAND 2023 | E7: AFFIDAMENTO DIRETTO | G7: TECNO sas | H7: 1000 | I7: 02-01-2023 | J7: 31-12-2023 | K7: 509
A8: ZA339C98BC | B8: 02520590049 | C8: PRO CURA SAS | D8: ACQUISTO MATERIALE DA PULIZIA | E8: AFFIDAMENTO DIRETTO – T.D. MEPA | G8: PRO CURA SAS | H8: 3967.5 | I8: 10-2-2023 | J8: 27-2-2023 | K8: 3967.5
A9: Z5F39D2E11 | B9: '01331430932 | C9: CM TERMOIDRAULICA SRL | D9: intervento climatizz. Uff. c/c | E9: AFFIDAMENTO DIRETTO | G9: CM TERMOIDRAULICA SRL | H9: 120 | I9: 07-02-2023 | J9: 07-02-2023 | K9: 120
A10: Z6D39E28DC | B10: 140540501 | C10: CASTELLANI.IT | D10: ACQUISTO ARMADIO CUSTODIA BOMBOLETTE GAS | E10: AFFIDAMENTO DIRETTO – T.D. MEPA | G10: CASTELLANI.IT | H10: 522.61 | I10: 11-9-2023 | J10: 11-9-2023 | K10: 522.61
A11: /// | B11: 'GDGGDI85T68L407Y | C11: GUADAGNIN GIADA | D11: ATTIVITA’ OSSERVAZIONE DET EX ART.80 | E11: AFFIDAMENTO DIRETTO | G11: GUADAGNIN GIADA | H11: 6769.92 | I11: 02-01-2023 | J11: 31-12-2023 | K11: 6769.92
A12: ZB339E7798 | B12: 03798250274 | C12: FASS SRL | D12: CROCE DI SANT'ANDREA TETTO | E12: AFFIDAMENTO DIRETTO – T.D. MEPA | G12: FASS SRL | H12: 6837 | I12: 31-5-2023 | J12: 07-6-2023 | K12: 6837
A13: Z1739E8A56 | B13: 01304810326 | C13: FACAU CANCELLERIA | D13: ACQUISTO CANCELLERIA UFFICI | E13: AFFIDAMENTO DIRETTO – T.D. MEPA | G13: FACAU CANCELLERIA | H13: 199.85 | I13: 15-2-2023 | J13: 23-3-2023 | K13: 199.85
A14: Z5939F3AF6 | B14: 02368240301 | C14: FRIULI ANTINCENDI | D14: MANUTENZ. ESTINTORI ANNO 2023 | E14: AFFIDAMENTO DIRETTO – T.D. MEPA | G14: FRIULI ANTINCENDI | H14: 700 | I14: 01-01-2023 | J14: 31-12-2023 | K14: 462
A15: Z973A02847 | B15: 03645040282 | C15: A.F. PETROLI SPA | D15: FORNITURA GASOLIO DA RISCALDAMENTO | E15: ORDINE IN CONVENZIONE CONSIP | G15: A.F. PETROLI SPA | H15: 6750.93 | I15: 20-2-2023 | J15: 27-2-2023 | K15: 6750.93
A17: Z7F3A1C95F | B17: 00997960323 | C17: URANIA SRL | D17: DERATTIZZ. E DISINFEST. ANNO 2023 | E17: AFFIDAMENTO DIRETTO – T.D. MEPA | G17: URANIA SRL | H17: 640 | I17: 01-04-2023 | J17: 30-09-2023 | K17: 640
A18: /// | B18: 'CRCGSY59T44H199Z | C18: GIUSY CARCIATI | D18: ATTIVITA’ OSSERVAZIONE DET EX ART.80 | E18: AFFIDAMENTO DIRETTO | G18: GIUSY CARCIATI | H18: 5641.6 | I18: 01-3-2023 | J18: 31-12-2023 | K18: 5641.6
A19: Z523A22DFF | B19: 01304810326 | C19: FACAU SRL | D19: ACQUISTO CALCOLATRICE AREA CONTABILE | E19: AFFIDAMENTO DIRETTO – T.D. MEPA | G19: FACAU SRL | H19: 55 | I19: 02-03-2023 | J19: 23-3-2023 | K19: 55
A20: Z443A27B9A | B20: '00133910935 | C20: IMPRESA POLESE SRL | D20: OPERE AGGIUNTIVE FOGNATURE | E20: AFFIDAMENTO DIRETTO – T.D. MEPA | G20: IMPRESA POLESE SRL | H20: 25861.01 | I20: 15-01-2022 | J20: 01-04-2022 | K20: 25861.01
A21: ZD53A2DC88 | B21: 06655971007 | C21: ENEL ENERGIA SPA | D21: ADESIONE A CONV. ED.20 LTTO 4 ENERGIA E | E21: ORDINE IN CONVENZIONE CONSIP | G21: ENEL ENERGIA SPA | H21: 30000 | I21: 02-01-2023 | J21: 31-12-2023 | K21: 28489
A22: ZE13A4826D | B22: 06978581004 | C22: ELETTROSERVIZI SRL | D22: ACQUISTO PENTOLAME CUCINA DET | E22: AFFIDAMENTO DIRETTO – T.D. MEPA | G22: ELETTROSERVIZI SRL | H22: 586 | I22: 18-4-2023 | J22: 18-4-2023 | K22: 586
A23: 9712246EEE | C23: VARIE RDO | D23: MEPA GARA MOS 1-7-23 30-06-24 | E23: offerta economicamente vanTaggiosa | F23: tutte le imprese presenti in mepa | G23: DESERTA
A24: ZCF3A5B171 | B24: 01529220434 | C24: EURO CARTA SRL | D24: MEPA DRUM LEXMARK | E24: AFFIDAMENTO DIRETTO – T.D. MEPA | G24: EURO CARTA SRL | H24: 92.82 | I24: 15-3-2023 | J24: 15-3-2023 | K24: 92.82
A25: Z223A64106 | C25: VARIE MEPA | D25: MEPA GARA DISTRIBUTORI AUTOMATICI | E25: offerta economicamente vanTaggiosa | F25: tutte le imprese presenti in mepa | G25: Gruppo Illiria spa | H25: 11000 | I25: 01-04-2023 | J25: 31-03-2026 | K25: 11000
A26: ZA73A73B98 | B26: 04132780281 | C26: BERTIN SRL | D26: ARMADIO CUSTODIA TANICHE | E26: AFFIDAMENTO DIRETTO | G26: BERTIN SRL | H26: 1650 | I26: 30-3-2023 | J26: 31-3-2023 | K26: 1650
A27: ZCD3A78787 | B27: 01306960939 | C27: COOPERATIVA OASI | D27: SFALCIO ERBA INTERCINTA STAGIONE 2023 | E27: AFFIDAMENTO DIRETTO | G27: COOPERATIVA OASI | H27: 1200 | I27: 01-4-2023 | J27: 30-11-2023 | K27: 1200
A28: Z7F3A797C3 | B28: 03891580262 | C28: EDILIZIA FRARE SRL | D28: MEPA NASTRO ANTISDRUCCIOLO | E28: AFFIDAMENTO DIRETTO – T.D. MEPA | G28: EDILIZIA FRARE SRL | H28: 366 | I28: 06-4-2023 | J28: 06-4-2023 | K28: 366
A29: Z853A7D91C | B29: 02726950302 | C29: ADRIACLEAN | D29: MEPA MATERIALE IGIENICO DETENUTI | E29: AFFIDAMENTO DIRETTO – T.D. MEPA | G29: ADRIACLEAN | H29: 1315.19 | I29: 04-4-2023 | J29: 13-4-2023 | K29: 1315.19
A30: ZA53A7D9E4 | B30: 02726950302 | C30: ADRIACLEAN | D30: MEPA AC FILTRI PER RESPIRATORI FACC | E30: AFFIDAMENTO DIRETTO – T.D. MEPA | G30: ADRIACLEAN | H30: 330 | I30: 04-4-2023 | J30: 13-4-2023 | K30: 330
A31: Z6C3A921B1 | B31: 03798250274 | C31: FASS SRL | D31: MEPA LAVORI CUCINA DET | E31: AFFIDAMENTO DIRETTO – T.D. MEPA | G31: FASS SRL | H31: 2314.25 | I31: 24-7-2023 | J31: 31-7-2023 | K31: 2314.25
A32: ZB33A9428E | B32: 01469840662 | C32: INGROSCART SRL | D32: MEPA AC. PALLONI | E32: Ordine diretto mepa | G32: INGROSCART SRL | H32: 24 | I32: 21-4-2023 | J32: 21-4-2023 | K32: 24
A33: ZD032D3FEE | B33: '00133910935 | C33: POLESE SRL | D33: MAGGIOR IMPORTO PER LAVORI DOCCE | E33: AFFIDAMENTO DIRETTO | G33: POLESE SRL | H33: 2714.66 | I33: 15-01-2022 | J33: 04-01-2022 | K33: 2714.66
A34: Z2B3AAC867 | B34: 01274390309 | C34: CHIURLO SRL | D34: GASOLIO DA RISCALD | E34: adesione a convenzione consip | G34: CHIURLO SRL | H34: 5424.25 | I34: 06-4-2023 | J34: 06-4-2023 | K34: 5424.25
A35: ZDA3AC0A1A | B35: '05403151003 | C35: trenitalia spa | D35: adesione a convenzione Trenitalia | E35: AFFIDAMENTO DIRETTO- ADESIONE A CONVENZIONE | G35: trenitalia spa | H35: 1000 | I35: 12-04-2023 | J35: 31-12-2023 | K35: 1072.01
A36: 97675904641 | C36: tutte le ditte iscritte al bando | D36: servizio di ristorazione con distribuzione | E36: RdO in Mepa | F36: tutte le ditte iscritte al bando | G36: LADISA SRL | H36: 42028 | I36: 01-07-2023 | J36: 30-06-2024 | K36: 33199.99
A37: Z893AE05B9 | B37: 02726950302 | C37: ADRIACLEAN | D37: acquisto rasoi tre lame | E37: AFFIDAMENTO DIRETTO – T.D. MEPA | G37: ADRIACLEAN | H37: 132.73 | I37: 09-5-2023 | J37: 25-5-2023 | K37: 132.73
A38: ZE13B0B538 | B38: '00223850306 | C38: Idealoffice SRL | D38: RITIRO E SMALTIMENTO MAT FUORI USO | E38: AFFIDAMENTO DIRETTO | G38: Idealoffice SRL | H38: 649 | I38: 30-05-2023 | J38: 31-05-2023 | K38: 649
A39: Z5A3B0B51C | B39: '01482240932 | C39: MORETTO SRL | D39: RITIRO E SMALTIMENTO MAT FUORI USO | E39: AFFIDAMENTO DIRETTO | G39: MORETTO SRL | H39: 650 | I39: 30-052023 | J39: 31-05-2023 | K39: 650
A40: Z433AFEBCC | B40: 1343810931 | C40: POLOTTO SNC | D40: riparazione ducato PP388AD | E40: AFFIDAMENTO DIRETTO | G40: POLOTTO SNC | H40: 940.34 | I40: 25-5-2023 | J40: 31-5-2023 | K40: 940.34
A42: Z273B099E | B42: 15635211003 | C42: DEALTEK | D42: acq.frigoriferi avvento stagione estiva | E42: Ordine diretto mepa | G42: DEALTEK | H42: 450 | I42: 02-052023 | J42: 06-05-2023 | K42: 450
A43: Z2A3B0B5E6 | B43: 1074300938 | C43: BALDISSAR | D43: acquisto arredi sala regia, ufficio comando | E43: AFFIDAMENTO DIRETTO – T.D. MEPA | G43: BALDISSAR | H43: 7349 | I43: 07-12-2023 | J43: 13-12-2023 | K43: 7349
A44: Z243B0EB30 | B44: 01274390309 | C44: CHIURLO SRL | D44: GASOLIO DA RISCALD | E44: adesione a convenzione consip | G44: CHIURLO SRL | H44: 3077.55 | I44: 26-5-2023 | J44: 26-5-2023 | K44: 3077.55
A45: ZF63B0BAE1 | B45: 01672430939 | C45: SIET SRL | D45: impianto di illuminazione | E45: AFFIDAMENTO DIRETTO | G45: SIET SRL | H45: 880 | I45: 02-5-2023 | J45: 13-6-2023 | K45: 880
A46: ZE23B14D76 | B46: 01812630224 | C46: DOLOMITI ENERGIA | D46: gas cucina detenuti | E46: adesione a convenzione gas | G46: DOLOMITI ENERGIA | H46: 4000 | I46: 01-08-2023 | J46: 31-07-2024 | K46: 1077.26
A47: 97870408E6 | B47: 03798250274 | C47: FASS SRL | D47: adeguamento servizi igienici sez detentive | E47: AFFIDAMENTO DIRETTO – T.D. MEPA | G47: FASS SRL | H47: 140131.01 | I47: 05-06-2023 | J47: 27-09-2023 | K47: 140131.01
A48: ZAE3B19B9C | B48: 01306960939 | C48: COOPERATIVA OASI | D48: POTATURA ALBERO INTERCINTA | E48: AFFIDAMENTO DIRETTO | G48: COOPERATIVA OASI | H48: 250 | I48: 09-07-2023 | J48: 10-07-2023 | K48: 250
A49: Z873B2C10B | B49: 01306960939 | C49: COOPERATIVA OASI | D49: SMALTIM. RAMAGLIE INTERCINTA | E49: AFFIDAMENTO DIRETTO | G49: COOPERATIVA OASI | H49: 330 | I49: 09-07-2023 | J49: 10-07-2023 | K49: 330
A50: ZB93B43C3C | B50: 10766711005 | C50: AL SISTEMI SERVICE | D50: 3 TELEFONI ERICSSON PER UFFICI | E50: Ordine diretto mepa | G50: AL SISTEMI SERVICE
A51: ZBB3B5B44B | B51: 9381751008 | C51: TECHVISION sistemi multimediali | D51: ACQ. TOTEM | E51: AFFIDAMENTO DIRETTO – T.D. MEPA | G51: TECHVISION sistemi multimediali | H51: 6320 | I51: 17-11-2023 | J51: 17-11-2023 | K51: 6320
A52: Z4B3B642AB | B52: 03798250274 | C52: FASS SRL | D52: ACQUISTO PILE CENTRALE TELEFONICA | E52: AFFIDAMENTO DIRETTO – T.D. MEPA | G52: FASS SRL | H52: 845.6 | I52: 16-6-2023 | J52: 28-9-2023 | K52: 845.6
A53: Z053BB9257 | B53: 01672430939 | C53: siet srl | D53: intervento su imp. Elettr. Faro | E53: AFFIDAMENTO DIRETTO | G53: siet srl
A54: ZA937CF4BD | B54: 02572010185 | C54: CRC | D54: ACQUISTO TONER | E54: AFFIDAMENTO DIRETTO – T.D. MEPA | G54: CRC | H54: 138 | I54: 24-11-2023 | J54: 29-11-2023 | K54: 138
A55: ZD33B95176 | B55: 1040690156 | C55: PLASTI FOR MOBIL | D55: CLASSIFICATORE A DUE CASSETTI | E55: Ordine diretto mepa | G55: PLASTI FOR MOBIL | H55: 321 | I55: 15-7-2023 | J55: 24-7-2023 | K55: 321
A56: Z083BA070A | B56: 02303810309 | C56: TREXOM | D56: SOFTWARE MARCATEMPO | E56: AFFIDAMENTO DIRETTO | G56: TREXOM | H56: 488 | I56: 20-06-2023 | J56: 22-06-2023 | K56: 488
A57: ZB23BAB54D | B57: 03798250274 | C57: FASS SRL | D57: LAVORI CUCINA DETENUTI | E57: AFFIDAMENTO DIRETTO – T.D. MEPA | G57: FASS SRL | H57: 792 | I57: 18-6-2023 | J57: 23-6-2023 | K57: 792
A58: ZF13BAC25C | B58: 03706320276 | C58: SIAC INFORMATICA VENETA | D58: ACQUISTO MATERIALE INFORMATICO PER UFFICI | E58: AFFIDAMENTO DIRETTO – T.D. MEPA | G58: SIAC INFORMATICA VENETA | H58: 313 | I58: 23-6-2023 | J58: 30-6-2023 | K58: 313
A59: ZB43C22EBC | B59: 02726950302 | C59: ADRIACLEAN | D59: ACQUISTO MATERIALE PULIZIA | E59: AFFIDAMENTO DIRETTO – T.D. MEPA | G59: ADRIACLEAN | H59: 1701 | I59: 02-09-2023 | J59: 29-09-2023 | K59: 1701
A60: Z2D3C27A1F | B60: 01138580285 | C60: ARREGHINI PAINTS | D60: ACQUISTO MATERIALE TINTEGGIATURA | E60: AFFIDAMENTO DIRETTO – T.D. MEPA | G60: ARREGHINI PAINTS | H60: 494.38 | I60: 08-8-2023 | J60: 11-8-2023 | K60: 494.38
A61: Z163C2868D | B61: 4751820285 | C61: MARITAN SRL | D61: ACQUISTO N. 02 CALOTTE BLU PER LAMPEGGIANTE | E61: AFFIDAMENTO DIRETTO | G61: MARITAN SRL | H61: 140 | I61: 03-11-2023 | J61: 03-11-2023 | K61: 140
A62: Z873C30CF0 | B62: 03798250274 | C62: FASS SRL | D62: rimoz. E smaltim. Vecchio imp. Di RISCALDAMENTO | E62: AFFIDAMENTO DIRETTO – T.D. MEPA | G62: FASS SRL | H62: 1440 | I62: 26-09-2023 | J62: 03-10-2023 | K62: 1440
A63: ZD73C35B5E | B63: 01529220434 | C63: EUROCARTA | D63: ACQUISTO CARTA A 4 | E63: Ordine diretto mepa | G63: EUROCARTA | H63: 340 | I63: 22-8-2023 | J63: 22-8-2023 | K63: 340
A64: ZF63C36E82 | B64: 'FGGRRT74M13F464Y | C64: FAGGIONATO ROBERTO | D64: ACQUISTO BANDIERE | E64: Ordine diretto mepa | G64: FAGGIONATO ROBERTO | H64: 37 | I64: 24-8-2023 | J64: 24-8-2023 | K64: 37
A65: ZA423C3CB2E | B65: 1138580285 | C65: ARREGHINI PAINTS | D65: ACQ. MATERIALE TINTEGGIATURA | E65: AFFIDAMENTO DIRETTO | G65: ARREGHINI PAINTS | H65: 494.38 | I65: 08-08-2023 | J65: 11-08-2023 | K65: 494.38
A66: Z483C40E7D | B66: 01641790702 | C66: URANIA SRL | D66: DISINFESTAZIONE DA VESPE | E66: AFFIDAMENTO DIRETTO | G66: URANIA SRL | H66: 20 | I66: 01-09-2023 | J66: 29-09-2023 | K66: 20
A68: ZA423C3CB2E | B68: 01138580285 | C68: ARREGHINI PAINTS | D68: ACQ. MATERIALE TINTEGGIATURA | E68: AFFIDAMENTO DIRETTO | G68: ARREGHINI PAINTS | H68: 251.91 | I68: 24-8-2023 | J68: 24-8-2023 | K68: 251.91
A69: Z673C605FB | B69: '03934670278 | C69: FAIP SRL | D69: LASTRE A SPECCHIO PER STANZE DET | E69: AFFIDAMENTO DIRETTO | G69: FAIP SRL | H69: 104 | I69: 25-08-2023 | J69: 26-08-2023 | K69: 104
A70: Z0D3C62988 | B70: 00364580936 | C70: electronic service s.a.s. | D70: CAVETTI E SPINOTTI PER TV DET | E70: AFFIDAMENTO DIRETTO | G70: electronic service s.a.s. | H70: 65.57 | I70: 14-12-2023 | J70: 14-12-2023 | K70: 65.57
A71: Z593C40D30 | B71: 01672430939 | C71: siet srl | D71: SOSTITUZ.FARETTO E PLAFONIERA | E71: AFFIDAMENTO DIRETTO | G71: siet srl | H71: 290 | I71: 11-10-2023 | J71: 25-10-2023 | K71: 290
A72: ZEE3CB9C98 | B72: '08427870012 | C72: ELLISSE SRL | D72: VERIFICA MESSA A TERRA ANNO 2023 | E72: AFFIDAMENTO DIRETTO | G72: ELLISSE SRL | H72: 500 | I72: 13-10-2023 | J72: 20-12-2023 | K72: 500
A73: ZF53CCF6A0 | B73: 01947400931 | C73: GIMI SERVICE SRL | D73: PULIZIA ASPIRATORI BAGNI CELLE | E73: AFFIDAMENTO DIRETTO | G73: GIMI SERVICE SRL | H73: 1200 | I73: 30-06-2023 | J73: 01-07-2023 | K73: 1200
A74: ZE7E3CE038E | B74: 00399690932 | C74: CENTROGOMME SRL | D74: RIPARAZIONE PNEUMATICO PP768AF | E74: AFFIDAMENTO DIRETTO | G74: CENTROGOMME SRL | H74: 65 | I74: 12-10-2023 | J74: 27-10-2023 | K74: 65
A75: Z563CE2CBD | B75: 01343810931 | C75: POLOTTO NADIO E C. SNC | D75: RICARICA CLIMA, PASTIGLIE FIAT SCUDO PP768AF | E75: AFFIDAMENTO DIRETTO | G75: POLOTTO NADIO E C. SNC | H75: 274.5 | I75: 27-10-2023 | J75: 30-10-2023 | K75: 274.5
A76: Z3A3CE2D09 | B76: 01343810931 | C76: POLOTTO NADIO E C. SNC | D76: RIPARAZ. DUCATO PP388AD | E76: AFFIDAMENTO DIRETTO | G76: POLOTTO NADIO E C. SNC | H76: 694.4 | I76: 30-10-2023 | J76: 30-10-2023 | K76: 694.4
A77: Z1A3CE2D3C | B77: 01343810931 | C77: POLOTTO NADIO E C. SNC | D77: TAGLIANDO FIAT TALENTO PP695AG | E77: AFFIDAMENTO DIRETTO | G77: POLOTTO NADIO E C. SNC | H77: 225.52 | I77: 27-10-2023 | J77: 30-10-2023 | K77: 225.52
A78: ZBF3CE2D96 | B78: 04033260276 | C78: ANDREA MINTO SPA | D78: ACQ. E MONTAGGIO PNEUMATICI 4 STAGIONI FIAT SCUDO PP768AF | E78: AFFIDAMENTO DIRETTO | G78: POLOTTO NADIO E C. SNC | H78: 1026.4 | I78: 27-10-2023 | J78: 27-10-2023 | K78: 1026.4
A79: Z693C40C99 | B79: 01947400931 | C79: GIMI SRL | D79: INTERVENTI IMP. IDRAULICO E IDRICO-SANITARIO | E79: AFFIDAMENTO DIRETTO | G79: GIMI SRL | H79: 983 | I79: 27-11-2023 | J79: 21-12-2023 | K79: 983
A80: Z463D2CFB2 | C80: FRIULI ANTINCENDI | D80: ACQUISTO ESTINTORI | G80: FRIULI ANTINCENDI | H80: 2492.07 | I80: 25-11-2023 | J80: 25-11-2023 | K80: 2492.07
A81: Z533D40FE4 | B81: 12876360152 | C81: colibrì system spa | D81: acquisto copertine | E81: AFFIDAMENTO DIRETTO | G81: colibrì system spa | H81: 632.5 | I81: 14-11-2023 | J81: 16-11-2023 | K81: 632.5
A82: ZA83D3A07A | B82: 01274390309 | C82: CHIURLO SRL | D82: ACQUISTO GASOLIO DA RISCALDAMENTO | E82: adesione a convenzione consip | G82: AF PETROLI | H82: 2834.63 | I82: 15-11-2023 | J82: 15-11-2023 | K82: 2834.63
A83: Z183D42349 | B83: 01672430939 | C83: SIET SRL | D83: INSTALLAZ. PRESA PORTINERIA PER TOTEM | E83: AFFIDAMENTO DIRETTO | G83: SIET SRL | H83: 584.96 | I83: 14-11-2023 | J83: 30-11-20223 | K83: 584.96
A84: ZE93B70B1C | B84: 02572010185 | C84: CRC SRL | D84: TONER E DRUM PER UFF. RAGIONERIA | E84: AFFIDAMENTO DIRETTO – T.D. MEPA | G84: CRC SRL | H84: 192.92 | I84: 14-6-2023 | J84: 28-6-2023 | K84: 192.92
A85: Z993D6B798 | B85: '05359681003 | C85: PELLEGRINI WELFARE SOLUTIONS | D85: ACCORDO QUADRO ADESIONE LOTTO 10 BUONI PASTO | E85: adesione a convenzione consip | G85: PELLEGRINI WELFARE SOLUTIONS | H85: 5600 | I85: 20-11-2023 | J85: 31-12-2024 | K85: 0
A86: Z603D7E8D8 | B86: 03934670278 | C86: GSS IMPIANTI SRL | D86: SISTEMAZIONE BARRIERE PERIMETRALI | E86: AFFIDAMENTO DIRETTO – T.D. MEPA | G86: GSS IMPIANTI SRL | H86: 1080 | I86: 21-12-2023 | J86: 21-12-2023 | K86: 1080
A87: Z9A3D83253 | B87: 02316361209 | C87: SISTERS SRL | D87: ACQUISTO MATERIALE RICREATIVO | E87: AFFIDAMENTO DIRETTO – T.D. MEPA | G87: SISTERS SRL | H87: 409.3 | I87: 06-12-2023 | J87: 22-12-2023 | K87: 409.3
A88: Z703D8502F | B88: 01947400931 | C88: GIMI SERVICE SRL | D88: SISTEMAZIONE DELLA SCARPATA | E88: AFFIDAMENTO DIRETTO – T.D. MEPA | G88: GIMI SERVICE SRL | H88: 4500 | I88: 03-11-2023 | J88: 20-12-2023 | K88: 4500
A89: Z8C3DA2588 | B89: 00604930701 | C89: F.LLI PAVONE SRL | D89: ACQUISTO MATERIALE IGIENICO SANITARIO | E89: AFFIDAMENTO DIRETTO – T.D. MEPA | G89: F.LLI PAVONE SRL | H89: 2395.77 | I89: 13-12-2023 | J89: 21-12-2023 | K89: 2395.77
A90: Z243D7FA02 | B90: 1408080305 | C90: TECNO sas | D90: acquisto lavastoviglie | E90: AFFIDAMENTO DIRETTO – T.D. MEPA | G90: TECNO sas | H90: 3000 | I90: 18-12-2023 | J90: 18-12-2023 | K90: 3000
A91: ZE33DA6FF7 | B91: 03798250274 | C91: FASS SRL | D91: opere agg. Impreviste serv. Igien. Stanze | E91: AFFIDAMENTO DIRETTO – T.D. MEPA | G91: FASS SRL | H91: 21000 | I91: 18-12-2023 | J91: 21-12-2023 | K91: 21000
A92: ZD23DA7144 | B92: 01947400931 | C92: GIMI SERVICE SRL | D92: opere agg. Impreviste serv. Igien. Stanze | E92: AFFIDAMENTO DIRETTO – T.D. MEPA | G92: GIMI SERVICE SRL | H92: 10334.78 | I92: 14-12-2023 | J92: 20-12-2023 | K92: 10334.78
A93: ZF63DB5698 | B93: 01304810326 | C93: FACAU CANCELLERIA | D93: acquisto cancelleria uffici | E93: AFFIDAMENTO DIRETTO – T.D. MEPA | G93: FACAU CANCELLERIA | H93: 819.63 | I93: 14-12-2023 | J93: 15-12-2023 | K93: 819.63
A94: ZED3DBD78D | B94: 01672430939 | C94: SIET SRL | D94: sistemazione imp. Elettrico in vista di verifica messa a terra | E94: AFFIDAMENTO DIRETTO | G94: SIET SRL | H94: 140.71 | I94: 13-12-2023 | J94: 15-12-2023 | K94: 140.71
A95: ZF63DC0423 | B95: 01274390309 | C95: CHIURLO SRL | D95: acquisto gasolio da riscaldamento | E95: adesione a convenzione consip | G95: CHIURLO SRL | H95: 5534.25 | I95: 15-12-2023 | J95: 18-12-2023 | K95: 5534.25
A96: ZC53DC7D41 | B96: 01672430939 | C96: SIET SRL | D96: SPOSTAMENTO PRESE ELETTRICHE PORTINERIA | E96: AFFIDAMENTO DIRETTO | G96: SIET SRL | H96: 942.09 | I96: 13-12-2023 | J96: 15-12-2023 | K96: 942.09
A97: Z723DC3AC3 | B97: 01947400931 | C97: GIMI SERVICE SRL | D97: SISTEMAZIONE TETTO | E97: AFFIDAMENTO DIRETTO – T.D. MEPA | G97: GIMI SERVICE SRL | H97: 4660 | I97: 19-12-2023 | J97: 22-12-2023 | K97: 4660
A98: Z323DC6E25 | B98: 01947400931 | C98: GIMI SERVICE SRL | D98: SISTEMAZIONE colonna di scarico | E98: AFFIDAMENTO DIRETTO – T.D. MEPA | G98: GIMI SERVICE SRL | H98: 1400 | I98: 19-12-2023 | J98: 22-12-2023 | K98: 1400
A99: Z843DDDF55 | B99: 3934670278 | C99: GSS IMPIANTI SRL | D99: INTERVENTO PER SPOSTAMENTO PULSANTIERE IMP. SICUREZZA SALAR | E99: AFFIDAMENTO DIRETTO | G99: GSS IMPIANTI SRL | H99: 700 | I99: 21-12-2023 | J99: 21-12-2023 | K99: 700
A100: ZF33DF0018 | B100: 1304810326 | C100: FACAU CANCELLERIA | D100: CALCOLATRICE AREA CONTABILE | E100: AFFIDAMENTO DIRETTO – T.D. MEPA | G100: FACAU CANCELLERIA | H100: 55 | I100: 22-10-2023 | J100: 22-11-2023 | K100: 55

Sheet CC Rovigo
A1: Dipartimento Amministrazione Penitenziaria - ISTITUTO CASA CIRCONDARIALE ROVIGO - C.F. 80005430295
A2: Contratti di forniture, beni e servizi Anno 2023 Dati aggiornati al 31 dicembre 2023
A3: CIG | B3: Codice Fiscale | C3: Denominazione | D3: Oggetto | E3: Procedura di scelta del contraente | F3: Elenco operatori invitati a presentare offerte | G3: Aggiudicatario | H3: Importo di aggiudicazione | I3: Data Inizio | J3: Data Ultimazione | K3: Somme liquidate (al netto dell'IVA)
A4: ZE53C6098C | B4: 80005430295 | C4: CASA CIRCONDARIALE ROVIGO N.C. | D4: Servizio di spurgo fognature e pozzi neri con interventi a chiamata | E4: RDO SEMPLICE | F4: BELLUCCO Luca | G4: BELLUCCO Luca | H4: € 8,000.00 | I4: 2023-09-07 | J4: 2023-12-22 | K4: € 3,919.50
F5: BORDIN AUTOSPURGO DI BORDIN ANNARITA & C.SNC
F6: CAPUZZO NICOLA SRL
F7: FERRO CRISTIAN
A8: Z1B3D7C78A | B8: 80005430295 | C8: CASA CIRCONDARIALE ROVIGO N.C. | D8: SERVIZIO MANUTENZIONE E RIPARAZIONE PARCO AUTOMEZZI | E8: PROCEDURA RISTRETTA | F8: CARROZZERIA LA PERLA SNC DI SALMASO Stefano & C.
B9: 80005430295 | C9: CASA CIRCONDARIALE ROVIGO N.C. | F9: DIESEL SERVICE SRL | G9: NON AGGIUDICATO | I9: 2023-12-01 | J9: 2023-12-21
B10: 80005430295 | C10: CASA CIRCONDARIALE ROVIGO N.C. | F10: FLORGAS SRL
A11: Z293D94CA3 | B11: 80005430295 | C11: CASA CIRCONDARIALE ROVIGO N.C. | D11: SERVIZIO DISINFETSAZIONE, DISINFEZIONE E DERATTIZZAZIONE | E11: PROCEDURA RISTRETTA | F11: CENTRO VENETO DISINFESTAZIONE SRL | G11: CENTRO VENETO DISINFESTAZIONE SRL | H11: € 4,710.00 | I11: 2023-12-05
B12: 80005430295 | C12: CASA CIRCONDARIALE ROVIGO N.C. | F12: COISLHA SOCIETà COOPERATIVA SOCIALE
B13: 80005430295 | C13: CASA CIRCONDARIALE ROVIGO N.C. | F13: CONSORZIO CO.RO.S.COOPERATIVE RODIGINE SOCIALI
B14: 80005430295 | C14: CASA CIRCONDARIALE ROVIGO N.C. | F14: COOPERATIVA SOLIDARIETA SOCIETà COOPERATIVA SOCIALE
B15: 80005430295 | C15: CASA CIRCONDARIALE ROVIGO N.C. | F15: CONSORZIO VENETO SERVIZI INTEGRATI SOCIETA' COOPERATIVA
B16: 80005430295 | C16: CASA CIRCONDARIALE ROVIGO N.C. | F16: ELIANTO COOPERATIVA SOOCIALE ONLUS
B17: 80005430295 | C17: CASA CIRCONDARIALE ROVIGO N.C. | F17: KRONOS SRL
B18: 80005430295 | C18: CASA CIRCONDARIALE ROVIGO N.C. | F18: MY PEST CONTROL SRL
B19: 80005430295 | C19: CASA CIRCONDARIALE ROVIGO N.C. | F19: QUEEN SRL
B20: 80005430295 | C20: CASA CIRCONDARIALE ROVIGO N.C. | F20: SISTEMA AMBIENTE
B21: 80005430295 | C21: CASA CIRCONDARIALE ROVIGO N.C. | F21: WIN ECOLOGY SRL
A22: ZEA39B25A5 | B22: 80005430295 | C22: CASA CIRCONDARIALE ROVIGO N.C. | D22: Accordo sorveglianza fisica dosiometrica | E22: MEPA:Procedura negoziata senza previa pubblicazione | G22: SCOGNAMIGLIO Mario | H22: € 1,780.00 | I22: 2023-01-27 | J22: 2023-11-07 | K22: € 2,992.64
A23: Z433A428C7 | B23: 80005430295 | C23: CASA CIRCONDARIALE ROVIGO N.C. | D23: Contratto di assistenza programmata su impianto termoregolazione quadrimestrale | E23: MEPA affidamento diretto in adesione ad accordo quadro/convenzione | G23: SAUTER ITALIA SPA | H23: € 3,500.00 | I23: 2023-03-07 | J23: 2023-08-01 | K23: € 3,500.00
A24: ZF93A4492A | B24: 80005430295 | C24: CASA CIRCONDARIALE ROVIGO N.C. | D24: Installazione prese a servizio frigo delle camere di detenzione | E24: MEPA: affidamento diretto in adesione ad accordo quadro/ convenzione | G24: IMPIANTI ELETTRICI DI RUBELLO Lino | H24: € 5,400.00 | I24: 2023-03-07 | J24: 2023-05-03 | K24: =SUM(H24) -> € 5,400.00
A25: ZEC3A51C00 | B25: 80005430295 | C25: CASA CIRCONDARIALE ROVIGO N.C. | D25: Rivestimento parete area detentiva | E25: MEPA: affidamento diretto in adesione ad accordo quadro/ convenzione | G25: PLUMBER SRLS | H25: € 4,450.00 | I25: 2023-03-10 | J25: 2023-05-16 | K25: € 4,400.00
A26: Z113A81602 | B26: 80005430295 | C26: CASA CIRCONDARIALE ROVIGO N.C. | D26: Realizzazione e installazione di un cancello di sbarramento area trattamentale | E26: MEPA: affidamento diretto in adesione ad accordo quadro/ convenzione | G26: OFFICINE MARSILII SRL | H26: € 13,200.00 | I26: 2023-03-23 | J26: 2023-10-11 | K26: € 13,200.00
A27: ZBD3AA180D | B27: 80005430295 | C27: CASA CIRCONDARIALE ROVIGO N.C. | D27: Fornitura materiale igienico sanitario | E27: MEPA: affidamento diretto in adesione ad accordo quadro/ convenzione | G27: PULITALIA SPA | H27: € 9,084.14 | I27: 2023-03-31 | J27: 2023-08-23 | K27: € 9,079.40
A28: Z933AF618B | B28: 80005430295 | C28: CASA CIRCONDARIALE ROVIGO N.C. | D28: Fornitura toner | E28: MEPA: affidamento diretto in adesione ad accordo quadro/ convenzione | G28: TONERGROSS SRL | H28: € 370.50 | I28: 2023-04-28 | J28: 2023-05-31 | K28: =SUM(H28) -> € 370.50
A29: Z213B08E37 | B29: 80005430295 | C29: CASA CIRCONDARIALE ROVIGO N.C. | D29: Acquisto ed installazione n.2 condizionatori | E29: MEPA: affidamento diretto in adesione ad accordo quadro/ convenzione | G29: PLUMBERS SRLS | H29: € 3,290.00 | I29: 2023-05-05 | J29: 2023-06-23 | K29: € 3,290.00
A30: ZD13B54B457 | B30: 80005430295 | C30: CASA CIRCONDARIALE ROVIGO N.C. | D30: Totem versamenti area colloqui | E30: MEPA: affidamento diretto in adesione ad accordo quadro/ convenzione | G30: TECHVISION SISTEMI MULTIMEDIALI SRL | H30: € 8,248.00 | I30: 2023-05-29 | J30: 2023-12-12 | K30: € 8,248.00
A31: Z193C21891 | B31: 80005430295 | C31: CASA CIRCONDARIALE ROVIGO N.C. | D31: Fornitura plafoniere led IK 10 | E31: MEPA: affidamento diretto in adesione ad accordo quadro/ convenzione | G31: ELETTROVENETA SPA | H31: € 32,800.00 | I31: 2023-08-04 | J31: 2023-11-07 | K31: € 32,800.00
A32: Z9C3C3BD33 | B32: 80005430295 | C32: CASA CIRCONDARIALE ROVIGO N.C. | D32: Acquisto materiale pulizia | E32: MEPA: affidamento diretto in adesione ad accordo quadro/ convenzione | G32: LA CASALINDA SRL | H32: € 6,240.50 | I32: 2023-08-22 | J32: 2023-10-11 | K32: € 6,240.50
A33: ZB93C406B5 | B33: 80005430295 | C33: CASA CIRCONDARIALE ROVIGO N.C. | D33: Arredi per caserma agenti | E33: MEPA: affidamento diretto in adesione ad accordo quadro/ convenzione | G33: INGROS'S FORNITURE SRL | H33: € 10,600.00 | I33: 2023-08-24 | J33: 2023-11-24 | K33: € 10,600.00
A34: Z073C49CC9 | B34: 80005430295 | C34: CASA CIRCONDARIALE ROVIGO N.C. | D34: Acquisto cancelleria | E34: MEPA: affidamento diretto in adesione ad accordo quadro/ convenzione | G34: SISTERS SRL | H34: € 2,853.94 | I34: 2023-08-30 | J34: 2023-11-14 | K34: € 2,853.94
A35: ZCC3C4C428 | B35: 80005430295 | C35: CASA CIRCONDARIALE ROVIGO N.C. | D35: Fornitura di n.4 prese multiple elettriche | E35: MEPA: affidamento diretto in adesione ad accordo quadro/ convenzione | G35: SILLA SAS DI FABIO MATTEI & C. | H35: € 92.57 | I35: 2023-08-30 | J35: 2023-10-03 | K35: € 92.57
A36: Z043C71B3E | B36: 80005430295 | C36: CASA CIRCONDARIALE ROVIGO N.C. | D36: Ripristino impianto di videosorveglianza | E36: MEPA: affidamento diretto in adesione ad accordo quadro/ convenzione | G36: GSS IMPIANTI SRL | H36: € 9,883.61 | I36: 2023-09-13 | J36: 2023-12-12 | K36: € 9,880.00
A37: ZCB3CB5B46 | B37: 80005430295 | C37: CASA CIRCONDARIALE ROVIGO N.C. | D37: Fornitura capsule lavastoviglie | E37: MEPA: affidamento diretto in adesione ad accordo quadro/ convenzione | G37: PULITALIA SPA | H37: € 311.24 | I37: 2023-10-04 | J37: 2023-11-24 | K37: =SUM(H37) -> € 311.24
A38: Z8F3CE6B5D | B38: 80005430295 | C38: CASA CIRCONDARIALE ROVIGO N.C. | D38: Fornitura di n.52 televisori per le camere di pernottamento | E38: MEPA: affidamento diretto in adesione ad accordo quadro/ convenzione | G38: Q.E.D QUALITY ELECTRONICS DISTRIBUTION Campione Angelo | H38: € 6,448.00 | I38: 2023-10-19 | J38: 2023-12-12 | K38: € 6,448.00
A39: ZAF3D26A93 | B39: 80005430295 | C39: CASA CIRCONDARIALE ROVIGO N.C. | D39: Fornitura guanti antiscottatura | E39: MEPA: affidamento diretto in adesione ad accordo quadro/ convenzione | G39: ATI SRL | H39: € 1,125.00 | I39: 2023-11-07 | J39: 2023-12-22 | K39: € 1,125.00
A40: ZB63D2C4B4 | B40: 80005430295 | C40: CASA CIRCONDARIALE ROVIGO N.C. | D40: Fornitura di n.01 monitor multimediale per la didattica | E40: MEPA: affidamento diretto in adesione ad accordo quadro/ convenzione | G40: EUGANEA INNOVAZIONE SRL | H40: € 1,550.00 | I40: 2023-11-08 | J40: 2023-12-19 | K40: € 1,550.00
A41: Z683D58635 | B41: 80005430295 | C41: CASA CIRCONDARIALE ROVIGO N.C. | D41: Collegamenti rete dati per gestione | E41: MEPA: affidamento diretto in adesione ad accordo quadro/ convenzione | G41: IMPIANTI ELETTRICI DI RUBELLO Lino | H41: € 5,800.00 | I41: 2023-11-20 | J41: 2023-12-12 | K41: € 5,800.00
A42: ZA13D63759 | B42: 80005430295 | C42: CASA CIRCONDARIALE ROVIGO N.C. | D42: Fornitura materiale pulizia e materiale igienico sanitario | E42: MEPA: affidamento diretto in adesione ad accordo quadro/ convenzione | G42: PRO CURA SRL | H42: € 3,720.00 | I42: 2023-11-22 | J42: 2023-12-19 | K42: € 3,720.00
A43: Z9A3D6376C | B43: 80005430295 | C43: CASA CIRCONDARIALE ROVIGO N.C. | D43: Attrezzature palestra detenuti | E43: MEPA: affidamento diretto in adesione ad accordo quadro/ convenzione | G43: DESIG ITALIA SRL | H43: € 3,550.67 | I43: 2023-11-22 | J43: 2023-12-19 | K43: € 3,550.67
A44: Z813D82B96 | B44: 80005430295 | C44: CASA CIRCONDARIALE ROVIGO N.C. | D44: Fornitura materiale pulizia e materiale igienico sanitario | E44: MEPA: affidamento diretto in adesione ad accordo quadro/ convenzione | G44: LA CASALINDA SRL | H44: € 4,930.00 | I44: 2023-11-29 | J44: 2023-12-22 | K44: € 4,930.00
A45: Z543D97D7C | B45: 80005430295 | C45: CASA CIRCONDARIALE ROVIGO N.C. | D45: Fornitura materiale pulizia e materiale igienico sanitario | E45: MEPA: affidamento diretto in adesione ad accordo quadro/ convenzione | G45: DITTA DIAMANTE di GALEOTTI Giovanna | H45: € 4,995.80 | I45: 2023-12-04 | J45: 2023-12-19 | K45: € 4,995.80
A46: Z6A3DB1B4A | B46: 80005430295 | C46: CASA CIRCONDARIALE ROVIGO N.C. | D46: Sostituzione plafoniere e relativo smaltimento | E46: MEPA: affidamento diretto in adesione ad accordo quadro/ convenzione | G46: SIRAM SPA | H46: € 27,972.00 | I46: 2023-12-11
A47: ZBF3DA8B85 | B47: 80005430295 | C47: CASA CIRCONDARIALE ROVIGO N.C. | D47: Implementazione impianto dati presso postazioni video colloqui detenuti | E47: MEPA: affidamento diretto in adesione ad accordo quadro/ convenzione | G47: IMPIANTI ELETTRICI DI RUBELLO Lino | H47: € 4,635.00 | I47: 2023-12-07 | J47: 2023-12-22 | K47: =SUM(H47) -> € 4,635.00
A48: Z233DBE4C2 | B48: 80005430295 | C48: CASA CIRCONDARIALE ROVIGO N.C. | D48: Fornitura materiale per corsi di formazione | E48: MEPA: affidamento diretto in adesione ad accordo quadro/ convenzione | G48: INGROS'S FORNITURE SRL | H48: € 6,557.30 | I48: 2023-12-12 | J48: 2023-12-27 | K48: =SUM(H48) -> € 6,557.30
A50: Z45398693D | B50: 80005430295 | C50: CASA CIRCONDARIALE ROVIGO N.C. | D50: Acquisto materiale edile | E50: Affidamento in economia- Affidamento diretto | G50: TECNOSERVICE SRL | H50: € 2,809.47 | I50: 2023-01-17 | J50: 2023-03-07 | K50: =SUM(H50) -> € 2,809.47
A51: ZOC3986D7C | B51: 80005430295 | C51: CASA CIRCONDARIALE ROVIGO N.C. | D51: Acquisto pittura lavabile per pareti | E51: Affidamento in economia- Affidamento diretto | G51: COLORIFICIO FARP SRL | H51: € 860.20 | I51: 2023-01-17 | J51: 2023-03-07 | K51: € 860.20
A52: Z0739B0AC7 | B52: 80005430295 | C52: CASA CIRCONDARIALE ROVIGO N.C. | D52: Acquisto materiale edile | E52: Affidamento in economia- Affidamento diretto | G52: SILLA SAS | H52: € 1,326.45 | I52: 2023-01-27 | J52: 2023-03-07 | K52: € 1,326.45
A53: ZD239C65AC | B53: 80005430295 | C53: CASA CIRCONDARIALE ROVIGO N.C. | D53: Trasporto detenuto con ambulanza | E53: Affidamento in economia- Affidamento diretto | G53: CROCE ROSSA ITALIANA Comitato di Rovigo | H53: € 122.50 | I53: 2023-02-02 | J53: 2023-02-21 | K53: € 122.50
A54: ZE139D2015 | B54: 80005430295 | C54: CASA CIRCONDARIALE ROVIGO N.C. | D54: Intervento presso cucina e lavanderia detenuti | E54: Affidamento in economia- Affidamento diretto | G54: CALORE MAT SRL | H54: € 502.00 | I54: 2023-02-06 | J54: 2023-04-28 | K54: € 502.00
A55: Z4C39D8035 | B55: 80005430295 | C55: CASA CIRCONDARIALE ROVIGO N.C. | D55: Acquisto guanti | E55: Affidamento in economia- Affidamento diretto | G55: D.P.I di MUNERATO Davide | H55: € 425.57 | I55: 2023-02-07 | J55: 2023-04-28 | K55: € 425.57
A56: Z1D39D8144 | B56: 80005430295 | C56: CASA CIRCONDARIALE ROVIGO N.C. | D56: Disinfestazione di locali infetti | E56: Affidamento in economia- Affidamento diretto | G56: CENTRO VENETO DISINFESTAZIONE SRL | H56: € 450.00 | I56: 2023-02-07 | J56: 2023-05-16 | K56: € 450.00
A57: Z0F39E438C | B57: 80005430295 | C57: CASA CIRCONDARIALE ROVIGO N.C. | D57: Intervento per fornitura ed installazione di n.2 incontri elettrici | E57: Affidamento in economia- Affidamento diretto | G57: SECUR-SYSTEM di Richichi Giuseppe | H57: € 800.00 | I57: 2023-02-07 | J57: 2023-03-01 | K57: € 800.00
A58: Z1E39E6DD4 | B58: 80005430295 | C58: CASA CIRCONDARIALE ROVIGO N.C. | D58: Servizio di manutenzione ordinaria bimestrale su attrezzature cucina e lavanderia area detentiva | E58: Affidamento in economia- Affidamento diretto | G58: CALORE MAT SRL | H58: € 1,500.00 | I58: 2023-02-10 | J58: 2023-11-24 | K58: € 1,468.50
A59: Z603A030FC | B59: 80005430295 | C59: CASA CIRCONDARIALE ROVIGO N.C. | D59: Fornitura di ADBLU, Olio e liquido per radiatore per automezzi | E59: Affidamento in economia- Affidamento diretto | G59: NUOVA ALIAUTO SRL unipersonale | H59: € 220.90 | I59: 2023-02-17 | J59: 2023-03-17 | K59: =SUM(H59) -> € 220.90
A60: Z393A12565 | B60: 80005430295 | C60: CASA CIRCONDARIALE ROVIGO N.C. | D60: Acquisto bandiere Italia Europa | E60: Affidamento in economia- Affidamento diretto | G60: ROVIGO PREMIA di Contratti Luca | H60: € 100.00 | I60: 2023-02-22 | J60: 2023-03-09 | K60: =SUM(H60) -> € 100.00
A61: ZD23A20ECE | B61: 80005430295 | C61: CASA CIRCONDARIALE ROVIGO N.C. | D61: Trasporto detenuto con ambulanza | E61: Affidamento in economia- Affidamento diretto | G61: CROCE ROSSA ITALIANA Comitato di Rovigo | H61: € 71.90 | I61: 2023-02-27 | J61: 2023-03-17 | K61: =SUM(H61) -> € 71.90
A62: Z013A321DF | B62: 80005430295 | C62: CASA CIRCONDARIALE ROVIGO N.C. | D62: Trasporto detenuto con mezzo per deambulanti | E62: Affidamento in economia- Affidamento diretto | G62: CROCE ROSSA ITALIANA Comitato di Rovigo | H62: € 193.00 | I62: 2023-03-02 | J62: 2023-03-17 | K62: =SUM(H62) -> € 193.00
A63: ZE33A46688 | B63: 80005430295 | C63: CASA CIRCONDARIALE ROVIGO N.C. | D63: Trasporto detenuto disabile con ambulanza | E63: Affidamento in economia- Affidamento diretto | G63: CROCE ROSSA ITALIANA Comitato di Rovigo | H63: € 1,450.00 | I63: 2023-03-08 | J63: 2023-03-17 | K63: =SUM(H63) -> € 1,450.00
A64: ZA23A5C5AB | B64: 80005430295 | C64: CASA CIRCONDARIALE ROVIGO N.C. | D64: Convenzione psicologo | E64: Affidamento in economia- Affidamento diretto | G64: BONOTTI Daiana | H64: € 9,000.00 | I64: 2023-03-14 | J64: 2023-12-22 | K64: € 8,901.36
A65: Z5B3A5C624 | B65: 80005430295 | C65: CASA CIRCONDARIALE ROVIGO N.C. | D65: Convenzione psicologo | E65: Affidamento in economia- Affidamento diretto | G65: TURLON Valentina | H65: € 9,000.00 | I65: 2023-03-14 | J65: 2023-12-22 | K65: € 8,901.36
A66: Z833A95BDB | B66: 80005430295 | C66: CASA CIRCONDARIALE ROVIGO N.C. | D66: Realizzazione nuova linea telefonica | E66: Affidamento in economia- Affidamento diretto | G66: GSS IMPIANTI SRL | H66: € 1,500.00 | I66: 2023-03-29 | J66: 2023-06-23 | K66: =SUM(H66) -> € 1,500.00
A67: Z623AD7FAC | B67: 80005430295 | C67: CASA CIRCONDARIALE ROVIGO N.C. | D67: Acquisto rubinetti per camere detentive | E67: Affidamento in economia- Affidamento diretto | G67: BARBUIANI SRL | H67: € 343.00 | I67: 2023-04-19 | J67: 2023-06-14 | K67: =SUM(H67) -> € 343.00
A68: Z743AEE388 | B68: 80005430295 | C68: CASA CIRCONDARIALE ROVIGO N.C. | D68: Sistema audio diffusione | E68: Affidamento in economia- Affidamento diretto | G68: GSS IMPIANTI SRL | H68: € 170.00 | I68: 2023-04-07 | J68: 2023-05-31 | K68: =SUM(H68) -> € 170.00
A69: Z263AEE414 | B69: 80005430295 | C69: CASA CIRCONDARIALE ROVIGO N.C. | D69: Manutenzione straordinaria motopompa antincendio | E69: Affidamento in economia- Affidamento diretto | G69: ELETTROMECCANICO di BRIGO Ivano | H69: € 460.00 | I69: 2023-04-27 | J69: 2023-08-01 | K69: =SUM(H69) -> € 460.00
A70: Z893AF28EC | B70: 80005430295 | C70: CASA CIRCONDARIALE ROVIGO N.C. | D70: Fornitura sifoni | E70: Affidamento in economia- Affidamento diretto | G70: BARBUIANI SRL | H70: € 226.50 | I70: 2023-04-28 | J70: 2023-06-14 | K70: =SUM(H70) -> € 226.50
A71: ZC33AF8603 | B71: 80005430295 | C71: CASA CIRCONDARIALE ROVIGO N.C. | D71: Conto di credito | E71: Affidamento in economia- Affidamento diretto | G71: POSTE ITALIANE SPA | H71: € 2,000.00 | I71: 2023-05-02 | J71: 2023-12-12 | K71: € 398.11
A72: Z9E3AFAB1A | B72: 80005430295 | C72: CASA CIRCONDARIALE ROVIGO N.C. | D72: Forniture stampe e pennarelli | E72: Affidamento in economia- Affidamento diretto | G72: CARTOLIBRERIA CAVALLARO DI EDORADO PRADAL | H72: € 89.75 | I72: 2023-05-02 | J72: 2023-05-31 | K72: =SUM(H72) -> € 89.75
A73: ZF53AFFD61 | B73: 80005430295 | C73: CASA CIRCONDARIALE ROVIGO N.C. | D73: Verifica impianti di messa a terra | E73: Affidamento in economia- Affidamento diretto | G73: TRIVENETO SRL | H73: € 2,150.00 | I73: 2023-05-03 | J73: 2023-09-14 | K73: =SUM(H73) -> € 2,150.00
A74: Z983B0494D | B74: 80005430295 | C74: CASA CIRCONDARIALE ROVIGO N.C. | D74: Contratto somministrazione bevande | E74: Affidamento in economia- Affidamento diretto | G74: DALL'AGLIO STATION | H74: € 1,000.00 | I74: 2023-05-04
A75: ZEF3B183F3 | B75: 80005430295 | C75: CASA CIRCONDARIALE ROVIGO N.C. | D75: Fornitura di pittura murale bianca HACCP e rulli per tinteggiatura | E75: Affidamento in economia- Affidamento diretto | G75: COLORIFICIO FARP SRL | H75: € 606.63 | I75: 2023-05-10 | J75: 2023-05-31 | K75: =SUM(H75) -> € 606.63
A76: ZE53B2C7C0 | B76: 80005430295 | C76: CASA CIRCONDARIALE ROVIGO N.C. | D76: Rinnovo per anni 1 contratto noleggio fotocopiatori | E76: Affidamento in economia- Affidamento diretto | G76: KYOCERA Document Solutions Italia SPA | H76: € 1,568.00 | I76: 2023-05-16 | J76: 2023-12-22 | K76: € 784.00
A77: Z473B2FE3B | B77: 80005430295 | C77: CASA CIRCONDARIALE ROVIGO N.C. | D77: Asporto rifiuti ingrombanti e Raee | E77: Affidamento in economia- Affidamento diretto | G77: ECOAMBIENTE SRL | H77: € 950.00 | I77: 2023-05-16 | J77: 2023-11-24 | K77: =SUM(H77) -> € 950.00
A78: Z9F3B580A0 | B78: 80005430295 | C78: CASA CIRCONDARIALE ROVIGO N.C. | D78: n.2 corsi di cablaggio di impianti elettrici | E78: Affidamento in economia- Affidamento diretto | G78: ENAIP VENETO IMPRESA SOCIALE | H78: € 3,300.00 | I78: 2023-05-29 | J78: 2023-12-22 | K78: € 3,300.00
A79: Z923B5810B | B79: 80005430295 | C79: CASA CIRCONDARIALE ROVIGO N.C. | D79: N.2 corsi di manutenzione impianti civili idrotermosanitari e sistemi di scarico-modulo base | E79: Affidamento in economia- Affidamento diretto | G79: ENAIP VENETO IMPRESA SOCIALE | H79: € 3,300.00 | I79: 2023-05-29 | J79: 2023-12-22 | K79: € 3,300.00
A80: Z5E3B5EBA0 | B80: 80005430295 | C80: CASA CIRCONDARIALE ROVIGO N.C. | D80: Richiesta intervento tecnico per ripristino interfono | E80: Affidamento in economia- Affidamento diretto | G80: TECNA SISTEMI di BESSEGATO Vittorio | H80: € 726.00 | I80: 2023-05-30 | J80: 2023-10-03 | K80: € 726.00
A81: ZCF3B6FF33 | B81: 80005430295 | C81: CASA CIRCONDARIALE ROVIGO N.C. | D81: Sostituzione elettropompa gemellare con manodopera | E81: Affidamento in economia- Affidamento diretto | G81: ELETTROMECCANICO di BRIGO Ivano | H81: € 2,568.00 | I81: 2023-06-06 | J81: 2023-08-29 | K81: € 2,568.00
A82: Z6C3B8F402 | B82: 80005430295 | C82: CASA CIRCONDARIALE ROVIGO N.C. | D82: Acquisto attrezzature per sfalcio erba | E82: Affidamento in economia- Affidamento diretto | G82: CENTRO RIPARAZIONE TOSAERBA DI ARGENTON Federico | H82: € 1,350.98 | I82: 2023-06-15 | J82: 2023-07-07 | K82: € 1,350.98
A83: Z5F3B8F568 | B83: 80005430295 | C83: CASA CIRCONDARIALE ROVIGO N.C. | D83: Acquisto lampadine per istituto | E83: Affidamento in economia- Affidamento diretto | G83: METRO SPA | H83: € 477.00 | I83: 2023-06-15 | J83: 2023-08-01 | K83: =SUM(H83) -> € 477.00
A84: ZF53BB0135 | B84: 80005430295 | C84: CASA CIRCONDARIALE ROVIGO N.C. | D84: Manutenzione ordinaria e straordinaria impianto antiscavalcamento | E84: Affidamento in economia- Affidamento diretto | G84: VIS SRL | H84: € 8,400.00 | I84: 2023-06-26
A85: ZB43BD7CAE | B85: 80005430295 | C85: CASA CIRCONDARIALE ROVIGO N.C. | D85: Chiavi penitenziarie in ottone | E85: Affidamento in economia- Affidamento diretto | G85: C.S.M.SNC DI BERTACCO E C. | H85: € 500.00 | I85: 2023-07-10 | J85: 2023-09-14 | K85: € 500.00
A86: Z083BD7E05 | B86: 80005430295 | C86: CASA CIRCONDARIALE ROVIGO N.C. | D86: Filo per decespugliatore | E86: Affidamento in economia- Affidamento diretto | G86: CENTRO RIPARAZIONE TOSAERBA DI ARGENTON Federico | H86: € 63.00 | I86: 2023-07-10 | J86: 2023-09-04 | K86: =SUM(H86) -> € 63.00
A87: Z1D3BD7E24 | B87: 80005430295 | C87: CASA CIRCONDARIALE ROVIGO N.C. | D87: Sanitari in acciaio antivandalismo | E87: Affidamento in economia- Affidamento diretto | G87: RED 2 SRL | H87: € 1,622.60 | I87: 2023-07-10 | J87: 2023-09-14 | K87: € 1,622.60
A88: ZC13BF0E41 | B88: 80005430295 | C88: CASA CIRCONDARIALE ROVIGO N.C. | D88: Acquisto palloni | E88: Affidamento in economia- Affidamento diretto | G88: DESIG ITALIA SRL | H88: € 360.00 | I88: 2023-07-18 | J88: 2023-09-14 | K88: € 360.00
A89: ZC23BF1F31 | B89: 80005430295 | C89: CASA CIRCONDARIALE ROVIGO N.C. | D89: Campionamento ed analisi acqua | E89: Affidamento in economia- Affidamento diretto | G89: PLUMBER SRLS | H89: € 1,310.00 | I89: 2023-07-18 | J89: 2023-11-07 | K89: € 1,310.00
A90: Z7C3C0D343 | B90: 80005430295 | C90: CASA CIRCONDARIALE ROVIGO N.C. | D90: Disinfestazione locali | E90: Affidamento in economia- Affidamento diretto | G90: CENTRO VENETO DISINFESTAZIONE SRL | H90: € 450.00 | I90: 2023-07-28 | J90: 2023-09-14 | K90: € 450.00
A91: Z9F3C00112 | B91: 80005430295 | C91: CASA CIRCONDARIALE ROVIGO N.C. | D91: Fornitura candeggina | E91: Affidamento in economia- Affidamento diretto | G91: BIANCHI INGROSSO SRL | H91: € 205.00 | I91: 2023-07-24 | J91: 2023-10-19 | K91: € 205.00
A92: Z8A3C1672A | B92: 80005430295 | C92: CASA CIRCONDARIALE ROVIGO N.C. | D92: Fornitura carta igienica per detenuti | E92: Affidamento in economia- Affidamento diretto | G92: BIANCHI INGROSSO SRL | H92: € 2,164.32 | I92: 2023-08-01 | J92: 2023-09-14 | K92: =SUM(H92) -> € 2,164.32
A93: Z143C20788 | B93: 80005430295 | C93: CASA CIRCONDARIALE ROVIGO N.C. | D93: Disinfestazione stanza da cimici | E93: Affidamento in economia- Affidamento diretto | G93: CENTRO VENETO DISINFESTAZIONE SRL | H93: € 800.00 | I93: 2023-08-04 | J93: 2023-09-14 | K93: =SUM(H93) -> € 800.00
A94: Z5E3C33CB7 | B94: 80005430295 | C94: CASA CIRCONDARIALE ROVIGO N.C. | D94: Trasporto detenuto disabile con ambulanza | E94: Affidamento in economia- Affidamento diretto | G94: CROCE ROSSA ITALIANA Comitato di Rovigo | H94: € 46.50 | I94: 2023-08-16 | J94: 2023-08-23 | K94: =SUM(H94) -> € 46.50
A95: ZE13C33CBA | B95: 80005430295 | C95: CASA CIRCONDARIALE ROVIGO N.C. | D95: Trasporto detenuto disabile con ambulanza | E95: Affidamento in economia- Affidamento diretto | G95: CROCE ROSSA ITALIANA Comitato di Rovigo | H95: € 46.50 | I95: 2023-08-16 | J95: 2023-08-23 | K95: =SUM(H95) -> € 46.50
A96: Z163C4545A | B96: 80005430295 | C96: CASA CIRCONDARIALE ROVIGO N.C. | D96: Attivazione servizio di ultima istanza gas | E96: Affidamento in economia- Affidamento diretto | G96: HERA COMM SPA | H96: € 25,000.00 | I96: 2023-08-28
A97: ZD23C4821F | B97: 80005430295 | C97: CASA CIRCONDARIALE ROVIGO N.C. | D97: Fornitura materiale informatico | E97: Affidamento in economia- Affidamento diretto | G97: BREVIGLIERI SRL | H97: € 246.00 | I97: 2023-08-29 | J97: 2023-10-11 | K97: =SUM(H97) -> € 246.00
A98: ZA33C4832E | B98: 80005430295 | C98: CASA CIRCONDARIALE ROVIGO N.C. | D98: Disinfestazione camera per cimici da letto | E98: Affidamento in economia- Affidamento diretto | G98: CENTRO VENETO DISINFESTAZIONE SRL | H98: € 800.00 | I98: 2023-08-29 | J98: 2023-11-07 | K98: =SUM(H98) -> € 800.00
A99: Z4D3C51890 | B99: 80005430295 | C99: CASA CIRCONDARIALE ROVIGO N.C. | D99: Acquisto lettore NFC | E99: Affidamento in economia- Affidamento diretto | G99: TIDIEMME FORNITURE SRL Società unipersonale | H99: € 70.25 | I99: 2023-09-01 | J99: 2023-11-14 | K99: € 70.25
A100: Z303C6129C | B100: 80005430295 | C100: CASA CIRCONDARIALE ROVIGO N.C. | D100: Fornitura n.3 switch ethernet | E100: Affidamento in economia- Affidamento diretto | G100: BREVIGLIERI SRL | H100: € 105.00 | I100: 2023-09-07 | J100: 2023-10-11 | K100: € 105.00
A101: Z163C93F46 | B101: 80005430295 | C101: CASA CIRCONDARIALE ROVIGO N.C. | D101: Fornitura in nitrile | E101: Affidamento in economia- Affidamento diretto | G101: D.P.I di MUNERATO Davide | H101: € 462.00 | I101: 2023-09-25 | J101: 2023-11-07 | K101: € 462.00
A102: ZC43C93D26 | B102: 80005430295 | C102: CASA CIRCONDARIALE ROVIGO N.C. | D102: Fornitura materiale ferramenta | E102: Affidamento in economia- Affidamento diretto | G102: FERADRIA SRL | H102: € 356.37 | I102: 2023-09-25
A103: Z4E3CE59A5 | B103: 80005430295 | C103: CASA CIRCONDARIALE ROVIGO N.C. | D103: Sostituzione motore carraia | E103: Affidamento in economia- Affidamento diretto | G103: IMPIANTI ELETTRICI DI RUBELLO Lino | H103: € 710.00 | I103: 2023-10-18 | J103: 2023-11-14 | K103: € 710.00
A104: Z1F3CD3D63 | B104: 80005430295 | C104: CASA CIRCONDARIALE ROVIGO N.C. | D104: Sostituzione vetri camera pernottamento | E104: Affidamento in economia- Affidamento diretto | G104: VETRERIA ADRIESE di Valeria ANDREOTTI | H104: € 950.00 | I104: 2023-10-12 | J104: 2023-12-12 | K104: € 950.00
A105: Z6A3D2765F | B105: 80005430295 | C105: CASA CIRCONDARIALE ROVIGO N.C. | D105: Acquisto libri di testo di italiano | E105: Affidamento in economia- Affidamento diretto | G105: PD4 SRL | H105: € 322.23 | I105: 2023-11-07 | J105: 2023-11-24 | K105: € 322.23
A106: Z9A3D27886 | B106: 80005430295 | C106: CASA CIRCONDARIALE ROVIGO N.C. | D106: Acquisto libri di scuola | E106: Affidamento in economia- Affidamento diretto | G106: LOESCHE EDITORE DIV.ZANICHELLI EDITORE SPA | H106: € 525.90 | I106: 2023-11-07 | J106: 2023-11-24 | K106: € 525.90
A107: Z253D27958 | B107: 80005430295 | C107: CASA CIRCONDARIALE ROVIGO N.C. | D107: Trasporto ambulanza detenuto | E107: Affidamento in economia- Affidamento diretto | G107: CROCE ROSSA ITALIANA Comitato di Rovigo | H107: € 66.00 | I107: 2023-11-07
A108: Z873D28EDB | B108: 80005430295 | C108: CASA CIRCONDARIALE ROVIGO N.C. | D108: Intervento di disinfestazione cimici camere di pernottamento | E108: Affidamento in economia- Affidamento diretto | G108: MY PEST CONTROL SRL | H108: € 700.00 | I108: 2023-11-07 | J108: 2023-12-22 | K108: € 700.00
A109: ZF63D2B985 | B109: 80005430295 | C109: CASA CIRCONDARIALE ROVIGO N.C. | D109: Servizio di salvaguardia energia | E109: Affidamento in economia- Affidamento diretto | G109: A2A ENERGIA SPA | H109: € 20,000.00 | I109: 2023-11-08
A110: ZD53D2BC64 | B110: 80005430295 | C110: CASA CIRCONDARIALE ROVIGO N.C. | D110: Asporto e smaltimento rifiuti ingombranti | E110: Affidamento in economia- Affidamento diretto | G110: ECOAMBIENTE SRL | H110: € 1,520.00 | I110: 2023-11-08
A111: Z953D2C59D | B111: 80005430295 | C111: CASA CIRCONDARIALE ROVIGO N.C. | D111: Ripristino elettrovalvola acqua | E111: Affidamento in economia- Affidamento diretto | G111: RED 2 SRL | H111: € 295.00 | I111: 2023-11-08
A112: Z043D39792 | B112: 80005430295 | C112: CASA CIRCONDARIALE ROVIGO N.C. | D112: Acquisto materiale per automezzi parco auto | E112: Affidamento in economia- Affidamento diretto | G112: NOVALIAUTO SRL | H112: € 180.36 | I112: 2023-11-10 | J112: 2023-11-24 | K112: € 180.36
A113: ZD93D50FA2 | B113: 80005430295 | C113: CASA CIRCONDARIALE ROVIGO N.C. | D113: Espansione centralino detenuti | E113: Affidamento in economia- Affidamento diretto | G113: TECHVISION SISTEMI MULTIMEDIALI SRL | H113: € 4,940.00 | I113: 2023-11-16 | J113: 2023-12-12 | K113: € 4,940.00
A114: ZCB3D510C3 | B114: 80005430295 | C114: CASA CIRCONDARIALE ROVIGO N.C. | D114: Servizio di manutenzione programmata su pompe di sollevamento | E114: Affidamento in economia- Affidamento diretto | G114: PLUMBER SRLS | H114: € 2,146.00 | I114: 2023-11-16
A115: Z143D52DE0 | B115: 80005430295 | C115: CASA CIRCONDARIALE ROVIGO N.C. | D115: Biglietti aerei | E115: Affidamento in economia- Affidamento diretto | G115: CICLOPI VIAGGI SRL | H115: € 2,146.89 | I115: 2023-11-17
A116: Z5B3D5CD38 | B116: 80005430295 | C116: CASA CIRCONDARIALE ROVIGO N.C. | D116: Biglietti aerei | E116: Affidamento in economia- Affidamento diretto | G116: CICLOPI VIAGGI SRL | H116: € 1,292.62 | I116: 2023-11-20
A117: ZD83D5B029 | B117: 80005430295 | C117: CASA CIRCONDARIALE ROVIGO N.C. | D117: Acquisto materiale di cancelleria | E117: Affidamento in economia- Affidamento diretto | G117: SISTERS SRL | H117: € 378.31 | I117: 2023-11-20 | J117: 2023-12-22 | K117: € 378.31
A118: ZCA3D67E35 | B118: 80005430295 | C118: CASA CIRCONDARIALE ROVIGO N.C. | D118: Fornitura materiale idraulico | E118: Affidamento in economia- Affidamento diretto | G118: BARBUJANI SRL | H118: € 3,770.00 | I118: 2023-11-22 | J118: 2023-12-22 | K118: € 3,770.00
A119: ZCA3D8482F | B119: 80005430295 | C119: CASA CIRCONDARIALE ROVIGO N.C. | D119: Acquiasto pneumatico e montaggio | E119: Affidamento in economia- Affidamento diretto | G119: ANDREA MINTO SRL | H119: € 1,086.40 | I119: 2023-11-29 | J119: 2023-12-12 | K119: € 1,086.40
A120: Z7D3D98889 | B120: 80005430295 | C120: CASA CIRCONDARIALE ROVIGO N.C. | D120: Corso per addetti sistema radio protezione | E120: Affidamento in economia- Affidamento diretto | G120: SCOGNAMIGLIO Mario | H120: € 375.00 | I120: 2023-12-04 | J120: 2023-12-12 | K120: € 375.00
A121: Z423DA2146 | B121: 80005430295 | C121: CASA CIRCONDARIALE ROVIGO N.C. | D121: Riparazione e ripristino serramenti in alluminio | E121: Affidamento in economia- Affidamento diretto | G121: OFFICINE ROMAGNOLO DI ROMAGNOLO ANDREA | H121: € 4,950.00 | I121: 2023-12-06 | J121: 2023-12-19 | K121: € 4,950.00
A122: ZB83DB1BB9 | B122: 80005430295 | C122: CASA CIRCONDARIALE ROVIGO N.C. | D122: Acquisto pannelli fonoassorbenti | E122: Affidamento in economia- Affidamento diretto | G122: TECNOSERVICE SRL | H122: € 4,834.73 | I122: 2023-12-11
A123: Z513DB1C65 | B123: 80005430295 | C123: CASA CIRCONDARIALE ROVIGO N.C. | D123: Acquisto sedie e tavolini per sale Skipe | E123: Affidamento in economia- Affidamento diretto | G123: INGROS'S FORNITURE SRL | H123: € 1,910.00 | I123: 2023-12-11 | J123: 2023-12-22 | K123: € 1,910.00
A124: Z593DB2665 | B124: 80005430295 | C124: CASA CIRCONDARIALE ROVIGO N.C. | D124: Servizio di inclusione sociale mediatori culturali | E124: Affidamento in economia- Affidamento diretto | G124: COOPERATIVA SOCIALE DI TUTTI I COLORI | H124: € 9,600.00 | I124: 2023-12-11
A125: Z783DB2CCA | B125: 80005430295 | C125: CASA CIRCONDARIALE ROVIGO N.C. | D125: Acquisto pannelli in cartongesso | E125: Affidamento in economia- Affidamento diretto | G125: SILLA SAS | H125: € 4,104.87 | I125: 2023-12-11 | J125: 2023-12-22 | K125: =SUM(H125) -> € 4,104.87
A126: Z773DB1CD5 | B126: 80005430295 | C126: CASA CIRCONDARIALE ROVIGO N.C. | D126: Acquisto televisori per saletta socialità | E126: Affidamento in economia- Affidamento diretto | G126: PUBBLICOBER SAS | H126: € 4,290.00 | I126: 2023-12-12 | J126: 2023-12-22 | K126: =SUM(H126) -> € 4,290.00
A127: ZAF3DB522A | B127: 80005430295 | C127: CASA CIRCONDARIALE ROVIGO N.C. | D127: Fornitura gettoni per lavanderia detenuti | E127: Affidamento in economia- Affidamento diretto | G127: CALORE MAT SRL | H127: € 700.00 | I127: 2023-12-12 | J127: 2023-12-20 | K127: € 700.00
A128: Z393DBEF97 | B128: 80005430295 | C128: CASA CIRCONDARIALE ROVIGO N.C. | D128: Fornitura toner | E128: Affidamento in economia- Affidamento diretto | G128: SISTERS SRL | H128: € 1,340.70 | I128: 2023-12-13 | J128: 2023-12-27 | K128: € 1,340.70
A129: Z1E3DC02C9 | B129: 80005430295 | C129: CASA CIRCONDARIALE ROVIGO N.C. | D129: Fornitura materiale di ferramenta | E129: Affidamento in economia- Affidamento diretto | G129: FERADRIA SRL | H129: € 1,277.17 | I129: 2023-12-13
A130: ZB83DD6706 | B130: 80005430295 | C130: CASA CIRCONDARIALE ROVIGO N.C. | D130: Intervento straordinario caldaia alloggi | E130: Affidamento in economia- Affidamento diretto | G130: FANTONI SRL | H130: € 160.00 | I130: 2023-12-19

Sheet CC Tolmezzo
A1: Dipartimento Amministrazione Penitenziaria - ISTITUTO CASA CIRCONDARIALE TOLMEZZO - C.F. 93007290302
A2: Contratti di forniture, beni e servizi Anno 2023 Dati aggiornati al 31 dicembre 2023
A3: CIG | B3: Codice Fiscale | C3: Denominazione | D3: Oggetto | E3: Procedura di scelta del contraente | F3: Elenco operatori invitati a presentare offerte | G3: Aggiudicatario | H3: Importo di aggiudicazione | I3: Data Inizio | J3: Data Ultimazione | K3: Somme liquidate (al netto dell'IVA)
A4: Z923983E43 | B4: 1929200267 | C4: gruppo distribuzione petroli | D4: fornitura gasolio per riscaldamento serra | E4: trattativa diretta mepa | F4: gruppo distribuzione petroli | G4: gruppo distribuzione petroli | H4: 610 | I4: 2023-01-16 | J4: 2023-01-20 | K4: 610
A5: ZE1399D8CD | B5: 1170160889 | C5: giannone computers | D5: fornitura stampante termica | E5: trattativa diretta mepa | F5: giannone computers | G5: giannone computers | H5: 364.5 | I5: 2023-01-23 | J5: 2023-01-26 | K5: 364.5
A6: Z4839A8B30 | B6: PCCLSN48R18L483W | C6: dott. Piccolo alessandro | D6: affidamento medico competente | E6: gara libero mercato | F6: piccolo alessandro damian adriano allegra vincenzo daneluzzo roberto esposito pierluigi | G6: dott. Piccolo alessandro | H6: 2500 | I6: 2023-01-25 | J6: 2023-12-31 | K6: 2500
A7: Z3939AB730 | B7: 2871780306 | C7: la ferramenta | D7: fornitura chiavi ingresso direzione | E7: trattativa diretta mepa | F7: la ferramenta | G7: la ferramenta | H7: 136.33 | I7: 2023-01-26 | J7: 2023-01-30 | K7: 136.33
A8: ZE839C098E | B8: 2727860302 | C8: antincendio service | D8: Manutenzione antincendio 2023 | E8: RDO mepa | F8: antincendio service balsamini impianti dos giemme antimcendio help service opi firesape sistemi integrati antincendio | G8: antincendio service | H8: 3000 | I8: 2023-02-01 | J8: 2024-02-28 | K8: 3000
A9: ZE839D7454 | B9: 1512170307 | C9: tecnifix | D9: fornitura stufette per direzione | E9: affidamento diretto | F9: tecnifix | G9: tecnifix | H9: 696 | I9: 2023-02-07 | J9: 2023-02-10 | K9: 696
A10: ZD339DCEC1 | B10: 951990308 | C10: elettronova | D10: fornitura materiale elettrico | E10: trattativa diretta mepa | F10: elettronova | G10: elettronova | H10: 7365.23 | I10: 2023-02-08 | J10: 2023-02-10 | K10: 7365.23
A11: Z7939DD8D0 | B11: 2345960302 | C11: de bug | D11: interventi fotocopiatori 41 bis e segreteria | E11: trattativa diretta mepa | F11: de bug | G11: de bug | H11: 598.36 | I11: 2023-02-08 | J11: 2023-02-11 | K11: 598.36
A12: ZAD39E3253 | B12: 1565670302 | C12: termoel | D12: Manutenzione ordinaria impianti termici | E12: RDO mepa | F12: termoel c.m. termoidraulica carmet idrotermoelettrica idrotherm elettrica marcuzzi mauro siram termoidraulica | G12: termoel | H12: 1700 | I12: 2023-02-09 | J12: 2024-02-28 | K12: 1700
A13: ZC639ECC22 | B13: 600520308 | C13: colormarket | D13: fornitura materiale di pittura | E13: trattativa diretta mepa | F13: colormarket | G13: colormarket | H13: 1570.5 | I13: 2023-02-13 | J13: 2023-02-20 | K13: 1570.5
A14: Z9B3A1C331 | B14: 2765120304 | C14: a.c.b. auto | D14: Manutenzione automezzi 2023/2024 | E14: RDO libero mercato | F14: acb auto autofficina rg motors autofficina miu autoficina recma autofficina mecchia dario oautoficina due g autofficina elettridiesel fior autofficina florit autofficina paschini max | G14: a.c.b. auto | H14: 10000 | I14: 2023-02-24 | J14: 2023-12-31 | K14: 10000
A15: Z503A3FB42 | B15: 1929200267 | C15: gruppo distribuzione petroli | D15: fornitura gasolio riscaldamento serra 41 bis | E15: trattativa diretta mepa | F15: gruppo distribuzione petroli | G15: gruppo distribuzione petroli | H15: 585.22 | I15: 2023-03-07 | J15: 2023-03-10 | K15: 585.22
A16: Z4D3A5032D | B16: 2255590305 | C16: elettrocarnia | D16: fornitura n. 2 aspiratori a torretta | E16: trattativa diretta mepa | F16: elettrocarnia | G16: elettrocarnia | H16: 1240 | I16: 2023-03-10 | J16: 2023-03-15 | K16: 1240
A17: Z843A66057 | B17: 2761070305 | C17: croce rossa italiana | D17: servizio ambulanza trasporto detenuto | E17: affidamento diretto | F17: croce rossa italiana | G17: croce rossa italiana | H17: 3000 | I17: 2023-03-16 | J17: 2023-03-18 | K17: 3000
A18: Z873A66803 | B18: 2576260307 | C18: cigaina | D18: fornitura carta a 4 | E18: ordine diretto mepa | F18: cigaina | G18: cigaina | H18: 1197.64 | I18: 2023-03-16 | J18: 2023-03-16 | K18: 1197.64
A19: Z2E3A758C0 | B19: 2761070305 | C19: croce rossa italiana | D19: servizio ambulanza trasporto detenuto | E19: affidamento diretto | F19: croce rossa italiana | G19: croce rossa italiana | H19: 170 | I19: 2023-03-21 | J19: 2023-03-22 | K19: 170
A20: Z9D3A78174 | B20: 2089580308 | C20: ITM | D20: fornitura toner | E20: trattativa diretta mepa | F20: ITM | G20: ITM | H20: 410 | I20: 2023-03-21 | J20: 2023-03-24 | K20: 410
A21: Z983A79D85 | B21: 2345960302 | C21: De Bug | D21: fornitura fotocopiatore | E21: trattativa diretta mepa | F21: De Bug | G21: De Bug | H21: 600 | I21: 2023-02-08 | J21: 2023-02-10 | K21: 600
A22: Z2F3A82EC3 | B22: 2390920300 | C22: spurgo service | D22: intervento spurgo tubazioni cucina 41 bis | E22: trattativa diretta mepa | F22: spurgo service | G22: spurgo service | H22: 1160 | I22: 2023-03-23 | J22: 2023-03-29 | K22: 1160
A23: ZF03A84463 | B23: 2089580308 | C23: itm | D23: riparazione fotocopiatore reparto 41 bis | E23: affidamento diretto | F23: itm | G23: itm | H23: 55.33 | I23: 2023-03-24 | J23: 2023-03-24 | K23: 55.33
A24: Z3C3A85A77 | B24: 2726950302 | C24: adriaclean | D24: fornitura acqua distillata cucina detenuti | E24: ordine diretto mepa | F24: adriaclean | G24: adriaclean | H24: 545 | I24: 2023-03-24 | J24: 2023-03-24 | K24: 545
A25: Z9B3A89372 | B25: 1789930300 | C25: termonova | D25: fornitura sale addolcitore | E25: trattativa diretta mepa | F25: termonova | G25: termonova | H25: 1216.46 | I25: 2023-03-27 | J25: 2023-03-30 | K25: 1216.46
A26: ZC73AAD604 | B26: 1789930300 | C26: termonova | D26: fornitura materiale idraulico | E26: trattativa diretta mepa | F26: termonova | G26: termonova | H26: 552.87 | I26: 2023-04-05 | J26: 2023-04-11 | K26: 552.87
A27: Z983AB4DB6 | B27: 490900305 | C27: axians | D27: fornitura telefono digitale centralino det. | E27: trattativa diretta mepa | F27: axians | G27: axians | H27: 420 | I27: 2023-04-06 | J27: 2023-04-17 | K27: 420
A28: Z9B3AB9EEB | B28: 2002760300 | C28: allufer | D28: intervento cancello passo carraio | E28: trattativa diretta mepa | F28: allufer | G28: allufer | H28: 760 | I28: 2023-04-11 | J28: 2023-04-13 | K28: 760
A29: Z9E3AC0A99 | B29: 1641800550 | C29: Tecno Office | D29: fornitura toner | E29: ordine diretto mepa | F29: Tecno Office | G29: Tecno Office | H29: 468.84 | I29: 2023-04-12 | J29: 2023-04-12 | K29: 468.84
A30: Z483AC5B59 | B30: 1789930300 | C30: termonova | D30: fornitura materiale idraulico | E30: trattativa diretta mepa | F30: termonova | G30: termonova | H30: 4079.8 | I30: 2023-04-13 | J30: 2023-04-18 | K30: 4079.8
A31: Z033AF34D9 | B31: NSSPRZ69L44L195Q | C31: utensileria carnica | D31: fornitura materiale ferramenta | E31: trattativa diretta mepa | F31: utensileria carnica | G31: utensileria carnica | H31: 978.65 | I31: 2023-04-28 | J31: 2023-05-05 | K31: 978.65
A32: Z8D3B0D386 | B32: 1512170307 | C32: tecno fix | D32: fornitura elettroserratura ingresso 41 bis | E32: affidamento diretto | F32: tecno fix | G32: tecno fix | H32: 42 | I32: 2023-05-08 | J32: 2023-05-08 | K32: 42
A33: Z823B0D671 | B33: 2968540308 | C33: g.l.c. servive | D33: fornitura detergente per forno cucina detenuti | E33: affidamento diretto | F33: g.l.c. servive | G33: g.l.c. servive | H33: 435 | I33: 2023-05-08 | J33: 2023-05-08 | K33: 435
A34: ZEB3B1CA72 | B34: 3887440984 | C34: dexive | D34: fornitura materiale edile | E34: trattativa diretta mepa | F34: dexive | G34: dexive | H34: 334.05 | I34: 2023-05-10 | J34: 2023-05-18 | K34: 334.05
A35: ZA93B1E9AE | B35: 8046760966 | C35: anticimex | D35: Servizio Disinfestazione 2023/2023 | E35: RDO mepa | F35: ambiente e disinfestazione anticimex bio line igiene ambientale clean service cleaner service easy clean la disinfestazione la rondine disinfestazione mantova service tergeste multiservizi | G35: anticimex | H35: 1200 | I35: 2023-05-11 | J35: 2024-05-11 | K35: 1200
A36: Z1C3B2D926 | B36: 2089580308 | C36: I.T.M. | D36: INTERVENTO FOTOCOPIATORE EDUCATORI | E36: trattativa diretta mepa | F36: I.T.M. | G36: I.T.M. | H36: 162.5 | I36: 2023-05-16 | J36: 2023-05-18 | K36: 162.5
A37: Z103B45060 | B37: 3887440984 | C37: dexive | D37: fornitura tute da lavoro per detenuti lavoranti | E37: trattativa diretta mepa | F37: dexive | G37: dexive | H37: 973.8 | I37: 2023-05-23 | J37: 2023-05-26 | K37: 973.8
A38: Z8A3B4F59F | B38: 1789930300 | C38: termonova | D38: fornitura materiale idraulico | E38: trattativa diretta mepa | F38: termonova | G38: termonova | H38: 1465.01 | I38: 2023-05-25 | J38: 2023-05-31 | K38: 1465.01
A39: Z263B63BA3 | B39: 2761070305 | C39: croce rossa italiana | D39: servizio trasporto ambulanza detenuto | E39: affidamento diretto | F39: croce rossa italiana | G39: croce rossa italiana | H39: 100 | I39: 2023-05-31 | J39: 2023-06-01 | K39: 100
A40: Z263B85BCC | B40: 667690044 | C40: la casalinda | D40: fornitura materiale di pulizia | E40: trattativa diretta mepa | F40: la casalinda | G40: la casalinda | H40: 6322 | I40: 2023-06-13 | J40: 2023-06-16 | K40: 6322
A41: Z2E3BA649F | B41: 986670305 | C41: geatti | D41: fornitura attrezzature per cucine | E41: trattativa diretta mepa | F41: geatti | G41: geatti | H41: 3900.8 | I41: 2023-06-22 | J41: 2023-06-28 | K41: 3900.8
A42: ZA73BAC5F2 | B42: 2968540308 | C42: I.G.L.M. | D42: fornitura scarpe antinfortunistiche | E42: ordine diretto mepa | F42: I.G.L.M. | G42: I.G.L.M. | H42: 2232 | I42: 2023-06-23 | J42: 2023-06-23 | K42: 2232
A43: ZF43BB2F05 | B43: FRGDVD45L24E745Y | C43: paper ingross | D43: fornitura asciugacapelli per popolazione detentiva | E43: ordine diretto mepa | F43: paper ingross | G43: paper ingross | H43: 3250 | I43: 2023-06-27 | J43: 2023-06-27 | K43: 3250
A44: Z623BB4B52 | B44: BNRGLN49D05L195L | C44: BG Riparazioni | D44: fornitura e riparazione decespugliatore | E44: trattativa diretta mepa | F44: BG Riparazioni | G44: BG Riparazioni | H44: 975.39 | I44: 2023-06-27 | J44: 2023-07-03 | K44: 975.39
A45: Z063BD14EA | B45: 2761070305 | C45: croce rossa italiana | D45: servizio trasporto detenuto ambulanza | E45: affidamento diretto | F45: croce rossa italiana | G45: croce rossa italiana | H45: 150 | I45: 2023-06-27 | J45: 2023-06-28 | K45: 150
A46: Z063BD14EA | B46: 2761070305 | C46: croce rossa italiana | D46: servizio trasporto detenuto ambulanza | E46: affidamento diretto | F46: croce rossa italiana | G46: croce rossa italiana | H46: 125 | I46: 2023-07-06 | J46: 2023-07-08 | K46: 125
A47: Z253BD2BFA | B47: 1299520302 | C47: vetri artistici | D47: fornitura vetro antisfondamento cabina telefonica | E47: affidamento diretto | F47: vetri artistici | G47: vetri artistici | H47: 38.82 | I47: 2023-07-06 | J47: 2023-07-10 | K47: 38.82
A48: Z4E3BD3125 | B48: 1408080305 | C48: tecno di bergagnini | D48: fornitura motore cappa cucina detenuti | E48: trattativa diretta mepa | F48: tecno di bergagnini | G48: tecno di bergagnini | H48: 1280 | I48: 2023-07-07 | J48: 2023-07-13 | K48: 1280
A49: Z2E3BD44F4 | B49: 3887440984 | C49: dexive | D49: fornitura specchio stradale | E49: affidamento diretto | F49: dexive | G49: dexive | H49: 80.44 | I49: 2023-07-07 | J49: 2023-07-10 | K49: 80.44
A50: Z753BD4F44 | B50: 2255590305 | C50: elettrocarnia | D50: intervento quadro pompe acqua | E50: trattativa diretta mepa | F50: elettrocarnia | G50: elettrocarnia | H50: 587 | I50: 2023-07-07 | J50: 2023-07-13 | K50: 587
A51: Z593BD8A64 | B51: 986670305 | C51: geatti | D51: intervento lavapentole | E51: affidamento diretto | F51: geatti | G51: geatti | H51: 89.13 | I51: 2023-07-10 | J51: 2023-07-10 | K51: 89.13
A52: ZBE3BE38AF | B52: 5602710963 | C52: leroy merlin | D52: fornitura tende per finestre | E52: trattativa diretta mepa | F52: leroy merlin | G52: leroy merlin | H52: 482.71 | I52: 2023-07-14 | J52: 2023-07-19 | K52: 482.71
A53: Z093BE846B | B53: 2039490301 | C53: cartolibreria ravì | D53: fornitura materiale di cancelleria | E53: trattativa diretta mepa | F53: cartolibreria ravì | G53: cartolibreria ravì | H53: 165.92 | I53: 2023-07-17 | J53: 2023-07-20 | K53: 165.92
A54: Z1C3BE84A3 | B54: 2039490301 | C54: cartolibreria ravì | D54: fornitura materiale di cancelleria | E54: trattativa diretta mepa | F54: cartolibreria ravì | G54: cartolibreria ravì | H54: 660 | I54: 2023-07-17 | J54: 2023-07-20 | K54: 660
A55: Z533BF6934 | B55: 1619900309 | C55: Idro spurghi della pietra | D55: servizio spurgo vasca biologica | E55: affidamento diretto | F55: Idro spurghi della pietra | G55: Idro spurghi della pietra | H55: 1400 | I55: 2023-07-20 | J55: 2023-07-28 | K55: 1400
A56: ZBB3BFE261 | B56: 2761070305 | C56: croce rossa italiana | D56: trasporto ambulanza per detenuto | E56: affidamento diretto | G56: croce rossa italiana | H56: 125 | I56: 2023-07-24 | J56: 2023-07-24 | K56: 125
A57: Z973C06DB5 | B57: 2089580308 | C57: itm | D57: fornitura toner | E57: trattativa diretta mepa | F57: itm | G57: itm | H57: 366 | I57: 2023-07-26 | J57: 2023-07-28 | K57: 366
A58: Z693C0AAD8 | B58: 2255590305 | C58: elettrocarnia | D58: intervento quadro pompe acqua sanitaria | E58: trattativa diretta mepa | F58: elettrocarnia | G58: elettrocarnia | H58: 380 | I58: 2023-07-27 | J58: 2023-08-02 | K58: 380
A59: Z083C2DCFB | B59: DLLLVA72P05L195H | C59: del linz alvio | D59: rifacimento scivolo cucina detenuti | E59: affidamento diretto | F59: del linz alvio | G59: del linz alvio | H59: 4844 | I59: 2023-08-10 | J59: 2023-09-22 | K59: 4844
A60: Z713C30DDF | B60: FRGPLA46D09G381Y | C60: ferigo paolo | D60: impianto elettrico lavatrici e asciugatrici sezioni detentive | E60: affidamento diretto | F60: ferigo paolo | G60: ferigo paolo | H60: 28035.29 | I60: 2023-08-11 | J60: 2023-08-11 | K60: 28035.29
A61: Z7F3C32541 | B61: DLLLVA72P05L195H | C61: del linz alvio | D61: realizzazione parcheggio istituto | E61: affidamento diretto | F61: del linz alvio | G61: del linz alvio | H61: 2912.4 | I61: 2023-08-14 | J61: 2023-08-31 | K61: 2912.4
A62: ZC53C34FA7 | B62: 2089580308 | C62: itm | D62: intervento fotocopiatori uff. ragioneria e matricola | E62: trattativa diretta mepa | F62: itm | G62: itm | H62: 330 | I62: 2023-08-17 | J62: 2023-08-21 | K62: 330
A63: Z9B3C462A1 | B63: 1299520302 | C63: vetri artistici | D63: fornitura vetro antisfondamento | E63: affidamento diretto | F63: vetri artistici | G63: vetri artistici | H63: 41.18 | I63: 2023-08-29 | J63: 2023-09-02 | K63: 41.18
A64: Z803C4B1A2 | B64: 1408080305 | C64: tecno di bergagnini | D64: fornitura n. 2 cestelli per pentolone cucina detenuti | E64: trattativa diretta mepa | F64: tecno di bergagnini | G64: tecno di bergagnini | H64: 1180 | I64: 2023-08-30 | J64: 2023-09-04 | K64: 1180
A65: ZD63C4BF02 | B65: 2520590049 | C65: Pro-cura tommaso alfieri | D65: fornitura materiale di pulizia | E65: ordine diretto mepa | F65: Pro-cura tommaso alfieri | G65: Pro-cura tommaso alfieri | H65: 10668 | I65: 2023-08-30 | J65: 2023-08-30 | K65: 10668
A66: ZE03C54611 | B66: 2726950302 | C66: itm | D66: fornitura borse per ufficio posta | E66: trattativa diretta mepa | F66: itm | G66: itm | H66: 60 | I66: 2023-09-04 | J66: 2023-10-19 | K66: 60
A67: Z843C5A4E3 | B67: 2726950302 | C67: adriaclean | D67: fornitura materiale igienico | E67: trattativa diretta mepa | F67: adriaclean | G67: adriaclean | H67: 1225.28 | I67: 2023-09-05 | J67: 2023-09-08 | K67: 1225.28
A68: Z3C3C620A1 | B68: FBRGFR52M06G587U | C68: ecopaper | D68: fornitura carta A3 e A4 | E68: ordine diretto mepa | G68: ecopaper | H68: 1010 | I68: 2023-09-07 | J68: 2023-09-07 | K68: 1010
A69: Z9B3C651C4 | B69: RCHGPP70H25H224T | C69: secursystem | D69: realizzazione reti antigetto sezioni detentive | E69: trattativa diretta mepa | F69: secursystem | G69: secursystem | H69: 35970 | I69: 2023-09-08 | J69: 2023-09-26 | K69: 35970
A70: ZE03C8896D | B70: 2726950302 | C70: adriaclean | D70: fornitura materiale pulizia | E70: ordine diretto mepa | F70: adriaclean | G70: adriaclean | H70: 900 | I70: 2023-09-21 | J70: 2023-09-21 | K70: 900
A71: Z173C88B23 | B71: 2520590049 | C71: Pro-cura tommaso alfieri | D71: fornitura materiale pulizia atom pavimenti | E71: ordine diretto mepa | F71: Pro-cura tommaso alfieri | G71: Pro-cura tommaso alfieri | H71: 760 | I71: 2023-09-21 | J71: 2023-09-21 | K71: 760
A72: Z8F3C8BA30 | B72: MSNMTT85R31A182T | C72: Need For Spray | D72: manutenzione straordinaria ducato | E72: affidamento diretto | F72: Need For Spray | G72: Need For Spray | H72: 1070.93 | I72: 2023-09-21 | J72: 2023-09-21 | K72: 1070.93
A73: Z7D3C8EB43 | B73: 951990308 | C73: elettronova | D73: fornitura materiale elettrico | E73: trattativa diretta mepa | F73: elettronova | G73: elettronova | H73: 288.12 | I73: 2023-09-22 | J73: 2023-09-26 | K73: 288.12
A74: ZAA3C90619 | B74: 1789930300 | C74: termonova | D74: fornitura materiale idraulico | E74: trattativa diretta mepa | F74: termonova | G74: termonova | H74: 2208.37 | I74: 2023-09-22 | J74: 2023-09-27 | K74: 2208.37
A75: Z873C986E9 | B75: 2761070305 | C75: croce rossa italiana | D75: servizio ambulanza trasporto detenuto | E75: affidamento diretto | G75: croce rossa italiana | H75: 1200 | I75: 2023-09-26 | J75: 2023-09-29 | K75: 1200
A76: Z7C3C9D06C | B76: 1408080305 | C76: tecno di bergagnini | D76: riparazione tritacarne e pentolone cucina detenuti | E76: trattativa diretta mepa | F76: tecno di bergagnini | G76: tecno di bergagnini | H76: 780 | I76: 2023-09-27 | J76: 2023-09-29 | K76: 780
A77: Z6D3CAB2CA | B77: 667690044 | C77: la casalinda | D77: fornitura guanti da forno per cucina detenuti | E77: ordine diretto mepa | F77: la casalinda | G77: la casalinda | H77: 680 | I77: 2023-10-02 | J77: 2023-10-02 | K77: 680
A78: Z913CB3226 | B78: 2089580308 | C78: itm | D78: fornitura toner | E78: trattativa diretta mepa | F78: itm | G78: itm | H78: 345 | I78: 2023-10-04 | J78: 2023-10-10 | K78: 345
A79: ZC33CB98D9 | B79: 2871780306 | C79: la ferramenta | D79: fornitura materiale ferramenta | E79: trattativa diretta mepa | F79: la ferramenta | G79: la ferramenta | H79: 130.51 | I79: 2023-10-05 | J79: 2023-10-08 | K79: 130.51
A80: ZCF3CB9924 | B80: 600520308 | C80: colormarket | D80: fornitura materiale verniciante | E80: trattativa diretta mepa | F80: colormarket | G80: colormarket | H80: 1017.1 | I80: 2023-10-05 | J80: 2023-10-13 | K80: 1017.1
A81: ZE43CDB041 | B81: 600520308 | C81: colormarket | D81: fornitura materiale di igiene e pulizia | E81: trattativa diretta mepa | F81: colormarket | G81: colormarket | H81: 3920 | I81: 2023-10-16 | J81: 2023-10-18 | K81: 3920
A82: Z903CE9F66 | B82: 2002760300 | C82: allufer | D82: fornitura serratura ingresso spaccio | E82: trattativa diretta mepa | F82: allufer | G82: allufer | H82: 52 | I82: 2023-10-19 | J82: 2023-10-23 | K82: 52
A83: ZE53CEB940 | B83: 1408080305 | C83: tecno di bergagnini | D83: fornitura attrezzature cucina detenuti | E83: trattativa diretta mepa | F83: tecno di bergagnini | G83: tecno di bergagnini | H83: 3290.1 | I83: 2023-10-19 | J83: 2023-10-23 | K83: 3290.1
A84: ZC93CED500 | B84: MSNMTT85R31A182T | C84: secursystem | D84: manutenzione davanzali finestre detentive | E84: trattativa diretta mepa | F84: secursystem | G84: secursystem | H84: 5000 | I84: 2023-10-19 | J84: 2023-10-24 | K84: 5000
A85: Z723CF0EEE | B85: 1408080305 | C85: tecno di bergagnini | D85: intervento attrezzature cucine | E85: trattativa diretta mepa | F85: tecno di bergagnini | G85: tecno di bergagnini | H85: 338 | I85: 2023-10-19 | J85: 2023-10-23 | K85: 338
A86: ZA93CFE7BB | B86: 2089580308 | C86: itm | D86: fornitura toner | E86: trattativa diretta mepa | F86: itm | G86: itm | H86: 78 | I86: 2023-10-25 | J86: 2023-10-27 | K86: 78
A87: Z603D1565C | B87: 2761070305 | C87: croce rossa italiana | D87: servizio ambulanza trasporto detenuto | E87: affidamento diretto | G87: croce rossa italiana | H87: 100 | I87: 2023-10-31 | J87: 2023-11-03 | K87: 100
A88: Z843D2AF62 | B88: 2761070305 | C88: croce rossa italiana | D88: servizio ambulanza trasporto detenuto | E88: affidamento diretto | G88: croce rossa italiana | H88: 100 | I88: 2023-11-07 | J88: 2023-11-08 | K88: 100
A89: Z773D372EA | B89: 2665060303 | C89: coms | D89: sostituzione pompe vasca biologica | E89: trattativa diretta mepa | F89: coms | G89: coms | H89: 19500 | I89: 2023-11-10 | J89: 2023-11-15 | K89: 19500
A90: Z493D3A63F | B90: 2089580308 | C90: itm | D90: intervento fotocopiatore ufficio matricola | E90: trattativa diretta mepa | F90: itm | G90: itm | H90: 50 | I90: 2023-11-10 | J90: 2023-12-07 | K90: 50
A91: Z133D491B6 | B91: 9381751008 | C91: techvision | D91: intervento centralino detenuti | E91: affidamento diretto | F91: techvision | G91: techvision | H91: 45 | I91: 2023-11-15 | J91: 2023-11-15 | K91: 45
A92: ZE63D52CA1 | B92: 10527040967 | C92: yes ticket | D92: fornitura buoni pasto con scadenza 30/11/2024 | E92: affidamento diretto | G92: yes ticket | H92: 1400 | I92: 2023-11-17 | J92: 2024-11-30 | K92: 1400
A93: ZEC3D543D1 | B93: 1565670302 | C93: termoel | D93: integrazione impianto riscaldamento direzione | E93: trattativa diretta mepa | F93: termoel | G93: termoel | H93: 4000 | I93: 2023-11-17 | J93: 2023-11-27 | K93: 4000
A94: Z323D5B958 | B94: 604930701 | C94: f.lli pavone | D94: fornitura materiale pulizia | E94: trattativa diretta mepa | F94: f.lli pavone | G94: f.lli pavone | H94: 10681.71 | I94: 2023-11-20 | J94: 2023-11-22 | K94: 10681.71
A95: ZF53D5FF8D | B95: 986670305 | C95: geatti | D95: fornitura attrezzature cucina | E95: trattativa diretta mepa | F95: geatti | G95: geatti | H95: 1357 | I95: 2023-11-21 | J95: 2023-11-24 | K95: 1357
A96: Z0B3D60EEB | B96: 2726950302 | C96: adriaclean | D96: fornitura vestiario detenuti lavoranti cucina | E96: trattativa diretta mepa | F96: adriaclean | G96: adriaclean | H96: 744 | I96: 2023-11-21 | J96: 2023-11-23 | K96: 744
A97: ZCD3D8F47A | B97: 1260810302 | C97: carnia pneus | D97: CAMBIO GOMME TALENTO PP453AG | E97: trattativa diretta mepa | F97: carnia pneus | G97: carnia pneus | H97: 820 | I97: 2023-12-01 | J97: 2023-12-15 | K97: 820
A98: Z003D8F908 | B98: 2089580308 | C98: ITM | D98: intervento fotocopiatore segreteria | E98: trattativa diretta mepa | F98: itm | G98: ITM | H98: 60 | I98: 2023-11-01 | J98: 2023-11-15 | K98: 60
A99: ZD03D9DEA3 | B99: 5174780659 | C99: desig italia | D99: fornitura ping pong | E99: trattativa diretta mepa | F99: desig italia | G99: desig italia | H99: 930 | I99: 2023-12-05 | J99: 2023-01-03 | K99: 930
A100: Z323DA3A60 | B100: 2039490301 | C100: cartolibreria ravì | D100: fornitura materiale ricreativo detenuti | E100: trattativa diretta mepa | G100: cartolibreria ravì | H100: 715 | I100: 2023-12-06 | J100: 2023-12-12 | K100: 715
A101: Z693DAE809 | B101: 2968540308 | C101: g.l.c. servive | D101: fornitura detergente per pulizia forno cucina detenuti | E101: affidamento diretto | F101: g.l.c. servive | G101: g.l.c. servive | H101: 870 | I101: 2023-12-11 | J101: 2023-12-11 | K101: 870
A102: Z683DC6B0D | B102: 1408080305 | C102: tecno di bergagnini | D102: FORNITURA ATTREZZATURE CUCINA | E102: trattativa diretta mepa | F102: tecno di bergagnini | G102: tecno di bergagnini | H102: 2540.16 | I102: 2023-12-14 | J102: 2023-12-18 | K102: 2540.16
A103: Z7C3DC6D80 | B103: 1408080305 | C103: tecno di bergagnini | D103: FORNITURA ATTREZZATURE CUCINA | E103: trattativa diretta mepa | F103: tecno di bergagnini | G103: tecno di bergagnini | H103: 3404 | I103: 2023-12-14 | J103: 2023-12-18 | K103: 3404
A104: Z893DC72F7 | B104: 2576260307 | C104: cigaina | D104: ACQUISTO CARTA SCUOLA DETENUTI | E104: ordine diretto mepa | F104: cigaina | G104: cigaina | H104: 858 | I104: 2023-12-14 | J104: 2023-12-14 | K104: 858
A105: ZC33DCDCCD | B105: 5174780659 | C105: desig italia | D105: fornitura attrezzature palestra detenuti | E105: trattativa diretta mepa | F105: desig italia | G105: desig italia | H105: 1196.8 | I105: 2023-12-15 | J105: 2023-12-19 | K105: 1196.8
A106: ZCF3DD054B | B106: 9381751008 | C106: techvision | D106: fornitura telefoni cordless per esigenze l'Istituto | E106: ordine diretto mepa | G106: techvision | H106: 174.5 | I106: 2023-12-18 | J106: 2023-12-18 | K106: 174.5
A107: Z2D3DD127F | B107: 2345960302 | C107: de bug | D107: intervento fotocopiatori scuola detenuti | E107: trattativa diretta mepa | F107: de bug | G107: de bug | H107: 2341 | I107: 2023-12-18 | J107: 2023-12-22 | K107: 2341
A108: Z383DD1867 | B108: 14285721008 | C108: toolbox | D108: fornitura toner scuola detenuti | E108: trattativa diretta mepa | F108: toolbox | G108: toolbox | H108: 533 | I108: 2023-12-18 | J108: 2023-12-22 | K108: 533
A109: Z903DD68FD | B109: 2885880308 | C109: foto livio | D109: servizio fototessere personale di P.P. | E109: affidamento diretto | F109: foto livio | G109: foto livio | H109: 120.54 | I109: 2023-12-19 | J109: 2023-12-19 | K109: 120.54
A110: ZB03DDE54F | B110: 1619900309 | C110: Idro spurghi della pietra | D110: servizio spurgo fossa biologica | E110: affidamento diretto | F110: Idro spurghi della pietra | G110: Idrospurghi della pietra | H110: 1114 | I110: 2023-12-20 | J110: 2023-12-20 | K110: 1114

Sheet CC Trento
A1: Dipartimento Amministrazione Penitenziaria - ISTITUTO CASA CIRCONDARIALE TRENTO - C.F. 00314740226
A2: Contratti di forniture, beni e servizi Anno 2023 Dati aggiornati al 31 dicembre 2023
A3: CIG | B3: Codice Fiscale | C3: Denominazione | D3: Oggetto | E3: Procedura di scelta del contraente | F3: Elenco operatori invitati a presentare offerte | G3: Aggiudicatario | H3: Importo di aggiudicazione | I3: Data Inizio | J3: Data Ultimazione | K3: Somme liquidate (al netto dell'IVA)
A4: Z7237D9A52 | B4: 00103730230 | C4: SIMEVIGNUDA SPA | D4: MATERIALE ELETTRICO PER LAVORI MOF | E4: SISTEMA DINAMICO DI ACQUISIZIONE | F4: SIMEVIGNUDA SPA | G4: SIMEVIGNUDA SPA | H4: € 2,748.05 | I4: 2022-09-21 | J4: 2023-12-31
A5: ZA7397B8B2 | B5: 02107500221 | C5: VENATURE SOC. COOP. | D5: SERVIZIO DI LAVANDERIA DICEMBRE 2022 | E5: AFFIDAMENTO DIRETTO | F5: VENATURE SOC. COOP. | G5: VENATURE SOC. COOP. | H5: € 4,636.80 | I5: 2023-01-12 | J5: 2023-12-31
A6: Z1A39858BF | B6: 02679840211 | C6: LOEFF SYSTEM GMBH - SRL | D6: ACQUISTO MATERIALE CANCELLERIA 2023 | E6: SISTEMA DINAMICO DI ACQUISIZIONE | F6: LOEFF SYSTEM GMBH - SRL | G6: LOEFF SYSTEM GMBH - SRL | H6: € 3,318.16 | I6: 2023-01-16 | J6: 2023-12-31
A7: Z0839858CC | B7: 00688550227 | C7: FA.MAR.SRL | D7: INTERVENTO URGENTE FABBRO SU CANCELLO | E7: AFFIDAMENTO DIRETTO | F7: FA.MAR.SRL | G7: FA.MAR.SRL | H7: € 1,195.00 | I7: 2023-01-16 | J7: 2023-12-31
A8: ZBB3990590 | B8: 02212470229 | C8: HOTEL STELLA ALPINA | D8: PRENOTAZIONE N. 2 CAMERE PER POL. PEN. | E8: AFFIDAMENTO DIRETTO | F8: HOTEL STELLA ALPINA | G8: HOTEL STELLA ALPINA | H8: € 1,260.00 | I8: 2023-01-18 | J8: 2023-12-31
A9: Z3D39ABD2B | B9: 00927290221 | C9: ELETTROCASA SRL | D9: ACQUISTO VIDEOCAMERA | E9: SISTEMA DINAMICO DI ACQUISIZIONE | F9: ELETTROCASA SRL | G9: ELETTROCASA SRL | H9: € 550.00 | I9: 2023-01-26 | J9: 2023-12-31
A10: Z5339AFCF2 | B10: 01292890223 | C10: NEW PHOTO SNC | D10: PRODUZIONE FOTOTESSERE PERSONALE POL.PEN | E10: AFFIDAMENTO DIRETTO | F10: NEW PHOTO SNC | G10: NEW PHOTO SNC | H10: € 100.00 | I10: 2023-01-26 | J10: 2023-12-31
A11: ZE539AFD14 | B11: 97103880585 | C11: POSTE ITALIANE | D11: SPESE POSTALI ANNO 2023 | E11: AFFIDAMENTO DIRETTO | F11: POSTE ITALIANE | G11: POSTE ITALIANE | H11: € 100.00 | I11: 2023-01-26 | J11: 2023-12-31
A12: Z8739AFD3C | B12: 01668710229 | C12: EUROPADIESEL | D12: SERVIZIO MANUTENZIONE AUTOMEZZI PESANTI 2023 | E12: AFFIDAMENTO DIRETTO | F12: EUROPADIESEL | G12: EUROPADIESEL | H12: € 100.00 | I12: 2023-01-26 | J12: 2023-12-31
A13: Z4239AFD44 | B13: 01965310228 | C13: CARROZZERIA GILDO SRL | D13: SERVIZIO MANUTENZIONE AUTOMEZZI LEGGERI 2023 | E13: AFFIDAMENTO DIRETTO | F13: CARROZZERIA GILDO SRL | G13: CARROZZERIA GILDO SRL | H13: € 100.00 | I13: 2023-01-26 | J13: 2023-12-31
A14: Z6D39BE671 | B14: 01510980228 | C14: CRISTOFORETTI SERVIZI ENERGIA | D14: SOSTITUZIONE POMPA SOMMERSA SOTT. 4 | E14: SISTEMA DINAMICO DI ACQUISIZIONE | F14: CRISTOFORETTI SERVIZI ENERGIA | G14: CRISTOFORETTI SERVIZI ENERGIA | H14: € 898.00 | I14: 2023-01-31 | J14: 2023-12-31
A15: Z2039C4B44 | B15: 01510980228 | C15: CRISTOFORETTI SERVIZI ENERGIA | D15: MANUTENZIONE SOTTOSTAZIONE ALLOGGI DEMANIALI | E15: SISTEMA DINAMICO DI ACQUISIZIONE | F15: CRISTOFORETTI SERVIZI ENERGIA | G15: CRISTOFORETTI SERVIZI ENERGIA | H15: € 2,432.00 | I15: 2023-02-01 | J15: 2023-12-31
A16: Z8939C9897 | B16: 02414540225 | C16: ALMAX AUTOMAZIONI | D16: RIPARAZIONE BASCULANTE ALLOGGI DEMANIALI | E16: AFFIDAMENTO DIRETTO | F16: ALMAX AUTOMAZIONI | G16: ALMAX AUTOMAZIONI | H16: € 398.33 | I16: 2023-02-02 | J16: 2023-12-31
A17: Z7D39C9D33 | B17: 01905350227 | C17: GIACCA COSTRUZIONI | D17: LAVORI ELETTRICI SU FABBRICATO | E17: AFFIDAMENTO DIRETTO | F17: GIACCA COSTRUZIONI | G17: GIACCA COSTRUZIONI | H17: € 853.00 | I17: 2023-02-02 | J17: 2023-12-31
A18: ZF139D5375 | B18: 09381751008 | C18: TECHVISION SISTEMI MULTIMEDIALI | D18: TELEFONI DETENUTI | E18: AFFIDAMENTO DIRETTO | F18: TECHVISION SISTEMI MULTIMEDIALI | G18: TECHVISION SISTEMI MULTIMEDIALI | H18: € 396.00 | I18: 2023-02-06 | J18: 2023-12-31
A19: ZEA39DADBC | B19: 01529420224 | C19: ANDREOLLI GRANDIMPIANTI SRL | D19: ACQUISTO LAVATRICI | E19: SISTEMA DINAMICO DI ACQUISIZIONE | F19: ANDREOLLI GRANDIMPIANTI SRL | G19: ANDREOLLI GRANDIMPIANTI SRL | H19: € 27,350.00 | I19: 2023-02-07 | J19: 2023-12-31
A20: ZBB39DF07C | B20: 02414540225 | C20: ALMAX AUTOMAZIONI | D20: MANUTENZIONE CANCELLO PRINCIPALE ISTITUTO | E20: SISTEMA DINAMICO DI ACQUISIZIONE | F20: ALMAX AUTOMAZIONI | G20: ALMAX AUTOMAZIONI | H20: € 312.00 | I20: 2023-02-08 | J20: 2023-12-31
A21: Z9939DF411 | B21: 02107500221 | C21: VENATURE SOC. COOP. | D21: SERVIZIO DI LAVANDERIA GENNAIO 2023 | E21: AFFIDAMENTO DIRETTO | F21: VENATURE SOC. COOP. | G21: VENATURE SOC. COOP. | H21: € 3,631.20 | I21: 2023-02-08 | J21: 2023-12-31
A22: Z4339E80A0 | B22: 01510980228 | C22: CRISTOFORETTI SERVIZI ENERGIA | D22: INTERVENTO SU CALDAIA ALLOGGI DEMANIALI | E22: SISTEMA DINAMICO DI ACQUISIZIONE | F22: CRISTOFORETTI SERVIZI ENERGIA | G22: CRISTOFORETTI SERVIZI ENERGIA | H22: € 419.00 | I22: 2023-02-10 | J22: 2023-12-31
A23: Z3D39EC695 | B23: 00162840227 | C23: IORATTI | D23: MANUTENZIONE CARRELLI ELEVATORI 2023 | E23: AFFIDAMENTO DIRETTO | F23: IORATTI | G23: IORATTI | H23: € 262.00 | I23: 2023-02-13 | J23: 2023-12-31
A24: ZE139EEEDD | B24: 02992690210 | C24: SE GROUP SRL | D24: CERTIFICAZIONI HACCP PER DETENUTI | E24: SISTEMA DINAMICO DI ACQUISIZIONE | F24: SE GROUP SRL | G24: SE GROUP SRL | H24: € 550.00 | I24: 2023-02-13 | J24: 2023-12-31
A25: ZAA39FDDFB | B25: 04033260276 | C25: ANDREA MINTO SPA | D25: ACQUISTO PNEUMATICI RODGARD | E25: AFFIDAMENTO DIRETTO | F25: ANDREA MINTO SPA | G25: ANDREA MINTO SPA | H25: € 7,018.40 | I25: 2023-02-16 | J25: 2023-12-31
A26: ZA239FE1B5 | B26: 05253170962 | C26: 3S SRL | D26: ACQUISTO PNEUMATICI RODGARD PP 545 AF | E26: AFFIDAMENTO DIRETTO | F26: 3S SRL | G26: 3S SRL | H26: € 2,475.20 | I26: 2023-02-16 | J26: 2023-12-31
A27: ZB33A0E536 | B27: 08872790152 | C27: MICROCONTROL ELECTRONIC | D27: ATTIVAZIONE MACCHINA RAGGI X ASTROPHYSICS | E27: SISTEMA DINAMICO DI ACQUISIZIONE | F27: MICROCONTROL ELECTRONIC | G27: MICROCONTROL ELECTRONIC | H27: € 3,350.90 | I27: 2023-02-21 | J27: 2023-12-31
A28: Z173A0E553 | B28: 00068930528 | C28: MODERNINFISSI SRL | D28: MANUTENZIONE CELLE E VARCHI | E28: SISTEMA DINAMICO DI ACQUISIZIONE | F28: MODERNINFISSI SRL | G28: MODERNINFISSI SRL | H28: € 15,900.00 | I28: 2023-02-21 | J28: 2023-12-31
A29: Z863A10439 | B29: 02992690210 | C29: SE GROUP SRL | D29: CORSO DI FORMAZIONE DETENUTI LAVORANTI ANNO 2023 | E29: SISTEMA DINAMICO DI ACQUISIZIONE | F29: SE GROUP SRL | G29: SE GROUP SRL | H29: € 7,800.00 | I29: 2023-02-22 | J29: 2023-12-31
A30: ZDC3A11B67 | B30: 02054490228 | C30: PEDROTTI SRL | D30: SOCCORSO STRADALE PP 164 AE | E30: AFFIDAMENTO DIRETTO | F30: PEDROTTI SRL | G30: PEDROTTI SRL | H30: € 180.00 | I30: 2023-02-22 | J30: 2023-12-31
A31: Z0A3A2001E | B31: 01080200338 | C31: SPAZIO SPA | D31: FORNITURA MATERIALE IDRAULICO | E31: AFFIDAMENTO DIRETTO | F31: SPAZIO SPA | G31: SPAZIO SPA | H31: € 1,258.85 | I31: 2023-02-27 | J31: 2023-12-31
A32: ZC73A438BF | B32: 01510980228 | C32: CRISTOFORETTI SERVIZI ENERGIA | D32: MANUTENZIONE SOTTOSTAZIONE 5 - VALVOLA COWFLOW | E32: AFFIDAMENTO DIRETTO | F32: CRISTOFORETTI SERVIZI ENERGIA | G32: CRISTOFORETTI SERVIZI ENERGIA | H32: € 822.00 | I32: 2023-03-07 | J32: 2023-12-31
A33: Z033A438DD | B33: 00103730230 | C33: SIMEVIGNUDA SPA | D33: MATERIALE ELETTRICO | E33: SISTEMA DINAMICO DI ACQUISIZIONE | F33: SIMEVIGNUDA SPA | G33: SIMEVIGNUDA SPA | H33: € 1,028.07 | I33: 2023-03-07 | J33: 2023-12-31
A34: Z623A438FA | B34: 05330700286 | C34: BIANCHI INGROSSO SRL | D34: ACQUISTO MATERIALE IGIENICO | E34: SISTEMA DINAMICO DI ACQUISIZIONE | F34: BIANCHI INGROSSO SRL | G34: BIANCHI INGROSSO SRL | H34: € 5,900.16 | I34: 2023-03-07 | J34: 2023-12-31
A35: ZA93A4492C | B35: 01649540935 | C35: TESAN SNC | D35: MANUTENZIONE APERTURE ELETTRICHE | E35: AFFIDAMENTO DIRETTO | F35: TESAN SNC | G35: TESAN SNC | H35: € 2,600.00 | I35: 2023-03-07 | J35: 2023-12-31
A36: Z713A49834 | B36: 00751160151 | C36: SIEMENS SPA | D36: MANUTENZIONE IMPIANTO RIV. FUMI | E36: SISTEMA DINAMICO DI ACQUISIZIONE | F36: SIEMENS SPA | G36: SIEMENS SPA | H36: € 4,140.29 | I36: 2023-03-08 | J36: 2023-12-31
A37: ZA63A4B437 | B37: 01259630224 | C37: WEGHER SRL | D37: SOSTITUZIONE RIVELATORI OTTICI LOCALE INERGEN | E37: SISTEMA DINAMICO DI ACQUISIZIONE | F37: WEGHER SRL | G37: WEGHER SRL | H37: € 790.00 | I37: 2023-03-09 | J37: 2023-12-31
A38: Z253A4BE8C | B38: 01259630225 | C38: TRENITALIA SPA | D38: CONVENZIONE TRENITALIA FOR BUSINESS_B2B | E38: AFFIDAMENTO DIRETTO | F38: TRENITALIA SPA | G38: TRENITALIA SPA | H38: € 5,000.00 | I38: 2023-03-09 | J38: 2023-12-31
A39: ZCC3A4E999 | B39: 01658950223 | C39: IDROFORNITURE SRL | D39: ACQUISTO MATERIALE IDRAULICO | E39: AFFIDAMENTO DIRETTO | F39: IDROFORNITURE SRL | G39: IDROFORNITURE SRL | H39: € 4,500.34 | I39: 2023-03-09 | J39: 2023-12-31
A40: Z763A4EAEE | B40: 01218180089 | C40: PRESTO ITALIA SRL | D40: ACQUISTO MATERIALE IDRAULICO - PRESTO | E40: SISTEMA DINAMICO DI ACQUISIZIONE | F40: PRESTO ITALIA SRL | G40: PRESTO ITALIA SRL | H40: € 3,948.00 | I40: 2023-03-09 | J40: 2023-12-31
A41: Z453A51792 | B41: 12899760156 | C41: KONE SPA | D41: MANUTENZIONE STRAORDINARIA SU ASCENSORE SEZ. FEMMINILE | E41: AFFIDAMENTO DIRETTO | F41: KONE SPA | G41: KONE SPA | H41: € 429.00 | I41: 2023-03-10 | J41: 2023-12-31
A42: Z543A57CAE | B42: 01510980228 | C42: CRISTOFORETTI SERVIZI ENERGIA | D42: MANUTENZIONE STRAORDINARIA ALLOGGI DEMANIALI | E42: AFFIDAMENTO DIRETTO | F42: CRISTOFORETTI SERVIZI ENERGIA | G42: CRISTOFORETTI SERVIZI ENERGIA | H42: € 924.00 | I42: 2023-03-13 | J42: 2023-12-31
A43: Z483A67F3B | B43: 02212470229 | C43: HOTEL PLATZ | D43: PRENOTAZIONE CAMERE DI PERNOTTAMENTO ORTISEI | E43: AFFIDAMENTO DIRETTO | F43: HOTEL PLATZ | G43: HOTEL PLATZ | H43: € 2,400.00 | I43: 2023-03-16 | J43: 2023-12-31
A44: ZA03A6AD80 | B44: 02316361209 | C44: SISTERS SRL | D44: FORNITURA TONER | E44: AFFIDAMENTO DIRETTO | F44: SISTERS SRL | G44: SISTERS SRL | H44: € 223.70 | I44: 2023-03-17 | J44: 2023-12-31
A45: Z7E3A6B7F2 | B45: 00312220221 | C45: VIGILIO FRANZINELLI | D45: MATERIALE MOF | E45: AFFIDAMENTO DIRETTO | F45: VIGILIO FRANZINELLI | G45: VIGILIO FRANZINELLI | H45: € 127.20 | I45: 2023-03-17 | J45: 2023-12-31
A46: Z2C3A75640 | B46: 01905350227 | C46: GIACCA COSTRUZIONI | D46: LAMPADE D'EMERGENZA ALLOGGI DEMANIALI PER RINNOVO CPI | E46: AFFIDAMENTO DIRETTO | F46: GIACCA COSTRUZIONI | G46: GIACCA COSTRUZIONI | H46: € 1,298.00 | I46: 2023-03-21 | J46: 2023-12-31
A47: ZA93A7569B | B47: 01510980228 | C47: CRISTOFORETTI SERVIZI ENERGIA | D47: MANUTENZIONE ALLOGGI DEMANIALI | E47: AFFIDAMENTO DIRETTO | F47: CRISTOFORETTI SERVIZI ENERGIA | G47: CRISTOFORETTI SERVIZI ENERGIA | H47: € 223.00 | I47: 2023-03-21 | J47: 2023-12-31
A48: Z113A756D1 | B48: 02282830229 | C48: PROJECT SRL | D48: FORNITURA VETRI PLEXIGLASS | E48: AFFIDAMENTO DIRETTO | F48: PROJECT SRL | G48: PROJECT SRL | H48: € 1,079.20 | I48: 2023-03-21 | J48: 2023-12-31
A49: Z0A3A76D71 | B49: 01965310228 | C49: CARROZZERIA GILDO SRL | D49: SOSTITUZIONE PNEUMATICI | E49: AFFIDAMENTO DIRETTO | F49: CARROZZERIA GILDO SRL | G49: CARROZZERIA GILDO SRL | H49: € 3,565.00 | I49: 2023-03-21 | J49: 2023-12-31
A50: Z343A7CD15 | B50: 02679840211 | C50: LOEFF SYSTEM GMBH - SRL | D50: MATERIALE CANCELLERIA | E50: AFFIDAMENTO DIRETTO | F50: LOEFF SYSTEM GMBH - SRL | G50: LOEFF SYSTEM GMBH - SRL | H50: € 230.93 | I50: 2023-03-22 | J50: 2023-12-31
A51: Z103A83131 | B51: 01529420224 | C51: ANDREOLLI GRANDIMPIANTI SRL | D51: MANUTENZIONE ATTREZZATURE CUCINA | E51: AFFIDAMENTO DIRETTO | F51: ANDREOLLI GRANDIMPIANTI SRL | G51: ANDREOLLI GRANDIMPIANTI SRL | H51: € 2,896.00 | I51: 2023-03-23 | J51: 2023-12-31
A52: ZA83A832F1 | B52: 01529420224 | C52: ANDREOLLI GRANDIMPIANTI SRL | D52: ACQUISTO FORNO SEMILIBERI | E52: AFFIDAMENTO DIRETTO | F52: ANDREOLLI GRANDIMPIANTI SRL | G52: ANDREOLLI GRANDIMPIANTI SRL | H52: € 925.00 | I52: 2023-03-23 | J52: 2023-12-31
A53: ZCD3AB0F85 | B53: 01112360225 | C53: COIFFEUR SERVICE | D53: ACQUISTO MATERIALE BARBERIA | E53: AFFIDAMENTO DIRETTO | F53: COIFFEUR SERVICE | G53: COIFFEUR SERVICE | H53: € 701.10 | I53: 2023-04-05 | J53: 2023-12-31
A54: Z2D3AC90DC | B54: 02906340217 | C54: CROCE ROSSA ITALIANA | D54: TRASFERTA IN AMBULANZA 18/04/2023 | E54: AFFIDAMENTO DIRETTO | F54: CROCE ROSSA ITALIANA | G54: CROCE ROSSA ITALIANA | H54: € 100.00 | I54: 2023-04-14 | J54: 2023-12-31
A55: ZBD3AC926A | B55: 02107500221 | C55: VENATURE SOC. COOP. | D55: SERVIZIO DI LAVANDERIA FEBBRAIO 2023 | E55: AFFIDAMENTO DIRETTO | F55: VENATURE SOC. COOP. | G55: VENATURE SOC. COOP. | H55: € 3,496.80 | I55: 2023-04-14 | J55: 2023-12-31
A56: Z083ACD844 | B56: 01259630224 | C56: WEGHER SRL | D56: SERVIZIO DI MANUTENZIONE IMPIANTO ANTINCENDIO LOTTO 1 | E56: SISTEMA DINAMICO DI ACQUISIZIONE | F56: WEGHER SRL | G56: WEGHER SRL | H56: € 7,000.00 | I56: 2023-04-17 | J56: 2023-12-31
A57: Z153ACD8D4 | B57: 0357436037 | C57: CEA ESTINTORI SPA | D57: SERVIZIO DI MANUTENZIONE IMPIANTO ANTINCENDIO LOTTO 2 | E57: SISTEMA DINAMICO DI ACQUISIZIONE | F57: CEA ESTINTORI SPA | G57: CEA ESTINTORI SPA | H57: € 1,000.00 | I57: 2023-04-17 | J57: 2023-12-31
A58: Z523ACE268 | B58: 01944390226 | C58: TEAM CAR SRL | D58: BATTERIA TRATTORINO | E58: AFFIDAMENTO DIRETTO | F58: TEAM CAR SRL | G58: TEAM CAR SRL | H58: € 100.00 | I58: 2023-04-17 | J58: 2023-12-31
A59: Z113ACE47F | B59: 00103730230 | C59: SIMEVIGNUDA SPA | D59: ACQUISTO CANALINA | E59: AFFIDAMENTO DIRETTO | F59: SIMEVIGNUDA SPA | G59: SIMEVIGNUDA SPA | H59: € 100.00 | I59: 2023-04-17 | J59: 2023-12-31
A60: Z6F3AD766E | B60: franzinelli , 00312220221 -fratelli zanotti 01905470223 | C60: VIGILIO FRANZINELLI - FRATELLI ZANOTTI 428,5+462,61 | D60: MATERIALE MOF | E60: AFFIDAMENTO DIRETTO | F60: VIGILIO FRANZINELLI - FRATELLI ZANOTTI 428,5+462,61 | G60: VIGILIO FRANZINELLI - FRATELLI ZANOTTI 428,5+462,61 | H60: € 434.50 | I60: 2023-04-19 | J60: 2023-12-31
A61: Z553AEFE79 | B61: 01529420224 | C61: ANDREOLLI GRANDIMPIANTI SRL | D61: MANUTENZIONE ATTREZZATURE CUCINA | E61: PROCEDURA APERTA | F61: ANDREOLLI GRANDIMPIANTI SRL | G61: ANDREOLLI GRANDIMPIANTI SRL | H61: € 1,053.00 | I61: 2023-04-27 | J61: 2023-12-31
A62: Z323B1E60A | B62: 02107500221 | C62: VENATURE SOC. COOP. | D62: SERVIZIO DI LAVANDERIA MESE DI APRILE 2023 | E62: PROCEDURA APERTA | F62: VENATURE SOC. COOP. | G62: VENATURE SOC. COOP. | H62: € 3,465.60 | I62: 2023-05-11 | J62: 2023-12-31
A63: Z1D3B3AE2E | B63: 00927290221 | C63: ELETTROCASA SRL | D63: ACQUISTO MATERIALE ELETTRICO | E63: PROCEDURA APERTA | F63: ELETTROCASA SRL | G63: ELETTROCASA SRL | H63: € 400.00 | I63: 2023-05-19 | J63: 2023-12-31
A64: Z543B3CABB | B64: 00312220221 | C64: VIGILIO FRANZINELLI | D64: ACQUISTO MATERIALE | E64: PROCEDURA APERTA | F64: VIGILIO FRANZINELLI | G64: VIGILIO FRANZINELLI | H64: € 266.80 | I64: 2023-05-19 | J64: 2023-12-31
A65: Z643B3FE1B | B65: 12899760156 | C65: KONE SPA | D65: MANUTENZIONE 2023 ASCENSORI ALLOGGI DEMANIALI | E65: AFFIDAMENTO DIRETTO | F65: KONE SPA | G65: KONE SPA | H65: € 4,065.00 | I65: 2023-05-22 | J65: 2023-12-31
A66: ZB93B3FE77 | B66: 12899760156 | C66: KONE SPA | D66: MANUTENZIONE 2023 ASCENSORI CC TRENTO | E66: AFFIDAMENTO DIRETTO | F66: KONE SPA | G66: KONE SPA | H66: € 2,079.00 | I66: 2023-05-22 | J66: 2023-12-31
A67: Z453B4B2FB | B67: 02906340217 | C67: CROCE ROSSA ITALIANA | D67: RICHIESTA AMBULANZA | E67: PROCEDURA APERTA | F67: CROCE ROSSA ITALIANA | G67: CROCE ROSSA ITALIANA | H67: € 700.80 | I67: 2023-05-24 | J67: 2023-12-31
A68: Z133B4C1F0 | B68: 09381751008 | C68: TECHVISION SISTEMI MULTIMEDIALI | D68: ACQUISTO TOTEM PER AREA COLLOQUI | E68: AFFIDAMENTO DIRETTO | F68: TECHVISION SISTEMI MULTIMEDIALI | G68: TECHVISION SISTEMI MULTIMEDIALI | H68: € 8,248.00 | I68: 2023-05-24 | J68: 2023-12-31
A69: ZBC3B6CB04 | B69: 09381751008 | C69: TECHVISION SISTEMI MULTIMEDIALI | D69: ACQUISTO TESSERE TELEFONICHE DETENUTI | E69: AFFIDAMENTO DIRETTO | F69: TECHVISION SISTEMI MULTIMEDIALI | G69: TECHVISION SISTEMI MULTIMEDIALI | H69: € 600.00 | I69: 2023-06-05 | J69: 2023-12-31
A70: Z1E3B6F7B1 | B70: 02107500221 | C70: VENATURE SOC. COOP. | D70: SERVIZIO DI LAVANDERIA MESE DI MARZO 2023 | E70: AFFIDAMENTO DIRETTO | F70: VENATURE SOC. COOP. | G70: VENATURE SOC. COOP. | H70: € 4,332.00 | I70: 2023-06-06 | J70: 2023-12-31
A71: ZF03B71AB9 | B71: 05330700286 | C71: BIANCHI INGROSSO SRL | D71: ACQUISTO MATERIALE IGIENE E PULIZIA | E71: SISTEMA DINAMICO DI ACQUISIZIONE | F71: BIANCHI INGROSSO SRL | G71: BIANCHI INGROSSO SRL | H71: € 10,000.00 | I71: 2023-06-06 | J71: 2023-12-31
A72: Z763B792CB | B72: 02107500221 | C72: VENATURE SOC. COOP. | D72: SERVIZIO DI LAVANDERIA MESE DI MAGGIO 2023 | E72: AFFIDAMENTO DIRETTO | F72: VENATURE SOC. COOP. | G72: VENATURE SOC. COOP. | H72: € 3,631.20 | I72: 2023-06-08 | J72: 2023-12-31
A73: Z853B95EC1 | B73: 00312220221 | C73: VIGILIO FRANZINELLI | D73: FORNITURA CILINDRI PER PORTE | E73: PROCEDURA APERTA | F73: VIGILIO FRANZINELLI | G73: VIGILIO FRANZINELLI | H73: € 100.00 | I73: 2023-06-16 | J73: 2023-12-31
A74: Z233BA2DB1 | B74: 01965310228 | C74: CARROZZERIA GILDO SRL | D74: MANUTENZIONE AUTOMEZZI | E74: PROCEDURA APERTA | F74: CARROZZERIA GILDO SRL | G74: CARROZZERIA GILDO SRL | H74: € 5,000.00 | I74: 2023-06-21 | J74: 2023-12-31
A75: ZBC3BA4643 | B75: 00068930528 | C75: MODERNINFISSI SRL | D75: MANUTENZIONE CANCELLI | E75: PROCEDURA APERTA | F75: MODERNINFISSI SRL | G75: MODERNINFISSI SRL | H75: € 450.00 | I75: 2023-06-21 | J75: 2023-12-31
A76: Z653BAB428 | B76: 0.1065940221 | C76: GARBARI | D76: DISINFESTAZIONE VESPE GIUGNO 2023 | E76: AFFIDAMENTO DIRETTO | F76: GARBARI | G76: GARBARI | H76: € 200.00 | I76: 2023-06-23 | J76: 2023-12-31
A77: Z5D3BB4EE0 | B77: 01529420224 | C77: ANDREOLLI GRANDIMPIANTI SRL | D77: LAVORI DI MANUTENZIONE CUCINA | E77: AFFIDAMENTO DIRETTO | F77: ANDREOLLI GRANDIMPIANTI SRL | G77: ANDREOLLI GRANDIMPIANTI SRL | H77: € 903.00 | I77: 2023-06-27 | J77: 2023-12-31
A78: Z3A3BB503A | B78: 01529420224 | C78: ANDREOLLI GRANDIMPIANTI SRL | D78: LAVORI DI MANUTENZIONE IN LAVANDERIA MASCHILE | E78: AFFIDAMENTO DIRETTO | F78: ANDREOLLI GRANDIMPIANTI SRL | G78: ANDREOLLI GRANDIMPIANTI SRL | H78: € 1,499.60 | I78: 2023-06-27 | J78: 2023-12-31
A79: Z063BE7DBA | B79: 00312220221 | C79: VIGILIO FRANZINELLI | D79: ACQUISTO MATERIALE | E79: PROCEDURA APERTA | F79: VIGILIO FRANZINELLI | G79: VIGILIO FRANZINELLI | H79: € 1,000.00 | I79: 2023-07-17 | J79: 2023-12-31
A80: Z8E3C152AC | B80: 12899760156 | C80: KONE SPA | D80: RIPARAZIONE ASCENSORE PALAZZINA UFFICI | E80: PROCEDURA APERTA | F80: KONE SPA | G80: KONE SPA | H80: € 5,579.00 | I80: 2023-08-01 | J80: 2023-12-31
A81: ZF33C15467 | B81: 0151580212 | C81: VILLA ADLER | D81: SOGGIORNO PERSONALE POLIZIA PENITENZIARIA | E81: PROCEDURA APERTA | F81: VILLA ADLER | G81: VILLA ADLER | H81: € 960.00 | I81: 2023-08-01 | J81: 2023-12-31
A82: ZA33C1CFF3 | B82: 04602690234 | C82: MANZINI AUTO SERVICE | D82: MANUTENZIONE AUTOMEZZO PP540AD | E82: PROCEDURA APERTA | F82: MANZINI AUTO SERVICE | G82: MANZINI AUTO SERVICE | H82: € 100.00 | I82: 2023-08-03 | J82: 2023-12-31
A83: Z6C3C2203B | B83: 00644200222 | C83: VETRERIA BENTIVOGLIO | D83: FORNITURA VETRI | E83: PROCEDURA APERTA | F83: VETRERIA BENTIVOGLIO | G83: VETRERIA BENTIVOGLIO | H83: € 545.00 | I83: 2023-08-04 | J83: 2023-12-31
A84: Z5E3C2884F | B84: 02522000229 | C84: NIT SYSTEM S.R.L. | D84: FORNITURA SWICH PROCURVE HP | E84: PROCEDURA APERTA | F84: NIT SYSTEM S.R.L. | G84: NIT SYSTEM S.R.L. | H84: € 100.00 | I84: 2023-08-08 | J84: 2023-12-31
A85: Z5E3C2A3C3 | B85: 00185040227 | C85: FRISANCO COLORI | D85: FORNITURA MATERIALE DI TINTEGGIATURA | E85: PROCEDURA APERTA | F85: FRISANCO COLORI | G85: FRISANCO COLORI | H85: € 31.61 | I85: 2023-08-09 | J85: 2023-12-31
A86: Z7B3C2BD3A | B86: BSSVTR53T28L407 | C86: TECNA SISTEMI | D86: RIPARAZIONE IMPIANTO CHIAMATA CELLE ISTITUTO | E86: PROCEDURA APERTA | F86: TECNA SISTEMI | G86: TECNA SISTEMI | H86: € 2,466.00 | I86: 2023-08-09 | J86: 2023-12-31
A87: Z673C3AEEA | B87: 00312220221 | C87: VIGILIO FRANZINELLI | D87: FORNITURA COPIA 5 CHIAVI | E87: PROCEDURA APERTA | F87: VIGILIO FRANZINELLI | G87: VIGILIO FRANZINELLI | H87: € 100.00 | I87: 2023-08-22 | J87: 2023-12-31
A88: ZD03C3B0BE | B88: 01717900227 | C88: IANDOLO S.R.L | D88: FORNITURA ASSORBENTI IGIENICI | E88: PROCEDURA APERTA | F88: IANDOLO S.R.L | G88: IANDOLO S.R.L | H88: € 134.00 | I88: 2023-08-22 | J88: 2023-12-31
A89: ZA33C3FFCC | B89: 02679840211 | C89: LOEFF SYSTEM GMBH - SRL | D89: FORNITURA CARTA FOTOCOPIA | E89: PROCEDURA APERTA | F89: LOEFF SYSTEM GMBH - SRL | G89: LOEFF SYSTEM GMBH - SRL | H89: € 1,080.00 | I89: 2023-08-24 | J89: 2023-12-31
A90: Z6F3C429AB | B90: 09381751008 | C90: TECHVISION SISTEMI MULTIMEDIALI | D90: RICHIESTA INTERVENTO URGENTE | E90: PROCEDURA APERTA | F90: TECHVISION SISTEMI MULTIMEDIALI | G90: TECHVISION SISTEMI MULTIMEDIALI | H90: € 100.00 | I90: 2023-08-25 | J90: 2023-12-31
A91: Z673C4AED1 | B91: 02549860597 | C91: Q.E.D | D91: ACQUISTO TV E STAFFE | E91: AFFIDAMENTO DIRETTO | F91: Q.E.D | G91: Q.E.D | H91: € 16,386.60 | I91: 2023-08-30 | J91: 2023-12-31
A92: Z773C555E3 | B92: 02107500221 | C92: VENATURE SOC. COOP. | D92: SERVIZIO LAVANDERIA GIUGNO 2023 | E92: PROCEDURA APERTA | F92: VENATURE SOC. COOP. | G92: VENATURE SOC. COOP. | H92: € 3,691.20 | I92: 2023-09-04 | J92: 2023-12-31
A93: Z993C5563A | B93: 02107500221 | C93: VENATURE SOC. COOP. | D93: SERVIZIO LAVANDERIA LUGLIO 2023 | E93: PROCEDURA APERTA | F93: VENATURE SOC. COOP. | G93: VENATURE SOC. COOP. | H93: € 3,638.40 | I93: 2023-09-04 | J93: 2023-12-31
A94: ZEB3C5DA24 | B94: 01529420224 | C94: ANDREOLLI GRANDIMPIANTI SRL | D94: RIPARAZIONE MANGANO CC TRENTO | E94: AFFIDAMENTO DIRETTO | F94: ANDREOLLI GRANDIMPIANTI SRL | G94: ANDREOLLI GRANDIMPIANTI SRL | H94: € 656.00 | I94: 2023-09-06 | J94: 2023-12-31
A95: Z9B3C9A7C1 | D95: ARREDI PER UFFICIO | E95: AFFIDAMENTO DIRETTO | H95: € 3,871.40 | I95: 26.09.2023 | J95: 2023-12-31
A96: Z543CA4229 | D96: Manutenzione automezzi | E96: PROCEDURA APERTA | H96: € 670.76 | I96: 28.09.2023 | J96: 2023-12-31
A97: Z1D3CAF287 | B97: 02107500221 | C97: VENATURE SOC. COOP. | D97: SERVIZIO DI LAVANDERIA MESE DI AGOSTO 2023 | E97: AFFIDAMENTO DIRETTO | F97: VENATURE SOC. COOP. | G97: VENATURE SOC. COOP. | H97: € 3,592.80 | I97: 03.10.2023 | J97: 2023-12-31
A98: Z603CB8CDF | B98: 92043150421 | C98: CENTRO EDUCAZIONE PER LE DIPENDENZE | D98: PROGETTO ARTE SOCIALE | E98: AFFIDAMENTO DIRETTO | F98: CENTRO EDUCAZIONE PER LE DIPENDENZE | G98: CENTRO EDUCAZIONE PER LE DIPENDENZE | H98: € 5,698.80 | I98: 05.10.2023 | J98: 2023-12-31
A99: Z253CB8DA3 | B99: 0.1522650223 | C99: SOC. COOP.KALEIDOSCOPIO | D99: PROGETTO I.SO.LA. | E99: AFFIDAMENTO DIRETTO | F99: SOC. COOP.CALEIDOSCOPIO | G99: SOC. COOP.CALEIDOSCOPIO | H99: € 16,324.60 | I99: 05.10.2023 | J99: 2023-12-31
A100: Z973CB8DF8 | B100: 0.2098670132 | C100: SOC. COOP.CONSOLIDA | D100: PROGETTO LAVANDA | E100: AFFIDAMENTO DIRETTO | F100: SOC. COOP.CONSOLIDA | G100: SOC. COOP.CONSOLIDA | H100: € 18,888.00 | I100: 05.10.2023 | J100: 2023-12-31
A101: Z413CB991B | B101: 12899760156 | C101: KONE SPA | D101: SERVIZIO MANUTENZIONE ASCENSORE PALAZZINA UFFICI 2023 | E101: AFFIDAMENTO DIRETTO | F101: KONE SPA | G101: KONE SPA | H101: € 700.00 | I101: 05.10.2023 | J101: 2023-12-31
A102: Z613CBA3B1 | B102: 00.621240225 | C102: ECOOPERA | D102: SVUOTAMENTO VASCHE OLI 2023 | E102: AFFIDAMENTO DIRETTO | F102: ECOOPERA | G102: ECOOPERA | H102: € 490.00 | I102: 05.10.2023 | J102: 2023-12-31
A103: Z1B3CBFF9E | B103: 0.2754960215 | C103: SANTINI | D103: SERVIZIO SMALTIMENTO RIFIUTI | E103: SISTEMA DINAMICO DI ACQUISIZIONE | F103: SANTINI | G103: SANTINI | H103: € 4,000.00 | I103: 06.10.2023 | J103: 2023-12-31
A104: Z263CCC3BC | B104: 02107500221 | C104: VENATURE SOC. COOP. | D104: SERVIZIO LAVANDERIA MESE SETTEMBRE 2023 | E104: AFFIDAMENTO DIRETTO | F104: VENATURE SOC. COOP. | G104: VENATURE SOC. COOP. | H104: € 4,507.20 | I104: 11.10.2023 | J104: 2023-12-31
A105: Z1E3DFDB2D | B105: 00.162840227 | C105: IORATTI | D105: MANUTENZIONE | E105: AFFIDAMENTO DIRETTO | F105: IORATTI | G105: IORATTI | H105: 271.00 | I105: 2023-12-28 | J105: 2023-12-31
A106: Z453DD53CB | B106: 0.9381751008 | C106: TECHVISION S. M. | D106: FORNITURA MATERIALE | E106: AFFIDAMENTO DIRETTO | F106: TECHVISION | G106: TECHVISION | H106: 75.00 | I106: 2023-12-28 | J106: 2023-12-31
A107: Z8B3D9CFF6 | B107: 0.1016210229 | C107: PAMITRON | D107: FORNITURA MATERIALE | E107: AFFIDAMENTO DIRETTO | F107: PAMITRON | G107: PAMITRON | H107: 6511.68 | I107: 2023-12-28 | J107: 2023-12-31
A108: ZCB3D89AB7 | B108: 0.2116180304 | C108: EUROBRICO | D108: FORNITURA MATERIALE | E108: AFFIDAMENTO DIRETTO | F108: EUROBRICO | G108: EUROBRICO | H108: 262.50 | I108: 2023-12-28 | J108: 2023-12-31
A109: Z243D76013 | B109: 0.2295030221 | C109: SUPERNOVA | D109: FORNITURA MATERIALE | E109: AFFIDAMENTO DIRETTO | F109: SUPERNOVA | G109: SUPERNOVA | H109: 190.00 | I109: 2023-12-28 | J109: 2023-12-31
A110: Z5C3D60756 | B110: 0.1529420224 | C110: ANDREOLLI DARIO | D110: LAVORI DI RIPARAZIONI | E110: AFFIDAMENTO DIRETTO | F110: ANDREOLLI MARIO | G110: ANDREOLLI MARIO | H110: 459.94 | I110: 2023-11-23 | J110: 2023-12-31
A111: Z863D5FF0C | B111: 0.2126790225 | C111: ENDURANCE IMP. | D111: LAVORI DI RIPARAZIONI | E111: AFFIDAMENTO DIRETTO | F111: ENDURANCE IMPIANTI | G111: ENDURANCE IMPIANTI | H111: 2300.00 | I111: 2023-12-28 | J111: 2023-12-31
A112: Z7E3D4FDF8 | B112: 0.2679840211 | C112: LOEFF SYSTEM | D112: FORNITURA MATERIALE | E112: AFFIDAMENTO DIRETTO | F112: LOEFF SYSTEM GMBH | G112: LOEFF SYSTEM GMBH | H112: 60.00 | I112: 2023-12-28 | J112: 2023-12-31
A113: ZDF3D4A857 | B113: 0.3766450401 | C113: HARMONY | D113: FORNITURA MATERIALE | E113: AFFIDAMENTO DIRETTO | F113: HARMONY L'IGIENICO | G113: HARMONY L'IGIENICO | H113: 24855.00 | I113: 2023-12-28 | J113: 2023-12-31
A114: Z773D49BFF | B114: 0.2679840211 | C114: LOEFF SYSTEM | D114: FORNITURA MATERIALE | E114: AFFIDAMENTO DIRETTO | F114: LOEFF SYSTEM GMBH | G114: LOEFF SYSTEM GMBH | H114: 692.28 | I114: 2023-12-28 | J114: 2023-12-31
A115: ZA13D33E81 | B115: 0.2107500221 | C115: VENATURE | D115: FORNITURA SERVIZI | E115: AFFIDAMENTO DIRETTO | F115: VENATURE S.C.S. | G115: VENATURE S.C.S. | H115: 2911.20 | I115: 2023-12-28 | J115: 2023-12-31
A116: Z783D32E8D | B116: 0.1529420224 | C116: ANDREOLLI DARIO | D116: LAVORI DI RIPARAZIONI | E116: AFFIDAMENTO DIRETTO | F116: ANDREOLLI MARIO | G116: ANDREOLLI MARIO | H116: 549.00 | I116: 2023-11-10 | J116: 2023-12-31
A117: ZA43D15EE2 | B117: 00.621240225 | C117: ECOOPERA S.C. | D117: FORNITURA SERVIZI | E117: AFFIDAMENTO DIRETTO | F117: ECOOPERA S.C. | G117: ECOOPERA S.C. | H117: 455.00 | I117: 2023-12-28 | J117: 2023-12-31
A118: ZD83D18D41 | B118: 0.5330700286 | C118: BIANCHI INGROSSO | D118: FORNITURA MATERIALE | E118: AFFIDAMENTO DIRETTO | F118: BIANCHI INGROSSO | G118: BIANCHI INGROSSO | H118: 5829.37 | I118: 2023-12-28 | J118: 2023-12-31
A119: Z2F3D3CB5C | B119: 00.607180221 | C119: SOLE NEVE | D119: FORNITURA SERVIZI | E119: AFFIDAMENTO DIRETTO | F119: SOLE NEVE | G119: SOLE NEVE | H119: 430.48 | I119: 2023-12-28 | J119: 2023-12-31
A120: Z553D37E57 | B120: 0.1080200338 | C120: SPAZIO IDRO | D120: FORNITURA MATERIALE | E120: AFFIDAMENTO DIRETTO | F120: SPAZIO IDRO TERMOSANITARI | G120: SPAZIO IDRO TERMOSANITARI | H120: 1107.60 | I120: 2023-12-28 | J120: 2023-12-31
A121: Z2E3D404F0 | B121: 0.1529420224 | C121: ANDREOLLI DARIO | D121: LAVORI DI RIPARAZIONI | E121: AFFIDAMENTO DIRETTO | F121: ANDREOLLI DARIO | G121: ANDREOLLI DARIO | H121: 161.04 | I121: 2024-11-15 | J121: 2023-12-31
A122: Z9D3D33595 | B122: 0.1259630224 | C122: WEGHER | D122: LAVORI DI RIPARAZIONI | E122: AFFIDAMENTO DIRETTO | F122: WEGHER | G122: WEGHER | H122: 286.61 | I122: 2023-12-28 | J122: 2023-12-31
A123: ZE13D41F9D | B123: 12898410159 | C123: IMQ SPA | D123: FORNITURA SERVIZI | E123: AFFIDAMENTO DIRETTO | F123: IMQ SPA | G123: IMQ SPA | H123: 1080.00 | I123: 2023-12-28 | J123: 2023-12-31
A124: ZDB3D3CE94 | B124: 00.103730230 | C124: SIMEVIGNUDA | D124: FORNITURA MATERIALE | E124: AFFIDAMENTO DIRETTO | F124: SIMEVIGNUDA | G124: SIMEVIGNUDA | H124: 1739.64 | I124: 2023-12-28 | J124: 2023-12-31
A125: ZAD3D15781 | B125: 0.1717900227 | C125: DITTA IANDOLO | D125: FORNITURA MATERIALE | E125: AFFIDAMENTO DIRETTO | F125: DITTA IANDOLO | G125: DITTA IANDOLO | H125: 120.80 | I125: 2023-12-28 | J125: 2023-12-31
A126: Z543D11A42 | B126: 00.162840227 | C126: IORIATTI | D126: LAVORI DI RIPARAZIONI | E126: AFFIDAMENTO DIRETTO | F126: IORIATTI | G126: IORIATTI | H126: 2234.00 | I126: 2023-12-28 | J126: 2023-12-31
A127: Z553D106EB | B127: 0.1384700223 | C127: F.E.T. | D127: LAVORI DI RIPARAZIONI | E127: AFFIDAMENTO DIRETTO | F127: F.E.T. | G127: F.E.T. | H127: 219.60 | I127: 2023-12-28 | J127: 2023-12-31
A128: Z4E3D0B3A7 | B128: 0.1323360386 | C128: ARTEC | D128: LAVORI DI RIPARAZIONI | E128: AFFIDAMENTO DIRETTO | F128: ARTEC | G128: ARTEC | H128: 100.00 | I128: 2023-12-28 | J128: 2023-12-31
A129: Z5A3D0638C | B129: 0.299269021 | C129: SE GROUP | D129: FORNITURA SERVIZI | E129: AFFIDAMENTO DIRETTO | F129: SE GROUP | G129: SE GROUP | H129: 450.00 | I129: 2023-12-28 | J129: 2023-12-31
A130: Z323DBCB63 | B130: 0.2177830243 | C130: DR. ING. VISONA' | D130: FORNITURA SERVIZI | E130: AFFIDAMENTO DIRETTO | F130: DR. ING. VISONA' | G130: DR. ING. VISONA' | H130: 1913.35 | I130: 2023-12-28 | J130: 2023-12-31

Sheet CC Treviso
A1: Dipartimento Amministrazione Penitenziaria - ISTITUTO CASA CIRCONDARIALE TREVISO - C.F. 80008540264
A2: Contratti di forniture, beni e servizi Anno 2023 Dati aggiornati al 31 dicembre 2023
A3: CIG | B3: Codice Fiscale | C3: Denominazione | D3: Oggetto | E3: Procedura di scelta del contraente | F3: Elenco operatori invitati a presentare offerte | G3: Aggiudicatario | H3: Importo di aggiudicazione | I3: Data Inizio | J3: Data Ultimazione | K3: Somme liquidate (al netto dell'IVA)
A4: Z5539702C7 | B4: 97103880585 | C4: POSTE ITALIANE | D4: RINNOVO DELLA LOCAZIONE DELLA CASELLA POSTALE PER L'ANNO 2023 | E4: AFFIDAMENTO DIRETTO | F4: 1 | G4: POSTE ITALIANE | H4: € 81.97 | I4: 2023-01-10 | J4: 2023-12-31 | K4: € 81.97
A5: Z853C7823 | B5: 3990590261 | C5: FM INSTALLAZIONI | D5: RIPARAZIONE BRUCIATORE CALDIA AREA DETENTIVA | E5: AFFIDAMENTO DIRETTO MEPA | F5: 1 | G5: FM INSTALLAZIONI | H5: € 235.06 | I5: 2023-02-02 | J5: 2023-02-02 | K5: € 235.06
A6: ZB13978672 | B6: 3990590261 | C6: FM INSTALLAZIONI | D6: RIPARAZIONE CALDIA AREA DETENTIVA | E6: AFFIDAMENTO DIRETTO MEPA | F6: 1 | G6: FM INSTALLAZIONI | H6: € 432.30 | I6: 2023-01-12 | J6: 2023-01-12 | K6: € 432.30
A7: Z6A39A3E12 | B7: 97103880585 | C7: POSTE ITALIANE | D7: SERVIZIO POSTALE CON CONTO DI CREDITO | E7: AFFIDAMENTO DIRETTO | F7: 1 | G7: POSTE ITALIANE | H7: € 150.00 | I7: 2023-01-16 | J7: 2023-12-31 | K7: € 150.00
A8: ZDD39DA459 | B8: 2466690266 | C8: C&G SRL | D8: SERVIZIO MANUTENZIONE PARCO ESTINTORI IDRANTI E PORTE TAGLIA FUOCO ANNO 2023 | E8: RDO MEPA | F8: 5 | G8: C&G SRL | H8: € 1,010.00 | I8: 2023-02-14 | J8: 2023-12-31 | K8: € 1,010.00
A9: Z333A9DF3F | B9: 3146880269 | C9: EMAR SRL | D9: SERVIZIO DI INTERVENTO SU IMPIANTO VIDEO SORVEGLIANZA PER ESTRAZIONE IMMAGINI | E9: AFFIDAMENTO DIRETTO | F9: 1 | G9: EMAR SRL | H9: € 248.00 | I9: 2023-03-31 | J9: 2023-03-31 | K9: € 248.00
A10: Z43AA6BDE | B10: 3581770288 | C10: CVB | D10: AFF.DIRETTO - FORNITURA MATERIALE IDRAULICO PER MANUTENZIONE ORDINARIA AL FABBRICATO | E10: AFFIDAMENTO DIRETTO | F10: 1 | G10: CVB | H10: € 569.88 | I10: 2023-04-03 | J10: 2023-04-03 | K10: € 569.88
A11: ZA83A3ECBD | B11: 10324241008 | C11: ULTRAPROMEDIA SRL | D11: FORNITURA CANCELLERIA PER UFFICI | E11: AFFIDAMENTO DIRETTO MEPA | F11: 1 | G11: ULTRAPROMEDIA SRL | H11: € 428.00 | I11: 2023-03-06 | J11: 2023-03-06 | K11: € 428.00
A12: Z423AA3992 | B12: 2836090270 | C12: ON LINE SERVICE | D12: FORNITURA PRODOTTI CHIMICI PER TRATTAMENTO ANTILEGIONELA | E12: TRATTATIVA DIRETTA MEPA | F12: 1 | G12: ON LINE SERVICE | H12: € 630.80 | I12: 2023-04-03 | J12: 2023-04-03 | K12: € 630.80
A13: Z503AB4AF9 | B13: 893140269 | C13: LB BOTTER | D13: FORNITURA DUPLICATO DI CHIAVI SERRATURE E CILINDRI | E13: AFFIDAMENTO DIRETTO | F13: 1 | G13: LB BOTTER | H13: € 223.69 | I13: 2023-04-06 | J13: 2023-04-06 | K13: € 223.69
A14: ZA83ACF0C3 | B14: 1355950450 | C14: FAITASALE SAS | D14: FORNITA DI SALE PER ADDOLCITORI | E14: AFFIDAMENTO DIRETTO MEPA | F14: 1 | G14: FAITASALE SAS | H14: € 664.00 | I14: 2023-04-17 | J14: 2023-04-17 | K14: € 664.00
A15: ZD43AF8CE | B15: 1952150264 | C15: PROCED | D15: FORNITURA CARTELLE CON CERNIERA UFFICIO NTP | E15: AFFIDAMENTO DIRETTO MEPA | F15: 1 | G15: PROCED | H15: € 96.05 | I15: 2023-05-02 | J15: 2023-05-02 | K15: € 96.05
A16: Z153B03C8B | B16: 1469840662 | C16: INGROSCART | D16: FORNITURA MATERIALE DI PULIZIA PER LA CUCINA DETENUTI | E16: AFFIDAMENTO DIRETTO MEPA | F16: 1 | G16: INGROSCART | H16: € 450.00 | I16: 2023-05-04 | J16: 2023-05-04 | K16: € 450.00
A17: Z503B0DA9D | B17: 2803930235 | C17: CASA DEI DETERSIVI | D17: FORNITURA BOBINE CARTA PER LA POPOLAZIONE DETENUTA | E17: AFFIDAMENTO DIRETTO MEPA | F17: 1 | G17: CASA DEI DETERSIVI | H17: € 1,160.00 | I17: 2023-05-08 | J17: 2023-05-08 | K17: € 1,160.00
A18: Z073B161DA | B18: 5023530263 | C18: VENETA PANNELLI | D18: FORNITURA PORTA INTERNA BAGNO PER LA CUCINA DETENUTI | E18: TRATTATIVA DIRETTA MEPA | F18: 1 | G18: VENETA PANNELLI | H18: € 520.00 | I18: 2023-05-10 | J18: 2023-05-10 | K18: € 520.00
A19: Z823B2A052 | B19: 3145590265 | C19: VENETA GRADICUCINE | D19: RIPARAZIONE CONGELATORE CUCINA DETENUTI | E19: AFFIDAMENTO DIRETTO | F19: 1 | G19: VENETA GRADICUCINE | H19: € 110.00 | I19: 2023-05-15 | J19: 2023-05-15 | K19: € 110.00
A20: Z723B2E58B | B20: 5577471005 | C20: EP SPA | D20: FORNITURA BUONI PASTO CARTACEO EDIZIONE 9 LOTTO 13 | E20: ADESIONE CONV CONSIP | F20: 1 | G20: EP SPA | H20: € 8,000.00 | I20: 2023-05-18 | J20: 2023-05-18 | K20: € 8,000.00
A21: Z653B2B8DC | B21: 2316361209 | C21: SISTERS | D21: FORNITURA TONER PER MULTIFUNZIONE | E21: RDO MEPA | F21: 10 | G21: SISTERS | H21: € 1,120.50 | I21: 2023-05-23 | J21: 2023-05-23 | K21: € 1,120.50
A22: Z8A3B53D32 | B22: 1766840266 | C22: AUTOEMPORIO CAMERINI | D22: FORNITURA LIQUIDO ADBLUE PER AUTOMEZZI | E22: TRATTATIVA DIRETTA MEPA | F22: 1 | G22: AUTOEMPORIO CAMERINI | H22: € 75.00 | I22: 2023-05-26 | J22: 2023-05-26 | K22: € 75.00
A23: ZED3AF5390 | B23: 2597650304 | C23: BLUE CAR SYSTEM | D23: RIPARAZIONE PARABREZZA VEICOLO FIAT TALENTO ADIBITO AL SERVIZO NTP | E23: AFFIDAMENTO DIRETTO | F23: 1 | G23: BLUE CAR SYSTEM | H23: € 319.67 | I23: 2024-04-28 | J23: 2024-04-28 | K23: € 319.67
A24: Z0B3B167D5 | B24: 3145590265 | C24: VENETA GRADICUCINE | D24: INTERVENTO MANUTENZIONE E RIPARAZIONE ATTREZZATURA CUCINA AGENTI | E24: AFFIDAMENTO DIRETTO | F24: 1 | G24: VENETA GRADICUCINE | H24: € 350.00 | I24: 2023-05-30 | J24: 2023-05-30 | K24: € 350.00
A25: Z543B624BD | B25: 531920783 | C25: PAPER INGROS | D25: FORNITURA DI SEDIE E CASSETTIERA PER POSTI DI GUARDIA | E25: AFFIDAMENTO DIRETTO MEPA | F25: 1 | G25: PAPER INGROS | H25: € 1,638.98 | I25: 2023-05-31 | J25: 2023-05-31 | K25: € 1,638.98
A26: Z7D3A5E2EA | B26: 3486670262 | C26: ZAGO SRL | D26: LAVORI POTENZIAMENTO ED AMPLIAMENTO DI ALLARME INTERNO CON RIFACIMENTO ALLARMI UFFICI SEZIONI DETENTIVE E CASERMA | E26: RDO MEPA | F26: 5 | G26: ZAGO SRL | H26: € 6,596.06 | I26: 2023-04-17 | J26: 2023-04-17 | K26: € 6,596.06
A27: ZF939C9767 | B27: 12479491008 | C27: MR SERVICE SRL | D27: SERVIZIO DI INSTALLAZIONE E COLLAUDO DELLA LAVABIANCHERIA | E27: AFFIDAMENTO DIRETTO | F27: 1 | G27: MR SERVICE SRL | H27: € 600.00 | I27: 2023-02-02 | J27: 2023-02-02 | K27: € 600.00
A28: ZCA399F5E6 | B28: 12479491008 | C28: MR SERVICE SRL | D28: FORNITURA STERILIZZATORE A RAGGI UV | E28: AFFIDAMENTO DIRETTO MEPA | F28: 1 | G28: MR SERVICE SRL | H28: € 89.95 | I28: 2023-01-27 | J28: 2023-01-27 | K28: € 89.95
A29: ZC53A5E1BB | B29: 3003500265 | C29: SERVIZI AZIENDALI BRAVO | D29: FORNITURA LASTRE IN POLICARBONATO TRASPARENTE PER FINESTRE CAMERE DETENTIVE | E29: TRATTATIVA DIRETTA MEPA | F29: 1 | G29: SERVIZI AZIENDALI BRAVO | H29: € 1,006.00 | I29: 2023-03-23 | J29: 2023-03-23 | K29: € 1,006.00
A30: Z4439CCF87 | B30: 2466690266 | C30: C&G SRL | D30: FORNITURA MATERIALE ANTICENDIO | E30: AFFIDAMENTO DIRETTO MEPA | F30: 1 | G30: C&G SRL | H30: € 390.00 | I30: 2023-02-03 | J30: 2023-02-03 | K30: € 390.00
A31: Z0E399ED63 | B31: 1766840266 | C31: AUTOEMPORIO CAMERINI | D31: FORNITURA ARTICOLI PER LA PULIZIA DEGLI AUTOMEZZI ADIBITI AL TRASPORTO DETENUTI | E31: AFFIDAMENTO DIRETTO MEPA | F31: 1 | G31: AUTOEMPORIO CAMERINI | H31: € 398.43 | I31: 2023-01-26 | J31: 2023-01-26 | K31: € 398.43
A32: ZDC399F4DE | B32: 3109730261 | C32: ORA TRE | D32: AFFIDAMENTO SERVIZIO MANUTENZIONE ORDINARIA DELL'IMPIANTO RILECA PRESENZA PER L'ANNO 2023 | E32: AFFIDAMENTO DIRETTO MEPA | F32: 1 | G32: ORA TRE | H32: € 150.00 | I32: 2023-01-25 | J32: 2023-01-25 | K32: € 150.00
A33: Z783995F5B | B33: 2803930235 | C33: CASA DEI DETERSIVI | D33: FORNITURA MATERIALE PER PULIZIA PER LA POPOLAZIONE DETENUTA | E33: AFFIDAMENTO DIRETTO MEPA | F33: 1 | G33: CASA DEI DETERSIVI | H33: € 980.00 | I33: 2023-01-19 | J33: 2023-01-19 | K33: € 980.00
A34: Z57398A7F0 | B34: 205120280 | C34: BOLZONELLA GRANDI IMPIANTI | D34: AFFIDAMENTO DELLA FORNITURA DI UNA AFFETTATRICE VERTICA LAMA 300 | E34: AFFIDAMENTO DIRETTO MEPA | F34: 1 | G34: BOLZONELLA GRANDI IMPIANTI | H34: € 1,235.00 | I34: 2023-01-20 | J34: 2023-01-20 | K34: € 1,235.00
A35: Z2039C99B4 | B35: 3990590261 | C35: FM INSTALLAZIONI | D35: SERVIZIO DI RIPARAZIONE IMPIANTO RISCALDAMENTO/RAFFRESCAMENTO AREA PEDAGOGICA | E35: TRATTATIVA DIRETTA MEPA | F35: 1 | G35: FM INSTALLAZIONI | H35: € 9,795.82 | I35: 2023-02-06 | J35: 2023-02-06 | K35: € 9,795.82
A36: Z7739C3793 | B36: 3146880269 | C36: EMAR SRL | D36: SERVIZIO DI MANUTENZIONE IMPIANTO RILEVAZIONE INCENDIO EXTRA ORDINARIO | E36: AFFIDAMENTO DIRETTO | F36: 1 | G36: EMAR SRL | H36: € 699.00 | I36: 2023-02-01 | J36: 2024-02-02 | K36: € 699.00
A37: ZDD39B2515 | B37: 2803930235 | C37: CASA DEI DETERSIVI | D37: FORNITURA MATERIALE IGIENICO SANITARIO PER LA POPOLAZIONE DETENUTA | E37: RDO MEPA | F37: 8 | G37: CASA DEI DETERSIVI | H37: € 6,394.50 | I37: 2023-01-27 | J37: 2023-01-27 | K37: € 6,394.50
A38: Z49399F572 | B38: 3146880269 | C38: EMAR SRL | D38: SERVIZIO MANUTENZIONE / RIPARAZIONE IMPIANTO ANTITRUSIONE E ANTISCAVALCAMENTO ANNO 2023 | E38: RDO MEPA | F38: 7 | G38: EMAR SRL | H38: € 1,018.00 | I38: 2023-02-07 | J38: 2023-02-07 | K38: € 1,018.00
A39: Z4C399F546 | B39: 3146880269 | C39: EMAR SRL | D39: SERVIZIO MANUTENZIONE/ RIPARAZIONE IMPIANTO RILEVAZIONE INCENDIO ANNO 2023 | E39: RDO MEPA | F39: 6 | G39: EMAR SRL | H39: € 882.00 | I39: 2023-02-07 | J39: 2023-02-07 | K39: € 882.00
A40: Z23399F502 | B40: 3486670262 | C40: ZAGO SRL | D40: AFFIDAMENTO DEL SERVIZIO MANUTENZIONE IMPIANTO ELETTRICO E CANCELLI ANNO 2023 | E40: RDO MEPA | F40: 7 | G40: ZAGO SRL | H40: € 940.50 | I40: 2023-02-09 | J40: 2023-02-09 | K40: € 940.50
A41: ZE939DA2AE | B41: 5661590017 | C41: COLORE AMICO SRL | D41: FORNITURA MATERIALE DIDATTICO PER ATTIVITA' ARTISTICA DETENUTI | E41: AFFIDAMENTO DIRETTO MEPA | F41: 1 | G41: COLORE AMICO SRL | H41: € 242.00 | I41: 2023-02-08 | J41: 2023-02-08 | K41: € 242.00
A42: Z3239DFA9F | B42: 5097220262 | C42: OC SERVICE | D42: RIPARAZIONE LAVATRICE LAVANDERIA DETENUTI | E42: AFFIDAMENTO DIRETTO | F42: 1 | G42: OC SERVICE | H42: € 703.58 | I42: 2023-02-10 | J42: 2023-02-10 | K42: € 703.58
A43: Z9A39DA2F5 | B43: 2436410266 | C43: F.LLI PIZZIOLO | D43: FORNITURA MATERIALE EDILE PER MANUTENZIONE ORDINARIA FABBRICATO | E43: RDO MEPA | F43: 8 | G43: F.LLI PIZZIOLO | H43: € 2,705.26 | I43: 2023-02-14 | J43: 2023-02-14 | K43: € 2,705.26
A44: Z9F39E7C02 | B44: 4808080263 | C44: SILE SERVICE | D44: AFFIDAMENTO SERVIZIO DI DISIFESTAZIONE/DERATTIZZAZIONE AMBIENTI ANNO 2023 | E44: RDO MEPA | F44: 1 | G44: SILE SERVICE | H44: € 2,290.00 | I44: 2023-02-15 | J44: 2023-12-31 | K44: € 2,290.00
A45: Z833A01EF7 | B45: 9381751008 | C45: TECHVISION | D45: SERVIZIO ASSISTENZA TELEFONICA PER INTERVENTO TECNICO SUL SISTEMA TELEFONATE DETENUTI | E45: AFFIDAMENTO DIRETTO | F45: 1 | G45: TECHVISION | H45: € 582.20 | I45: 2023-02-17 | J45: 2023-02-17 | K45: € 582.20
A46: Z223A0FED7 | B46: 205120280 | C46: BOLZONELLA GRANDIMPIANTI | D46: AFFIDAMENTO URGENTE PER RIPARAZIONE ATTREZZATURA CUCINA DETENUTI | E46: AFFIDAMENTO DIRETTO | F46: 1 | G46: BOLZONELLA GRANDIMPIANTI | H46: € 265.50 | I46: 2023-02-22 | J46: 2023-02-22 | K46: € 265.50
A47: Z2F39DBB10 | B47: 1812630224 | C47: DOLOMITI ENERGIA | D47: FORNITURA GAS NATURALE 14 DOLOMITI ENERGIA SPA | E47: ADESIONE CONV CONSIP | F47: 1 | G47: DOLOMITI ENERGIA | H47: € 39,000.00 | I47: 2023-02-28 | J47: 2023-12-31 | K47: € 39,000.00
A48: Z353A41C2E | B48: 1766840266 | C48: AUTOEMPORIO CAMERINI | D48: FORNITURA TAPPETINI PER VEICOLO FIAT PANDA ADIBITO A SCORTA MINISTRO | E48: AFFIDAMENTO DIRETTO | F48: 1 | G48: AUTOEMPORIO CAMERINI | H48: € 9.80 | I48: 2023-03-07 | J48: 2023-03-07 | K48: € 9.80
A49: ZE23A6A1E0 | B49: 3990590261 | C49: FM INSTALLAZIONI | D49: RIPARAZIONE BLOCCO REGOLAZIONE TEMPERATURA DELLA PIASTRA A GAS IN CUCINA DETENUTI | E49: AFFIDAMENTO DIRETTO | F49: 1 | G49: FM INSTALLAZIONI | H49: € 526.42 | I49: 2023-03-23 | J49: 2023-03-23 | K49: € 526.42
A50: ZB93A8BED4 | B50: 1725510885 | C50: PULICART SERVICE | D50: AFF.DIRETTO MEPA - FORNITURA MATERIALE DI PULIZIA | E50: AFFIDAMENTO DIRETTO | F50: 1 | G50: PULICART SERVICE | H50: € 412.39 | I50: 2023-03-27 | J50: 2023-03-27 | K50: € 412.39
A51: Z4B3A7B1F2 | B51: 531920783 | C51: PAPER INGROS | D51: FORNITURA MATERIALE DI PULIZIA PER LA POPOLAZIONE DETENUTA | E51: AFFIDAMENTO DIRETTO MEPA | F51: 1 | G51: PAPER INGROS | H51: € 1,221.12 | I51: 2023-03-22 | J51: 2023-03-22 | K51: € 1,221.12
A52: ZD83AD6DF | B52: 3146880269 | C52: EMAR SRL | D52: INTERVENTO EXTRA MANUTENTIVO IMPIANTO RILEVAZIONE INCENDIO - ANTIFUMO | E52: AFFIDAMENTO DIRETTO | F52: 1 | G52: EMAR SRL | H52: € 1,931.00 | I52: 2023-03-27 | J52: 2023-03-27 | K52: € 1,931.00
A53: zc03a58f01 | B53: 3146880269 | C53: EMAR SRL | D53: AFFIDAMENTO LAVORI SOSTITUZIONE TELECAMERE IN AREA FALEGNAMERIA E RELATIVA RICONFIGURAZIONE DI TUTTE LE TELECAMERE A CIRCUITO CHIUSO | E53: AFFIDAMENTO DIRETTO | F53: 1 | G53: EMAR SRL | H53: € 842.45 | I53: 2023-03-13 | J53: 2023-03-13 | K53: € 842.45
A54: Z7A3A5FE8A | B54: 3990590261 | C54: FM INSTALLAZIONI | D54: RIPARAZIONE ASPIRATORE CAPPA IN CUCINA AGENTI | E54: AFFIDAMENTO DIRETTO | F54: 1 | G54: FM INSTALLAZIONI | H54: € 1,083.44 | I54: 2023-03-15 | J54: 2023-03-15 | K54: € 1,083.44
A55: ZA23A5E21A | B55: 4085210617 | C55: CERAMIDEA | D55: FORNITURA MATERIALE ELETTRICO PER MANUTENZIONE ORDINARIA FABBRICATO TRAMITE MOF | E55: RDO MEPA | F55: 5 | G55: CERAMIDEA | H55: € 1,846.42 | I55: 2023-03-21 | J55: 2023-03-21 | K55: € 1,846.42
A56: Z0A3A5E250 | B56: 6809640482 | C56: OFFICINE PERUZZI | D56: FORNITURA PICCOLA ATTREZZATURA FERRAMENTA PER LAVASCIUGA EUREKA | E56: AFFIDAMENTO DIRETTO MEPA | F56: 1 | G56: OFFICINE PERUZZI | H56: € 765.00 | I56: 2023-03-15 | J56: 2023-03-15 | K56: € 765.00
A57: Z433A7B3B6 | B57: 12530020010 | C57: ROLESIUM | D57: FORNITURA DISPOSITIVI DPI - GUANTI PER IL PERSONALE | E57: AFFIDAMENTO DIRETTO MEPA | F57: 1 | G57: ROLESIUM | H57: € 588.90 | I57: 2023-03-22 | J57: 2023-03-22 | K57: € 588.90
A58: Z5F3A94663 | B58: 2520590049 | C58: PRO-CURA | D58: FORNITURA DI PIATTI E POSATE PER LA POPOLAZIONE DETENUTA | E58: AFFIDAMENTO DIRETTO MEPA | F58: 1 | G58: PRO-CURA | H58: € 3,131.80 | I58: 2023-03-29 | J58: 2023-03-29 | K58: € 3,131.80
A59: ZF73A56CCE | B59: 3878640238 | C59: VIRTUAL LOGIC | D59: FORNITURA TONER PER STAMPANTE SPAID UFFICIO MATRILCOLA | E59: AFFIDAMENTO DIRETTO MEPA | F59: 1 | G59: VIRTUAL LOGIC | H59: € 1,208.02 | I59: 2023-03-13 | J59: 2023-03-13 | K59: € 1,208.02
A60: Z953A5E285 | B60: 3486670262 | C60: ZAGO SRL | D60: AFFIDAMENTO DEI LAVORI DI SISTEMAZIONE QUADRI ELETTRICI / SOSTITUZIONE SCARICATORI DI SOVRATENSIONE, SOSTITUZIONE STRUMENTO AMPEROMETRICO E MOTORE RIARMO AUTOMATICO PER SCAMBIO RETE ENEL/ GRUPPO ELETTROGENO | E60: TRATTATIVA DIRETTA MEPA | F60: 1 | G60: ZAGO SRL | H60: € 3,638.38 | I60: 2023-03-21 | J60: 2023-03-21 | K60: € 3,638.38
D61: CONVEZIONE PSICOLOGI 2023 | E61: CONVENZIONE | H61: € 25,895.00 | I61: 2023-03-03 | J61: 2023-12-31 | K61: € 25,895.00
A62: 9609908A72 | B62: 15844561009 | C62: ENEL ENERGIA | D62: FORNITURA ENERGIA ELETTRICA 20 | E62: ADESIONE CONV CONSIP | F62: 1 | G62: ENEL ENERGIA | H62: € 200,000.00 | I62: 2023-01-19 | J62: 2023-12-31 | K62: € 200,000.00
A63: ZE33AA38D8 | B63: 2252430687 | C63: MARSILII | D63: FORNITURA E POSA DI UN CANCELLO SBARRAMENTO A GIORNO SCORREVOLE COMLETO DI SERRATURA PENITENZIARIA E PREDISPOSIZIONE PER AUTOMAZIONE PER IL PIANO PRIMO SEZIONE GIUDIZIARIO | E63: TRATTATIVA DIRETTA MEPA | F63: 1 | G63: MARSILII | H63: € 13,800.00 | I63: 2023-04-11 | J63: 2023-04-11 | K63: € 13,800.00
A64: Z053AFD920 | B64: 3597610264 | C64: CASTELARREDO | D64: FORNITURA SCRIVANIA PER UFFICIO | E64: AFFIDAMENTO DIRETTO MEPA | F64: 1 | G64: CASTELARREDO | H64: € 691.00 | I64: 2023-05-04 | J64: 2023-05-04 | K64: € 691.00
A65: ZED3B3D593 | B65: 9381751008 | C65: TECHVISION | D65: AFFIDAMNETO DELLA FORNITURA DI UN TOTEM VERSAMENTI AREA COLLOQUI | E65: TRATTATIVA DIRETTA MEPA | F65: 1 | G65: TECHVISION | H65: € 8,248.00 | I65: 2023-05-24 | J65: 2023-05-24 | K65: € 8,248.00
A66: ZF43B47260 | B66: 3003500265 | C66: BRAVO SERVIZI | D66: FORNITURA E POSA DI CONTROSOFFITTATURA E CONTROPARETE ISOLANTE, E SOSTITUZIONE INFISSI | E66: RDO MEPA | F66: 1 | G66: BRAVO SERVIZI | H66: € 8,997.00 | I66: 2023-06-16 | J66: 2023-06-12 | K66: € 8,997.00
A67: ZC23B6C2D4 | B67: 1176110268 | C67: MARCHIOL SPA | D67: FORNITURA MATERIALE ELETTRICO PER MANUTENZIONE ORDINARIA | E67: TRATTATIVA DIRETTA MEPA | F67: 1 | G67: MARCHIOL SPA | H67: € 608.27 | I67: 2023-06-08 | J67: 2023-06-08 | K67: € 608.27
A68: ZB53B7BC49 | B68: 3146880269 | C68: EMAR SRL | D68: REALIZZAZIONE IMPIANTO VIDEOSORVEGLIANZA ALL'INTERNO DELLA CUCINA DETENUTI | E68: TRATTATIVA DIRETTA MEPA | F68: 1 | G68: EMAR SRL | H68: € 4,300.00 | I68: 2023-06-19 | J68: 2023-06-19 | K68: € 4,300.00
A69: Z773B8A984 | B69: 3878640238 | C69: VIRTUAL LOGIC | D69: FORNITURA DI UN UPS E CONSUMABILI DA COPIA PER LABORATORIO DIGITALIZZAZIONE | E69: AFFIDAMENTO DIRETTO MEPA | F69: 1 | G69: VIRTUAL LOGIC | H69: € 677.88 | I69: 2023-06-14 | J69: 2023-06-14 | K69: € 677.88
A70: ZB43B472C6 | B70: 3003500265 | C70: BRAVO SERVIZI | D70: FORNITURA E POSA DI CONTROSOFFITTATURA E CONTROPARETE ISOLANTE, E SOSTITUZIONE INFISSI | E70: TRATTATIVA DIRETTA MEPA | F70: 1 | G70: BRAVO SERVIZI | H70: € 21,342.00 | I70: 2023-06-13 | J70: 2023-06-13 | K70: € 21,342.00
A71: Z663B8BF68 | B71: 2507670269 | C71: ALTERNATIVA COOPERATIVA AMBIENTE | D71: AFFIDAMENTO INCARICO DIGITALIZZAZIONE OTTICA FASCICOLI DETENUTI ANNO 2023 | E71: AFFIDAMENTO DIRETTO | F71: 1 | G71: ALTERNATIVA COOPERATIVA AMBIENTE | H71: € 30,000.00 | I71: 2023-06-14 | J71: 2023-12-31 | K71: € 30,000.00
A72: Z793CD740A | B72: 11582010150 | C72: LYRECO | D72: FORNITURA CARTA | E72: AFFIDAMENTO DIRETTO MEPA | F72: 1 | G72: LYRECO | H72: € 684.60 | I72: 2023-10-13 | J72: 2023-10-13 | K72: € 684.60
A73: Z943CC62E7 | B73: 299550285 | C73: BELTRAME SPA | D73: FORNITURA MATERIALE IDRAULICO PER MANUTENZIONE ORDINARIA FABBRICATO | E73: TRATTATIVA DIRETTA MEPA | F73: 1 | G73: BELTRAME SPA | H73: € 1,197.36 | I73: 2023-10-10 | J73: 2023-10-10 | K73: € 1,197.36
A74: Z8F3D28E12 | B74: 9816660154 | C74: MANUTAN ITALIA SPA | D74: FORNITURA SCAFFALATURA TUNNEL FUNGAIA | E74: AFFIDAMENTO DIRETTO MEPA | F74: 1 | G74: MANUTAN ITALIA SPA | H74: € 4,959.00 | I74: 2023-11-09 | J74: 2023-11-09 | K74: € 4,959.00
A75: ZED3C39A2A | B75: 3990590261 | C75: FM INSTALLAZIONI | D75: FORNITURA SERVIZIO DI MANUTENZIONE E RIPARAZIONE CLIMATIZZATORI | E75: AFFIDAMENTO DIRETTO | F75: 1 | G75: FM INSTALLAZIONI | H75: € 1,109.58 | I75: 2023-08-22 | J75: 2023-08-22 | K75: € 1,109.58
A76: Z3EC3A2E2 | B76: 893140269 | C76: BOTTER | D76: FORNITURA DUPLICATI DI CHIAVI SERRATURE CILINDRI E LUCCHETTI | E76: AFFIDAMENTO DIRETTO | F76: 1 | G76: BOTTER | H76: € 496.18 | I76: 2023-08-22 | J76: 2023-08-22 | K76: € 496.18
A77: Z033C3D2B6 | B77: 3146880269 | C77: EMAR SRL | D77: FORNITURA EINSTALLAZIONE VIDEOREGISTRATORE PER ARMADI RACK ESISTENTI | E77: TRATTATIVA DIRETTA MEPA | F77: 1 | G77: EMAR SRL | H77: € 3,655.53 | I77: 2023-08-23 | J77: 2023-08-23 | K77: € 3,655.53
A78: ZB83BDASCD | B78: 9381751008 | C78: TECHVISION | D78: FORNITURA TESSERE TELEFONICHE PER LA POPOLAZIONE DETENUTA | E78: AFFIDAMENTO DIRETTO MEPA | F78: 1 | G78: TECHVISION | H78: € 200.00 | I78: 2023-07-12 | J78: 2023-07-12 | K78: € 200.00
A79: Z743BDAE1A | B79: 3407540289 | C79: AREA EST TELECOMUNICAZIONI | D79: SERVIZIO DI MANUTENZIONE / RIPARAZIONE CENTRALINO ISTITUTO | E79: AFFIDAMENTO DIRETTO | F79: 1 | G79: AREA EST TELECOMUNICAZIONI | H79: € 230.60 | I79: 2023-07-11 | J79: 2023-07-11 | K79: € 230.60
A80: ZA93BD8C58 | B80: 4033260276 | C80: OFFICINA ANDREA MINTO | D80: AFF. DIRETTO - SERVIZIO DI EQUILIBRATURA PNEUMATICI | E80: AFFIDAMENTO DIRETTO | F80: 1 | G80: OFFICINA ANDREA MINTO | H80: € 28.69 | I80: 2023-07-07 | J80: 2023-07-07 | K80: € 28.69
A81: Z963BBD3E5 | B81: 1279740136 | C81: GRASSI UFFICIO | D81: FORNITURA CARTA A4 | E81: RDO MEPA | F81: 10 | G81: GRASSI UFFICIO | H81: € 510.00 | I81: 2023-07-06 | J81: 2023-07-06 | K81: € 510.00
A82: ZB23D28DB3 | B82: 3486670262 | C82: ZAGO SRL | D82: FORNITURA E POSA MOTORE ED ACCESSORI A PORTINE CARRAIO PER ACCESSI NELL'INTERCINTA ISTISTUTO | E82: TRATTATIVA DIRETTA | F82: 1 | G82: ZAGO SRL | H82: € 5,240.00 | I82: 2023-11-13 | J82: 2023-11-13 | K82: € 5,240.00
A83: ZEB3D55B14 | B83: 299550285 | C83: BELTRAME SPA | D83: FORNITURA MATERIALE IDRAULICO | E83: AFFIDAMENTO DIRETTO MEPA | F83: 1 | G83: BELTRAME SPA | H83: € 277.18 | I83: 2023-11-17 | J83: 2023-11-17 | K83: € 277.18
A84: Z123C55EF1 | B84: 2597650304 | C84: BLUE CAR SYSTEM | D84: SOSTITUZIONE PARABREZZA DEL VEICOLO FIAT TALENTO TARGATO PP500AG | E84: AFFIDAMENTO DIRETTO | F84: 1 | G84: BLUE CAR SYSTEM | H84: € 374.66 | I84: 2023-09-04 | J84: 2023-09-04 | K84: € 374.66
A85: Z673C7BD3B | B85: 3990590261 | C85: FM INSTALLAZIONI | D85: AFF. DIRETTA - RIPARAZIONE CLIMATIZZATORE AREA PEDAGOGICA | E85: AFFIDAMENTO DIRETTO | F85: 1 | G85: FM INSTALLAZIONI | H85: € 109.20 | I85: 2023-08-04 | J85: 2023-08-04 | K85: € 109.20
A86: ZE33CA1658 | B86: 4033260276 | C86: ANDREA MINTO | D86: SOSTITUZIONE PNEUMATICI VEICOLO FIAT TALENTO TARGATO PP239AH | E86: AFFIDAMENTO DIRETTO MEPA | F86: 1 | G86: ANDREA MINTO | H86: € 1,250.80 | I86: 2023-09-28 | J86: 2023-09-28 | K86: € 1,250.80
A87: ZEA3BDAE88 | B87: 2520590049 | C87: PROCURA | D87: FORNITURA RASOI MONOUSO PER LA POPOLAZIONE DETENUTA | E87: AFFIDAMENTO DIRETTO MEPA | F87: 1 | G87: PROCURA | H87: € 5,200.00 | I87: 2023-07-12 | J87: 2023-07-12 | K87: € 5,200.00
A88: Z2EBDAED8 | B88: 2803930235 | C88: CASA DEI DETERSIVI | D88: FORNITURA MATERIALE IGIENICO SANITARIO PER LA POPOLAZIONE DETENUTA | E88: AFFIDAMENTO DIRETTO MEPA | F88: 1 | G88: CASA DEI DETERSIVI | H88: € 1,680.00 | I88: 2023-07-12 | J88: 2023-07-12 | K88: € 1,680.00
A89: Z143BDAEB3 | B89: 1469840662 | C89: INGROSCART | D89: FORNITURA MATERIALE IGIENICO SANITARIO PER LA POPOLAZIONE DETENUTA | E89: AFFIDAMENTO DIRETTO MEPA | F89: 1 | G89: INGROSCART | H89: € 2,160.00 | I89: 2023-07-12 | J89: 2023-07-12 | K89: € 2,160.00
A90: Z783BDAF2E | B90: 2726950302 | C90: ADRIACLEAN SRL | D90: FORNITURA DISPOSITI DPI GUANTI PER IL PERSONALE POL PEN | E90: AFFIDAMENTO DIRETTO MEPA | F90: 1 | G90: ADRIACLEAN SRL | H90: € 493.00 | I90: 2023-07-12 | J90: 2023-07-12 | K90: € 493.00
A91: Z563BDAFD2 | B91: 1223900034 | C91: ICE FOR | D91: FORNITURA SGRASSATORE PROFESSIONALE PER LA CUCINA DETENUTI | E91: AFFIDAMENTO DIRETTO MEPA | F91: 1 | G91: ICE FOR | H91: € 420.16 | I91: 2023-07-12 | J91: 2023-07-12 | K91: € 420.16
A92: CIG PRIMARIO 9375804638 CIG DERIVATO ZF33BE946D | B92: 5066690156 | C92: PELLEGRINI SPA | D92: FORNITURA DI BUONI PASTO CARTACEI - EDIZIONE 10 LOTTO 3 - | E92: ACCORDO QUADRO CONSIP | F92: 1 | G92: PELLEGRINI SPA | H92: € 17,280.00 | I92: 2023-07-17 | J92: 2023-07-17 | K92: € 17,280.00
A93: Z923C39735 | B93: 2010970263 | C93: SISTERS | D93: FORNITURA TONER PER MULTIFUNZIONE | E93: AFFIDAMENTO DIRETTO MEPA | F93: 1 | G93: SISTERS | H93: € 368.80 | I93: 2023-07-26 | J93: 2023-07-26 | K93: € 368.80
A94: ZAD3C0D4B4 | B94: 7620910153 | C94: BRAGA MORO SISTEMI DI ENERGIA SRL | D94: FORNITURA UPS PER IL LABORATORIO DIGITALIZZAZIONE | E94: AFFIDAMENTO DIRETTO | F94: 1 | G94: BRAGA MORO SISTEMI DI ENERGIA SRL | H94: € 861.60 | I94: 2023-07-28 | J94: 2023-07-28 | K94: € 861.60
A95: ZAE3C19EF3 | B95: 3990590261 | C95: FM INSTALLAZIONI | D95: SERVIZIO DI RIPARAZIONE IMPIANTO RISCALDAMENTO/RAFFRESCAMENTO AREA PEDAGOGICA | E95: AFFIDAMENTO DIRETTO MEPA | F95: 1 | G95: FM INSTALLAZIONI | H95: € 354.64 | I95: 2023-08-02 | J95: 2023-07-02 | K95: € 354.64
A96: ZCD3C1AA3F | B96: 9327441002 | C96: MERIDIANO VIAGGI E TURISMO | D96: SERVIZIO PRENOTAZIONE PERNOTTO PER SERVIZIO DI MISSIONE POL PEN | E96: AFFIDAMENTO DIRETTO | F96: 1 | G96: MERIDIANO VIAGGI E TURISMO | H96: € 1,200.00 | I96: 2023-07-27 | J96: 2023-07-27 | K96: € 1,200.00
A97: ZDA3CF9EA8 | B97: 1766840266 | C97: AUTOEMPORIO CAMERINI | D97: AFF.DIRETTO - FORNITURA PEZZI DI RICAMBIO PER VEICOLO FIAT OANDA EA671CW | E97: AFFIDAMENTO DIRETTO | F97: 1 | G97: AUTOEMPORIO CAMERINI | H97: € 88.44 | I97: 2023-10-30 | J97: 2023-10-30 | K97: € 88.44
A98: Z473CFD333 | B98: 3488620265 | C98: CENTRO GOMME | D98: AFF.DIRETTO - FORNITURA PNEUMATICI QUATTRO STAGIO | E98: AFFIDAMENTO DIRETTO | F98: 1 | G98: CENTRO GOMME | H98: € 1,450.80 | I98: 2023-10-24 | J98: 2023-10-24 | K98: € 1,450.80
A99: Z2E3CEB8F3 | B99: 219602063 | C99: CONTARINA | D99: SERVIZIO DI RACCOLTA E SMALTIMENTO TONER E CARTUCCE ESAUSTE ANNO 2023 | E99: AFFIDAMENTO DIRETTO | F99: 1 | G99: CONTARINA | H99: € 55.00 | I99: 2023-10-19 | J99: 2023-10-19 | K99: € 55.00
A100: ZAB3CCD108 | B100: 3625860261 | C100: CARROZZERIA ZANANDREA | D100: LAVORI DI CARROZZERIA SU VEICOLO ALFA ROMEO STELVIO TARGATO PP 761 AH ADIBITO AL SERVIZIO DI SCORTA PER LA TUTELA DEL MINISTRO | E100: AFFIDAMENTO DIRETTO | F100: 1 | G100: CARROZZERIA ZANANDREA | H100: € 651.44 | I100: 2023-10-12 | J100: 2023-10-12 | K100: € 651.44
A101: Z533D120DA | B101: 4416840264 | C101: DF TECNO SERVICE | D101: MANUTENZIONE E RIPARAZIONE CUOCIPASTA CUCINA DETENUTI | E101: AFFIDAMENTO DIRETTO | F101: 1 | G101: DF TECNO SERVICE | H101: € 241.00 | I101: 2023-10-25 | J101: 2023-10-25 | K101: € 241.00
A102: Z3B3D1EE32A | B102: 9816660154 | C102: MANUTAN ITALIA SPA | D102: FORNITURA CARRELLI DISTRIBUZIONE VITTO DETENUTI | E102: TRATTATIVA DIRETTA MEPA | F102: 1 | G102: MANUTAN ITALIA SPA | H102: € 1,296.75 | I102: 2023-11-03 | J102: 2023-11-03 | K102: € 1,296.75
A103: ZD73D27D33 | B103: 2520590049 | C103: PROCURA | D103: AFF. DIRETTO MEPA - FORNITURA MATERIALE IGIENICO SANITARIO PER LA POPOLAZIONE DETENUTA | E103: AFFIDAMENTO DIRETTO MEPA | F103: 1 | G103: PROCURA | H103: € 12,194.00 | I103: 2023-11-07 | J103: 2023-11-07 | K103: € 12,194.00
A104: Z973D27D99 | B104: 531920783 | C104: PAPER INGROS | D104: FORNITURA MATERIALE IGIENICO SANITARIO PER LA POPOLAZIONE DETENUTA | E104: AFFIDAMENTO DIRETTO MEPA | F104: 1 | G104: PAPER INGROS | H104: € 3,237.00 | I104: 2023-11-07 | J104: 2023-11-07 | K104: € 3,237.00
A105: Z9A3D27D6D | B105: 1469840662 | C105: INGROSCART | D105: FORNITURA MATERIALE IGIENICO SANITARIO PER LA POPOLAZIONE DETENUTA | E105: AFFIDAMENTO DIRETTO MEPA | F105: 1 | G105: INGROSCART | H105: € 1,693.80 | I105: 2023-11-07 | J105: 2023-11-07 | K105: € 1,693.80
A106: Z0E3D29671 | B106: 3614591216 | C106: 2 M ITALIA | D106: FORNITURA MATERIALE IGIENICO SANITARIO PER LA POPOLAZIONE DETENUTA | E106: AFFIDAMENTO DIRETTO MEPA | F106: 1 | G106: 2 M ITALIA | H106: € 780.00 | I106: 2023-11-07 | J106: 2023-11-07 | K106: € 780.00
A107: Z9E3DECFB1 | B107: 3413170261 | C107: F.LLI NARDIN | D107: INTERVENTO SBLOCCO LINEA FOGNARIA | E107: AFFIDAMENTO DIRETTO | F107: 1 | G107: F.LLI NARDIN | H107: € 400.00 | I107: 2023-11-08 | J107: 2023-11-08 | K107: € 400.00
A108: Z553DD5334 | B108: 893140269 | C108: BOTTER | D108: FORNITURA DUPLICATI CHIAVI | E108: AFFIDAMENTO DIRETTO | F108: 1 | G108: BOTTER | H108: € 695.65 | I108: 2023-12-19 | J108: 2023-12-19 | K108: € 695.65
A109: ZCE3DD527B | B109: 3625860261 | C109: CARROZZERIA ZANANDREA | D109: LAVORI DI CARROZZERIA AUTOMEZZO POLIZIA PENITENZIARIA | E109: AFFIDAMENTO DIRETTO | F109: 1 | G109: CARROZZERIA ZANANDREA | H109: € 411.00 | I109: 2023-12-18 | J109: 2023-12-18 | K109: € 411.00
A110: Z673DA70DC | B110: 3625860261 | C110: CARROZZERIA ZANANDREA | D110: LAVORI DI CARROZZERIA AUTOMEZZO POLIZIA PENITENZIARIA | E110: AFFIDAMENTO DIRETTO | F110: 1 | G110: CARROZZERIA ZANANDREA | H110: € 254.00 | I110: 07/12/203 | J110: 2023-12-07 | K110: € 254.00
A111: Z5E3DBFC81 | B111: 2636530608 | C111: ALPINE SRL | D111: ATTREZZATURE RICREATIVE | E111: AFFIDAMENTO DIRETTO MEPA | F111: 1 | G111: ALPINE SRL | H111: € 2,366.00 | I111: 2023-12-13 | J111: 2023-12-13 | K111: € 2,366.00
A112: Z8EDBAC4C | B112: 1952150264 | C112: PROCED | D112: FORNITURA TONER NERO PER STAMPANTE SPAID | E112: AFFIDAMENTO DIRETTO | F112: 1 | G112: PROCED | H112: € 238.80 | I112: 2023-12-12 | J112: 2023-12-12 | K112: € 238.80
A113: ZCA3DA7017 | B113: 4033260276 | C113: ANDREA MINTO | D113: EQUILIBRATURA PNEUMATICI AUTOMEZZO POLIZIA PENITENZIARIA | E113: AFFIDAMENTO DIRETTO | F113: 1 | G113: ANDREA MINTO | H113: € 28.69 | I113: 07/12/203 | J113: 07/12/203 | K113: € 28.69
A114: ZD13D7FC84 | B114: 9381751008 | C114: TECHVISION | D114: FORNITURA TELEFONI ANTIVANDALO E ANTINCLUSIONE TERZE PERSONE NON AUTORIZZATE PER CONVERSAZIONE TELEFONICHE DETENUTI | E114: AFFIDAMENTO DIRETTO MEPA | F114: 1 | G114: TECHVISION | H114: € 2,250.00 | I114: 2023-11-28 | J114: 2023-11-28 | K114: € 2,250.00
A115: ZD33D64EA1 | B115: 4108510266 | C115: NARDIN | D115: FORNITURA ATTREZZI PER MANUTENZIONE AREE VERDI | E115: AFFIDAMENTO DIRETTO | F115: 1 | G115: NARDIN | H115: € 277.02 | I115: 2023-11-17 | J115: 2023-11-17 | K115: € 277.02
A116: Z8B3CCEFA0 | B116: 2848250235 | C116: CONFORTI SPA | D116: DUPLICATO CHIAVI SERRATURA CASSAFORTE | E116: AFFIDAMENTO DIRETTO | F116: 1 | G116: CONFORTI SPA | H116: € 80.00 | I116: 2023-10-12 | J116: 2023-10-12 | K116: € 80.00
A117: ZAA3D29945 | B117: 2016170264 | C117: MUSHROOM | D117: FORNITURA BALLETTE FUNGHI | E117: AFFIDAMENTO DIRETTO | F117: 1 | G117: MUSHROOM | H117: € 602.50 | I117: 2023-11-09 | J117: 2023-11-09 | K117: € 602.50
A118: Z5D3D3E481 | B118: 11846730015 | C118: MTA GROUP | D118: FORNITURA LASTRE MATERASSI DETENUTI | E118: AFFIDAMENTO DIRETTO MEPA | F118: 1 | G118: MTA GROUP | H118: € 1,420.00 | I118: 2023-11-13 | J118: 2023-11-13 | K118: € 1,420.00
A119: ZEF3D48C4C | B119: 3972911204 | C119: 3M FORNITURE | D119: FORNITURA PER FUNGAIA RELO TESSUTO PACCIAMATURA | E119: AFFIDAMENTO DIRETTO MEPA | F119: 1 | G119: 3M FORNITURE | H119: € 281.90 | I119: 2023-11-15 | J119: 2023-11-15 | K119: € 281.90
A120: ZC73D3237D | B120: 5661590017 | C120: COLORE AMICO SRL | D120: MATERIALE DIDATTICO SCUOLA DITENUTI | E120: AFFIDAMENTO DIRETTO MEPA | F120: 1 | G120: COLORE AMICO SRL | H120: € 106.70 | I120: 2023-11-09 | J120: 2023-11-09 | K120: € 106.70
A121: Z373D3C7A2 | B121: 3844340269 | C121: TENDIFICIO TAPEZZERIA MION | D121: FORNITURA E POSA DI TENDE VENEZIANE | E121: AFFIDAMENTO DIRETTO | F121: 1 | G121: TENDIFICIO TAPEZZERIA MION | H121: € 1,115.00 | I121: 2023-11-13 | J121: 2023-11-13 | K121: € 1,115.00
A122: Z94A3D28D1D | B122: 8050520967 | C122: BLUEBAG | D122: FORNITURA GUANTI MONOUSO | E122: AFFIDAMENTO DIRETTO MEPA | F122: 1 | G122: BLUEBAG | H122: € 1,078.00 | I122: 2023-11-07 | J122: 2023-11-07 | K122: € 1,078.00
A123: Z0D3D2991D | B123: 604930701 | C123: F.LLI PAVONE | D123: FORNITURA MATERIALE IGIENICO SANITARIO PER LA POPOLAZIONE DETENUTA | E123: AFFIDAMENTO DIRETTO MEPA | F123: 1 | G123: F.LLI PAVONE | H123: € 3,327.50 | I123: 2023-11-07 | J123: 2023-11-07 | K123: € 3,327.50
A124: Z703D29953 | B124: 3972911204 | C124: 3M FORNITURE | D124: FORNITURA STENDIBIANCHERIA E PANNI SPOLVERO PER LA POPOLAZIONE DETENUTA | E124: AFFIDAMENTO DIRETTO MEPA | F124: 1 | G124: 3M FORNITURE | H124: € 438.30 | I124: 2023-11-07 | J124: 2023-11-07 | K124: € 438.30
A125: Z063D29930 | B125: 2803930235 | C125: CASA DEI DETERSIVI | D125: FORNITURA MATERIALE IGIENICO SANITARIO PER LA POPOLAZIONE DETENUTA | E125: AFFIDAMENTO DIRETTO MEPA | F125: 1 | G125: CASA DEI DETERSIVI | H125: € 1,324.00 | I125: 2023-11-07 | J125: 2023-11-07 | K125: € 1,324.00
A126: ZB93D29964 | B126: 10324241008 | C126: ULTRAPROMEDIA SRL | D126: FORNITURA MATERIALE IGIENICO SANITARIO PER LA POPOLAZIONE DETENUTA | E126: AFFIDAMENTO DIRETTO MEPA | F126: 1 | G126: ULTRAPROMEDIA SRL | H126: € 516.00 | I126: 2023-11-07 | J126: 2023-11-07 | K126: € 516.00
A127: Z573D29973 | B127: 2255830644 | C127: 3B OFFICE SRL | D127: FORNITURA MATERIALE IGIENICO SANITARIO PER LA POPOLAZIONE DETENUTA | E127: AFFIDAMENTO DIRETTO MEPA | F127: 1 | G127: 3B OFFICE SRL | H127: € 703.00 | I127: 2023-11-07 | J127: 2023-11-07 | K127: € 703.00
A128: Z943D022C8 | B128: 2597650304 | C128: BLUE CAR SYSTEM | D128: RIPARAZIONE PARABREZZA VEICOLO TARGATO PP731AF | E128: AFFIDAMENTO DIRETTO MEPA | F128: 1 | G128: BLUE CAR SYSTEM | H128: € 70.00 | I128: 2023-10-25 | J128: 2023-10-25 | K128: € 70.00
A129: Z983CB2D2C | B129: 24758602156 | C129: ACQUASPR | D129: FORNITURA E MANUTENZIONE FILTRI PER IMPIANTO ANTILEGIONELLA | E129: TRATT DIRETTA MEPA - | F129: 1 | G129: ACQUASPR | H129: € 2,300.00 | I129: 2023-10-09 | J129: 2023-10-09 | K129: € 2,300.00
A130: Z513D60946 | B130: 9381751008 | C130: TECHVISION | D130: FORNITURA TELEFONI PER LA POPOLAZIONE DETENUTA | E130: AFFIDAMENTO DIRETTO MEPA | F130: 1 | G130: TECHVISION | H130: € 198.00 | I130: 21/11/203 | J130: 2023-11-21 | K130: € 198.00
A131: Z68395D408 | B131: 590300265 | C131: LENZINI | D131: MANUTENZIONE PARCO AUTOMEZZI POL PEN ANNO 2023 | E131: RDO MEPA | F131: 5 | G131: LENZINI | H131: € 9,000.00 | I131: 2023-01-12 | J131: 2023-12-31 | K131: € 9,000.00
A132: Z8C3A4706B | B132: 5403151003 | C132: TREITALIA | D132: SERVIZIO DI FORNITURA BIGLIETTARIA FERROVIARIA PER VIAGGIO DI SERVIZIO DEL PERSONALE | E132: CONVENZIONE | F132: 1 | G132: TREITALIA | H132: € 3,000.00 | I132: 2023-04-24 | J132: 2023-04-24 | K132: € 3,000.00

Sheet CC Trieste
A1: Dipartimento Amministrazione Penitenziaria - ISTITUTO CASA CIRCONDARIALE TRIESTE - C.F. 80012590321
A2: Contratti di forniture, beni e servizi Anno 2023 Dati aggiornati al 31 dicembre 2023
A3: CIG | B3: Codice Fiscale | C3: Denominazione | D3: Oggetto | E3: Procedura di scelta del contraente | F3: Elenco operatori invitati a presentare offerte | G3: Aggiudicatario | H3: Importo di aggiudicazione | I3: Data Inizio | J3: Data Ultimazione | K3: Somme liquidate (al netto dell'IVA)
A4: ZF83935A3E | B4: 80012590321 | C4: DIREZIONE CASA CIRCONARIALE DI TRIESTE | D4: CORSO DI FORMAZIONE DETENUTI | E4: Mercato Libero Ordine Diretto | G4: CENTRO SOLIDARIETA GIOVANI " GIOVANNI MICESIO" | H4: 11,600.00 | I4: 2023-01-19 | J4: 2023-09-08 | K4: 9,508.20
B5: 80012590321 | C5: DIREZIONE CASA CIRCONARIALE DI TRIESTE | D5: INCARICO MEDICO COMPETENTE | E5: Mercato Libero Ordine Diretto | G5: DOTT ALLEGRA VINCENZO | H5: n.d. | I5: 2023-01-23 | J5: 2023-12-31 | K5: 3,621.21
A6: Z5039E1360 | B6: 80012590321 | C6: DIREZIONE CASA CIRCONARIALE DI TRIESTE | D6: STAMPANTE CODICI A BARRE | E6: Mercato Elettronico ORDINE DIRETTO | G6: GIANNONE COMPUTERS P.I. 01170160889 | H6: 3,654.50 | I6: 2023-02-02 | J6: 2023-02-27 | K6: 364.67
A7: Z31391C1AD | B7: 80012590321 | C7: DIREZIONE CASA CIRCONARIALE DI TRIESTE | D7: STAMPIGLIE PR COLLOQUI | E7: Mercato Elettronico Trattativa Diretta | G7: BATTELLO STAMPATORE P.IVA 01260730328 | H7: 493.86 | I7: 2023-02-08 | J7: 2023-03-09 | K7: 404.80
B8: 80012590321 | C8: DIREZIONE CASA CIRCONARIALE DI TRIESTE | D8: VERIFICA CENTRALE TERMICA | E8: Mercato Libero Ordine Diretto | G8: INAIL | H8: 924.00 | I8: 2023-02-09 | J8: 2023-03-15 | K8: 757.38
A9: Z2F39E23F9 | B9: 80012590321 | C9: DIREZIONE CASA CIRCONARIALE DI TRIESTE | D9: MATERIALE EDILE | E9: RDO MEPA | F9: EDILLECA - EDIL NORD - EDILMARTIGNACCO - EDILTUTTO - F.LLI TABOGA - GRUPPO TABOGA - EDILGRANDE - MEG EDILIZIA | G9: F.LLI TABOGA P.IVA 00153520309 | H9: 20,000.00 | I9: 2023-02-06 | J9: 2023-03-31 | K9: 17,499.00
A10: 96539324B5 | B10: 80012590321 | C10: DIREZIONE CASA CIRCONARIALE DI TRIESTE | D10: SOSTITUZIONI CORPI ILLUMNIANTI | E10: Mercato Libero RDO | F10: CEM - DE ZOTTI - ED IMPIANTI COSTRUZIONI - ELECTRIX - ELETTRICA DUCALE - FRIULELETTRA - NICLI IMPIANTI - PRESOTTO - SIEL IMPIANTI | G10: PRESOTTO ENNIO SRL | H10: 183,000.00 | I10: 2023-02-17 | J10: 2023-12-15 | K10: 146,010.00
A11: ZC33A03619 | B11: 80012590321 | C11: DIREZIONE CASA CIRCONARIALE DI TRIESTE | D11: RIPARAZIONE PORTE INGRESSO ISTITUTO | E11: Mercato LIBERO AFFIDAMENTO Diretto | G11: ELSI DI G.ZAPPONE P.I. 01550650301 | H11: 122.00 | I11: 2023-02-17 | J11: 2023-02-20 | K11: 100.00
A12: Z5B3A30339 | B12: 80012590321 | C12: DIREZIONE CASA CIRCONARIALE DI TRIESTE | D12: SOSTITUZIONE VETRO ROTTO CAPPELLA | E12: MERCATO LIBERO AFFIDAMENTO DIRETTO | G12: PIETRO PASINATI PI. 00878250323 | H12: 289.14 | I12: 2023-03-02 | J12: 2023-09-11 | K12: 237.00
A13: Z9737EC77E | B13: 80012590321 | C13: DIREZIONE CASA CIRCONARIALE DI TRIESTE | D13: SERVIZIO DI LAVANDERIA ANNO 2023 | E13: MERCATO LIBERO AFFIDAMENTO DIRETTO | G13: COOPERATIVA SOCIALE DI UDINE P.I. 00586170300 | H13: 5,000.00 | I13: 2023-03-02 | J13: 2023-12-31 | K13: 1,203.00
A14: ZA93ACD499 | B14: 80012590321 | C14: DIREZIONE CASA CIRCONARIALE DI TRIESTE | D14: IMPIANTO ELETTRICO CANTINA | E14: Mercato LIBERO AFFIDAMENTO Diretto | G14: CARMET | H14: 19,520.00 | I14: 2023-03-02 | J14: 2023-09-11 | K14: 9,977.00
A15: 96952250C6 | B15: 80012590321 | C15: DIREZIONE CASA CIRCONARIALE DI TRIESTE | D15: GARA MENSA | E15: Mercato Elettronico RDO | F15: ALL FOOD - BIORISTORO ITALIA - CIRFOOD - DUSSMANN SERVICE - FOOD CATERING - GMA RISTORAZIONE - RISTOSERVICE - CAMST - SLEM | G15: SLEM | H15: 171,600.00 | I15: 2023-07-01 | K15: 23,755.29
A16: Z423D3EEE0 | B16: 80012590321 | C16: DIREZIONE CASA CIRCONARIALE DI TRIESTE | D16: RIPARAZIONE SOSTITUZIONE PORTA SECONDO CANCELLO | E16: Mercato Elettronico Trattativa Diretta | G16: ELSI DI g,Zappone p.i. 01550650301 | H16: 3,375.01 | I16: 2023-03-06 | J16: 2023-05-15 | K16: 2,766.40
A17: ZB83A5B025 | B17: 80012590321 | C17: DIREZIONE CASA CIRCONARIALE DI TRIESTE | D17: ACQUISTO PEZZI DI RICAMBIO AUTOMEZZI | E17: Mercato Libero Affidamento Diretto | G17: DITTA AUTORICAMBI BERTONI SRL P.I. 0095180323 | H17: 164.70 | I17: 2023-03-14 | J17: 2023-03-16 | K17: 135.00
A18: ZB03A6034A | B18: 80012590321 | C18: DIREZIONE CASA CIRCONARIALE DI TRIESTE | D18: SOSTITUZIONE COLONNA SCARICO PRIMO PIANO DIRETTORE | E18: Mercato LIBERO AFFIDAMENTO DIRETTO | G18: DITTA CARMET SRL P.IVA 00718050321 | H18: 2,169.16 | I18: 2023-03-15 | J18: 2023-04-06 | K18: 1,778.00
A19: ZD53A815E4 | B19: 80012590321 | C19: DIREZIONE CASA CIRCONARIALE DI TRIESTE | D19: INTERVENTO TECNICO SOFTWARE TIMBRATURE | E19: Mercato LIBERO AFFIDAMENTO DIRETTO | G19: DITTA EURO TIME DI MUZZOLINI LUIGI | H19: 189.10 | I19: 2023-03-23 | J19: 2023-03-30 | K19: 155.00
A20: ZAB3A84D3E | B20: 80012590321 | C20: DIREZIONE CASA CIRCONARIALE DI TRIESTE | D20: MATERIALE IGIENE E PULIZIA 1 TRIMESTRE 2023 | E20: Mercato Elettronico RDO | F20: ADRIACLEAN - CHINESPORT - DETERSUD - ERREBIAN - ESSECI CLEAN - EUROMEDICAL - LA CASALINDA - INGROSCART | G20: LA CASALINDA SRL 00667690044 TARANTASCA | H20: 6,100.00 | I20: 2023-03-24 | J20: 2023-04-14 | K20: 8,271.50
A21: Z9B3A856A8 | B21: 80012590321 | C21: DIREZIONE CASA CIRCONARIALE DI TRIESTE | D21: COMPRESSO RE E SALDATRICE | E21: Mercato Elettronico TD | G21: DITTA F.A.T.I. | H21: 2,196.00 | I21: 2023-03-24 | J21: 2023-03-30 | K21: 1,800.00
A22: ZA03A8A867 | B22: 80012590321 | C22: DIREZIONE CASA CIRCONARIALE DI TRIESTE | D22: SEDICI WC E CASSETTE DI SCARICO | E22: Mercato LIBERO AFFIDAMENTO DIRETTO | G22: DITTA CAMBIELLI SPA | H22: 203.57 | I22: 2023-03-27 | J22: 2023-03-30 | K22: 166.86
A23: Z003A8A966 | B23: 80012590321 | C23: DIREZIONE CASA CIRCONARIALE DI TRIESTE | D23: LAVORI IDRAULICI PER INSTALLAZIONI LAVATRICI | E23: Mercato LIBERO AFFIDAMENTO DIRETTO | G23: CARMET SRL | H23: 5,154.50 | I23: 2023-03-27 | J23: 2023-09-04 | K23: 4,225.00
A24: Z533A8B20B | B24: 80012590321 | C24: DIREZIONE CASA CIRCONARIALE DI TRIESTE | D24: ACQUISTO MATERIALE FERRAMENTA | E24: Mercato Elettronico RDO | F24: Ferramenta Udinese - colorificio italia - colorificio candoni - edilmartignacco - fati - fc ferramenta - colormarket - ferramenta lucchese - macoratti - mafer | G24: Ferramenta Udinese p. IVA 03043350309 | H24: 2,440.00 | I24: 2023-03-30 | J24: 2023-04-17 | K24: 1,058.60
A25: Z563A99070 | B25: 80012590321 | C25: DIREZIONE CASA CIRCONARIALE DI TRIESTE | D25: FORNITURA CANCELLERIA | E25: Mercato Libero Ordine Diretto | G25: ERREBIAN SPA 02044501001 | H25: 247.05 | I25: 2023-03-30 | J25: 2023-04-17 | K25: 202.50
A26: ZDF3A99AE4 | B26: 80012590321 | C26: DIREZIONE CASA CIRCONARIALE DI TRIESTE | D26: RDO MATERIALE PER TINTEGGIATURA | E26: Mercato Elettronico RDO | F26: COLORIFICIO RO-GA - 3C COMMERCIALE - COLORI E VERNICI - CLORIFICIO MAURO - FERCOLOR - FERRAMENTA E COLORI | G26: colorificio RO-GA P.IVA 02887140248 | H26: 6,100.00 | I26: 2023-03-30 | J26: 2023-04-20 | K26: 3,047.00
A27: ZE73AA0209 | B27: 80012590321 | C27: DIREZIONE CASA CIRCONARIALE DI TRIESTE | D27: ACQUISTO SERRETURE E CHIAVI | E27: Mercato Libero Ordine Diretto | G27: DITTA SAPIENZA & PONTE | H27: 610.00 | I27: 2023-03-31 | J27: 2023-12-31 | K27: 475.25
A28: ZA03AB3F33 | B28: 80012590321 | C28: DIREZIONE CASA CIRCONARIALE DI TRIESTE | D28: ACQUISTO 2 BANCHI MENSA AGENTI | E28: Mercato Elettronico Trattativa Diretta | G28: DITTA MANUTAN SPA PI 02097170969 | H28: 429.58 | I28: 2023-04-06 | J28: 2023-04-27 | K28: 352.11
A29: Z063ABE979 | B29: 80012590321 | C29: DIREZIONE CASA CIRCONARIALE DI TRIESTE | D29: ADEGUAMENTO CENTRALE TERMICA | E29: Mercato Libero Ordine Diretto | G29: DITTA RS ANTINCENDIO | H29: 436.70 | I29: 2023-04-17 | J29: 2023-04-28 | K29: 357.95
A30: Z703ACF838 | B30: 80012590321 | C30: DIREZIONE CASA CIRCONARIALE DI TRIESTE | D30: MATERIALE EDILE | E30: Mercato Elettronico Trattativa Diretta | G30: DITTA ZANUTTA SPA | H30: 3,294.00 | I30: 2023-04-17 | J30: 2023-04-21 | K30: 2,700.00
A31: ZCD3AF3E31 | B31: 80012590321 | C31: DIREZIONE CASA CIRCONARIALE DI TRIESTE | D31: acquisto tv per detenuti | E31: Mercato Elettronico ODA | G31: DEALTEK SNC PI 1563621003 | H31: 6,112.20 | I31: 2023-04-28 | J31: 2023-05-29 | K31: 5,010.00
